Workbook

Sheet AER only (hidden)
B1: Data in these columns used for data validation and database purposes.
B2: Date last modified: | C2: 2017-01-16 | D2: added (Albury and Victora) for AGN
C3: 2016-10-17 | D3: updated TransGrid's correct legal name, corrected TasNetworks (T) to June financial year
C4: 2017-02-01 | D4: inserted Power and Water, added NRs (dms_FeederCat_1 and dms_FeederCat_2)
C5: 2017-03-03 | D5: inserted AEMO as a business | AB5: FOR ELECTRICITY BUSINESSES ONLY
C6: 2018-03-28 | D6: major changes to accommodate STPIS
C7: Template Version | D7: 5 | AB7: Feeder Types | AF7: TasNetworks (D) | AG7: MAIFI flag | AH7: Feeder Names
AB8: CBD | AC8: Urban | AD8: Short rural | AE8: long rural | AF8: EXTRA
B9: dms_TradingName_List | C9: dms_TradingNameFull_List | D9: dms_ABN_List | E9: dms_JurisdictionList | F9: dms_Sector_List | G9: dms_Segment_List | H9: dms_FormControl_List | I9: dms_RPT_List | J9: dms_RPTMonth_List | K9: dms_CRCPlength_List | L9: dms_FRCPlength_List | M9: dms_663_List | N9: dms_DeterminationRef_List | O9: dms_Addr1_List | P9: dms_Addr2_List | Q9: dms_Suburb_List | R9: dms_State_List | S9: dms_PostCode_List | T9: dms_PAddr1_List | U9: dms_PAddr2_List | V9: dms_PSuburb_List | W9: dms_PState_List | X9: dms_PPostCode_List | Y9: dms_ContactName1_List | Z9: dms_ContactPh1_List | AA9: dms_ContactEmail_List | AB9: dms_CBD_flag | AC9: dms_Urban_flag | AD9: dms_ShortRural_flag | AE9: dms_LongRural_flag | AF9: dms_FeederType_5_flag | AG9: dms_MAIFI_flag_List | AH9: dms_FeederName_1 | AI9: dms_FeederName_2 | AJ9: dms_FeederName_3 | AK9: dms_FeederName_4 | AL9: dms_FeederName_5 | AM9: Column1
B10: ActewAGL Distribution | C10: ActewAGL Distribution | D10: 76670568688 | E10: ACT | F10: Electricity | G10: Distribution | H10: Revenue cap | I10: Financial | J10: June | K10: 5 | L10: 5 | M10: 5 | N10: 2014-19 Distribution Determination | O10: 40 Bunda Street | Q10: CANBERRA | R10: ACT | S10: 2600 | T10: GPO BOX 366 | V10: CANBERRA | W10: ACT | X10: 2601 | Y10: Robert Walker | Z10: 02 6248 3847 | AA10: robert.walker@actewagle.com.au | AB10: NO | AC10: YES | AD10: YES | AE10: NO | AF10: NO | AH10: CBD | AI10: Urban | AJ10: Short rural | AK10: Long rural | AM10: ActewAGL Distribution
B11: ActewAGL Distribution (Tx Assets) | C11: ActewAGL Distribution (Tx Assets) | D11: 76670568688 | E11: ACT | F11: Electricity | G11: Distribution | H11: Revenue cap | I11: Financial | J11: June | K11: 5 | L11: 5 | M11: 5 | N11: distribution determination | O11: 40 Bunda Street | Q11: CANBERRA | R11: ACT | S11: 2600 | T11: GPO BOX 366 | V11: CANBERRA | W11: ACT | X11: 2601 | Y11: Robert Walker | Z11: 02 6248 3847 | AA11: robert.walker@actewagle.com.au | AB11: NO | AC11: YES | AD11: YES | AE11: NO | AF11: NO | AH11: CBD | AI11: Urban | AJ11: Short rural | AK11: Long rural | AM11: ActewAGL Distribution (Tx Assets)
B12: ActewAGL Gas | C12: ActewAGL Gas | D12: 76670568688 | E12: ACT | F12: Gas | G12: Distribution | H12: Weighted average price cap | I12: Financial | J12: June | K12: 5 | L12: 5 | M12: x | O12: 40 Bunda Street | Q12: CANBERRA | R12: ACT | S12: 2600 | T12: GPO BOX 366 | V12: CANBERRA | W12: ACT | X12: 2601 | Y12: Philip Deamer | Z12: 02 6248 3438 | AA12: GasAAReview@actewagl.com.au | AH12: CBD | AI12: Urban | AJ12: Short rural | AK12: Long rural | AM12: ActewAGL Gas
B13: AEMO | C13: Australian Energy Market Operator Ltd | D13: 94072010327 | E13: Vic | F13: Electricity | G13: Transmission | H13: - | I13: Financial | J13: March | K13: 5 | L13: 5 | M13: x | N13: - | O13: Level 22 | P13: 530 Collins Street | Q13: MELBOURNE | R13: VIC | S13: 3000 | T13: GPO Box 2008 | V13: MELBOURNE | W13: VIC | X13: 3001 | AB13: n/a | AC13: n/a | AD13: n/a | AE13: n/a | AF13: n/a | AH13: CBD | AI13: Urban | AJ13: Short rural | AK13: Long rural | AM13: AEMO
B14: AGN (Albury and Victoria) | C14: Australian Gas Networks Limited (reporting data for Albury and Victoria) | D14: 19078551685 | E14: Vic | F14: Gas | G14: Distribution | H14: Weighted average price cap | I14: Calendar | J14: December | K14: 5 | L14: 5 | M14: x | O14: Level 6 | P14: 400 King William Street | Q14: ADELAIDE | R14: SA | S14: 5000 | T14: PO Box 6468 | U14: Halifax Street | V14: ADELAIDE | W14: SA | X14: 5000 | Y14: Craig de Laine | Z14: 08 8418 1129 | AA14: craig.delaine@agn.com.au | AB14: n/a | AC14: n/a | AD14: n/a | AE14: n/a | AF14: n/a | AH14: CBD | AI14: Urban | AJ14: Short rural | AK14: Long rural | AM14: AGN (Albury)
B15: AGN (Albury) | C15: Australian Gas Networks Limited (reporting data for Albury) | D15: 19078551685 | E15: Vic | F15: Gas | G15: Distribution | H15: Weighted average price cap | I15: Calendar | J15: December | K15: 5 | L15: 5 | M15: x | O15: Level 6 | P15: 400 King William Street | Q15: ADELAIDE | R15: SA | S15: 5000 | T15: PO Box 6468 | U15: Halifax Street | V15: ADELAIDE | W15: SA | X15: 5000 | Y15: Craig de Laine | Z15: 08 8418 1129 | AA15: craig.delaine@agn.com.au | AB15: n/a | AC15: n/a | AD15: n/a | AE15: n/a | AF15: n/a | AH15: CBD | AI15: Urban | AJ15: Short rural | AK15: Long rural
B16: AGN (SA) | C16: Australian Gas Networks Limited (reporting data for SA) | D16: 19078551685 | E16: SA | F16: Gas | G16: Distribution | H16: Weighted average price cap | I16: Financial | J16: June | K16: 5 | L16: 5 | M16: 5 | N16: distribution determination | O16: Level 6 | P16: 400 King William Street | Q16: ADELAIDE | R16: SA | S16: 5000 | T16: PO Box 6468 | U16: Halifax Street | V16: ADELAIDE | W16: SA | X16: 5000 | Y16: Craig de Laine | Z16: 08 8418 1129 | AA16: craig.delaine@agn.com.au | AB16: n/a | AC16: n/a | AD16: n/a | AE16: n/a | AF16: n/a | AH16: CBD | AI16: Urban | AJ16: Short rural | AK16: Long rural | AM16: AGN (SA)
B17: AGN (Victoria) | C17: Australian Gas Networks Limited (reporting data for Victoria) | D17: 19078551685 | E17: Vic | F17: Gas | G17: Distribution | H17: Weighted average price cap | I17: Calendar | J17: December | K17: 5 | L17: 5 | M17: x | O17: Level 6 | P17: 400 King William Street | Q17: ADELAIDE | R17: SA | S17: 5000 | T17: PO Box 6468 | U17: Halifax Street | V17: ADELAIDE | W17: SA | X17: 5000 | Y17: Craig de Laine | Z17: 08 8418 1129 | AA17: craig.delaine@agn.com.au | AB17: n/a | AC17: n/a | AD17: n/a | AE17: n/a | AF17: n/a | AH17: CBD | AI17: Urban | AJ17: Short rural | AK17: Long rural | AM17: AGN (Victoria)
B18: Amadeus | C18: APT Pipelines (NT) Pty Ltd | D18: 39009737393 | E18: NT | F18: Gas | G18: Transmission | H18: Weighted average price cap | I18: Financial | J18: June | K18: 5 | L18: 5 | M18: x | N18: n/a | O18: Level 19, HSBC Building | P18: 580 George Street | Q18: SYDNEY | R18: NSW | S18: 2000 | T18: Level 19, HSBC Building | U18: 580 George Street | V18: SYDNEY | W18: NSW | X18: 2000 | Y18: Alexandra Curran | Z18: 02 9275 0020 | AA18: alexandra.curran@apa.com.au | AB18: n/a | AC18: n/a | AD18: n/a | AE18: n/a | AF18: n/a | AH18: CBD | AI18: Urban | AJ18: Short rural | AK18: Long rural | AM18: Amadeus
B19: APA GasNet | C19: APA GasNet Australia (Operations) Pty Ltd | D19: 065083009 | E19: Vic | F19: Gas | G19: Transmission | H19: Weighted average price cap | I19: Calendar | J19: December | K19: 5 | L19: 5 | M19: x | O19: Level 19, HSBC Building | P19: 580 George Street | Q19: SYDNEY | R19: NSW | S19: 2000 | T19: PO Box R41 | V19: ROYAL EXCHANGE | W19: NSW | X19: 1225 | Y19: Alexandra Curran | Z19: 02 9275 0020 | AA19: alexandra.curran@apa.com.au | AB19: n/a | AC19: n/a | AD19: n/a | AE19: n/a | AF19: n/a | AH19: CBD | AI19: Urban | AJ19: Short rural | AK19: Long rural | AM19: APA GasNet
B20: Ausgrid | C20: Ausgrid | D20: 78508211731 | E20: NSW | F20: Electricity | G20: Distribution | H20: Revenue cap | I20: Financial | J20: June | K20: 5 | L20: 5 | M20: 5 | N20: 2014-19 Distribution Determination | O20: 570 George St | Q20: SYDNEY | R20: NSW | S20: 2000 | T20: GPO Box 4009 | V20: SYDNEY | W20: NSW | X20: 2001 | Y20: John Thomson | Z20: 02 9269 2312 | AA20: john.thomson@ausgrid.com.au | AB20: YES | AC20: YES | AD20: YES | AE20: YES | AF20: NO | AH20: CBD | AI20: Urban | AJ20: Short rural | AK20: Long rural | AM20: Ausgrid
B21: Ausgrid (Tx Assets) | C21: Ausgrid (Tx Assets) | D21: 67505337385 | E21: NSW | F21: Electricity | G21: Distribution | H21: Revenue cap | I21: Financial | J21: June | K21: 5 | L21: 5 | M21: 5 | N21: distribution determination | O21: 570 George St | Q21: SYDNEY | R21: NSW | S21: 2000 | T21: GPO Box 4009 | V21: SYDNEY | W21: NSW | X21: 2001 | Y21: John Thomson | Z21: 02 9269 2312 | AA21: john.thomson@ausgrid.com.au | AB21: YES | AC21: YES | AD21: YES | AE21: YES | AF21: NO | AH21: CBD | AI21: Urban | AJ21: Short rural | AK21: Long rural | AM21: Ausgrid (Tx Assets)
B22: AusNet (D) | C22: AusNet Electricity Services Pty Ltd | D22: 91064651118 | E22: Vic | F22: Electricity | G22: Distribution | H22: Revenue cap | I22: Calendar | J22: December | K22: 5 | L22: 5 | M22: 2 | N22: 2016-20 Distribution Determination | O22: Level 32 | P22: 2 Southbank Boulevard | Q22: SOUTHBANK | R22: Vic | S22: 3006 | T22: Locked Bag 14051 | V22: MELBOURNE CITY MAIL CENTRE | W22: VIC | X22: 8001 | Y22: please provide contact details | AC22: YES | AD22: YES | AE22: YES | AF22: NO | AH22: CBD | AI22: Urban | AJ22: Short rural | AK22: Long rural | AM22: AusNet (D)
B23: AusNet (Gas) | C23: AusNet Gas Services | D23: 086015036 | E23: Vic | F23: Gas | G23: Distribution | H23: Weighted average price cap | I23: Calendar | J23: December | K23: 5 | L23: 5 | M23: X | O23: Level 19, HSBC Building | P23: 580 George Street | Q23: SYDNEY | R23: NSW | S23: 2000 | T23: PO Box R41 | V23: ROYAL EXCHANGE | W23: NSW | X23: 1225 | Y23: Alexandra Curran | Z23: 02 9275 0020 | AA23: alexandra.curran@apa.com.au | AB23: n/a | AC23: n/a | AD23: n/a | AE23: n/a | AF23: n/a | AH23: CBD | AI23: Urban | AJ23: Short rural | AK23: Long rural | AM23: AusNet (Gas)
B24: AusNet (T) | C24: Ausnet Services (Transmission) Ltd | D24: 48116124362 | E24: Vic | F24: Electricity | G24: Transmission | H24: Revenue cap | I24: Financial | J24: March | K24: 5 | L24: 5 | M24: 2 | N24: transmission determination | O24: Level 32 | P24: 2 Southbank Boulevard | Q24: SOUTHBANK | R24: Vic | S24: 3006 | T24: Locked Bag 14051 | V24: MELBOURNE CITY MAIL CENTRE | W24: Vic | X24: 8001 | Y24: Clare Thompson | Z24: 03 9695 6670 | AA24: clare.e.thompson@ausnetservices.com.au | AB24: n/a | AC24: n/a | AD24: n/a | AE24: n/a | AF24: n/a | AH24: CBD | AI24: Urban | AJ24: Short rural | AK24: Long rural | AM24: AusNet (T)
B25: Australian Distribution Co. | C25: Australian Distribution Co. | D25: 11222333444 | E25: - | F25: Electricity | G25: Distribution | H25: Revenue cap | I25: Financial | J25: June | K25: 5 | L25: 5 | M25: 2 | N25: distribution determination | O25: 123 Straight Street | Q25: SYDNEY | R25: NSW | S25: 2000 | T25: PO Box 123 | V25: SYDNEY | W25: NSW | X25: 2000 | Y25: Bob Smith | Z25: 02 1234 5678 | AA25: bob@auselec.net.au | AB25: n/a | AC25: n/a | AD25: n/a | AE25: n/a | AF25: NO | AH25: CBD | AI25: Urban | AJ25: Short rural | AK25: Long rural | AM25: Australian Distribution Co.
B26: Australian Distribution Co. (Vic) | C26: Australian Distribution Co. (Victoria) | D26: 11222333444 | E26: Vic | F26: Electricity | G26: Distribution | H26: Revenue cap | I26: Calendar | J26: December | K26: 5 | L26: 5 | M26: 2 | N26: distribution determination | O26: 123 Straight Street | Q26: MELBOURNE | R26: Vic | S26: 3000 | T26: PO Box 123 | V26: MELBOURNE | W26: VIC | X26: 3000 | Y26: Bob Smith | Z26: 02 1234 5678 | AA26: bob@auselec.net.au | AB26: n/a | AC26: n/a | AD26: n/a | AE26: n/a | AF26: NO | AH26: CBD | AI26: Urban | AJ26: Short rural | AK26: Long rural | AM26: Australian Distribution Co. (Vic)
B27: Australian Transmission Co. | C27: Australian Transmission Co. | D27: 11222333444 | E27: - | F27: Electricity | G27: Transmission | H27: Revenue cap | I27: Financial | J27: June | K27: 5 | L27: 5 | M27: 5 | N27: transmission determination | O27: 123 Straight Street | Q27: SYDNEY | R27: NSW | S27: 2000 | T27: PO Box 123 | V27: SYDNEY | W27: NSW | X27: 2000 | Y27: Bob Smith | Z27: 02 1234 5678 | AA27: bob@auselec.net.au | AB27: n/a | AC27: n/a | AD27: n/a | AE27: n/a | AF27: NO | AH27: CBD | AI27: Urban | AJ27: Short rural | AK27: Long rural | AM27: Australian Transmission Co.
B28: Central Ranges Pipeline (D) | C28: Central Ranges Pipeline Pty Ltd | D28: 108218355 | E28: NSW | F28: Gas | G28: Distribution | H28: Weighted average price cap | I28: Financial | J28: June | K28: 15 | L28: 5 | M28: 5 | N28: distribution determination | O28: Level 19 | P28: 580 George Street | Q28: SYDNEY | R28: NSW | S28: 2000 | T28: PO Box R41 | V28: ROYAL EXCHANGE | W28: NSW | X28: 1225 | Y28: Scott Young | Z28: 02 9275 0031 | AA28: scott.young@apa.com.au | AB28: n/a | AC28: n/a | AD28: n/a | AE28: n/a | AF28: n/a | AH28: CBD | AI28: Urban | AJ28: Short rural | AK28: Long rural
B29: Central Ranges Pipeline (T) | C29: Central Ranges Pipeline Pty Ltd | D29: 108218355 | E29: NSW | F29: Gas | G29: Distribution | H29: Weighted average price cap | I29: Financial | J29: June | K29: 14 | L29: 5 | M29: 5 | N29: transmission determination | O29: Level 19 | P29: 580 George Street | Q29: SYDNEY | R29: NSW | S29: 2000 | T29: PO Box R41 | V29: ROYAL EXCHANGE | W29: NSW | X29: 1225 | Y29: Scott Young | Z29: 02 9275 0031 | AA29: scott.young@apa.com.au | AB29: n/a | AC29: n/a | AD29: n/a | AE29: n/a | AF29: n/a | AH29: CBD | AI29: Urban | AJ29: Short rural | AK29: Long rural
B30: CitiPower | C30: CitiPower | D30: 76064651056 | E30: Vic | F30: Electricity | G30: Distribution | H30: Revenue cap | I30: Calendar | J30: December | K30: 5 | L30: 5 | M30: 2 | N30: 2016-20 Distribution Determination | O30: 40 Market Street | Q30: MELBOURNE | R30: Vic | S30: 3000 | T30: Locked Bag 14090 | V30: MELBOURNE | W30: VIC | X30: 8001 | Y30: Hannah Williams | Z30: 03 9683 4088 | AA30: hwilliams@powercor.com.au | AB30: YES | AC30: YES | AD30: NO | AE30: NO | AF30: NO | AH30: CBD | AI30: Urban | AJ30: Short rural | AK30: Long rural | AM30: CitiPower
B31: Directlink | C31: Directlink | D31: 16779340889 | E31: Qld | F31: Electricity | G31: Transmission | H31: Revenue cap | I31: Financial | J31: June | K31: 9 | L31: 5 | M31: 5 | N31: transmission determination | O31: Level 19, HSBC Building | P31: 580 George Street | Q31: SYDNEY | R31: NSW | S31: 2000 | T31: PO Box R41 | V31: ROYAL EXCHANGE | W31: NSW | X31: 1225 | Y31: Scott Young | Z31: 02 9275 0031 | AA31: scott.young@apa.com.au | AB31: n/a | AC31: n/a | AD31: n/a | AE31: n/a | AF31: n/a | AH31: CBD | AI31: Urban | AJ31: Short rural | AK31: Long rural | AM31: Directlink
B32: ElectraNet | C32: ElectraNet | D32: 41094482416 | E32: SA | F32: Electricity | G32: Transmission | H32: Revenue cap | I32: Financial | J32: June | K32: 5 | L32: 5 | M32: 5 | N32: transmission determination | O32: 52-55 East Terrace | P32: Rymill Park | Q32: ADELAIDE | R32: SA | S32: 5000 | T32: PO Box 7096 | U32: Hutt Street Post Office | V32: ADELAIDE | W32: SA | X32: 5000 | Y32: Bill Jackson | Z32: 08 8404 7969 | AA32: jackson.bill@electranet.com.au | AB32: n/a | AC32: n/a | AD32: n/a | AE32: n/a | AF32: n/a | AH32: CBD | AI32: Urban | AJ32: Short rural | AK32: Long rural | AM32: ElectraNet
B33: Endeavour Energy | C33: Endeavour Energy | D33: 11247365823 | E33: NSW | F33: Electricity | G33: Distribution | H33: Revenue cap | I33: Financial | J33: June | K33: 5 | L33: 5 | M33: 5 | N33: 2014-19 Distribution Determination | O33: 51 Huntingwood Drive | Q33: HUNTINGWOOD | R33: NSW | S33: 2148 | T33: PO Box 811 | V33: SEVEN HILLS | W33: NSW | X33: 1730 | Y33: Jon Hocking | Z33: 02 9853 4386 / 0407 348 156 | AA33: Jon.Hocking@Endeavourenergy.com.au | AB33: NO | AC33: YES | AD33: YES | AE33: YES | AF33: NO | AH33: CBD | AI33: Urban | AJ33: Short rural | AK33: Long rural | AM33: Endeavour Energy
B34: Energex | C34: Energex | D34: 40078849055 | E34: Qld | F34: Electricity | G34: Distribution | H34: Revenue cap | I34: Financial | J34: June | K34: 5 | L34: 5 | M34: 5 | N34: 2015-20 Distribution Determination | O34: 26 Reddacliff Street | Q34: NEWSTEAD | R34: Qld | S34: 4006 | T34: 26 Reddacliff Street | V34: NEWSTEAD | W34: QLD | X34: 4006 | Y34: Nicola Roscoe | Z34: 07 3664 5891 | AA34: nicolaroscoe@energex.com.au | AB34: YES | AC34: YES | AD34: YES | AE34: NO | AF34: NO | AH34: CBD | AI34: Urban | AJ34: Short rural | AK34: Long rural | AM34: Energex
B35: Ergon Energy | C35: Ergon Energy | D35: 50087646062 | E35: Qld | F35: Electricity | G35: Distribution | H35: Revenue cap | I35: Financial | J35: June | K35: 5 | L35: 5 | M35: 5 | N35: 2015-20 Distribution Determination | O35: 22 Walker Street | Q35: TOWNSVILLE | R35: Qld | S35: 4810 | T35: Po Box 264 | V35: FORTITUDE VALLEY | W35: QLD | X35: 4006 | Y35: Jenny Doyle, Group Manager Regulatory Affairs | Z35: (07) 3851 6416 | AA35: jenny.doyle@ergon.com.au | AB35: NO | AC35: YES | AD35: YES | AE35: YES | AF35: NO | AH35: CBD | AI35: Urban | AJ35: Short rural | AK35: Long rural | AM35: Ergon Energy
B36: Essential Energy | C36: Essential Energy | D36: 37428185226 | E36: NSW | F36: Electricity | G36: Distribution | H36: Revenue cap | I36: Financial | J36: June | K36: 5 | L36: 5 | M36: 5 | N36: 2014-19 Distribution Determination | O36: 8 Buller Street | Q36: PORT MACQUARIE | R36: NSW | S36: 2444 | T36: PO Box 5730 | V36: PORT MACQUARIE | W36: NSW | X36: 2444 | Y36: Catherine Waddell | Z36: 02 6338 3553 | AA36: catherine.waddell@essentialenergy.com.au | AB36: NO | AC36: NO | AD36: YES | AE36: YES | AF36: NO | AH36: CBD | AI36: Urban | AJ36: Short rural | AK36: Long rural | AM36: Essential Energy
B37: Jemena Electricity | C37: Jemena Electricity | D37: 82064651083 | E37: Vic | F37: Electricity | G37: Distribution | H37: Revenue cap | I37: Calendar | J37: December | K37: 5 | L37: 5 | M37: 2 | N37: 2016-20 Distribution Determination | O37: Level 16 | P37: 567 Collins Street | Q37: MELBOURNE | R37: VIC | S37: 3000 | T37: PO Box 16182 | V37: MELBOURNE | W37: VIC | X37: 8001 | Y37: Matthew Serpell | Z37: 03 9173 8231 | AA37: matthew.serpell@jemena.com.au | AB37: NO | AC37: NO | AD37: YES | AE37: NO | AF37: NO | AH37: CBD | AI37: Urban | AJ37: Short rural | AK37: Long rural | AM37: Jemena Electricity
B38: JGN | C38: Jemena Gas Networks (NSW) Ltd | D38: 003 004 322 | E38: NSW | F38: Gas | G38: Distribution | H38: Weighted average price cap | I38: Financial | J38: June | K38: 5 | L38: 5 | Y38: please provide contact details | AB38: n/a | AC38: n/a | AD38: n/a | AE38: n/a | AF38: n/a | AH38: CBD | AI38: Urban | AJ38: Short rural | AK38: Long rural | AM38: JGN
B39: Multinet Gas | C39: Multinet Gas (DB No.1) Pty Ltd (ACN 086 026 986), Multinet Gas (DB No.2) Pty Ltd (ACN 086 230 122) | D39: 086026986 | E39: Vic | F39: Gas | G39: Distribution | H39: Weighted average price cap | I39: Calendar | J39: December | K39: 5 | L39: 5 | M39: x | O39: 43-45 Centreway | Q39: MT WAVERLEY | R39: Vic | S39: 3149 | Y39: Andrew Schille | Z39: 03 8846 9860 | AA39: andrew.schille@ue.com.au | AB39: n/a | AC39: n/a | AD39: n/a | AE39: n/a | AF39: n/a | AH39: CBD | AI39: Urban | AJ39: Short rural | AK39: Long rural | AM39: Multinet Gas
B40: Murraylink | C40: Murraylink | D40: 79181207909 | E40: SA | F40: Electricity | G40: Transmission | H40: Revenue cap | I40: Financial | J40: June | K40: 5 | L40: 5 | M40: 5 | N40: transmission determination | O40: Level 19 | P40: 580 George Street | Q40: SYDNEY | R40: NSW | S40: 2000 | T40: PO Box R41 | V40: ROYAL EXCHANGE | W40: NSW | X40: 1225 | Y40: Scott Young | Z40: 02 9275 0031 | AA40: scott.young@apa.com.au | AB40: n/a | AC40: n/a | AD40: n/a | AE40: n/a | AF40: n/a | AH40: CBD | AI40: Urban | AJ40: Short rural | AK40: Long rural | AM40: Murraylink
B41: Power and Water | C41: Power and Water Corporation | D41: 15947352360 | E41: NT | F41: Electricity | G41: Distribution | H41: Revenue cap | I41: Financial | J41: June | K41: 5 | L41: 5 | M41: x | N41: distribution determination | O41: GPO Box 1921 | Q41: DARWIN | R41: NT | S41: 801 | T41: GPO Box 1921 | V41: DARWIN | W41: NT | X41: 801 | Y41: Lucy Moon | Z41: 08 8924 5822 | AA41: Lucy.Moon@powerwater.com.au | AB41: YES | AC41: YES | AD41: YES | AE41: YES | AF41: NO | AH41: CBD | AI41: Urban | AJ41: Short rural | AK41: Long rural
B42: Powercor Australia | C42: Powercor Australia | D42: 89064651109 | E42: Vic | F42: Electricity | G42: Distribution | H42: Revenue cap | I42: Calendar | J42: December | K42: 5 | L42: 5 | M42: 2 | N42: 2016-20 Distribution Determination | O42: 40 Market Street | Q42: MELBOURNE | R42: Vic | S42: 3000 | T42: Locked bag 14090 | V42: MELBOURNE | W42: VIC | X42: 8001 | Y42: Hannah Williams | Z42: 03 9683 4088 | AA42: hwilliams@powercor.com.au | AD42: YES | AE42: YES | AF42: NO | AH42: CBD | AI42: Urban | AJ42: Short rural | AK42: Long rural | AM42: Powercor Australia
B43: Powerlink | C43: Queensland Electricity Transmission Corporation Limited trading as Powerlink Queensland | D43: 82078849233 | E43: Qld | F43: Electricity | G43: Transmission | H43: Revenue cap | I43: Financial | J43: June | K43: 5 | L43: 5 | M43: 5 | N43: transmission determination | O43: 33 Harold St | Q43: VIRGINIA | R43: Qld | S43: 4014 | T43: PO Box 1193 | V43: VIRGINIA | W43: QLD | X43: 4014 | Y43: Jennifer Harris | Z43: 07 3860 2667 | AA43: jharris@powerlink.com.au | AB43: n/a | AC43: n/a | AD43: n/a | AE43: n/a | AF43: n/a | AH43: CBD | AI43: Urban | AJ43: Short rural | AK43: Long rural | AM43: Powerlink
B44: Roma to Brisbane Pipeline | C44: APT Petroleum Pipelines Limited t/a Roma to Brisbane Pipeline | D44: 009 737 393 | E44: Qld | F44: Gas | G44: Transmission | H44: Weighted average price cap | I44: Financial | J44: June | K44: 5 | L44: 5 | M44: x | N44: n/a | O44: 580 George Street | Q44: SYDNEY | R44: NSW | S44: 2000 | T44: PO Box R41 | V44: ROYAL EXCHANGE | W44: NSW | X44: 1225 | Y44: Mark Allen | Z44: 02 9275 0010 | AA44: mark.allen@apa.com.au | AB44: n/a | AC44: n/a | AD44: n/a | AE44: n/a | AF44: n/a | AH44: CBD | AI44: Urban | AJ44: Short rural | AK44: Long rural | AM44: Roma to Brisbane Pipeline
B45: SA Power Networks | C45: SA Power Networks | D45: 13332330749 | E45: SA | F45: Electricity | G45: Distribution | H45: Revenue cap | I45: Financial | J45: June | K45: 5 | L45: 5 | M45: 5 | N45: 2015-20 Distribution Determination | O45: 1 Anzac Highway | Q45: KESWICK | R45: SA | S45: 5035 | T45: GPO Box 77 | V45: ADELAIDE | W45: SA | X45: 5000 | Y45: Richard Sibly | Z45: 08 8404 5613 | AA45: richard.sibly@sapowernetworks.com.au | AB45: NO | AC45: NO | AD45: YES | AE45: YES | AF45: NO | AH45: CBD | AI45: Urban | AJ45: Short rural | AK45: Long rural | AM45: SA Power Networks
B46: TasNetworks (D) | C46: TasNetworks (D) | D46: 24167357299 | E46: Tas | F46: Electricity | G46: Distribution | H46: Revenue cap | I46: Financial | J46: June | K46: 5 | L46: 5 | M46: 5 | N46: distribution determination | O46: 1-7 Maria Street | Q46: LENAH VALLEY | R46: Tas | S46: 7008 | T46: PO Box 606 | V46: MOONAH | W46: Tas | X46: 7009 | Y46: John Sayers | Z46: 03 6271 6469 | AA46: john.sayers@tasnetworks.com.au | AB46: YES | AC46: YES | AD46: YES | AE46: YES | AF46: YES | AH46: Critical Infrastructure | AI46: High density commercial | AJ46: Urban | AK46: High density rural | AL46: Low density rural | AM46: TasNetworks (D)
B47: TasNetworks (T) | C47: TasNetworks (T) | D47: 24167357299 | E47: Tas | F47: Electricity | G47: Transmission | H47: Revenue cap | I47: Financial | J47: June | K47: 5 | L47: 5 | M47: 5 | N47: transmission determination | O47: 1-7 Maria Street | Q47: LENAH VALLEY | R47: Tas | S47: 7008 | T47: PO Box 606 | V47: MOONAH | W47: Tas | X47: 7009 | Y47: John Sayers | Z47: 03 6271 6469 | AA47: john.sayers@tasnetworks.com.au | AB47: n/a | AC47: n/a | AD47: n/a | AE47: n/a | AF47: n/a | AH47: CBD | AI47: Urban | AJ47: Short rural | AK47: Long rural | AM47: TasNetworks (T)
B48: TransGrid | C48: NSW Electricity Networks Operations Pty Ltd trading as TransGrid | D48: 609169959 | E48: NSW | F48: Electricity | G48: Transmission | H48: Revenue cap | I48: Financial | J48: June | K48: 5 | L48: 4 | M48: 5 | N48: transmission determination | O48: 180 Thomas Street | Q48: SYDNEY | R48: NSW | S48: 2000 | T48: PO Box A1000 | V48: SYDNEY SOUTH | W48: NSW | X48: 1235 | Y48: Garrie Chubb | Z48: 0408 210 221 | AA48: garrie.chubb@transgrid.com.au | AB48: n/a | AC48: n/a | AD48: n/a | AE48: n/a | AF48: n/a | AH48: CBD | AI48: Urban | AJ48: Short rural | AK48: Long rural | AM48: TransGrid
B49: United Energy | C49: United Energy | D49: 70064651029 | E49: Vic | F49: Electricity | G49: Distribution | H49: Revenue cap | I49: Calendar | J49: December | K49: 5 | L49: 5 | M49: 2 | N49: 2016-20 Distribution Determination | O49: Level 3 | P49: 6 Nexus Court | Q49: MULGRAVE | R49: Vic | S49: 3149 | T49: PO Box 449 | V49: MOUNT WAVERLEY | W49: VIC | X49: 3170 | Y49: Mathew Abraham | Z49: 03 8846 9758 | AA49: mathew.abraham@ue.com.au | AB49: NO | AC49: NO | AD49: YES | AE49: NO | AF49: NO | AH49: CBD | AI49: Urban | AJ49: Short rural | AK49: Long rural | AM49: United Energy
B50: Western Power (D) | C50: Western Power (D) | D50: 18540492861 | E50: WA | F50: Electricity | G50: Distribution | H50: Revenue cap | I50: Financial | J50: June | K50: 12 | L50: 4 | M50: x | N50: distribution determination | O50: 363 Wellington Street | Q50: PERTH | R50: WA | S50: 6000 | T50: GPO Box L921 | V50: PERTH | W50: WA | X50: 6842 | Y50: Judy Hunter | Z50: 08 9326 6239 | AA50: judy.hunter@westernpower.com.au | AB50: NO | AC50: NO | AD50: YES | AE50: YES | AF50: NO | AG50: NO | AH50: CBD | AI50: Urban | AJ50: Short rural | AK50: Long rural | AM50: Western Power (D)
B51: Western Power (T) | C51: Western Power (T) | D51: 18540492861 | E51: WA | F51: Electricity | G51: Transmission | H51: Revenue cap | I51: Financial | J51: June | K51: 12 | L51: 4 | M51: x | N51: transmission determination | O51: 363 Wellington Street | Q51: PERTH | R51: WA | S51: 6000 | T51: GPO Box L921 | V51: PERTH | W51: WA | X51: 6842 | Y51: Judy Hunter | Z51: 08 9326 6239 | AA51: judy.hunter@westernpower.com.au | AB51: n/a | AC51: n/a | AD51: n/a | AE51: n/a | AF51: n/a | AH51: CBD | AI51: Urban | AJ51: Short rural | AK51: Long rural | AM51: Western Power (T)
Y54: For EB & Reset RINs only | AD54: For AARs only
B55: The Reg Year Ending (dms_RYE) must be set to the last year of the regulatory period. For forecast data is is usually (FRCP_y5) for actual it is a single year (CRY). For historical actual data the RYE will need to be set manually in the business details sheet by setting the dms_Multiyear_flag to 1 and putting the correct value in 'dms_Specified_FinalYear. See cells C67:C68 | G55: =IF(dms_RPT="financial",VALUE(LEFT(CRCP_y1,4)-1)&"-"&TEXT(VALUE(RIGHT(CRCP_y1,2)-1),"00"),VALUE(LEFT(CRCP_y1,4)-1)) -> 2014-15 | N55: Drop down selector box for CA & Reset RINs. | O55: For CA & Reset RINs only | Y55: for DNSP only | AD55: For DNSPs only | AJ55: Reason for interruption | AK55: dms_Reason_Interruption_Detailed | AL55: dms_Reason_Interruption | AM55: dms_STPIS_Exclusion_List
B56: dms_Model_List | C56: DELETE NR 'CRY' IF NOT AN ANNUAL RIN (EB, CA , ARR) | E56: dms_RYE_Formula_Result | N56: dms_0203_ProjectType | O56: dms_020303_01_UOM | P56: dms_020501_01_UOM | Q56: dms_020501_02_UOM | R56: dms_020501_03_UOM | S56: dms_020501_04_UOM | T56: dms_020603_01_UOM | U56: dms_020701_01_UOM | V56: dms_020701_02_UOM | W56: dms_040102_01_UOM | X56: dms_040102_04_UOM | Y56: dms_030601_01_UOM | Z56: dms_030601_02_UOM | AA56: dms_030701_01_UOM | AB56: dms_030702_01_UOM | AC56: dms_030703_01_UOM | AD56: dms_030605_UOM | AE56: dms_03060703_UOM | AJ56: Animal | AK56: Animal impact | AL56: Animal | AM56: Weather
B57: ARR | C57: ANNUAL REPORTING STATEMENT | E57: =LEFT(dms_SingleYear_FinalYear_Result,2)&RIGHT(dms_SingleYear_FinalYear_Result,2) -> 2018 | F57: =LEFT(dms_SingleYear_FinalYear_Result,2)&RIGHT(dms_SingleYear_FinalYear_Result,2) | H57: Formula errors are OK | N57: New line on new route - single circuit | O57: Circuit line length in km | P57: 0's | Q57: 0's | R57: 0's | S57: 0's | T57: 0's | U57: km | V57: km | W57: 0's | X57: days | Y57: minutes/customer | Z57: minutes/customer | AA57: Customer / km | AB57: % | AC57: km | AD57: number | AE57: number | AK57: Animal nesting/burrowing, etc and other | AL57: Asset failure | AM57: Equipment failure
B58: CA | C58: CATEGORY ANALYSIS | E58: =LEFT(dms_SingleYear_FinalYear_Result,2)&RIGHT(dms_SingleYear_FinalYear_Result,2) -> 2018 | F58: =LEFT(dms_SingleYear_FinalYear_Result,2)&RIGHT(dms_SingleYear_FinalYear_Result,2) | H58: Formula errors are OK | N58: New line on new route - dual circuit | O58: Circuit line length in km | P58: 0's | Q58: 0's | R58: 0's | S58: 0's | T58: 0's | U58: 0's | V58: 0's | W58: 0's | X58: 0's | Y58: minutes/customer | Z58: minutes/customer | AA58: MWh/customer | AB58: Number of spans | AD58: number | AE58: number | AK58: Other | AL58: Other | AM58: Operational error
B59: CPI | C59: CPI | N59: New line on new route - other | O59: Circuit line length in km | P59: MVA added | Q59: MVA added | R59: MVA added | S59: MVA added | T59: 0's | U59: km | V59: km | W59: 0's | X59: $0s | Y59: interruptions/customer | Z59: interruptions/customer | AA59: kVA / customer | AB59: Number of spans | AD59: number | AE59: number | AJ59: Asset failure | AK59: LV | AL59: Overloads | AM59: Vegetation
B60: EB | C60: ECONOMIC BENCHMARKING | E60: =LEFT(dms_SingleYear_FinalYear_Result,2)&RIGHT(dms_SingleYear_FinalYear_Result,2) -> 2018 | F60: =LEFT(dms_SingleYear_FinalYear_Result,2)&RIGHT(dms_SingleYear_FinalYear_Result,2) | H60: Formula errors are OK | N60: Line rebuild over existing route - single circuit | O60: Circuit line length in km | P60: 0's | Q60: 0's | R60: 0's | S60: 0's | T60: 0's | U60: km | V60: km | W60: $0s | X60: 0's | Y60: interruptions/customer | Z60: interruptions/customer | AB60: Number of spans | AD60: number | AE60: number | AK60: Distribution substation | AL60: Planned | AM60: Animals
B61: PTRM | C61: POST TAX REVENUE MODEL | E61: =LEFT(dms_MultiYear_FinalYear_Result,2)&RIGHT(dms_MultiYear_FinalYear_Result,2) -> 2025 | F61: =LEFT(dms_MultiYear_FinalYear_Result,2)&RIGHT(dms_MultiYear_FinalYear_Result,2) | N61: Line rebuild over existing route - dual circuit | O61: Number | P61: total spend $0s | Q61: total spend $0s | R61: total spend $0s | S61: total spend $0s | T61: (per cent) | U61: 0's | V61: 0's | AB61: Number of spans | AD61: number | AE61: (per cent) | AK61: HV | AL61: Network business | AM61: Third party impacts
B62: Reset | C62: REGULATORY REPORTING STATEMENT | E62: =LEFT(dms_MultiYear_FinalYear_Result,2)&RIGHT(dms_MultiYear_FinalYear_Result,2) -> 2025 | F62: =LEFT(dms_MultiYear_FinalYear_Result,2)&RIGHT(dms_MultiYear_FinalYear_Result,2) | H62: Formula errors are OK | N62: Reconductor - Single circuit | O62: Number | P62: net circuit km added | Q62: net circuit km added | R62: net circuit km added | S62: net circuit km added | U62: years | V62: years | AB62: Years | AD62: number | AK62: Zone substation | AL62: Third party | AM62: Transmission failure
B63: RFM | C63: ROLL FORWARD MODEL | E63: =LEFT(dms_CRCP_FinalYear_Result,2)&RIGHT(dms_CRCP_FinalYear_Result,2) -> 2018 | F63: =LEFT(dms_CRCP_FinalYear_Result,2)&RIGHT(dms_CRCP_FinalYear_Result,2) | N63: Reconductor - Dual circuit | O63: Number | P63: total spend $0s | Q63: total spend $0s | R63: total spend $0s | S63: total spend $0s | AB63: Years | AD63: number | AK63: Subtransmission | AL63: Unknown | AM63: Load shedding
B64: WACC | C64: WEIGHTED AVERAGE COST OF CAPITAL | E64: =LEFT(dms_MultiYear_FinalYear_Result,2)&RIGHT(dms_MultiYear_FinalYear_Result,2) -> 2025 | F64: =LEFT(dms_MultiYear_FinalYear_Result,2)&RIGHT(dms_MultiYear_FinalYear_Result,2) | N64: Other | P64: net circuit km added | Q64: net circuit km added | R64: net circuit km added | S64: net circuit km added | AB64: Trees | AD64: number | AJ64: Other | AK64: insert description of 'other' | AL64: Vegetation | AM64: Inter-distributor connection failure
P65: total spend $0s | Q65: total spend $0s | R65: total spend $0s | S65: total spend $0s | AB65: Trees | AD65: number | AJ65: Overloads | AK65: - | AL65: Weather | AM65: Other
B66: dms_DataQuality_List | P66: 0's | R66: $0s | AB66: Defects | AD66: number | AJ66: Planned | AK66: - | AL66: 2 - STPIS Exclusion (3.3)(a)
B67: Actual | P67: 0's | AB67: Defects | AD67: number | AJ67: Network business | AK67: Network error | AL67: 3 - STPIS Exclusion (3.3)(a)
B68: Estimate | P68: 0's | AB68: Spans | AD68: number | AK68: Switching and protection error | AL68: 4 - STPIS Exclusion (3.3)(a)
B69: Consolidated | P69: $0s | AB69: km | AD69: (per cent) | AJ69: Third party | AK69: Fire | AL69: 5 - STPIS Exclusion (3.3)(a)
B70: Recast | AB70: Spans | AD70: (per cent) | AK70: Other | AL70: 6 - STPIS Exclusion (3.3)(a)
B71: Public | AK71: Dig-in | AL71: 7 - STPIS Exclusion (3.3)(a)
AK72: Unauthorised access
B73: For all files either AER or business needs to be able to specify the type of submission | C73: For PTRM & RFM templates we must provide a choice in case they change their form of control - otherwise it is drawn from the business specific lookup table above. | O73: For PTRM files - this field set the text for the named range "DMS_Xfactor" which in all cases is simply the text "x factors" - this saves putting in each old gas PTRM file | Y73: for TNSP only | AK73: Vehicle impact
B74: dms_SourceList | C74: dms_FormControl_Choices | O74: DMS_Xfactor | Y74: dms_030601_01_UOM | AA74: dms_030701_01_UOM | AB74: dms_030702_01_UOM | AJ74: Unknown | AK74: Unknown
B75: After appeal | C75: Revenue cap | O75: x factors | Y75: % | AA75: Number of spans | AB75: km | AJ75: Vegetation | AK75: Blow-in/Fall-in - NSP responsibility
B76: Draft decision | C76: Revenue yield | Y76: number | AA76: Years | AB76: % | AK76: Grow-in - NSP responsibility
B77: Final decision | C77: Weighted average price cap | Y77: number | AA77: Trees | AB77: km | AK77: Blow-in/Fall-in - Other responsible party
B78: PTRM update 1 | Y78: % | AA78: Defects | AB78: number | AK78: Grow-in - Other responsible party
B79: PTRM update 2 | Y79: number | AA79: Number of spans | AJ79: Weather
B80: PTRM update 3 | Y80: number | AA80: km | AJ80: 2 - STPIS Exclusion (3.3)(a)
B81: PTRM update 4 | Y81: % | AA81: km | AJ81: 3 - STPIS Exclusion (3.3)(a)
B82: PTRM update 5 | Y82: number | AA82: Number of spans | AJ82: 4 - STPIS Exclusion (3.3)(a)
B83: PTRM update 6 | Y83: number | AJ83: 5 - STPIS Exclusion (3.3)(a)
B84: PTRM update 7 | Y84: % | AJ84: 6 - STPIS Exclusion (3.3)(a)
B85: Regulatory proposal | Y85: number | AJ85: 7 - STPIS Exclusion (3.3)(a)
B86: Reporting | Y86: %
B87: Revised regulatory proposal | Y87: number
Y88: %
Y89: number
B93: These are indeces and lookup values for various dates. All step from the value placed in FRCP_y1 on the business and other details worksheet | C93: =IF(dms_FifthFeeder_flag_NSP="NO","This NSP has only 4 feeder categories","This NSP has 5 feeder categories") -> This NSP has only 4 feeder categories | L93: These date tables are currently used in the Recast templates to provide column headings and conditional formatting
B94: dms_FRCPlength_Num_List | C94: dms_FinalYear_List | D94: dms_CRCPlength_Num_List | E94: dms_CFinalYear_List | F94: dms_FRCP_years | H94: dms_CRCP_years | J94: dms_CRCP_index | L94: CRY from input cell on business sheet | M94: CRY - financial | N94: dms_FinYears | O94: CRY calendar | P94: dms_CalYears | Y94: These "row descriptions" are the column headings in the various templates but become row descriptions in the ETL process
B95: 1 | C95: dms_FRCP_y1 | D95: 1 | E95: CRCP_y1 | F95: =FRCP_y1 -> 2020-21 | G95: dms_FRCP_y1 | H95: =IF(dms_RPT="financial",VALUE(LEFT(dms_FRCP_y1,4)-1)&"-"&TEXT(VALUE(MID(dms_FRCP_y1,3,2)),"00"),VALUE(LEFT(dms_FRCP_y1,4)-1)) -> 2019-20 | I95: dms_CRCP_yZ | J95: 1 | L95: =CRY -> 2017-18 | M95: =VALUE(LEFT(CRY,4))&"-"&TEXT(MID(CRY,3,2)+1,"00") -> 2017-18 | N95: dms_CRYf_y1 | O95: =VALUE(LEFT(CRY,4)+1) -> 2018 | P95: dms_CRYc_y1 | Z95: Table 6.3 sustained interruptions - row descriptions
B96: 2 | C96: dms_FRCP_y2 | D96: 2 | E96: CRCP_y2 | F96: =IF(dms_RPT="financial",VALUE(LEFT(dms_FRCP_y1,4)+1)&"-"&TEXT(VALUE(RIGHT(dms_FRCP_y1,2)+1),"00"),VALUE(LEFT(dms_FRCP_y1,4)+1)) -> 2021-22 | G96: dms_FRCP_y2 | H96: =IF(dms_RPT="financial",VALUE(LEFT(dms_CRCP_yZ,4)-1)&"-"&TEXT(VALUE(MID(dms_CRCP_yZ,3,2)),"00"),VALUE(LEFT(dms_CRCP_yZ,4)-1)) -> 2018-19 | I96: dms_CRCP_yY | J96: 2 | M96: =VALUE(LEFT(dms_CRYf_y1,4)+1)&"-"&TEXT(MID(dms_CRYf_y1,3,2)+2,"00") -> 2018-19 | N96: dms_CRYf_y2 | O96: =VALUE(LEFT(dms_CRYc_y1,4)+1) -> 2019 | P96: dms_CRYc_y2 | Z96: dms_060301_CustNo_Affected_Row | AA96: dms_060301_Avg_Duration_Sustained_Int_Row | AB96: dms_060301_Effect_unplanned_SAIDI_Row | AC96: dms_060301_Effect_unplanned_SAIFI_Row
B97: 3 | C97: =IF(dms_Model="ARR",15,9) | D97: 3 | E97: =IF(dms_Model="ARR",15,9) | F97: =IF(dms_RPT="financial",VALUE(LEFT(dms_FRCP_y2,4)+1)&"-"&TEXT(VALUE(RIGHT(dms_FRCP_y2,2)+1),"00"),VALUE(LEFT(dms_FRCP_y2,4)+1)) -> 2022-23 | G97: dms_FRCP_y3 | H97: =IF(dms_RPT="financial",VALUE(LEFT(dms_CRCP_yY,4)-1)&"-"&TEXT(VALUE(MID(dms_CRCP_yY,3,2)),"00"),VALUE(LEFT(dms_CRCP_yY,4)-1)) -> 2017-18 | I97: dms_CRCP_yX | J97: 3 | M97: =VALUE(LEFT(dms_CRYf_y2,4)+1)&"-"&TEXT(MID(dms_CRYf_y2,3,2)+2,"00") -> 2019-20 | N97: dms_CRYf_y3 | O97: =VALUE(LEFT(dms_CRYc_y2,4)+1) -> 2020 | P97: dms_CRYc_y3 | Z97: Number of customers affected by the interruption | AA97: Average duration of sustained customer interruption | AB97: Effect on unplanned SAIDI | AC97: Effect on unplanned SAIFI
B98: 4 | C98: dms_FRCP_y4 | D98: 4 | E98: CRCP_y4 | F98: =IF(dms_RPT="financial",VALUE(LEFT(dms_FRCP_y3,4)+1)&"-"&TEXT(VALUE(RIGHT(dms_FRCP_y3,2)+1),"00"),VALUE(LEFT(dms_FRCP_y3,4)+1)) -> 2023-24 | G98: dms_FRCP_y4 | H98: =IF(dms_RPT="financial",VALUE(LEFT(dms_CRCP_yX,4)-1)&"-"&TEXT(VALUE(MID(dms_CRCP_yX,3,2)),"00"),VALUE(LEFT(dms_CRCP_yX,4)-1)) -> 2016-17 | I98: dms_CRCP_yW | J98: 4 | M98: =VALUE(LEFT(dms_CRYf_y3,4)+1)&"-"&TEXT(MID(dms_CRYf_y3,3,2)+2,"00") -> 2020-21 | N98: dms_CRYf_y4 | O98: =VALUE(LEFT(dms_CRYc_y3,4)+1) -> 2021 | P98: dms_CRYc_y4
B99: 5 | C99: dms_FRCP_y5 | D99: 5 | E99: CRCP_y5 | F99: =IF(dms_RPT="financial",VALUE(LEFT(dms_FRCP_y4,4)+1)&"-"&TEXT(VALUE(RIGHT(dms_FRCP_y4,2)+1),"00"),VALUE(LEFT(dms_FRCP_y4,4)+1)) -> 2024-25 | G99: dms_FRCP_y5 | H99: =IF(dms_RPT="financial",VALUE(LEFT(dms_CRCP_yW,4)-1)&"-"&TEXT(VALUE(MID(dms_CRCP_yW,3,2)),"00"),VALUE(LEFT(dms_CRCP_yW,4)-1)) -> 2015-16 | I99: dms_CRCP_yV | J99: 5 | M99: =VALUE(LEFT(dms_CRYf_y4,4)+1)&"-"&TEXT(MID(dms_CRYf_y4,3,2)+2,"00") -> 2021-22 | N99: dms_CRYf_y5 | O99: =VALUE(LEFT(dms_CRYc_y4,4)+1) -> 2022 | P99: dms_CRYc_y5
B100: 6 | C100: dms_FRCP_y6 | D100: 6 | E100: CRCP_y6 | F100: =IF(dms_RPT="financial",VALUE(LEFT(dms_FRCP_y5,4)+1)&"-"&TEXT(VALUE(RIGHT(dms_FRCP_y5,2)+1),"00"),VALUE(LEFT(dms_FRCP_y5,4)+1)) -> 2025-26 | G100: dms_FRCP_y6 | H100: =IF(dms_RPT="financial",VALUE(LEFT(dms_CRCP_yV,4)-1)&"-"&TEXT(VALUE(MID(dms_CRCP_yV,3,2)),"00"),VALUE(LEFT(dms_CRCP_yV,4)-1)) -> 2014-15 | I100: dms_CRCP_yU | J100: 6 | M100: =VALUE(LEFT(dms_CRYf_y5,4)+1)&"-"&TEXT(MID(dms_CRYf_y5,3,2)+2,"00") -> 2022-23 | N100: dms_CRYf_y6 | O100: =VALUE(LEFT(dms_CRYc_y5,4)+1) -> 2023 | P100: dms_CRYc_y6
B101: 7 | C101: dms_FRCP_y7 | D101: 7 | E101: CRCP_y7 | F101: =IF(dms_RPT="financial",VALUE(LEFT(dms_FRCP_y6,4)+1)&"-"&TEXT(VALUE(RIGHT(dms_FRCP_y6,2)+1),"00"),VALUE(LEFT(dms_FRCP_y6,4)+1)) -> 2026-27 | G101: dms_FRCP_y7 | H101: =IF(dms_RPT="financial",VALUE(LEFT(dms_CRCP_yU,4)-1)&"-"&TEXT(VALUE(MID(dms_CRCP_yU,3,2)),"00"),VALUE(LEFT(dms_CRCP_yU,4)-1)) -> 2013-14 | I101: dms_CRCP_yT | J101: 7 | M101: =VALUE(LEFT(dms_CRYf_y6,4)+1)&"-"&TEXT(MID(dms_CRYf_y6,3,2)+2,"00") -> 2023-24 | N101: dms_CRYf_y7 | O101: =VALUE(LEFT(dms_CRYc_y6,4)+1) -> 2024 | P101: dms_CRYc_y7 | Z101: Table 6.1 telephone answering - row descriptions and start date
B102: 8 | C102: dms_FRCP_y8 | D102: 8 | E102: CRCP_y8 | F102: =IF(dms_RPT="financial",VALUE(LEFT(dms_FRCP_y7,4)+1)&"-"&TEXT(VALUE(RIGHT(dms_FRCP_y7,2)+1),"00"),VALUE(LEFT(dms_FRCP_y7,4)+1)) -> 2027-28 | G102: dms_FRCP_y8 | H102: =IF(dms_RPT="financial",VALUE(LEFT(dms_CRCP_yT,4)-1)&"-"&TEXT(VALUE(MID(dms_CRCP_yT,3,2)),"00"),VALUE(LEFT(dms_CRCP_yT,4)-1)) -> 2012-13 | I102: dms_CRCP_yS | J102: 8 | M102: =VALUE(LEFT(dms_CRYf_y7,4)+1)&"-"&TEXT(MID(dms_CRYf_y7,3,2)+2,"00") -> 2024-25 | N102: dms_CRYf_y8 | O102: =VALUE(LEFT(dms_CRYc_y7,4)+1) -> 2025 | P102: dms_CRYc_y8 | Z102: dms_060101_Rows | AA102: dms_060102_Rows | AB102: dms_060101_StartDateTxt
B103: 9 | C103: dms_FRCP_y9 | D103: 9 | E103: CRCP_y9 | F103: =IF(dms_RPT="financial",VALUE(LEFT(dms_FRCP_y8,4)+1)&"-"&TEXT(VALUE(RIGHT(dms_FRCP_y8,2)+1),"00"),VALUE(LEFT(dms_FRCP_y8,4)+1)) -> 2028-29 | G103: dms_FRCP_y9 | H103: =IF(dms_RPT="financial",VALUE(LEFT(dms_CRCP_yS,4)-1)&"-"&TEXT(VALUE(MID(dms_CRCP_yS,3,2)),"00"),VALUE(LEFT(dms_CRCP_yS,4)-1)) -> 2011-12 | I103: dms_CRCP_yR | J103: 9 | M103: =VALUE(LEFT(dms_CRYf_y8,4)+1)&"-"&TEXT(MID(dms_CRYf_y8,3,2)+2,"00") -> 2025-26 | N103: dms_CRYf_y9 | O103: =VALUE(LEFT(dms_CRYc_y8,4)+1) -> 2026 | P103: dms_CRYc_y9 | Z103: Total number of calls (after removing excluded events) | AA103: Number of calls answered within 30 seconds (after excluding excluded events) | AB103: =dms_060701_StartDateTxt -> 1-Jul-2017
B104: 10 | C104: =IFERROR(IF(dms_Model="ARR",(MAX(0,dms_0608_LastRow-dms_0608_OffsetRows)),"not an ARR"),"6.8 not present") | D104: 10 | E104: =IFERROR(IF(dms_Model="ARR",(MAX(0,dms_0608_LastRow-dms_0608_OffsetRows)),"not an ARR"),"6.8 not present") | F104: =IF(dms_RPT="financial",VALUE(LEFT(dms_FRCP_y9,4)+1)&"-"&TEXT(VALUE(RIGHT(dms_FRCP_y9,2)+1),"00"),VALUE(LEFT(dms_FRCP_y9,4)+1)) -> 2029-30 | G104: dms_FRCP_y10 | H104: =IF(dms_RPT="financial",VALUE(LEFT(dms_CRCP_yR,4)-1)&"-"&TEXT(VALUE(MID(dms_CRCP_yR,3,2)),"00"),VALUE(LEFT(dms_CRCP_yR,4)-1)) -> 2010-11 | I104: dms_CRCP_yQ | J104: 10 | M104: =VALUE(LEFT(dms_CRYf_y9,4)+1)&"-"&TEXT(MID(dms_CRYf_y9,3,2)+2,"00") -> 2026-27 | N104: dms_CRYf_y10 | O104: =VALUE(LEFT(dms_CRYc_y9,4)+1) -> 2027 | P104: dms_CRYc_y10
B105: 11 | C105: dms_FRCP_y11 | D105: 11 | E105: CRCP_y11 | F105: =IF(dms_RPT="financial",VALUE(LEFT(dms_FRCP_y10,4)+1)&"-"&TEXT(VALUE(RIGHT(dms_FRCP_y10,2)+1),"00"),VALUE(LEFT(dms_FRCP_y10,4)+1)) -> 2030-31 | G105: dms_FRCP_y11 | H105: =IF(dms_RPT="financial",VALUE(LEFT(dms_CRCP_yQ,4)-1)&"-"&TEXT(VALUE(MID(dms_CRCP_yQ,3,2)),"00"),VALUE(LEFT(dms_CRCP_yQ,4)-1)) -> 2009-10 | I105: dms_CRCP_yP | J105: 11 | M105: =VALUE(LEFT(dms_CRYf_y10,4)+1)&"-"&TEXT(MID(dms_CRYf_y10,3,2)+2,"00") -> 2027-28 | N105: dms_CRYf_y11 | O105: =VALUE(LEFT(dms_CRYc_y10,4)+1) -> 2028 | P105: dms_CRYc_y11
B106: 12 | C106: dms_FRCP_y12 | D106: 12 | E106: CRCP_y12 | F106: =IF(dms_RPT="financial",VALUE(LEFT(dms_FRCP_y11,4)+1)&"-"&TEXT(VALUE(RIGHT(dms_FRCP_y11,2)+1),"00"),VALUE(LEFT(dms_FRCP_y11,4)+1)) -> 2031-32 | G106: dms_FRCP_y12 | H106: =IF(dms_RPT="financial",VALUE(LEFT(dms_CRCP_yP,4)-1)&"-"&TEXT(VALUE(MID(dms_CRCP_yP,3,2)),"00"),VALUE(LEFT(dms_CRCP_yP,4)-1)) -> 2008-09 | I106: dms_CRCP_yO | J106: 12 | M106: =VALUE(LEFT(dms_CRYf_y11,4)+1)&"-"&TEXT(MID(dms_CRYf_y11,3,2)+2,"00") -> 2028-29 | N106: dms_CRYf_y12 | O106: =VALUE(LEFT(dms_CRYc_y11,4)+1) -> 2029 | P106: dms_CRYc_y12
B107: 13 | C107: dms_FRCP_y13 | D107: 13 | E107: CRCP_y13 | F107: =IF(dms_RPT="financial",VALUE(LEFT(dms_FRCP_y12,4)+1)&"-"&TEXT(VALUE(RIGHT(dms_FRCP_y12,2)+1),"00"),VALUE(LEFT(dms_FRCP_y12,4)+1)) -> 2032-33 | G107: dms_FRCP_y13 | H107: =IF(dms_RPT="financial",VALUE(LEFT(dms_CRCP_yO,4)-1)&"-"&TEXT(VALUE(MID(dms_CRCP_yO,3,2)),"00"),VALUE(LEFT(dms_CRCP_yO,4)-1)) -> 2007-08 | I107: dms_CRCP_yN | J107: 13 | M107: =VALUE(LEFT(dms_CRYf_y12,4)+1)&"-"&TEXT(MID(dms_CRYf_y12,3,2)+2,"00") -> 2029-30 | N107: dms_CRYf_y13 | O107: =VALUE(LEFT(dms_CRYc_y12,4)+1) -> 2030 | P107: dms_CRYc_y13 | AE107: dms_0603_FeederList | AF107: =INDEX(dms_FeederName_1,MATCH(dms_TradingName,dms_TradingName_List)) -> CBD | AG107: =INDEX(dms_FeederName_2,MATCH(dms_TradingName,dms_TradingName_List)) -> Urban | AH107: =INDEX(dms_FeederName_3,MATCH(dms_TradingName,dms_TradingName_List)) -> Short rural | AI107: =INDEX(dms_FeederName_4,MATCH(dms_TradingName,dms_TradingName_List)) -> Long rural | AJ107: =INDEX(dms_FeederName_5,MATCH(dms_TradingName,dms_TradingName_List)) -> 
B108: 14 | C108: dms_FRCP_y14 | D108: 14 | E108: CRCP_y14 | F108: =IF(dms_RPT="financial",VALUE(LEFT(dms_FRCP_y13,4)+1)&"-"&TEXT(VALUE(RIGHT(dms_FRCP_y13,2)+1),"00"),VALUE(LEFT(dms_FRCP_y13,4)+1)) -> 2033-34 | G108: dms_FRCP_y14 | H108: =IF(dms_RPT="financial",VALUE(LEFT(dms_CRCP_yN,4)-1)&"-"&TEXT(VALUE(MID(dms_CRCP_yN,3,2)),"00"),VALUE(LEFT(dms_CRCP_yN,4)-1)) -> 2006-07 | I108: dms_CRCP_yM | J108: 14 | M108: =VALUE(LEFT(dms_CRYf_y13,4)+1)&"-"&TEXT(MID(dms_CRYf_y13,3,2)+2,"00") -> 2030-31 | N108: dms_CRYf_y14 | O108: =VALUE(LEFT(dms_CRYc_y13,4)+1) -> 2031 | P108: dms_CRYc_y14 | Z108: Table 6.7.1 - daily performance data - unplanned - MAIFI -- row descriptions and header named range values
B109: 15 | C109: dms_FRCP_y15 | D109: 15 | E109: CRCP_y15 | F109: =IF(dms_RPT="financial",VALUE(LEFT(dms_FRCP_y14,4)+1)&"-"&TEXT(VALUE(RIGHT(dms_FRCP_y14,2)+1),"00"),VALUE(LEFT(dms_FRCP_y14,4)+1)) -> 2034-35 | G109: dms_FRCP_y15 | H109: =IF(dms_RPT="financial",VALUE(LEFT(dms_CRCP_yM,4)-1)&"-"&TEXT(VALUE(MID(dms_CRCP_yM,3,2)),"00"),VALUE(LEFT(dms_CRCP_yM,4)-1)) -> 2005-06 | I109: dms_CRCP_yL | J109: 15 | M109: =VALUE(LEFT(dms_CRYf_y14,4)+1)&"-"&TEXT(MID(dms_CRYf_y14,3,2)+2,"00") -> 2031-32 | N109: dms_CRYf_y15 | O109: =VALUE(LEFT(dms_CRYc_y14,4)+1) -> 2032 | P109: dms_CRYc_y15 | Z109: These headings (Lists) are determined from the INDEX/MATCH function on the NSP selected on the Business & other details sheet
M110: =VALUE(LEFT(dms_CRYf_y15,4)+1)&"-"&TEXT(MID(dms_CRYf_y15,3,2)+2,"00") -> 2032-33 | N110: dms_CRYf_y16 | O110: =VALUE(LEFT(dms_CRYc_y15,4)+1) -> 2033 | P110: dms_CRYc_y16 | Y110: dms_060701_Feeder_Header_Lvl4 | Z110: =INDEX(dms_FeederName_1,MATCH(dms_TradingName,dms_TradingName_List)) -> CBD | AA110: =INDEX(dms_FeederName_1,MATCH(dms_TradingName,dms_TradingName_List)) -> CBD | AB110: =INDEX(dms_FeederName_2,MATCH(dms_TradingName,dms_TradingName_List)) -> Urban | AC110: =INDEX(dms_FeederName_2,MATCH(dms_TradingName,dms_TradingName_List)) -> Urban | AD110: =INDEX(dms_FeederName_3,MATCH(dms_TradingName,dms_TradingName_List)) -> Short rural | AE110: =INDEX(dms_FeederName_3,MATCH(dms_TradingName,dms_TradingName_List)) -> Short rural | AF110: =INDEX(dms_FeederName_4,MATCH(dms_TradingName,dms_TradingName_List)) -> Long rural | AG110: =INDEX(dms_FeederName_4,MATCH(dms_TradingName,dms_TradingName_List)) -> Long rural | AH110: =IF((INDEX(dms_FeederName_5,MATCH(dms_TradingName,dms_TradingName_List))=0),"Network",(INDEX(dms_FeederName_5,MATCH(dms_TradingName,dms_TradingName_List)))) ->  | AI110: =IF((INDEX(dms_FeederName_5,MATCH(dms_TradingName,dms_TradingName_List))=0),"Network",(INDEX(dms_FeederName_5,MATCH(dms_TradingName,dms_TradingName_List)))) ->  | AJ110: Network | AK110: Network
B111: These are drop down lists for businesses to select the correct FRCP_y1 on the business and other details worksheet. This also populates the column headings in the worksheets | M111: =VALUE(LEFT(dms_CRYf_y16,4)+1)&"-"&TEXT(MID(dms_CRYf_y16,3,2)+2,"00") -> 2033-34 | N111: dms_CRYf_y17 | O111: =VALUE(LEFT(dms_CRYc_y16,4)+1) -> 2034 | P111: dms_CRYc_y17
B112: dms_RCP_fyear_list | C112: dms_CRY_ListF | D112: dms_CRY_ListC | E112: dms_RCP_cyear_list | F112: dms_FRCP_fyear_list | G112: dms_FRCP_ListF | H112: dms_FRCP_ListC | I112: dms_FRCP_cyear_list | M112: =VALUE(LEFT(dms_CRYf_y17,4)+1)&"-"&TEXT(MID(dms_CRYf_y17,3,2)+2,"00") -> 2034-35 | N112: dms_CRYf_y18 | O112: =VALUE(LEFT(dms_CRYc_y17,4)+1) -> 2035 | P112: dms_CRYc_y18 | Y112: dms_060701_Rows | Z112: All events | AA112: After removing excluded events | AB112: All events | AC112: After removing excluded events | AD112: All events | AE112: After removing excluded events | AF112: All events | AG112: After removing excluded events | AH112: All events | AI112: After removing excluded events | AJ112: All events | AK112: After removing excluded events
B113: dms_fy1 | C113: 2005-06 | D113: 2006 | E113: dms_cy1 | F113: dms_frcp_fy1 | G113: 2010-11 | H113: 2011 | I113: dms_crcp_cy1 | M113: =VALUE(LEFT(dms_CRYf_y18,4)+1)&"-"&TEXT(MID(dms_CRYf_y18,3,2)+2,"00") -> 2035-36 | N113: dms_CRYf_y19 | O113: =VALUE(LEFT(dms_CRYc_y18,4)+1) -> 2036 | P113: dms_CRYc_y19 | Z113: the number of column headings changes from 10 to 12 depending on the number of feeder categories for the NSP
B114: dms_fy2 | C114: 2006-07 | D114: 2007 | E114: dms_cy2 | F114: dms_frcp_fy2 | G114: 2011-12 | H114: 2012 | I114: dms_crcp_cy2 | M114: =VALUE(LEFT(dms_CRYf_y19,4)+1)&"-"&TEXT(MID(dms_CRYf_y19,3,2)+2,"00") -> 2036-37 | N114: dms_CRYf_y20 | O114: =VALUE(LEFT(dms_CRYc_y19,4)+1) -> 2037 | P114: dms_CRYc_y20
B115: dms_fy3 | C115: 2007-08 | D115: 2008 | E115: dms_cy3 | F115: dms_frcp_fy3 | G115: 2012-13 | H115: 2013 | I115: dms_crcp_cy3
B116: dms_fy4 | C116: 2008-09 | D116: 2009 | E116: dms_cy4 | F116: dms_frcp_fy4 | G116: 2013-14 | H116: 2014 | I116: dms_crcp_cy4
B117: dms_fy5 | C117: 2009-10 | D117: 2010 | E117: dms_cy5 | F117: dms_frcp_fy5 | G117: 2014-15 | H117: 2015 | I117: dms_crcp_cy5
B118: dms_fy6 | C118: 2010-11 | D118: 2011 | E118: dms_cy6 | F118: dms_frcp_fy6 | G118: 2015-16 | H118: 2016 | I118: dms_crcp_cy6 | Z118: Table 6.8.1 - row descriptions
B119: dms_fy7 | C119: 2011-12 | D119: 2012 | E119: dms_cy7 | F119: dms_frcp_fy7 | G119: 2016-17 | H119: 2017 | I119: dms_crcp_cy7 | Z119: dms_060801_01_Rows | AA119: dms_060801_02_Rows | AB119: dms_060801_03_Rows | AC119: dms_060801_04_Rows
B120: dms_fy8 | C120: 2012-13 | D120: 2013 | E120: dms_cy8 | F120: dms_frcp_fy8 | G120: 2017-18 | H120: 2018 | I120: dms_crcp_cy8 | L120: 2005-06 | M120: 2006 | Z120: Number of interruptions | AA120: Duration of interruptions | AB120: Total unplanned minutes off supply | AC120: Effect on unplanned MAIFI
B121: dms_fy9 | C121: 2013-14 | D121: 2014 | E121: dms_cy9 | F121: dms_frcp_fy9 | G121: 2018-19 | H121: 2019 | I121: dms_crcp_cy9 | L121: 2006-07 | M121: 2007
B122: dms_fy10 | C122: 2014-15 | D122: 2015 | E122: dms_cy10 | F122: dms_frcp_fy10 | G122: 2019-20 | H122: 2020 | I122: dms_crcp_cy10 | L122: 2007-08 | M122: 2008
B123: dms_fy11 | C123: 2015-16 | D123: 2016 | E123: dms_cy11 | F123: dms_frcp_fy11 | G123: 2020-21 | H123: 2021 | I123: dms_crcp_cy11 | L123: 2008-09 | M123: 2009
B124: dms_fy12 | C124: 2016-17 | D124: 2017 | E124: dms_cy12 | F124: dms_frcp_fy12 | G124: 2021-22 | H124: 2022 | I124: dms_crcp_cy12 | L124: 2009-10 | M124: 2010
B125: dms_fy13 | C125: 2017-18 | D125: 2018 | E125: dms_cy13 | F125: dms_frcp_fy13 | G125: 2022-23 | H125: 2023 | I125: dms_crcp_cy13 | L125: 2010-11 | M125: 2011 | Z125: Table 7.9.4 - market impact component - row descriptions
B126: dms_fy14 | C126: 2018-19 | D126: 2019 | E126: dms_cy14 | F126: dms_frcp_fy14 | G126: 2023-24 | H126: 2024 | I126: dms_crcp_cy14 | L126: 2011-12 | M126: 2012 | Y126: dms_070904_01_Rows | Z126: without exclusions | AA126: with exclusions
B127: dms_fy15 | C127: 2019-20 | D127: 2020 | E127: dms_cy15 | F127: dms_frcp_fy15 | G127: 2024-25 | H127: 2025 | I127: dms_crcp_cy15 | L127: 2012-13 | M127: 2013
B128: dms_fy16 | C128: 2020-21 | D128: 2021 | E128: dms_cy16 | L128: 2013-14 | M128: 2014
B129: dms_fy17 | C129: 2021-22 | D129: 2022 | E129: dms_cy17 | L129: 2014-15 | M129: 2015
B130: dms_fy18 | C130: 2022-23 | D130: 2023 | E130: dms_cy18 | L130: 2015-16 | M130: 2016
B131: dms_fy19 | C131: 2023-24 | D131: 2024 | E131: dms_cy19 | L131: 2016-17 | M131: 2017 | Z131: Use this to add to existing files
B132: dms_fy20 | C132: 2024-25 | D132: 2025 | E132: dms_cy20 | L132: 2017-18 | M132: 2018 | Z132: ARR's 6.8 STPIS exclusions
L133: 2018-19 | M133: 2019 | Z133: dms_060801_Event_Date | AA133: dms_060801_OutageID | AB133: dms_060801_FeederID | AC133: dms_060801_FeederClass | AD133: dms_060801_CauseID | AE133: dms_060801_01_Values | AF133: dms_060801_02_Values | AG133: dms_060801_03_Values | AH133: dms_060801_Excl_Cat | AI133: dms_060801_04_Values
L134: 2019-20 | M134: 2020
L135: 2020-21 | M135: 2021
L136: 2021-22 | M136: 2022 | Z136: CA 6.3 sustained interruptions
L137: 2022-23 | M137: 2023 | Z137: dms_060301_Event_Date | AA137: dms_060301_Event_Time | AB137: dms_060301_AssetID | AC137: dms_060301_FeederClass | AD137: dms_060301_Reason | AE137: dms_060301_DetailedReason | AF137: dms_060301_CustNo_Affected_Values | AG137: dms_060301_Avg_Duration_Sustained_Int_Values | AH137: dms_060301_Effect_unplanned_SAIDI_Values | AI137: dms_060301_Effect_unplanned_SAIFI_Values | AJ137: dms_060301_MED
L138: 2023-24 | M138: 2024
L139: 2024-25 | M139: 2025
L140: 2025-26 | M140: 2026
L141: 2026-27 | M141: 2027
L142: 2027-28 | M142: 2028
L143: 2028-29 | M143: 2029
L144: 2029-30 | M144: 2030
L145: 2030-31 | M145: 2031
L146: 2031-32 | M146: 2032
L147: 2032-33 | M147: 2033
L148: 2033-34 | M148: 2034
L149: 2034-35 | M149: 2035
L150: 2035-36 | M150: 2036

Sheet Instructions
B2: =CONCATENATE(dms_Segment," Network Service Provider") -> Distribution Network Service Provider
B3: Annual Reporting RIN Template
C4: =CONCATENATE("This template is to be used by ",dms_TradingName," to fulfil its reporting obligations to the AER.") -> This template is to be used by Endeavour Energy to fulfil its reporting obligations to the AER.
C5: INSTRUCTIONS
C6: Complete the Business & other details worksheet before entering data or values in any other worksheets. The Business & other details worksheet is linked to other worksheets within the workbook and automatically generates certain column headings and conditional formatting.
C8: Identifying CONFIDENTIAL INFORMATION: Please use the macro at the top of each worksheet to identify confidential information.
C9: -Do this by selecting the cell or cells that contain confidential information and then run the Mark selection as CONFIDENTIAL macro. This will format the cells a specific colour that is identified by the AER's database which in turn marks that information as confidential. -To reverse this, select the cell or cells and run the Return selection to NON-CONFIDENTIAL macro
C11: UNITS OF MEASURE All amounts are to be unrounded and reported in nominal terms on a one for one basis: that is 1000 is to be entered as '1000'.
C13: COLOUR CODING OF INPUT / NON-INPUT CELLS:
D14: Yellow = Input cell (mandatory)
D15: Darker yellow = input cell (mandatory)
D16: Orange = input cell (if data available)
D17: Grey = Not applicable/No inputs required
D18: Leave coloured cells blank if no information exists. PLEASE DO NOT ENTER TEXT into cells that are to contain numeric data.
C21: WORKSHEET NAVIGATION Many tables in the worksheets have been "grouped" to allow for easy navigation. To ungroup or group data use the outline symbols in the left margin of excel (for Row groupings) or above the columns (for column groupings).
C23: RETURNING COMPLETED RESPONSES Please return four (4) files to the AER: 1. A confidential version which must contain a complete set of all responses with confidential information marked using the Mark selected cells CONFIDENTIAL macro and which has been completed using the locked template file provided by the AER. 2. An actual and an estimate version with confidential information marked using the Mark selected cells CONFIDENTIAL macro and which has been completed using the locked template file provided by the AER. 3. A public version with confidential information either removed completely or aggregated in some form together with writtten consent to disclose the public version of the response. Use the drop down box on the Business and other details worksheet to identify the file as either confidential ('consolidated') or public.
C25: SUBMITTING AMENDED DATA TO THE AER If an NSP wishes to correct data previously submitted to the AER it should resubmit that data using the original completed submission as the starting point. Please make any necessary changes to the data. Data that is not being amended should be left unchanged. NSPs must identify the reason for the amendments in the Amendment Reason box on the Business and other details worksheet. NSPs may provide further details regarding any amendments in the Amendments worksheet. .
C26: NSP may use Amended Data macro to highlight cells that contain amended data. NB: if data is also CONFIDENTIAL, re-apply the Confidentiality macro after applying the Amended macro
C27: Please resubmit two (2) files - a confidential version and a public version of the amended submission to the AER

Sheet Contents
B1: REGULATORY REPORTING STATEMENT
B2: =INDEX(dms_TradingNameFull_List,MATCH(dms_TradingName,dms_TradingName_List)) -> Endeavour Energy
B3: =CONCATENATE((LOOKUP(dms_Model,dms_Model_List,dms_Worksheet_List))&" "&CRY) -> CATEGORY ANALYSIS 2017-18
B4: CONTENTS
E7: 1. Business details | L7: 2. Expenditure
E27: 4. Alternative control services | L27: 5. Network information | S27: 6. Service & quality

Sheet Business & other details
B1: =IF(dms_DataQuality="backcast",INDEX(dms_Worksheet_List,MATCH(dms_Model,dms_Model_List))&" BACKCAST",INDEX(dms_Worksheet_List,MATCH(dms_Model,dms_Model_List))) -> CATEGORY ANALYSIS
B2: =INDEX(dms_TradingNameFull_List,MATCH(dms_TradingName,dms_TradingName_List)) -> Endeavour Energy
B3: =IF(SUM(dms_SingleYear_Model)>0,CONCATENATE(CRY),CONCATENATE(FRCP_y1," to ",dms_MultiYear_FinalYear_Result)) -> 2017-18
B4: BUSINESS & OTHER DETAILS
B7: Instructions
B8: Complete the following business details regulatory template before entering data or values in any other regulatory template. This regulatory template is linked to other cells within the spreadsheet and automatically generates column headings and conditional formatting to distinguish business specific input and non-input cells.
B10: SUBMISSION PARTICULARS INPUT SHEETS
B12: ENTITY DETAILS
B14: Short name | C14: Endeavour Energy | F14: Select business name from drop down list first
B15: ACN / ABN | C15: =INDEX(dms_ABN_List,MATCH(dms_TradingName,dms_TradingName_List)) -> 11247365823
B18: Business address | C18: Address 1 | E18: =INDEX(dms_Addr1_List,MATCH(dms_TradingName,dms_TradingName_List)) -> 51 Huntingwood Drive
D19: Address 2 | E19: =IF(ISBLANK(INDEX(dms_Addr2_List,MATCH(dms_TradingName,dms_TradingName_List))),"",(INDEX(dms_Addr2_List,MATCH(dms_TradingName,dms_TradingName_List)))) -> 
C20: Suburb | E20: =INDEX(dms_Suburb_List,MATCH(dms_TradingName,dms_TradingName_List)) -> HUNTINGWOOD
D21: State | E21: =INDEX(dms_State_List,MATCH(dms_TradingName,dms_TradingName_List)) -> NSW | F21: p/code | G21: =INDEX(dms_PostCode_List,MATCH(dms_TradingName,dms_TradingName_List)) -> 2148
B23: Postal address | C23: Address 1 | E23: =INDEX(dms_PAddr1_List,MATCH(dms_TradingName,dms_TradingName_List)) -> PO Box 811
D24: Address 2 | E24: =IF(ISBLANK(INDEX(dms_PAddr2_List,MATCH(dms_TradingName,dms_TradingName_List))),"",(INDEX(dms_PAddr2_List,MATCH(dms_TradingName,dms_TradingName_List)))) -> 
C25: Suburb | E25: =INDEX(dms_PSuburb_List,MATCH(dms_TradingName,dms_TradingName_List)) -> SEVEN HILLS
D26: State | E26: =INDEX(dms_PState_List,MATCH(dms_TradingName,dms_TradingName_List)) -> NSW | F26: p/code | G26: =INDEX(dms_PPostCode_List,MATCH(dms_TradingName,dms_TradingName_List)) -> 1730
B29: Contact name/s | C29: Fiona Place
B30: Contact phone/s | C30: 02 9853 6302
B31: Contact email address/s | C31: fiona.place@endeavourenergy.com.au
B33: REGULATORY CONTROL PERIODS
B35: Forthcoming regulatory control period | C35: 2020-21 | D35: =dms_FRCP_y2 -> 2021-22 | E35: =dms_FRCP_y3 -> 2022-23 | F35: =dms_FRCP_y4 -> 2023-24 | G35: =dms_FRCP_y5 -> 2024-25
C36: =dms_FRCP_y6 -> 2025-26 | D36: =dms_FRCP_y7 -> 2026-27 | E36: =dms_FRCP_y8 -> 2027-28 | F36: =dms_FRCP_y9 -> 2028-29 | G36: =dms_FRCP_y10 -> 2029-30
B39: Current regulatory control period | C39: =dms_CRCP_FirstYear_Result -> 2015-16 | D39: =IF(dms_RPT="financial",VALUE(LEFT(CRCP_y1,4)+1)&"-"&TEXT(MID(CRCP_y1,3,2)+2,"00"),VALUE(LEFT(CRCP_y1,4)+1)) -> 2016-17 | E39: =IF(dms_RPT="financial",VALUE(LEFT(CRCP_y1,4)+2)&"-"&TEXT(VALUE(MID(CRCP_y1,3,2)+3),"00"),VALUE(LEFT(CRCP_y1,4)+2)) -> 2017-18 | F39: =IF(dms_RPT="financial",VALUE(LEFT(CRCP_y1,4)+3)&"-"&TEXT(MID(CRCP_y1,3,2)+4,"00"),VALUE(LEFT(CRCP_y1,4)+3)) -> 2018-19 | G39: =IF(dms_RPT="financial",VALUE(LEFT(CRCP_y1,4)+4)&"-"&TEXT(MID(CRCP_y1,3,2)+5,"00"),VALUE(LEFT(CRCP_y1,4)+4)) -> 2019-20
C40: =IF(dms_RPT="financial",VALUE(LEFT(CRCP_y1,4)+5)&"-"&TEXT(MID(CRCP_y1,3,2)+6,"00"),VALUE(LEFT(CRCP_y1,4)+5)) -> 2020-21 | D40: =IF(dms_RPT="financial",VALUE(LEFT(CRCP_y1,4)+6)&"-"&TEXT(MID(CRCP_y1,3,2)+7,"00"),VALUE(LEFT(CRCP_y1,4)+6)) -> 2021-22 | E40: =IF(dms_RPT="financial",VALUE(LEFT(CRCP_y1,4)+7)&"-"&TEXT(MID(CRCP_y1,3,2)+8,"00"),VALUE(LEFT(CRCP_y1,4)+7)) -> 2022-23 | F40: =IF(dms_RPT="financial",VALUE(LEFT(CRCP_y1,4)+8)&"-"&TEXT(MID(CRCP_y1,3,2)+9,"00"),VALUE(LEFT(CRCP_y1,4)+8)) -> 2023-24 | G40: =IF(dms_RPT="financial",VALUE(LEFT(CRCP_y1,4)+9)&"-"&TEXT(MID(CRCP_y1,3,2)+10,"00"),VALUE(LEFT(CRCP_y1,4)+9)) -> 2024-25
C41: =IF(dms_RPT="financial",VALUE(LEFT(CRCP_y1,4)+10)&"-"&TEXT(MID(CRCP_y1,3,2)+11,"00"),VALUE(LEFT(CRCP_y1,4)+10)) -> 2025-26 | D41: =IF(dms_RPT="financial",VALUE(LEFT(CRCP_y1,4)+11)&"-"&TEXT(MID(CRCP_y1,3,2)+12,"00"),VALUE(LEFT(CRCP_y1,4)+11)) -> 2026-27 | E41: =IF(dms_RPT="financial",VALUE(LEFT(CRCP_y1,4)+12)&"-"&TEXT(MID(CRCP_y1,3,2)+13,"00"),VALUE(LEFT(CRCP_y1,4)+12)) -> 2027-28 | F41: =IF(dms_RPT="financial",VALUE(LEFT(CRCP_y1,4)+13)&"-"&TEXT(MID(CRCP_y1,3,2)+14,"00"),VALUE(LEFT(CRCP_y1,4)+13)) -> 2028-29 | G41: =IF(dms_RPT="financial",VALUE(LEFT(CRCP_y1,4)+14)&"-"&TEXT(MID(CRCP_y1,3,2)+15,"00"),VALUE(LEFT(CRCP_y1,4)+14)) -> 2029-30
B44: Previous regulatory control period | C44: =IF(dms_RPT="financial",VALUE(LEFT(PRCP_y2,4)-1)&"-"&TEXT(VALUE(MID(PRCP_y2,3,2)),"00"),VALUE(LEFT(PRCP_y2,4)-1)) -> 2010-11 | D44: =IF(dms_RPT="financial",VALUE(LEFT(PRCP_y3,4)-1)&"-"&TEXT(VALUE(MID(PRCP_y3,3,2)),"00"),VALUE(LEFT(PRCP_y3,4)-1)) -> 2011-12 | E44: =IF(dms_RPT="financial",VALUE(LEFT(PRCP_y4,4)-1)&"-"&TEXT(VALUE(MID(PRCP_y4,3,2)),"00"),VALUE(LEFT(PRCP_y4,4)-1)) -> 2012-13 | F44: =IF(dms_RPT="financial",VALUE(LEFT(PRCP_y5,4)-1)&"-"&TEXT(VALUE(RIGHT(PRCP_y5,2)-1),"00"),VALUE(LEFT(PRCP_y5,4)-1)) -> 2013-14 | G44: =IF(dms_RPT="financial",VALUE(LEFT(CRCP_y1,4)-1)&"-"&TEXT(VALUE(RIGHT(CRCP_y1,2)-1),"00"),VALUE(LEFT(CRCP_y1,4)-1)) -> 2014-15
B48: Commencing regulatory year | C48: 2017-18 | D48: CRY
B50: Last completed regulatory year | C50: 2017-18 | D50: dms_FinalYear
C54: IF THIS IS AN ABC RIN - make sure the the named range CRY is applied and the named range dms_dollar_nom_UOM is applied
C55: IF THIS IS A RESET RIN - make sure the named ranges CRY and dms_dollar_nom_UOM are NOT present in the workbook
C56: FOR ABC RINS THAT SPAN MULTIPLE YEARS - make sure MultiYear Flag is set and final year entered as required
B58: Source | C58: Reporting | E58: Please select the correct submission type from the dropdown list.
B59: Data quality (actual, estimate, public, consolidated) | C59: Public | E59: Use Consolidated for Consolidated Confidential version Use Public for Consolidated Public version
B60: Amended RIN submission - amendment reason | C60: Row descriptors in table 5.2 for additional sub-categories have been populated to align with those in table 2.2
B61: Submission Date | C61: 2018-11-21 | D61: dms_SubmissionDate | E61: Please enter date this file submitted to AER (dd/mm/yyyy)
B62: EBSS - First application of scheme in forthcoming period? | C62: No
B63: Sector | C63: =INDEX(dms_Sector_List,MATCH(dms_TradingName,dms_TradingName_List)) -> Electricity | D63: dms_Sector | E63: =INDEX(dms_Sector_List,MATCH(dms_TradingName,dms_TradingName_List))
B64: Segment | C64: =INDEX(dms_Segment_List,MATCH(dms_TradingName,dms_TradingName_List)) -> Distribution | D64: dms_Segment | E64: =INDEX(dms_Segment_List,MATCH(dms_TradingName,dms_TradingName_List))
B65: Regulatory Year Ending | C65: =IF(dms_MultiYear_Flag=1,LEFT(dms_Specified_FinalYear,2)&RIGHT(dms_Specified_FinalYear,2),INDEX(dms_RYE_Formula_Result,MATCH(dms_Model,dms_Model_List))) -> 2018 | D65: dms_RYE | E65: =IF(dms_MultiYear_Flag=1,LEFT(dms_Specified_FinalYear,2)&RIGHT(dms_Specified_FinalYear,2),INDEX(dms_RYE_Formula_Result,MATCH(dms_Model,dms_Model_List)))
B66: Reporting Period Type | C66: =INDEX(dms_RPT_List,MATCH(dms_TradingName,dms_TradingName_List)) -> Financial | D66: dms_RPT | E66: =INDEX(dms_RPT_List,MATCH(dms_TradingName,dms_TradingName_List))
B67: Model or RIN Type | C67: CA | D67: dms_Model | E67: Drop down selection
B68: EB/CA Unit of Measure for Monetary Values | C68: $0s | D68: dms_dollar_nom_UOM | E68: If the cover sheet is attached to an ABC RIN make the NAMED RANGE on this field is set
B69: Security Classification | C69: Public | D69: dms_Classification | E69: Always Public
B70: Dollar $ real month | C70: =INDEX(dms_RPTMonth_List,MATCH(dms_TradingName,dms_TradingName_List)) -> June | D70: dms_RPTMonth | E70: =INDEX(dms_RPTMonth_List,MATCH(dms_TradingName,dms_TradingName_List))
B71: Dollar $ real (the last month before the FRCP_y1) | C71: =IF(SUM(dms_SingleYear_Model)>0,CONCATENATE(dms_RPTMonth)&" "&VALUE((LEFT(CRY,2))&RIGHT(CRY,2)),CONCATENATE(dms_RPTMonth)&" "&VALUE((LEFT(dms_CRCP_FinalYear_Result,2)&RIGHT(dms_CRCP_FinalYear_Result,2)))) -> June 2018 | D71: dms_DollarReal | E71: =IF(SUM(dms_SingleYear_Model)>0,CONCATENATE(dms_RPTMonth)&" "&VALUE((LEFT(CRY,2))&RIGHT(CRY,2)),CONCATENATE(dms_RPTMonth)&" "&VALUE((LEFT(dms_CRCP_FinalYear_Result,2)&RIGHT(dms_CRCP_FinalYear_Result,2))))
B72: Dollar $ real previous year (PRCP_y5) | C72: =IF(SUM(dms_SingleYear_Model)>0,CONCATENATE(dms_RPTMonth)&" "&VALUE(((LEFT(CRY,2))&RIGHT(CRY,2))-1),CONCATENATE(dms_RPTMonth)&" "&VALUE(((LEFT(dms_CRCP_FirstYear_Result,2)&RIGHT(dms_CRCP_FirstYear_Result,2))))-1) -> June 2017 | D72: dms_DollarReal_Prev | E72: =IF(SUM(dms_SingleYear_Model)>0,CONCATENATE(dms_RPTMonth)&" "&VALUE(((LEFT(CRY,2))&RIGHT(CRY,2))-1),CONCATENATE(dms_RPTMonth)&" "&VALUE(((LEFT(dms_CRCP_FirstYear_Result,2)&RIGHT(dms_CRCP_FirstYear_Result,2))))-1)
B73: Form of control | C73: =INDEX(dms_FormControl_List,MATCH(dms_TradingName,dms_TradingName_List)) -> Revenue cap | D73: dms_FormControl | E73: =INDEX(dms_FormControl_List,MATCH(dms_TradingName,dms_TradingName_List))
B74: Calendar Year for table 3.6 data | C74: =VALUE(dms_RYE)-1 -> 2017 | D74: dms_0306_Year | E74: =VALUE(dms_RYE)-1
B75: Jurisdiction | C75: =INDEX(dms_JurisdictionList,MATCH(dms_TradingName,dms_TradingName_List)) -> NSW | D75: dms_Jurisdiction | E75: =INDEX(dms_JurisdictionList,MATCH(dms_TradingName,dms_TradingName_List))
B76: FOR ABC RINS THAT SPAN MULTIPLE YEARS
B77: Is this a multi year ABC RIN? | C77: No
B78: Backcast Multiyear EB, CA or ARR? | C78: =IF(dms_MultiYear_ResponseFlag="No",0,1) -> 0 | D78: dms_MultiYear_Flag | E78: This is set from the answer provided above
C79: =IF(dms_MultiYear_Flag=1,"Specify Final Reg Year here eg 2016 or 2015-16","not a Multi Reg Year submission") -> not a Multi Reg Year submission | D79: dms_Specified_FinalYear | E79: The result here is returned to dms_CRCP_FinalYear_Result if response to Q in C73 is "yes" and dms_MultiYear_Flag is set to 1
B80: This block works out the various RYE's for both ABC RINs and Reset RINS
B81: Single Year Model T/F | C81: =IF(dms_Model="EB",1,0) -> 0 | D81: dms_EB
C82: =IF(dms_Model="CA",1,0) -> 1 | D82: dms_CA | E82: =dms_SingleYear_Model
C83: =IF(dms_Model="ARR",1,0) -> 0 | D83: dms_ARR
B84: Single Year Final Year Reference | C84: CRY | D84: dms_SingleYear_FinalYear_Ref | E84: This is the reference for EB, CA & ARR RINs
B85: Single Year Final Year Result | C85: =IFERROR(IF(SUM(dms_SingleYear_Model)<>0,(INDIRECT(dms_SingleYear_FinalYear_Ref)),"not a single year RIN"),"CRY not present") -> 2017-18 | D85: dms_SingleYear_FinalYear_Result | E85: =IFERROR(IF(SUM(dms_SingleYear_Model)<>0,(INDIRECT(dms_SingleYear_FinalYear_Ref)),"not a single year RIN"),"CRY not present")
B86: FRCP length in years | C86: =INDEX(dms_FRCPlength_List,MATCH(dms_TradingName,dms_TradingName_List)) -> 5 | D86: dms_FRCPlength_Num | E86: =INDEX(dms_FRCPlength_List,MATCH(dms_TradingName,dms_TradingName_List))
B87: Multi Year Final Year Reference | C87: =INDEX(dms_FinalYear_List,MATCH(dms_FRCPlength_Num,dms_FRCPlength_Num_List)) -> dms_FRCP_y5 | D87: dms_MultiYear_FinalYear_Ref | E87: =INDEX(dms_FinalYear_List,MATCH(dms_FRCPlength_Num,dms_FRCPlength_Num_List))
B88: Multi Year Final Year Result | C88: =IF(dms_MultiYear_Flag=0,INDIRECT(dms_MultiYear_FinalYear_Ref),dms_Specified_FinalYear) -> 2024-25 | D88: dms_MultiYear_FinalYear_Result | E88: =IF(dms_MultiYear_Flag=0,INDIRECT(dms_MultiYear_FinalYear_Ref),dms_Specified_FinalYear) | I88: Formula errors OK
B89: CRCP length in years | C89: =INDEX(dms_CRCPlength_List,MATCH(dms_TradingName,dms_TradingName_List)) -> 5 | D89: dms_CRCPlength_Num | E89: =INDEX(dms_CRCPlength_List,MATCH(dms_TradingName,dms_TradingName_List))
B90: CRCP Final Year Reference | C90: =INDEX(dms_CFinalYear_List,MATCH(dms_CRCPlength_Num,dms_CRCPlength_Num_List)) -> CRCP_y5 | D90: dms_CRCP_FinalYear_Ref | E90: =INDEX(dms_CFinalYear_List,MATCH(dms_CRCPlength_Num,dms_CRCPlength_Num_List))
B91: CRCP First Year Result | C91: =INDEX(dms_CRCP_years,MATCH(dms_CRCPlength_Num,dms_CRCP_index)) -> 2015-16 | D91: dms_CRCP_FirstYear_Result | E91: =INDEX(dms_CRCP_years,MATCH(dms_CRCPlength_Num,dms_CRCP_index))
B92: CRCP Final Year Result | C92: =IF(dms_MultiYear_Flag=0,(IF(SUM(dms_SingleYear_Model)>0,CRY,dms_CRCP_yZ)),dms_Specified_FinalYear) -> 2017-18 | D92: dms_CRCP_FinalYear_Result | E92: =IF(dms_MultiYear_Flag=0,(IF(SUM(dms_SingleYear_Model)>0,CRY,dms_CRCP_yZ)),dms_Specified_FinalYear)
B93: FOR CATEGORY ANALYSIS FILES
B94: How many rows in tables 6.3 sustained interruptions? | C94: =IF(dms_Model<>"CA","not a CA","Is a CA") -> Is a CA | D94: dms_060301_MaxRows only returns a valid value when cover sheet is attached to a CA file
B95: Table 6.3.1 - last row reference | C95: =IFERROR(IF(dms_Model="CA", LOOKUP(2,1/(dms_060301_Avg_Duration_Sustained_Int_Values<>""), (ROW(dms_060301_Avg_Duration_Sustained_Int_Values))), "not a CA"),"no data in 6.3 or 6.3 not present") -> 8678 | D95: dms_060301_LastRow | E95: =IFERROR(IF(dms_Model="CA",LOOKUP(2,1/(dms_060301_Avg_Duration_Sustained_Int_Values<>""),(ROW(dms_060301_Avg_Duration_Sustained_Int_Values))),"not a CA"),"6.3 not present")
B96: Table 6.3.1 - max number rows | C96: =IFERROR(IF(dms_Model="CA",(dms_060301_LastRow-15),"not a CA"),"no data in 6.3 or 6.3 not present") -> 8663 | D96: dms_060301_MaxRows | E96: =IFERROR(IF(dms_Model="CA",(dms_060301_LastRow-15),"not a CA"),"6.3 not present")
B97: Table 6.6.3 - Public lighting repair - no. business days | C97: =INDEX(dms_663_List,MATCH(dms_TradingName,dms_TradingName_List)) -> 5 | D97: dms_663 | E97: =INDEX(dms_663_List,MATCH(dms_TradingName,dms_TradingName_List))
B98: FOR ARR or RESET FILES
B99: How many rows in tables 6.1 or 6.7? (leap year?) | C99: insert dms_LeapYear NR if required | D99: dms_LeapYear is used to determine dms_060701_Max_Rows BUT it is only found on worksheet 6.1 or 6.7 and the date value in the cell is used to determine whether it is a leap year
B100: Is dms_LeapYear named range present? | C100: =IFERROR(IF(dms_LeapYear,"yes"),"no") -> no
B101: Table 6.7.1 - includes a leap year? | C101: =IFERROR(IF(MONTH(DATE(YEAR(dms_LeapYear),2,29))=2,"is a leap year","not a leap year"), "dms_LeapYear not present") -> dms_LeapYear not present | D101: dms_LeapYear_Result | E101: =IFERROR(IF(MONTH(DATE(YEAR(dms_LeapYear),2,29))=2,"is a leap year","not a leap year"),"dms_LeapYear not present")
B102: Table 6.7.1 - Last row (leap year/ non leap year) | C102: =IFERROR(IF(dms_Model="ARR", IF(dms_LeapYear_Result="is a leap year",366,365), (IF(dms_Model="Reset", (IF(dms_LeapYear_Result="is a leap year",1827,1826)), "not a relevant RIN type"))), "dms_LeapYear in either 6.1 or 6.7 not present") -> not a relevant RIN type | D102: dms_060701_MaxRows | E102: =IFERROR(IF(dms_Model="ARR",IF(dms_LeapYear_Result="is a leap year",366,365),(IF(dms_Model="Reset",(IF(dms_LeapYear_Result="is a leap year",1827,1826)),"not a relevant RIN type"))),"dms_LeapYear in either 6.1 or 6.7 not present")
B103: How many columns in 6.7? (4 or 5 feeder categories) | C103: =IF(dms_FifthFeeder_flag_NSP="NO","This NSP has only 4 feeder categories","This NSP has 5 feeder categories") -> This NSP has only 4 feeder categories
B104: Table 6.7.1 - Last column (# of feeder categories > 4) | C104: =IF(dms_FifthFeeder_flag_NSP="NO",10,12) -> 10 | D104: dms_060701_MaxCols | E104: =IF(dms_FifthFeeder_flag_NSP="NO",8,10)
B105: Table 6.7.1 - Number of offset rows | C105: =IF(dms_Model="ARR",15,9) -> 9 | D105: dms_060701_OffsetRows | E105: =IF(dms_Model="ARR",15,9)
B106: Start date for telephone answering in 6.1 or 6.7? | E106: Using 060701 as naming standard not 060101
B107: Table 6.1.1 and 6.7.1 - Start Date as Text | C107: =IF(SUM(dms_SingleYear_Model)>0,(CONCATENATE(IF(LEN(CRY)=4,"1-Jan-","1-Jul-"),LEFT(CRY,4))),(CONCATENATE(IF(LEN(CRCP_y4)=4,"1-Jan-","1-Jul-"),LEFT(CRCP_y4,4)))) -> 1-Jul-2017 | D107: dms_060701_StartDateTxt | E107: =IF(SUM(dms_SingleYear_Model)>1,(CONCATENATE(IF(LEN(CRY)=4,"1-Jan-","1-Jul-"),LEFT(CRY,4))),(CONCATENATE(IF(LEN(CRCP_y4)=4,"1-Jan-","1-Jul-"),LEFT(CRCP_y4,4))))
B108: Table 6.1.1 and 6.7.1 - Start Date as Date Value | C108: =DATEVALUE(dms_060701_StartDateTxt) -> 42917 | D108: dms_060701_StartDateVal | E108: =DATEVALUE(dms_060701_StartDateTxt)
B109: FOR ANNUAL REPORTING RINS
B110: How many rows in table 6.8? | C110: insert dms_060801_StartCell NR if required | D110: dms_060801_StartCell is only found on worksheet 6.8 and is used to determine the starting date for the date range
B111: Table 6.8 - Number of offset rows | C111: =IFERROR(IF(dms_Model="ARR",(ROW(dms_060801_StartCell)-1),"not an ARR"),"6.8 not present") -> not an ARR | D111: dms_0608_OffsetRows | E111: =IFERROR(IF(dms_Model="ARR",(ROW(dms_060801_StartCell)-1),"not an ARR"),"6.8 not present")
B112: Table 6.8 - Last row | C112: =IFERROR(IF(dms_060801_StartCell<>"",IF(dms_Model="ARR",(LOOKUP(2,1/(dms_060801_01_Values<>""),(ROW(dms_060801_01_Values)))),"not an ARR"),0),"6.8 not present") -> 6.8 not present | D112: dms_0608_LastRow | E112: =IFERROR(IF(dms_060801_StartCell<>"",IF(dms_Model="ARR",(LOOKUP(2,1/(dms_060801_01_Values<>""),(ROW(dms_060801_01_Values)))),"not an ARR"),0),"6.8 not present")
B113: Table 6.8 - MaxRows | C113: =IFERROR(IF(dms_Model="ARR",(MAX(0,dms_0608_LastRow-dms_0608_OffsetRows)),"not an ARR"),"6.8 not present") -> not an ARR | D113: dms_060801_MaxRows | E113: =IFERROR(IF(dms_Model="ARR",(MAX(0,dms_0608_LastRow-dms_0608_OffsetRows)),"not an ARR"),"6.8 not present")
B114: FOR TNSP FILES
B115: Table 7.9.4 only appears in TNSPs Reset RIN
B116: Table 7.9.4 - first year | C116: =LEFT(PRCP_y3,4) -> 2012 | D116: dms_070904_Start_Year | E116: =LEFT(PRCP_y3,4)
B117: MISC
B118: Distribution Determination Reference | C118: =INDEX(dms_DeterminationRef_List,MATCH(dms_TradingName,dms_TradingName_List)) -> 2014-19 Distribution Determination | D118: dms_DeterminationRef
B119: Is this Submission File a Subset File | C119: NO | D119: dms_Partial
B120: CBD Feeder for this business | C120: =INDEX(dms_CBD_flag,MATCH(dms_TradingName,dms_TradingName_List)) -> NO | D120: dms_CBD_flag_NSP
B121: Urban Feeder for this business | C121: =INDEX(dms_Urban_flag,MATCH(dms_TradingName,dms_TradingName_List)) -> YES | D121: dms_Urban_flag_NSP
B122: Short rural Feeder for this business | C122: =INDEX(dms_ShortRural_flag,MATCH(dms_TradingName,dms_TradingName_List)) -> YES | D122: dms_ShortRural_flag_NSP
B123: Long rural Feeder for this business | C123: =INDEX(dms_LongRural_flag,MATCH(dms_TradingName,dms_TradingName_List)) -> YES | D123: dms_LongRural_flag_NSP
B124: Fifth Feeder Category (eg. TasNetworks (D)) | C124: =INDEX(dms_FeederType_5_flag,MATCH(dms_TradingName,dms_TradingName_List)) -> NO | D124: dms_FifthFeeder_flag_NSP | E124: =INDEX(dms_FeederType_5_flag,MATCH(dms_TradingName,dms_TradingName_List))
B126: discard this record? | C126: NO | D126: dms_DISCARD | E126: If record is to be discarded from DB set this flag to YES
B128: USES NAMED RANGES FLAG | C128: yes | D128: dms_Defined_Names_Used
B130: REGULATORY YEARS FOR MULTI RYE SUBMISSIONS
B131: Multiple RYE flag | C131: NO | D131: dms_Multi_RYE_flag
C132: Manually specify RYE | D132: Named ranges to apply
C133: 2013 | D133: dms_RYE_01
C134: 2014 | D134: dms_RYE_02
C135: 2015 | D135: dms_RYE_03
C136: 2016 | D136: dms_RYE_04
C137: 2017 | D137: dms_RYE_05

Sheet 2.1 Expenditure summary
B1: REGULATORY REPORTING STATEMENT
B2: =INDEX(dms_TradingNameFull_List,MATCH(dms_TradingName,dms_TradingName_List)) -> Endeavour Energy
B3: =CONCATENATE((LOOKUP(dms_Model,dms_Model_List,dms_Worksheet_List))&" "&CRY) -> CATEGORY ANALYSIS 2017-18
B4: 2.1 EXPENDITURE SUMMARY & RECONCILIATION
B6: There are SIX tables on this worksheet. Each has been grouped for ease of navigation. See the Instructions sheet on how to group or ungroup tables.
B8: 2.1.1 - STANDARD CONTROL SERVICES CAPEX
C9: EXPENDITURE ($0's)
C10: =CRY -> 2017-18
B11: Replacement expenditure | C11: 143673734.9
B12: Connections | C12: 21420016
B13: Augmentation Expenditure | C13: 35669539
B14: Non-network | C14: 63830171.21
B15: capitalised network overheads | C15: 31867425
B16: capitalised corporate overheads | C16: 21189589
B17: Metering | C17: 0
B18: Public Lighting | C18: 0
B26: balancing item | C26: 180943019.8
B27: capcons (included in the above) | C27: 147795218.4
B28: TOTAL GROSS CAPEX (including capcons) | C28: =+SUM(C11:C26) -> 498593494.9
B30: 2.1.2 - STANDARD CONTROL SERVICES OPEX
C31: EXPENDITURE ($0's)
C32: =CRY -> 2017-18
B33: Vegetation management | C33: 41759745
B34: Maintenance | C34: 49215839
B35: Emergency response | C35: 15801119
B36: Non-network | C36: 62240370.95
B37: network overheads | C37: 57147991
B38: corporate overheads | C38: 93398203
B39: Metering | C39: 0
B40: Public Lighting | C40: 0
B48: balancing item | C48: -62240370.95
B49: TOTAL OPEX | C49: =+SUM(C33:C48) -> 257322897
B51: 2.1.3 - ALTERNATIVE CONTROL SERVICES CAPEX
C52: EXPENDITURE ($0's)
C53: =CRY -> 2017-18
B54: Connections
B55: capitalised network overheads
B56: capitalised corporate overheads
B57: Metering | C57: 985508
B58: Public lighting | C58: 8219232
B59: Fee and quoted
B67: balancing item | C67: 324481.7559
B68: TOTAL CAPEX | C68: =+SUM(C54:C67) -> 9529221.756
B70: 2.1.4 - ALTERNATIVE CONTROL SERVICES OPEX
C71: EXPENDITURE ($0's)
C72: =CRY -> 2017-18
B73: Connections
B74: network overheads | C74: 10456457
B75: corporate overheads | C75: 23380217
B76: Metering | C76: 17572224
B77: Public lighting | C77: 14335117
B78: Fee and quoted | C78: 31200994.8
B86: balancing item | C86: -33836674
B87: TOTAL OPEX | C87: =+SUM(C73:C86) -> 63108335.8
B89: 2.1.5 - DUAL FUNCTION ASSETS CAPEX
C90: EXPENDITURE ($0's)
C91: =CRY -> 2017-18
B92: Replacement expenditure | C92: 0
B93: Connections | C93: 0
B94: Augmentation Expenditure | C94: 0
B95: Non-network | C95: 0
B96: Capitalised network overheads | C96: 0
B97: Capitalised corporate overheads | C97: 0
B105: balancing item | C105: 0
B106: capcons (included in the above) | C106: 0
B107: TOTAL GROSS CAPEX (including capcons) | C107: =SUM(C92:C105) -> 0
B109: 2.1.6 - DUAL FUNCTION ASSETS OPEX
C110: EXPENDITURE ($0's)
C111: =CRY -> 2017-18
B112: Vegetation management | C112: 0
B113: Maintenance | C113: 0
B114: Emergency response | C114: 0
B115: Non-network | C115: 0
B116: Network overheads | C116: 0
B117: Corporate overheads | C117: 0
B125: balancing item | C125: 0
B126: TOTAL OPEX | C126: =SUM(C112:C125) -> 0

Sheet 2.2 Repex
B1: REGULATORY REPORTING STATEMENT
B2: =INDEX(dms_TradingNameFull_List,MATCH(dms_TradingName,dms_TradingName_List)) -> Endeavour Energy
B3: =CONCATENATE((LOOKUP(dms_Model,dms_Model_List,dms_Worksheet_List))&" "&CRY) -> CATEGORY ANALYSIS 2017-18
B4: 2.2 REPEX
B6: There are TWO tables on this worksheet. Each has been grouped for ease of navigation. See the Instructions sheet on how to group or ungroup tables.
B8: 2.2.1 - REPLACEMENT EXPENDITURE, VOLUMES AND ASSET FAILURES BY ASSET CATEGORY
E9: EXPENDITURE ($0's) | F9: ASSET REPLACEMENTS (0's) | G9: ASSET FAILURES (0's)
B10: ASSET GROUP | C10: ASSET CATEGORY | E10: =CRY -> 2017-18 | F10: =CRY -> 2017-18 | G10: =CRY -> 2017-18
B11: POLES BY: HIGHEST OPERATING VOLTAGE ; MATERIAL TYPE; STAKING (IF WOOD) | C11: Staking of a wooden pole | E11: 130009 | F11: 180 | G11: 0
C12: ˂ = 1 kV; Wood | E12: 5347654.982 | F12: 783 | G12: 6
C13: > 1 kV & < = 11 kV; Wood | E13: 8860228.36 | F13: 1135 | G13: 16
C14: ˃ 11 kV & < = 22 kV; Wood | E14: 495968.0014 | F14: 51 | G14: 0
C15: > 22 kV & < = 66 kV; Wood | E15: 3647764.655 | F15: 187 | G15: 1
C16: > 66 kV & < = 132 kV; Wood | E16: 460770.2722 | F16: 20 | G16: 0
C17: > 132 kV; Wood | E17: 0 | F17: 0 | G17: 0
C18: ˂ = 1 kV; Concrete | E18: 233584.9297 | F18: 30 | G18: 0
C19: > 1 kV & < = 11 kV; Concrete | E19: 1787884.65 | F19: 183 | G19: 0
C20: ˃ 11 kV & < = 22 kV; Concrete | E20: 436771.8205 | F20: 37 | G20: 0
C21: > 22 kV & < = 66 kV; Concrete | E21: 1201122.507 | F21: 59 | G21: 0
C22: > 66 kV & < = 132 kV; Concrete | E22: 329978.7106 | F22: 14 | G22: 0
C23: > 132 kV; Concrete | E23: 0 | F23: 0 | G23: 0
C24: ˂ = 1 kV; Steel | E24: 30798.01299 | F24: 5 | G24: 0
C25: > 1 kV & < = 11 kV; Steel | E25: 97193.7293 | F25: 11 | G25: 0
C26: ˃ 11 kV & < = 22 kV; Steel | E26: 74795.1744 | F26: 7 | G26: 0
C27: > 22 kV & < = 66 kV; Steel | E27: 109192.9551 | F27: 5 | G27: 0
C28: > 66 kV & < = 132 kV; Steel | E28: 0 | F28: 0 | G28: 0
C29: > 132 kV; Steel | E29: 0 | F29: 0 | G29: 0
C30: Other | E30: 0 | F30: 0 | G30: 0
B31: POLE TOP STRUCTURES BY: HIGHEST OPERATING VOLTAGE | C31: ˂ = 1 kV | E31: 0 | F31: 0 | G31: 0
C32: > 1 kV & < = 11 kV | E32: 0 | F32: 0 | G32: 0
C33: ˃ 11 kV & < = 22 kV | E33: 0 | F33: 0 | G33: 0
C34: > 22 kV & < = 66 kV | E34: 0 | F34: 0 | G34: 0
C35: > 66 kV & < = 132 kV | E35: 0 | F35: 0 | G35: 0
C36: > 132 kV | E36: 0 | F36: 0 | G36: 0
C37: Other | E37: 0 | F37: 0 | G37: 0
B38: OVERHEAD CONDUCTORS BY: HIGHEST OPERATING VOLTAGE; NUMBER OF PHASES (AT HV) | C38: ˂ = 1 kV | E38: 4233381.924 | F38: 72.32027453 | G38: 0
C39: > 1 kV & < = 11 kV | E39: 11611669.62 | F39: 158.6928182 | G39: 0
C40: ˃ 11 kV & < = 22 kV ; SWER | E40: 48922.9281 | F40: 1.253650032 | G40: 0
C41: ˃ 11 kV & < = 22 kV ; Single-Phase | E41: 0 | F41: 0 | G41: 0
C42: ˃ 11 kV & < = 22 kV ; Multiple-Phase | E42: 0 | F42: 0 | G42: 0
C43: > 22 kV & < = 66 kV | E43: 3689755.045 | F43: 15.12799569 | G43: 0
C44: > 66 kV & < = 132 kV | E44: 2233387.741 | F44: 9.156889736 | G44: 0
C45: > 132 kV | E45: 0 | F45: 0 | G45: 0
C46: Other | E46: 0 | F46: 0 | G46: 0
B47: UNDERGROUND CABLES BY: HIGHEST OPERATING VOLTAGE | C47: ˂ = 1 kV | E47: 7786202.14 | F47: 17.73523821 | G47: 0
C48: > 1 kV & < = 11 kV | E48: 503794.1733 | F48: 1.147531173 | G48: 0
C49: > 11 kV & < = 22 kV | E49: 70691.94935 | F49: 0.1610205513 | G49: 0
C50: > 22 kV & < = 33 kV | E50: 6086.808662 | F50: 0.004621465836 | G50: 0
C51: > 33 kV & < = 66 kV | E51: 1449.577353 | F51: 0.001100605028 | G51: 0
C52: > 66 kV & < = 132 kV | E52: 50076.50133 | F52: 0.03208025866 | G52: 0
C53: > 132 kV | E53: 0 | F53: 0 | G53: 0
C54: Other | E54: 0 | F54: 0 | G54: 0
B55: SERVICE LINES BY: CONNECTION VOLTAGE; CUSTOMER TYPE; CONNECTION COMPLEXITY | C55: ˂ = 11 kV ; Residential ; Simple Type | E55: 14078777.49 | F55: 14431 | G55: 0
C56: ˂ = 11 kV ; Commercial & Industrial ; Simple Type | E56: 0 | F56: 0 | G56: 0
C57: ˂ = 11 kV ; Residential ; Complex Type | E57: 0 | F57: 0 | G57: 0
C58: ˂ = 11 kV ; Commercial & Industrial ; Complex Type | E58: 0 | F58: 0 | G58: 0
C59: ˂ = 11 kV ; Subdivision ; Complex Type | E59: 0 | F59: 0 | G59: 0
C60: > 11 kV & < = 22 kV ; Commercial & Industrial | E60: 0 | F60: 0 | G60: 0
C61: > 11 kV & < = 22 kV ; Subdivision | E61: 0 | F61: 0 | G61: 0
C62: > 22 kV & < = 33 kV ; Commercial & Industrial | E62: 0 | F62: 0 | G62: 0
C63: > 22 kV & < = 33 kV ; Subdivision | E63: 0 | F63: 0 | G63: 0
C64: > 33 kV & < = 66 kV ; Commercial & Industrial | E64: 0 | F64: 0 | G64: 0
C65: > 33 kV & < = 66 kV ; Subdivision | E65: 0 | F65: 0 | G65: 0
C66: > 66 kV & < = 132 kV ; Commercial & Industrial | E66: 0 | F66: 0 | G66: 0
C67: > 66 kV & < = 132 kV ; Subdivision | E67: 0 | F67: 0 | G67: 0
C68: > 132 kV ; Commercial & Industrial | E68: 0 | F68: 0 | G68: 0
C69: > 132 kV ; Subdivision | E69: 0 | F69: 0 | G69: 0
C70: Other | E70: 0 | F70: 0 | G70: 0
B71: TRANSFORMERS BY: MOUNTING TYPE; HIGHEST OPERATING VOLTAGE ; AMPERE RATING; NUMBER OF PHASES (AT LV) | C71: Pole Mounted ; < = 22kV ; < = 60 kVA ; Single Phase | E71: 80012.78181 | F71: 8 | G71: 0
C72: Pole Mounted ; < = 22kV ; > 60 kVA and < = 600 kVA ; Single Phase | E72: 0 | F72: 0 | G72: 0
C73: Pole Mounted ; < = 22kV ; > 600 kVA ; Single Phase | E73: 0 | F73: 0 | G73: 0
C74: Pole Mounted ; < = 22kV ; < = 60 kVA ; Multiple Phase | E74: 37505.99147 | F74: 3 | G74: 2
C75: Pole Mounted ; < = 22kV ; > 60 kVA and < = 600 kVA ; Multiple Phase | E75: 1089549.052 | F75: 32 | G75: 2
C76: Pole Mounted ; < = 22kV ; > 600 kVA ; Multiple Phase | E76: 0 | F76: 0 | G76: 0
C77: Kiosk Mounted ; < = 22kV ; < = 60 kVA ; Single Phase | E77: 0 | F77: 0 | G77: 0
C78: Kiosk Mounted ; < = 22kV ; > 60 kVA and < = 600 kVA ; Single Phase | E78: 0 | F78: 0 | G78: 0
C79: Kiosk Mounted ; < = 22kV ; > 600 kVA ; Single Phase | E79: 0 | F79: 0 | G79: 0
C80: Kiosk Mounted ; < = 22kV ; < = 60 kVA ; Multiple Phase | E80: 0 | F80: 0 | G80: 0
C81: Kiosk Mounted ; < = 22kV ; > 60 kVA and < = 600 kVA ; Multiple Phase | E81: 1273328.411 | F81: 37 | G81: 0
C82: Kiosk Mounted ; < = 22kV ; > 600 kVA ; Multiple Phase | E82: 862637.8039 | F82: 18 | G82: 0
C83: Ground Outdoor / Indoor Chamber Mounted; ˂ 22 kV ; < = 60 kVA ; Single Phase | E83: 0 | F83: 0 | G83: 0
C84: Ground Outdoor / Indoor Chamber Mounted; ˂ 22 kV ; > 60 kVA and < = 600 kVA ; Single Phase | E84: 0 | F84: 0 | G84: 0
C85: Ground Outdoor / Indoor Chamber Mounted; ˂ 22 kV ; > 600 kVA ; Single Phase | E85: 0 | F85: 0 | G85: 0
C86: Ground Outdoor / Indoor Chamber Mounted; ˂ 22 kV ; < = 60 kVA ; Multiple Phase | E86: 0 | F86: 0 | G86: 0
C87: Ground Outdoor / Indoor Chamber Mounted; ˂ 22 kV ; > 60 kVA and < = 600 kVA ; Multiple Phase | E87: 0 | F87: 0 | G87: 0
C88: Ground Outdoor / Indoor Chamber Mounted; ˂ 22 kV ; > 600 kVA ; Multiple Phase | E88: 0 | F88: 0 | G88: 0
C89: Ground Outdoor / Indoor Chamber Mounted; > = 22 kV & < = 33 kV ; < = 15 MVA | E89: 274949.1312 | F89: 0 | G89: 0
C90: Ground Outdoor / Indoor Chamber Mounted; > = 22 kV & < = 33 kV ; > 15 MVA and < = 40 MVA | E90: 816305.9187 | F90: 0 | G90: 0
C91: Ground Outdoor / Indoor Chamber Mounted; > = 22 kV & < = 33 kV ; > 40 MVA | E91: 0 | F91: 0 | G91: 0
C92: Ground Outdoor / Indoor Chamber Mounted; > 33 kV & < = 66 kV ; < = 15 MVA | E92: 59874.58098 | F92: 0 | G92: 0
C93: Ground Outdoor / Indoor Chamber Mounted; > 33 kV & < = 66 kV ; > 15 MVA and < = 40 MVA | E93: 252992.4852 | F93: 0 | G93: 0
C94: Ground Outdoor / Indoor Chamber Mounted; > 33 kV & < = 66 kV ; > 40 MVA | E94: 0 | F94: 0 | G94: 0
C95: Ground Outdoor / Indoor Chamber Mounted; > 66 kV & < = 132 kV ; < = 100 MVA | E95: 675366.3158 | F95: 0 | G95: 0
C96: Ground Outdoor / Indoor Chamber Mounted; > 66 kV & < = 132 kV ; > 100 MVA | E96: 311748.0382 | F96: 0 | G96: 0
C97: Ground Outdoor / Indoor Chamber Mounted; > 132 kV ; < = 100 MVA | E97: 0 | F97: 0 | G97: 0
C98: Ground Outdoor / Indoor Chamber Mounted; > 132 kV ; > 100 MVA | E98: 0 | F98: 0 | G98: 0
C99: Other | E99: 0 | F99: 0 | G99: 0
B100: SWITCHGEAR BY: HIGHEST OPERATING VOLTAGE ; SWITCH FUNCTION | C100: ˂ = 11 kV ; FUSE | E100: 207866.5026 | F100: 71
C101: ˂ = 11 kV ; Switch | E101: 9505889.29 | F101: 804 | G101: 153
C102: ˂ = 11 kV ; Circuit Breaker | E102: 2962097.663 | F102: 18 | G102: 109
C103: > 11 kV & < = 22 kV ; Switch | E103: 38176.26221 | F103: 3 | G103: 5
C104: > 11 kV & < = 22 kV ; Circuit Breaker | E104: 0 | F104: 0 | G104: 3
C105: > 22 kV & < = 33 kV ; Switch | E105: 105139.9862 | F105: 5 | G105: 0
C106: > 22 kV & < = 33 kV ; Circuit Breaker | E106: 850362.9654 | F106: 3 | G106: 52
C107: > 33 kV & < = 66 kV ; Switch | E107: 0 | F107: 0 | G107: 0
C108: > 33 kV & < = 66 kV ; Circuit Breaker | E108: 0 | F108: 0 | G108: 6
C109: > 66 kV & < = 132 kV ; Switch | E109: 0 | F109: 0 | G109: 0
C110: > 66 kV & < = 132 kV ; Circuit Breaker | E110: 0 | F110: 0 | G110: 2
C111: > 132 kV ; Switch | E111: 0 | F111: 0 | G111: 0
C112: > 132 kV ; Circuit Breaker | E112: 0 | F112: 0 | G112: 0
C113: Other | E113: 1771589.511 | F113: 1816 | G113: 0
B114: PUBLIC LIGHTING BY: ASSET TYPE ; LIGHTING OBLIGATION | C114: Luminaires ; Major Road | E114: 0 | F114: 0 | G114: 0
C115: Luminaires ; Minor Road | E115: 0 | F115: 0 | G115: 0
C116: Brackets ; Major Road | E116: 0 | F116: 0 | G116: 0
C117: Brackets ; Minor Road | E117: 0 | F117: 0 | G117: 0
C118: Lamps ; Major Road | E118: 0 | F118: 0 | G118: 0
C119: Lamps ; Minor Road | E119: 0 | F119: 0 | G119: 0
C120: Poles / Columns ; Major Road | E120: 0 | F120: 0 | G120: 0
C121: Poles / Columns ; Minor Road | E121: 0 | F121: 0 | G121: 0
C122: Other | E122: 3694982.16 | F122: 1082 | G122: 0
B123: SCADA, NETWORK CONTROL AND PROTECTION SYSTEMS BY: FUNCTION | C123: Field Devices | E123: 1466584.09 | F123: 301 | G123: 0
C124: Local Network Wiring Assets | E124: 0 | F124: 0 | G124: 0
C125: Communications Network Assets | E125: 5236306.38 | F125: 268 | G125: 0
C126: Master Station Assets | E126: 0 | F126: 0 | G126: 0
C127: Communications Site Infrastructure | E127: 1127157.8 | F127: 2 | G127: 0
C128: Communications Linear Assets | E128: 395526.17 | F128: 0.01001023023 | G128: 0
C129: AFLC | E129: 0 | F129: 0 | G129: 0
C130: Other | E130: 0 | F130: 0 | G130: 0
B131: OTHER BY: DNSP DEFINED | C131: Substation Establishment: Major Indoor | E131: 0 | F131: 0 | G131: 0
C132: Substation Establishment: Major Outdoor | E132: 0 | F132: 0 | G132: 0
C133: Substation Establishment: Medium Indoor | E133: 0 | F133: 0 | G133: 0
C134: Substation Establishment: Medium Outdoor | E134: 0 | F134: 0 | G134: 0
C135: Substation Establishment: Small Indoor | E135: 21989843.94 | F135: 1 | G135: 0
C136: Substation Establishment: Small Outdoor | E136: 12968369.5 | F136: 1 | G136: 0
C137: Substation Establishment: Type A | E137: 0 | F137: 0 | G137: 0
C138: Substation Establishment: Type B | E138: 0 | F138: 0 | G138: 0
C139: Distribution Sub - Chamber Type | E139: 517960.6766 | F139: 10 | G139: 0
C140: Distribution OH Sub < 64KVA | E140: 3641420.514 | F140: 37 | G140: 0
C141: Distribution OH Sub >= 64KVA | E141: 373559.5183 | F141: 23 | G141: 0
C142: 11/22 - kiosk and pad mount <=500kVA Substn | E142: 2871071.726 | F142: 173 | G142: 0
C143: 11/22 - kiosk and pad mount >500kVA Substn | E143: 3421679.621 | F143: 70 | G143: 0
C144: 11/22 Switching Station | E144: 219740.8931 | F144: 5 | G144: 0
C145: Capacitor Banks | E145: 581198.6845 | F145: 3 | G145: 0
E146: 0 | F146: 0 | G146: 0
B149: 2.2.2 - SELECTED ASSET CHARACTERISTICS
E150: ASSET VOLUMES CURRENTLY IN COMMISSION | F150: ASSET REPLACEMENTS (0's)
B151: ASSET GROUP | C151: METRIC | D151: UNITS | E151: =CRY -> 2017-18 | F151: =CRY -> 2017-18
B152: TOTAL POLES BY: FEEDER TYPE | C152: Total CBD poles | D152: Number | E152: 0 | F152: 0
C153: Total urban poles | D153: Number | E153: 79844.88187 | F153: 717.4638928
C154: Total rural long poles | D154: Number | E154: 5875.874739 | F154: 47.25191159
C155: Total rural short poles | D155: Number | E155: 220725.2434 | F155: 1776.284196
B156: OVERHEAD CONDUCTORS BY: CONDUCTOR LENGTH BY FEEDER TYPE | C156: Conductors CBD | D156: KM | E156: 0 | F156: 0
C157: Conductors urban | D157: KM | E157: 8012.58827 | F157: 68.81252577
C158: Conductors rural long | D158: KM | E158: 527.1537853 | F158: 4.866983412
C159: Conductors rural short | D159: KM | E159: 19816.79993 | F159: 182.872119
B160: OVERHEAD CONDUCTORS BY: CONDUCTOR LENGTH MATERIAL TYPE | C160: OH conductor LV ABC | D160: KM | E160: 2026.658753 | F160: 0.04228777136
C161: OH conductor steel | D161: KM | E161: 730.6534394 | F161: 75.45672739
C162: OH conductor ACSR | D162: KM | E162: 6041.543062 | F162: 50.1306649
C163: OH conductor AAAC | D163: KM | E163: 1372.424566 | F163: 12.50374398
C164: OH conductor AAC | D164: KM | E164: 11677.81331 | F164: 69.98821375
C165: OH conductor HDBC | D165: KM | E165: 6507.448853 | F165: 48.42999036
C166: Other | D166: KM | E166: 0 | F166: 0
B167: UNDERGROUND CABLES BY: CABLE LENGTH BY FEEDER TYPE | C167: Cable CBD | D167: KM | E167: 0 | F167: 0
C168: Cable urban | D168: KM | E168: 12870.35342 | F168: 12.79787415
C169: Cable rural long | D169: KM | E169: 1.311717893 | F169: 0.001340153394
C170: Cable rural short | D170: KM | E170: 6153.294861 | F170: 6.282377957
B171: TRANSFORMERS BY: TOTAL MVA | C171: Total MVA replaced | D171: MVA | E171: 0 | F171: 35.785
C172: Total MVA disposed of | D172: MVA | E172: 0 | F172: 35.785

Sheet 2.3(a) Augex
B1: REGULATORY REPORTING STATEMENT
B2: =INDEX(dms_TradingNameFull_List,MATCH(dms_TradingName,dms_TradingName_List)) -> Endeavour Energy
B3: =CONCATENATE((LOOKUP(dms_Model,dms_Model_List,dms_Worksheet_List))&" "&CRY) -> CATEGORY ANALYSIS 2017-18
B4: 2.3 AUGEX PROJECT DATA
B7: There are TWO tables on this worksheet - each has been 'grouped' for easy navigation. Both ROWS and COLUMNS have been grouped. See the Instructions sheet on how to group or ungroup tables.
B9: 2.3.1 - AUGEX ASSET DATA - SUBTRANSMISSION SUBSTATIONS, SWITCHING STATIONS AND ZONE SUBSTATIONS
B10: NOTE: DNSP MUST PROVIDE EXPENDITURE INFORMATION ON A PROJECT CLOSE BASIS.
B11: PROJECT DESCRIPTION AND CHANGES | L11: PLANT AND EQUIPMENT EXPENDITURE AND VOLUME | X11: OTHER EXPENDITURE | Z11: TOTAL DIRECT EXPENDITURE ($0's) | AA11: YEARS INCURRED | AB11: ALL RELATED PARTY CONTRACTS | AD11: ALL NON RELATED PARTY CONTRACTS | AE11: LAND AND EASEMENTS
B12: SUBSTATION ID | C12: SUBSTATION TYPE (drop down) | D12: PROJECT ID | E12: PROJECT TYPE (drop down) | F12: PROJECT TRIGGER (drop down) | G12: VOLTAGE (KV) | H12: SUBSTATION RATING NORMAL CYCLIC (MVA) | J12: SUBSTATION RATING N-1 EMERGENCY (MVA) | L12: TRANSFORMERS | O12: SWITCHGEAR | Q12: CAPACITORS | U12: OTHER PLANT ITEM | V12: INSTALLATION (LABOUR) | X12: CIVIL WORKS | Y12: OTHER DIRECT | AB12: RELATED PARTY MARGINS | AC12: TOTAL | AE12: LAND PURCHASE | AF12: EASEMENTS
H13: PRE | I13: POST | J13: PRE | K13: POST | L13: UNITS ADDED | M13: MVA ADDED | N13: EXPENDITURE ($0's) | O13: UNITS ADDED | P13: EXPENDITURE ($0's) | Q13: MVAR ADDED | R13: EXPENDITURE ($0's) | U13: EXPENDITURE ($0's) | V13: VOLUME | W13: EXPENDITURE ($0's) | X13: EXPENDITURE ($0's) | AB13: EXPENDITURE ($0's) | AE13: EXPENDITURE ($0's)
B14: Doonside 132/11kV ZS Establishment | C14: Zone substation | D14: PR090 | E14: New substation establishment | F14: Demand growth | G14: 132/11 | H14: 50 | I14: 135 | J14: 30 | K14: 90 | L14: 3 | M14: 135 | N14: 4441401 | O14: 51 | P14: 5804292 | Q14: 5 | R14: 277108 | U14: 4364428 | V14: 21186.61318 | W14: 2177894.676 | X14: 6221266.135 | Y14: 558289.2118 | Z14: =SUM(N14,P14,R14,U14,W14,X14,Y14) -> 23844679.02 | AA14: 2006/07, 2007/08, 2008/09, 2009/10, 2010/11, 2011/12, 2012/13, 2013/14, 2014/15, 2015/16, 2016/17, 2017/18, | AB14: 0 | AC14: 8488129.514 | AD14: 0 | AE14: 1047391.178 | AF14: 0
Z15: 0
Z16: 0
Z17: 0
Z18: 0
Z19: 0
Z20: 0
Z21: 0
Z22: 0
Z23: 0
Z24: 0
Z25: 0
Z26: 0
Z27: 0
Z28: 0
Z29: 0
Z30: 0
Z31: 0
Z32: 0
Z33: 0
Z34: 0
Z35: 0
Z36: 0
Z37: 0
Z38: 0
Z39: 0
Z40: 0
Z41: 0
Z42: 0
Z43: 0
Z44: 0
Z45: 0
Z46: =SUM(N46,P46,R46,U46,W46,X46,Y46) -> 0
Z47: 0
Z48: 0
Z49: 0
Z50: 0
Z51: 0
Z52: 0
Z53: 0
Z54: 0
Z55: 0
Z56: 0
Z57: 0
Z58: 0
Z59: 0
Z60: 0
Z61: 0
Z62: 0
Z63: 0
Z64: 0
Z65: 0
D66: Non material projects - [actual]
B69: AUG232_1 | C69: AUG232_2 | D69: AUG232_3 | E69: AUG232_4 | F69: AUG232_5 | G69: AUG232_6 | H69: ED_AUG232_00001 | I69: ED_AUG232_00002 | J69: ED_AUG232_00003 | K69: ED_AUG232_00004 | L69: ED_AUG232_00005 | M69: ED_AUG232_00006 | N69: ED_AUG232_00007 | O69: ED_AUG232_00008 | P69: ED_AUG232_00009 | Q69: ED_AUG232_00010 | R69: ED_AUG232_00011 | S69: ED_AUG232_00012 | T69: ED_AUG232_00013 | U69: ED_AUG232_00014 | V69: ED_AUG232_00015 | W69: ED_AUG232_00016 | X69: ED_AUG232_00017 | Y69: ED_AUG232_00018 | Z69: ED_AUG232_00019 | AA69: ED_AUG232_00020 | AB69: ED_AUG232_00021
B70: 2.3.2 - AUGEX ASSET DATA - SUBTRANSMISSION LINES
B71: NOTE: DNSP MUST PROVIDE EXPENDITURE INFORMATION ON A PROJECT CLOSE BASIS.
B72: PROJECT DESCRIPTION AND CHANGES | L72: PLANT AND EQUIPMENT EXPENDITURE AND VOLUME | X72: OTHER EXPENDITURE | Z72: TOTAL DIRECT EXPENDITURE ($0's) | AA72: YEARS INCURRED | AB72: ALL RELATED PARTY CONTRACTS | AD72: ALL NON RELATED PARTY CONTRACTS | AE72: LAND AND EASEMENTS
B73: LINE ID | C73: PROJECT ID | D73: PROJECT TYPE | E73: PROJECT TRIGGER | G73: VOLTAGE (KV) | H73: ROUTE LINE LENGTH ADDED | L73: POLES/TOWERS (INCLUDING STRUCTURES, AND CIVIL WORKS) | O73: OVERHEAD LINES | R73: UNDERGROUND CABLES | U73: OTHER PLANT ITEM | V73: INSTALLATION (LABOUR) | X73: CIVIL WORKS | Y73: OTHER DIRECT | AB73: RELATED PARTY MARGINS | AC73: TOTAL | AE73: LAND PURCHASE | AF73: EASEMENTS
H74: KM ADDED | L74: POLES/TOWERS ADDED | M74: POLES/TOWERS UPGRADED | N74: EXPENDITURE ($0's) | O74: CIRCUIT KM ADDED | P74: CIRCUIT KM UPGRADED | Q74: EXPENDITURE ($0's) | R74: CIRCUIT KM ADDED | S74: CIRCUIT KM UPGRADED | T74: EXPENDITURE ($0's) | U74: EXPENDITURE ($0's) | V74: VOLUME | W74: EXPENDITURE ($0's) | X74: EXPENDITURE ($0's) | AB74: EXPENDITURE ($0's) | AE74: EXPENDITURE ($0's)
B75: 23G, 23G, 239, 23C, 23F, 220, | C75: PR090 | D75: New line on new route - single circuit | E75: Demand growth | G75: 132 | H75: 24.84 | L75: 91 | M75: 74 | N75: 990000 | O75: 12.9 | P75: 8.4 | Q75: 446020 | R75: 7 | S75: 0.64 | T75: 3027250 | U75: 1572436.412 | V75: 21455.72984 | W75: 1807116.003 | X75: 2611853.503 | Y75: 618928.1999 | Z75: =SUM(N75,Q75,T75,U75,W75,X75,Y75) -> 11073604.12 | AA75: 2006/07, 2007/08, 2008/09, 2009/10, 2010/11, 2011/12, 2012/13, 2013/14, 2014/15, 2015/16, 2016/17, 2017/18, | AC75: 2995152.953 | AE75: 0 | AF75: 0 | AH75: New line on new route - single circuit
Z76: 0 | AH76: New line on new route - dual circuit
Z77: 0 | AH77: New line on new route - other
Z78: 0 | AH78: Line rebuild over existing route - single circuit
Z79: 0 | AH79: Line rebuild over existing route - dual circuit
Z80: 0 | AH80: Reconductor - Single circuit
Z81: 0 | AH81: Reconductor - Dual circuit
Z82: 0 | AH82: Reconductor - Other
Z83: 0 | AH83: Line upgrade - raising/retensoring
Z84: 0 | AH84: Line upgrade - voltage upgrade
Z85: 0 | AH85: Line upgrade - capacity
Z86: 0 | AH86: String spare circuit
Z87: 0 | AH87: Other
Z88: 0
Z89: 0
Z90: 0
Z91: 0
Z92: 0
Z93: 0
Z94: 0
Z95: 0
Z96: 0
Z97: 0
Z98: 0
Z99: 0
Z100: 0
Z101: 0
Z102: 0
Z103: 0
Z104: 0
Z105: 0
Z106: 0
Z107: =SUM(N107,Q107,T107,U107,W107,X107,Y107) -> 0
Z108: 0
Z109: 0
Z110: 0
Z111: 0
Z112: 0
Z113: 0
Z114: 0
Z115: 0
Z116: 0
Z117: 0
Z118: 0
Z119: 0
Z120: 0
Z121: 0
Z122: 0
Z123: 0
Z124: 0
Z125: 0
Z126: 0
Z127: 0
Z128: 0
C129: Non material projects - [actual]

Sheet 2.3(b) Augex
B1: REGULATORY REPORTING STATEMENT
B2: =INDEX(dms_TradingNameFull_List,MATCH(dms_TradingName,dms_TradingName_List)) -> Endeavour Energy
B3: =CONCATENATE((LOOKUP(dms_Model,dms_Model_List,dms_Worksheet_List))&" "&CRY) -> CATEGORY ANALYSIS 2017-18
B4: 2.3 AUGEX DATA
B6: There are TWO tables on this worksheet. Each has been grouped for ease of navigation. See the Instructions sheet on how to group or ungroup tables.
B8: 2.3.3 - AUGEX DATA - HV/LV FEEDERS AND DISTRIBUTION SUBSTATIONS
B9: NOTE: DNSP MUST PROVIDE EXPENDITURE INFORMATION ON AN AS INCURRED BASIS.
B10: DESCRIPTOR METRICS
B11: PROJECT TYPE | D11: UNITS ADDED (0's) | E11: UNITS UPGRADED (0's)
C12: UNITS | D12: =CRY -> 2017-18 | E12: =CRY -> 2017-18
B13: HV Feeder Augmentations - Overhead Lines | C13: Circuit line length in km | D13: 1.342 | E13: 6.145
B14: HV Feeder Augmentations - Underground Cables | C14: Circuit line length in km | D14: 3.722 | E14: 0
B15: LV Feeder Augmentations - Overhead Lines | C15: Circuit line length in km | D15: 1.4 | E15: 0.9
B16: LV Feeder Augmentations - Underground Cables | C16: Circuit line length in km | D16: 0.7 | E16: 0
B17: Distribution Substation Augmentations - Pole Mounted | C17: Number | D17: 1 | E17: 9
B18: Distribution Substation Augmentations - Ground Mounted | C18: Number | D18: 0 | E18: 4
B19: Distribution Substation Augmentations - Indoor | C19: Number | D19: 0 | E19: 0
B21: COST METRICS
B22: TOTAL DIRECT EXPENDITURE - Project Type | D22: EXPENDITURE ($0's)
D23: =CRY -> 2017-18
B24: HV Feeder Augmentations - Overhead Lines | D24: 1392653
B25: HV Feeder Augmentations - Underground Cables | D25: 2924673
B26: HV Feeder Non-Material Projects | D26: 0
B27: LV Feeder Augmentations - Overhead Lines | D27: 225789
B28: LV Feeder Augmentations - Underground Cables | D28: 327159
B29: LV Feeder Non-Material Projects | D29: 81789
B30: Distribution Substation Augmentations - Pole Mounted | D30: 215053
B31: Distribution Substation Augmentations - Ground Mounted | D31: 175229
B32: Distribution Substation Augmentations - Indoor | D32: 7964
B35: 2.3.4 - AUGEX DATA - TOTAL EXPENDITURE
B36: AUGMENTATION CAPEX (As incurred) | D36: EXPENDITURE ($0's)
D37: =CRY -> 2017-18
B38: Subtransmission Substations, Switching Stations, Zone Substations | D38: 21165478
B39: Subtransmission Lines | D39: 9153750
B40: HV Feeders | D40: 4317326
B41: HV Feeders - Land Purchases and Easements | D41: 0
B42: Distribution Substations | D42: 398247
B43: Distribution Substations - Land Purchases And Easements | D43: 0
B44: LV Feeders | D44: 634738
B45: LV Feeders - Land Purchases And Easements | D45: 0
B46: Other Assets | D46: 0

Sheet 2.5 Connections
B1: REGULATORY REPORTING STATEMENT
B2: =INDEX(dms_TradingNameFull_List,MATCH(dms_TradingName,dms_TradingName_List)) -> Endeavour Energy
B3: =CONCATENATE((LOOKUP(dms_Model,dms_Model_List,dms_Worksheet_List))&" "&CRY) -> CATEGORY ANALYSIS 2017-18
B4: 2.5 CONNECTIONS
B6: There are TWO tables on this worksheet. Each has been grouped for ease of navigation. See the Instructions sheet on how to group or ungroup tables.
B8: 2.5.1 - DESCRIPTOR METRICS
B9: <<<GROUP-ROW>>>
E11: VOLUMES AND EXPENDITURE
B12: CONNECTION SUBCATEGORY | C12: DESCRIPTOR METRIC | D12: UNITS | E12: =CRY -> 2017-18
B13: RESIDENTIAL | C13: Underground connections | D13: 0's | E13: 3441
C14: Overhead connections | D14: 0's | E14: 4752
C15: Distribution substation installed | D15: MVA added | E15: 48.9
C16: Distribution substations installed | D16: 0's | E16: 99
C17: Distribution substation installed | D17: total spend $0s | E17: 2178797
C18: Augmentation HV | D18: net circuit km added | E18: 5.1
C19: Augmentation HV | D19: total spend $0s | E19: 502245
C20: Augmentation LV | D20: net circuit km added | E20: 1.85
C21: Augmentation LV | D21: total spend $0s | E21: 223623
C22: Mean days to connect residential customer with LV single phase connection | D22: 0's | E22: 0
C23: Volume of GSL breaches for residential customers | D23: 0's | E23: 0
C24: Volume of customer complaints relating to connection services | D24: 0's | E24: 0
C25: GSL payments | D25: $0s | E25: 0
B26: COMMERCIAL/INDUSTRIAL | C26: Underground connections | D26: 0's | E26: 117
C27: Overhead connections | D27: 0's | E27: 118
C28: Distribution substation installed | D28: MVA added | E28: 104.6
C29: Distribution substations installed | D29: 0's | E29: 127
C30: Distribution substation installed | D30: total spend $0s | E30: 5578911
C31: Augmentation HV | D31: net circuit km added | E31: 12.1
C32: Augmentation HV | D32: total spend $0s | E32: 1751200
C33: Augmentation LV | D33: net circuit km added | E33: 0.96
C34: Augmentation LV | D34: total spend $0s | E34: 138719
B35: SUBDIVISION | C35: Underground connections | D35: 0's | E35: 10861
C36: Overhead connections | D36: 0's | E36: 0
C37: Distribution substation installed | D37: MVA added | E37: 61.4
C38: Distribution substations installed | D38: 0's | E38: 147
C39: Distribution substation installed | D39: total spend $0s | E39: 5797472
C40: Augmentation HV | D40: net circuit km added | E40: 26.48
C41: Augmentation HV | D41: total spend $0s | E41: 4402246
C42: Augmentation LV | D42: net circuit km added | E42: 5.87
C43: Augmentation LV | D43: total spend $0s | E43: 846803
C44: Cost per lot ($) | D44: $0s | E44: 1017.081392
B45: EMBEDDED GENERATION | C45: Underground connections | D45: 0's | E45: 1727
C46: Overhead connections | D46: 0's | E46: 1060
C47: Distribution substation installed | D47: MVA added | E47: 0
C48: Distribution substations installed | D48: 0's | E48: 0
C49: Distribution substation installed | D49: total spend $0s | E49: 0
C50: Augmentation HV | D50: net circuit km added | E50: 0
C51: Augmentation HV | D51: total spend $0s | E51: 0
C52: Augmentation LV | D52: net circuit km added | E52: 0
C53: Augmentation LV | D53: total spend $0s | E53: 0
B57: 2.5.2 - COST METRICS BY CONNECTION CLASSIFICATION
D58: EXPENDITURE ($0's) | E58: VOLUMES (0's)
B59: CONNECTION SUBCATEGORY | C59: CONNECTION CLASSIFICATION | D59: =CRY -> 2017-18 | E59: =CRY -> 2017-18
B60: RESIDENTIAL | C60: Simple connection LV | D60: 2904665 | E60: 8193
C61: Complex connection LV | D61: 0 | E61: 0
C62: Complex connection HV | D62: 0 | E62: 0
B63: COMMERCIAL/INDUSTRIAL | C63: Simple connection LV | D63: 0 | E63: 0
C64: Complex connection HV (customer connected at LV, minor HV works) | D64: 7468830 | E64: 235
C65: Complex connection HV (customer connected at LV, upstream asset works) | D65: 0 | E65: 0
C66: Complex connection HV (customer connected at HV) | D66: 0 | E66: 0
C67: Complex connection sub-transmission | D67: 0 | E67: 0
B68: SUBDIVISION | C68: Complex connection LV | D68: 0 | E68: 0
C69: Complex connection HV (no upstream asset works) | D69: 0 | E69: 0
C70: Complex connection HV (with upstream asset works) | D70: 11046521 | E70: 10861
B71: EMBEDDED GENERATION | C71: Simple connection LV | D71: 0 | E71: 2787
C72: Complex connection HV (small capacity) | D72: 0 | E72: 0
C73: Complex connection HV (large capacity) | D73: 0 | E73: 0

Sheet 2.6 Non-network
B1: REGULATORY REPORTING STATEMENT
B2: =INDEX(dms_TradingNameFull_List,MATCH(dms_TradingName,dms_TradingName_List)) -> Endeavour Energy
B3: =CONCATENATE((LOOKUP(dms_Model,dms_Model_List,dms_Worksheet_List))&" "&CRY) -> CATEGORY ANALYSIS 2017-18
B4: 2.6 NON NETWORK EXPENDITURE
B6: There are THREE tables on this worksheet. Each has been grouped (and sub-grouped) for ease of navigation. See the Instructions sheet on how to group or ungroup tables.
B8: 2.6.1 - NON-NETWORK EXPENDITURE
F9: EXPENDITURE ($0's)
B10: SERVICE SUBCATEGORY | C10: ASSET CATEGORY | F10: =CRY -> 2017-18
B11: OPEX
B12: IT & COMMUNICATIONS | C12: Client device expenditure | F12: 2235813.4
C13: Recurrent expenditure | F13: 31029194.28
C14: Non-recurrent expenditure | F14: 2351455.27
B15: MOTOR VEHICLES | C15: Car | F15: 802810.2432
C16: Light commercial vehicle | F16: 5973481.65
C17: Elevated work platform (LCV) | F17: 0
C18: Elevated work platform (HCV) | F18: 1969940.872
C19: Heavy commercial vehicle | F19: 5419189.897
B20: BUILDINGS AND PROPERTY | C20: Total buildings and property expenditure | F20: 12458484.83
B21: OTHER | C21: Other expenditure | F21: 0
B22: OTHER - DNSP nominated
B33: CAPEX
B34: IT & COMMUNICATIONS | C34: Client device expenditure | F34: 67486.00145
C35: Recurrent expenditure | F35: 4983465.762
C36: Non-recurrent expenditure | F36: 43475251.9
B37: MOTOR VEHICLES | C37: Car | F37: 252141.8369
C38: Light commercial vehicle | F38: 1198817.232
C39: Elevated work platform (LCV) | F39: 0
C40: Elevated work platform (HCV) | F40: 490386.5698
C41: Heavy commercial vehicle | F41: 3479625.322
B42: BUILDINGS AND PROPERTY | C42: Total buildings and property expenditure | F42: 6378054.209
B43: OTHER | C43: Other expenditure | F43: 3504942.324
B44: OTHER - DNSP nominated | C44: =IF(ISBLANK(C22),"",C22) -> 
C45: =IF(ISBLANK(C23),"",C23) -> 
B58: 2.6.2 - ANNUAL DESCRIPTOR METRICS - IT & COMMUNICATIONS EXPENDITURE
F59: VOLUMES (0's)
B61: NON-NETWORK CATEGORY | C61: DESCRIPTOR METRIC | F61: =CRY -> 2017-18
B62: IT & COMMUNICATIONS | C62: Employee numbers | F62: 1854
C63: User numbers | F63: 3467
C64: Number of devices | F64: 4961
B67: 2.6.3 - ANNUAL DESCRIPTOR METRICS - MOTOR VEHICLES
F68: VOLUMES / %
B69: NON-NETWORK CATEGORY | C69: ASSET CATEGORY | D69: DESCRIPTOR METRIC | E69: UNITS | F69: =CRY -> 2017-18
B70: MOTOR VEHICLES | C70: CAR | D70: Average kilometres travelled | E70: 0's | F70: 20121
D71: Number purchased | E71: 0's | F71: 0
D72: Number leased | E72: 0's | F72: 78
D73: Number in fleet | E73: 0's | F73: 78
D74: Proportion of total fleet expenditure allocated as regulatory expenditure | E74: (per cent) | F74: 0.893206166
C75: LIGHT COMMERCIAL VEHICLE | D75: Average kilometres travelled | E75: 0's | F75: 18548
D76: Number purchased | E76: 0's | F76: 0
D77: Number leased | E77: 0's | F77: 366
D78: Number in fleet | E78: 0's | F78: 366
D79: Proportion of total fleet expenditure allocated as regulatory expenditure | E79: (per cent) | F79: 0.893206166
C80: ELEVATED WORK PLATFORM (LCV) | D80: Average kilometres travelled | E80: 0's | F80: 0
D81: Number purchased | E81: 0's | F81: 0
D82: Number leased | E82: 0's | F82: 0
D83: Number in fleet | E83: 0's | F83: 0
D84: Proportion of total fleet expenditure allocated as regulatory expenditure | E84: (per cent) | F84: 0
C85: ELEVATED WORK PLATFORM (HCV) | D85: Average kilometres travelled | E85: 0's | F85: 13276
D86: Number purchased | E86: 0's | F86: 2
D87: Number leased | E87: 0's | F87: 0
D88: Number in fleet | E88: 0's | F88: 89
D89: Proportion of total fleet expenditure allocated as regulatory expenditure | E89: (per cent) | F89: 0.893206166
C90: HEAVY COMMERCIAL VEHICLE | D90: Average kilometres travelled | E90: 0's | F90: 12695
D91: Number purchased | E91: 0's | F91: 4
D92: Number leased | E92: 0's | F92: 0
D93: Number in fleet | E93: 0's | F93: 244
D94: Proportion of total fleet expenditure allocated as regulatory expenditure | E94: (per cent) | F94: 0.893206166

Sheet 2.7 Vegetation Management
B1: REGULATORY REPORTING STATEMENT
B2: =INDEX(dms_TradingNameFull_List,MATCH(dms_TradingName,dms_TradingName_List)) -> Endeavour Energy
B3: =CONCATENATE((LOOKUP(dms_Model,dms_Model_List,dms_Worksheet_List))&" "&CRY) -> CATEGORY ANALYSIS 2017-18
B4: 2.7 VEGETATION MANAGEMENT
B6: There are THREE tables on this worksheet. Each has been grouped (and sub-grouped) for ease of navigation. See the Instructions sheet on how to group or ungroup tables.
B8: Please enter a description for each Zone in table 2.7.1 - Urban and CBD. The zone description will then autopopulate in tables 2.7.1 - Rural and 2.7.2.
A11: ` | B11: 2.7.1 - DESCRIPTOR METRICS BY ZONE
B12: URBAN AND CBD
E13: =CRY -> 2017-18
B14: ZONES | C14: ASSET | D14: UNITS
B15: Bowenfels/Kandos | C15: Route line length within zone | D15: km | E15: 168
C16: Number of maintenance spans | D16: 0's | E16: 335
C17: Total length of maintenance spans | D17: km | E17: 12
C18: Length of vegetation corridors | D18: km | E18: 0
C19: Average number of trees per maintenance span | D19: 0's | E19: 1.5
C20: Average frequency of cutting cycle | D20: years | E20: 1
B21: Bowral (Moss Vale) | C21: Route line length within zone | D21: km | E21: 386
C22: Number of maintenance spans | D22: 0's | E22: 7424
C23: Total length of maintenance spans | D23: km | E23: 198
C24: Length of vegetation corridors | D24: km | E24: 0
C25: Average number of trees per maintenance span | D25: 0's | E25: 6
C26: Average frequency of cutting cycle | D26: years | E26: 1
B27: Hills (Parramatta/Kings Park) | C27: Route line length within zone | D27: km | E27: 1750
C28: Number of maintenance spans | D28: 0's | E28: 15690
C29: Total length of maintenance spans | D29: km | E29: 530
C30: Length of vegetation corridors | D30: km | E30: 0
C31: Average number of trees per maintenance span | D31: 0's | E31: 2
C32: Average frequency of cutting cycle | D32: years | E32: 1
B33: Hoxton Park | C33: Route line length within zone | D33: km | E33: 1408
C34: Number of maintenance spans | D34: 0's | E34: 1073
C35: Total length of maintenance spans | D35: km | E35: 645
C36: Length of vegetation corridors | D36: km | E36: 0
C37: Average number of trees per maintenance span | D37: 0's | E37: 2
C38: Average frequency of cutting cycle | D38: years | E38: 1
B39: Katoomba | C39: Route line length within zone | D39: km | E39: 360
C40: Number of maintenance spans | D40: 0's | E40: 4562
C41: Total length of maintenance spans | D41: km | E41: 149
C42: Length of vegetation corridors | D42: km | E42: 0
C43: Average number of trees per maintenance span | D43: 0's | E43: 3
C44: Average frequency of cutting cycle | D44: years | E44: 1
B45: Narellan/Picton | C45: Route line length within zone | D45: km | E45: 601
C46: Number of maintenance spans | D46: 0's | E46: 4061
C47: Total length of maintenance spans | D47: km | E47: 220
C48: Length of vegetation corridors | D48: km | E48: 0
C49: Average number of trees per maintenance span | D49: 0's | E49: 2.4
C50: Average frequency of cutting cycle | D50: years | E50: 1
B51: Nowra/Ulladulla | C51: Route line length within zone | D51: km | E51: 574
C52: Number of maintenance spans | D52: 0's | E52: 5378
C53: Total length of maintenance spans | D53: km | E53: 225
C54: Length of vegetation corridors | D54: km | E54: 0
C55: Average number of trees per maintenance span | D55: 0's | E55: 1
C56: Average frequency of cutting cycle | D56: years | E56: 1
B57: Penrith | C57: Route line length within zone | D57: km | E57: 820
C58: Number of maintenance spans | D58: 0's | E58: 5005
C59: Total length of maintenance spans | D59: km | E59: 184
C60: Length of vegetation corridors | D60: km | E60: 0
C61: Average number of trees per maintenance span | D61: 0's | E61: 2
C62: Average frequency of cutting cycle | D62: years | E62: 1
B63: Shellharbour | C63: Route line length within zone | D63: km | E63: 441
C64: Number of maintenance spans | D64: 0's | E64: 2421
C65: Total length of maintenance spans | D65: km | E65: 132
C66: Length of vegetation corridors | D66: km | E66: 0
C67: Average number of trees per maintenance span | D67: 0's | E67: 3
C68: Average frequency of cutting cycle | D68: years | E68: 1
B69: Springhill | C69: Route line length within zone | D69: km | E69: 741
C70: Number of maintenance spans | D70: 0's | E70: 3480
C71: Total length of maintenance spans | D71: km | E71: 280
C72: Length of vegetation corridors | D72: km | E72: 0
C73: Average number of trees per maintenance span | D73: 0's | E73: 3.1
C74: Average frequency of cutting cycle | D74: years | E74: 1
B75: Windsor | C75: Route line length within zone | D75: km | E75: 296
C76: Number of maintenance spans | D76: 0's | E76: 2781
C77: Total length of maintenance spans | D77: km | E77: 131
C78: Length of vegetation corridors | D78: km | E78: 0
C79: Average number of trees per maintenance span | D79: 0's | E79: 3.2
C80: Average frequency of cutting cycle | D80: years | E80: 1
B81: ZONE 12 | C81: Route line length within zone | D81: km
C82: Number of maintenance spans | D82: 0's
C83: Total length of maintenance spans | D83: km
C84: Length of vegetation corridors | D84: km
C85: Average number of trees per maintenance span | D85: 0's
C86: Average frequency of cutting cycle | D86: years
B87: ZONE 13 | C87: Route line length within zone | D87: km
C88: Number of maintenance spans | D88: 0's
C89: Total length of maintenance spans | D89: km
C90: Length of vegetation corridors | D90: km
C91: Average number of trees per maintenance span | D91: 0's
C92: Average frequency of cutting cycle | D92: years
B93: ZONE 14 | C93: Route line length within zone | D93: km
C94: Number of maintenance spans | D94: 0's
C95: Total length of maintenance spans | D95: km
C96: Length of vegetation corridors | D96: km
C97: Average number of trees per maintenance span | D97: 0's
C98: Average frequency of cutting cycle | D98: years
B99: ZONE 15 | C99: Route line length within zone | D99: km
C100: Number of maintenance spans | D100: 0's
C101: Total length of maintenance spans | D101: km
C102: Length of vegetation corridors | D102: km
C103: Average number of trees per maintenance span | D103: 0's
C104: Average frequency of cutting cycle | D104: years
B105: ZONE 16 | C105: Route line length within zone | D105: km
C106: Number of maintenance spans | D106: 0's
C107: Total length of maintenance spans | D107: km
C108: Length of vegetation corridors | D108: km
C109: Average number of trees per maintenance span | D109: 0's
C110: Average frequency of cutting cycle | D110: years
B111: ZONE 17 | C111: Route line length within zone | D111: km
C112: Number of maintenance spans | D112: 0's
C113: Total length of maintenance spans | D113: km
C114: Length of vegetation corridors | D114: km
C115: Average number of trees per maintenance span | D115: 0's
C116: Average frequency of cutting cycle | D116: years
B117: ZONE 18 | C117: Route line length within zone | D117: km
C118: Number of maintenance spans | D118: 0's
C119: Total length of maintenance spans | D119: km
C120: Length of vegetation corridors | D120: km
C121: Average number of trees per maintenance span | D121: 0's
C122: Average frequency of cutting cycle | D122: years
B124: RURAL
E125: =CRY -> 2017-18
B126: ZONES | C126: ASSET | D126: UNITS
B127: =B15 -> Bowenfels/Kandos | C127: Route line length within zone | D127: km | E127: 2140
C128: Number of maintenance spans | D128: 0's | E128: 3225
C129: Total length of maintenance spans | D129: km | E129: 336
C130: Length of vegetation corridors | D130: km | E130: 0
C131: Average number of trees per maintenance span | D131: 0's | E131: 1.9
C132: Average frequency of cutting cycle | D132: years | E132: 1
B133: =B21 -> Bowral (Moss Vale) | C133: Route line length within zone | D133: km | E133: 1527
C134: Number of maintenance spans | D134: 0's | E134: 4951
C135: Total length of maintenance spans | D135: km | E135: 620
C136: Length of vegetation corridors | D136: km | E136: 0
C137: Average number of trees per maintenance span | D137: 0's | E137: 2.8
C138: Average frequency of cutting cycle | D138: years | E138: 1
B139: =B27 -> Hills (Parramatta/Kings Park) | C139: Route line length within zone | D139: km | E139: 262
C140: Number of maintenance spans | D140: 0's | E140: 1288
C141: Total length of maintenance spans | D141: km | E141: 67
C142: Length of vegetation corridors | D142: km | E142: 0
C143: Average number of trees per maintenance span | D143: 0's | E143: 2
C144: Average frequency of cutting cycle | D144: years | E144: 1
B145: =B33 -> Hoxton Park | C145: Route line length within zone | D145: km | E145: 249
C146: Number of maintenance spans | D146: 0's | E146: 19162
C147: Total length of maintenance spans | D147: km | E147: 70
C148: Length of vegetation corridors | D148: km | E148: 0
C149: Average number of trees per maintenance span | D149: 0's | E149: 2
C150: Average frequency of cutting cycle | D150: years | E150: 1
B151: =B39 -> Katoomba | C151: Route line length within zone | D151: km | E151: 191
C152: Number of maintenance spans | D152: 0's | E152: 1123
C153: Total length of maintenance spans | D153: km | E153: 63
C154: Length of vegetation corridors | D154: km | E154: 0
C155: Average number of trees per maintenance span | D155: 0's | E155: 3
C156: Average frequency of cutting cycle | D156: years | E156: 1
B157: =B45 -> Narellan/Picton | C157: Route line length within zone | D157: km | E157: 1291
C158: Number of maintenance spans | D158: 0's | E158: 5374
C159: Total length of maintenance spans | D159: km | E159: 414
C160: Length of vegetation corridors | D160: km | E160: 0
C161: Average number of trees per maintenance span | D161: 0's | E161: 3
C162: Average frequency of cutting cycle | D162: years | E162: 1
B163: =B51 -> Nowra/Ulladulla | C163: Route line length within zone | D163: km | E163: 1840
C164: Number of maintenance spans | D164: 0's | E164: 9830
C165: Total length of maintenance spans | D165: km | E165: 784
C166: Length of vegetation corridors | D166: km | E166: 0
C167: Average number of trees per maintenance span | D167: 0's | E167: 1
C168: Average frequency of cutting cycle | D168: years | E168: 1
B169: =B57 -> Penrith | C169: Route line length within zone | D169: km | E169: 291
C170: Number of maintenance spans | D170: 0's | E170: 1936
C171: Total length of maintenance spans | D171: km | E171: 113
C172: Length of vegetation corridors | D172: km | E172: 0
C173: Average number of trees per maintenance span | D173: 0's | E173: 3
C174: Average frequency of cutting cycle | D174: years | E174: 1
B175: =B63 -> Shellharbour | C175: Route line length within zone | D175: km | E175: 488
C176: Number of maintenance spans | D176: 0's | E176: 3863
C177: Total length of maintenance spans | D177: km | E177: 152
C178: Length of vegetation corridors | D178: km | E178: 0
C179: Average number of trees per maintenance span | D179: 0's | E179: 2
C180: Average frequency of cutting cycle | D180: years | E180: 1
B181: =B69 -> Springhill | C181: Route line length within zone | D181: km | E181: 200
C182: Number of maintenance spans | D182: 0's | E182: 8353
C183: Total length of maintenance spans | D183: km | E183: 193
C184: Length of vegetation corridors | D184: km | E184: 0
C185: Average number of trees per maintenance span | D185: 0's | E185: 2.1
C186: Average frequency of cutting cycle | D186: years | E186: 1
B187: =B75 -> Windsor | C187: Route line length within zone | D187: km | E187: 1177
C188: Number of maintenance spans | D188: 0's | E188: 11432
C189: Total length of maintenance spans | D189: km | E189: 759
C190: Length of vegetation corridors | D190: km | E190: 0
C191: Average number of trees per maintenance span | D191: 0's | E191: 5
C192: Average frequency of cutting cycle | D192: years | E192: 1
B193: =B81 -> ZONE 12 | C193: Route line length within zone | D193: km
C194: Number of maintenance spans | D194: 0's
C195: Total length of maintenance spans | D195: km
C196: Length of vegetation corridors | D196: km
C197: Average number of trees per maintenance span | D197: 0's
C198: Average frequency of cutting cycle | D198: years
B199: =B87 -> ZONE 13 | C199: Route line length within zone | D199: km
C200: Number of maintenance spans | D200: 0's
C201: Total length of maintenance spans | D201: km
C202: Length of vegetation corridors | D202: km
C203: Average number of trees per maintenance span | D203: 0's
C204: Average frequency of cutting cycle | D204: years
B205: =B93 -> ZONE 14 | C205: Route line length within zone | D205: km
... 201 more rows

Sheet 2.8 Maintenance
B1: REGULATORY REPORTING STATEMENT
B2: =INDEX(dms_TradingNameFull_List,MATCH(dms_TradingName,dms_TradingName_List)) -> Endeavour Energy
B3: =CONCATENATE((LOOKUP(dms_Model,dms_Model_List,dms_Worksheet_List))&" "&CRY) -> CATEGORY ANALYSIS 2017-18
B4: 2.8 MAINTENANCE
B6: There are TWO tables on this worksheet. Each has been grouped for ease of navigation. See the Instructions sheet on how to group or ungroup tables.
B8: 2.8.1 - DESCRIPTOR METRICS FOR ROUTINE AND NON-ROUTINE MAINTENANCE
F9: ASSET QUANTITY (0's) | H9: AVERAGE AGE OF ASSET GROUP | I9: INSPECTION CYCLE (YEARS) | J9: MAINTENANCE CYCLE (YEARS)
F10: AT YEAR END | G10: INSPECTED / MAINTAINED
B11: MAINTENANCE ACTIVITY | C11: MAINTENANCE ASSET CATEGORY | D11: ASSET QUANTITY | E11: Units | F11: =CRY -> 2017-18 | G11: =CRY -> 2017-18 | H11: =CRY -> 2017-18
B12: Pole top, overhead line & service line maintenance | C12: Pole tops and overhead lines | D12: Number of poles | E12: Number | F12: 429130 | G12: 95045 | H12: 26.11915147 | I12: 4.5 | J12: 0
C13: Service lines | D13: Number of customers | E13: Number | F13: 766869 | G13: 0 | H13: 20.10282513 | I13: 0 | J13: 0
B14: Pole inspection and treatment | C14: All poles | D14: Number of poles | E14: Number | F14: 429130 | G14: 95045 | H14: 26.11915147 | I14: 4.5 | J14: 0
B15: Overhead asset inspection | C15: All overhead assets | D15: Line patrolled (route KM) | E15: KM | F15: 37418.841 | G15: 1065.6 | H15: 32.88346857 | I15: 1 to 12 | J15: 0
B16: Network underground cable maintenance: by voltage | C16: LV - 11 to 22 KV | D16: Length (KM) | E16: KM | F16: 23036.122 | G16: 0 | H16: 21.22265427 | I16: 0 | J16: 0
C17: 33 KV and above | D17: Length (KM) | E17: KM | F17: 385.243 | G17: 8564 | H17: 19.43220411 | I17: 2 weeks to 6 years | J17: 0
B18: Network underground cable maintenance: by location | C18: Cbd | D18: Length (KM) | E18: KM | F18: 0 | G18: 0 | H18: 0 | I18: 0 | J18: 0
C19: Non-CBD | D19: Length (KM) | E19: KM | F19: 23421.365 | G19: 8564 | H19: 21.11101246 | I19: 2 weeks to 6 years | J19: 0
B20: Distribution substation equipment & property maintenance | C20: Distribution substation transformers | D20: Number of installed transformers | E20: Number | F20: 31536 | G20: 8866 | H20: 20.54639791 | I20: 1 to 4.5 | J20: 0
C21: Distribution substation switchgear (within-substations and stand-alone switchgear) | D21: Number of switches | E21: Number | F21: 75458 | G21: 1094 | H21: 0 | I21: 1 to 4.5 | J21: 5 to 10
C22: Distribution substation - other equipment | D22: Earth mat | E22: Number | F22: 0 | G22: 0 | H22: 0 | I22: 0 | J22: 0
C23: Distribution substation - property | D23: Number of distribution substation properties maintained | E23: Number | F23: 32599 | G23: 4225 | H23: 28.82484739 | I23: 1 to 3 | J23: 0
B24: Zone substation equipment maintenance | C24: Transformers - zone substation | D24: Number | E24: Number | F24: 453 | G24: 303 | H24: 25.83847984 | I24: 0.5 | J24: 7
C25: Transformers - distribution | D25: Number of distribution transformers within zone substation | E25: Number | F25: 275 | G25: 172 | H25: 0 | I25: 0.5 | J25: 6
C26: Transformers - HV | D26: Number of HV transformers | E26: Number | F26: 0 | G26: 0 | H26: 0 | I26: 0 | J26: 0
C27: Zone substation - other equipment | D27: <DNSP to nominate> | E27: Number | F27: 0 | G27: 0 | H27: 0 | I27: 0 | J27: 0
B28: Zone substation property maintenance | C28: All zone substation properties | D28: Number of zone substation properties maintained | E28: Number | F28: 202 | G28: 1485 | H28: 31.33358346 | I28: 0.5 to 2 | J28: 0
B29: Public lighting maintenance | C29: Minor roads | D29: Number of public lights maintained | E29: Number | F29: 214187 | G29: 60152 | H29: 24.06031232 | I29: 8 | J29: 0
C30: Major roads | D30: Number of public lights maintained | E30: Number | F30: 0 | G30: 0 | H30: 0 | I30: 0 | J30: 0
B31: SCADA & network control maintenance | C31: SCADA & network control | D31: Number of systems | E31: Number | F31: 297 | G31: 62 | H31: 23.72154809 | I31: 0.5 | J31: 4
B32: Protection systems maintenance | C32: Protection systems | D32: Number of systems | E32: Number | F32: 6130 | G32: 2062 | H32: 0 | I32: 1.5 to 6 | J32: 0
B33: Subtransmission asset maintenance | C33: Subtransmission asset maintenance - for DNSPs with dual function assets | D33: <DNSP to nominate> | E33: Number | F33: 0 | G33: 0 | H33: 0 | I33: 0 | J33: 0
B34: Various assets | C34: includes rates, electricity, communications equip, metering | D34: Various | E34: Number | F34: 0 | G34: 0 | H34: 0 | I34: 0 | J34: 0
B35: Ground clearance - access tracks | C35: Access tracks | D35: Number | E35: Number | F35: 0 | G35: 0 | H35: 0 | I35: 0 | J35: 0
B36: Other | C36: < DNSP to nominate > | D36: < DNSP to nominate >
B48: 2.8.2 - COST METRICS FOR ROUTINE AND NON-ROUTINE MAINTENANCE
F49: EXPENDITURE ($0'S)
F50: ROUTINE MAINTENANCE | G50: NON-ROUTINE MAINTENANCE
B51: MAINTENANCE ACTIVITY | C51: MAINTENANCE ASSET CATEGORY | D51: ASSET QUANTITY | E51: Units | F51: =CRY -> 2017-18 | G51: =CRY -> 2017-18
B52: Pole top, overhead line & service line maintenance | C52: Pole tops and overhead lines | D52: Number of poles | E52: Number | F52: 0 | G52: 0
C53: Service lines | D53: Number of customers | E53: Number | F53: 0 | G53: 0
B54: Pole inspection and treatment | C54: All poles | D54: Number of poles | E54: Number | F54: 10335288.99 | G54: 513528.37
B55: Overhead asset inspection | C55: All overhead assets | D55: Line patrolled (route KM) | E55: KM | F55: 1188083.86 | G55: 8064219.919
B56: Network underground cable maintenance: by voltage | C56: LV - 11 to 22 KV | D56: Length (KM) | E56: KM | F56: 71735.74 | G56: 935841.22
C57: 33 KV and above | D57: Length (KM) | E57: KM | F57: 491348.13 | G57: 1185071.96
B58: Network underground cable maintenance: by location | C58: Cbd | D58: Length (KM) | E58: KM | F58: 0 | G58: 0
C59: Non-CBD | D59: Length (KM) | E59: KM | F59: 563083.87 | G59: 2120913.18
B60: Distribution substation equipment & property maintenance | C60: Distribution substation transformers | D60: Number of installed transformers | E60: Number | F60: 239869.3625 | G60: 121835.2483
C61: Distribution substation switchgear (within-substations and stand-alone switchgear) | D61: Number of switches | E61: Number | F61: 1055425.195 | G61: 71929.08134
C62: Distribution substation - other equipment | D62: Earth mat | E62: Number | F62: 292994.4426 | G62: 978412.3604
C63: Distribution substation - property | D63: Number of distribution substation properties maintained | E63: Number | F63: 0 | G63: 0
B64: Zone substation equipment maintenance | C64: Transformers - zone substation | D64: Number | E64: Number | F64: 232148.7311 | G64: 274246.2238
C65: Transformers - distribution | D65: Number of distribution transformers within zone substation | E65: Number | F65: 46295.06965 | G65: 28009.96806
C66: Transformers - HV | D66: Number of HV transformers | E66: Number | F66: 0 | G66: 0
C67: Zone substation - other equipment | D67: =IF(ISBLANK(D27),"",D27) -> <DNSP to nominate> | E67: =IF(ISBLANK(E27),"",E27) -> Number | F67: 5603218.539 | G67: 4009436.778
B68: Zone substation property maintenance | C68: All zone substation properties | D68: Number of zone substation properties maintained | E68: Number | F68: 0 | G68: 3000483.57
B69: Public lighting maintenance | C69: Minor roads | D69: Number of public lights maintained | E69: Number | F69: 0 | G69: 0
C70: Major roads | D70: Number of public lights maintained | E70: Number | F70: 0 | G70: 0
B71: SCADA & network control maintenance | C71: SCADA & network control | D71: Number of systems | E71: Number | F71: 0 | G71: 0
B72: Protection systems maintenance | C72: Protection systems | D72: Number of systems | E72: Number | F72: 325300.01 | G72: 369103.42
B73: Subtransmission asset maintenance | C73: Subtransmission asset maintenance - for DNSPs with dual function assets | D73: =IF(ISBLANK(D33),"",D33) -> <DNSP to nominate> | E73: =IF(ISBLANK(E33),"",E33) -> Number | F73: 0 | G73: 0
B74: Various assets | C74: includes rates, electricity, communications equip, metering | D74: Various | E74: Number | F74: 0 | G74: 0
B75: Ground clearance - access tracks | C75: Access tracks | D75: Number | E75: Number | F75: 0 | G75: 0
B76: Other | C76: =IF(ISBLANK(C36),"",C36) -> < DNSP to nominate > | D76: < DNSP to nominate > | F76: 588788.64 | G76: 9193224.882

Sheet 2.9 Emergency Response
B1: REGULATORY REPORTING STATEMENT
B2: =INDEX(dms_TradingNameFull_List,MATCH(dms_TradingName,dms_TradingName_List)) -> Endeavour Energy
B3: =CONCATENATE((LOOKUP(dms_Model,dms_Model_List,dms_Worksheet_List))&" "&CRY) -> CATEGORY ANALYSIS 2017-18
B4: 2.9 EMERGENCY RESPONSE
B7: There is ONE table on this worksheet. It has been sub-grouped for ease of navigation. See the Instructions sheet on how to group or ungroup tables.
B9: 2.9.1 - EMERGENCY RESPONSE EXPENDITURE (OPEX)
C10: EXPENDITURE ($0's)
C11: =CRY -> 2017-18
B12: (A) TOTAL EMERGENCY RESPONSE EXPENDITURE
B13: Total Expenditure | C13: 15801119.45
B14: (B) MAJOR EVENTS O&M EXPENDITURE
B15: No major events in FY18 | C15: 0
B58: (C) MAJOR EVENT DAYS O&M EXPENDITURE
B59: No major event in FY18 | C59: 0

Sheet 2.10 Overheads
B1: REGULATORY REPORTING STATEMENT
B2: =INDEX(dms_TradingNameFull_List,MATCH(dms_TradingName,dms_TradingName_List)) -> Endeavour Energy
B3: =CONCATENATE((LOOKUP(dms_Model,dms_Model_List,dms_Worksheet_List))&" "&CRY) -> CATEGORY ANALYSIS 2017-18
B4: 2.10 OVERHEADS
B6: =CONCATENATE("Please note. This worksheet 2.10 Overheads is the original worksheet. We have also included a different version of the Overheads template (worksheet 2.10A Overheads) which collects the information in a different way. ",dms_TradingName, " is not obliged to complete worksheet 2.10A. However, the AER would prefer to collect Overheads information as presented in the revised worksheet 2.10A Overheads. If ",dms_TradingName," is prepared to complete worksheet 2.10A in lieu of the original worksheet 2.10 Overheads, please indicate that choice by selecting from the drop down list at the right. ",dms_TradingName, " is only required to complete one version of the Overheads worksheet in order to comply with the Category Analysis RIN.") -> Please note. This worksheet 2.10 Overheads is the original worksheet. We have also included a different version of the Overheads template (worksheet 2.10A Overheads) which collects the information in a different way. Endeavour Energy is not obliged to complete worksheet 2.10A. However, the AER would prefer to collect Overheads information as presented in the revised worksheet 2.10A Overheads. If Endeavour Energy is prepared to complete worksheet 2.10A in lieu of the original worksheet 2.10 Overheads, please indicate that choice by selecting from the drop down list at the right. Endeavour Energy is only required to complete one version of the Overheads worksheet in order to comply with the Category Analysis RIN. | D6: Choose Response drop down selection
D7: Worksheet 2.10
B11: There are TWO tables on this worksheet. Each has been grouped (and sub-grouped) for ease of navigation. See the Instructions sheet on how to group or ungroup tables.
B13: =CONCATENATE("Instructions Please enter a description for each expenditure category as currently reported under ",dms_TradingName,"'s annual RIN.") -> Instructions Please enter a description for each expenditure category as currently reported under Endeavour Energy's annual RIN.
B15: 2.10.1 - NETWORK OVERHEADS EXPENDITURE
D16: EXPENDITURE ($0's)
D17: =CRY -> 2017-18
B18: NETWORK OVERHEADS
B19: Standard Control Services | C19: Network management | D19: 13801055.19
C20: Network planning | D20: 62490.59914
C21: Network control and operational switching | D21: 5811091.599
C22: Quality and standard functions | D22: 0
C23: Project governance and related functions | D23: 60856.06403
C24: Other | D24: 0
C25: Inspection | D25: 5246509.219
C26: Pole Replacement | D26: 0
C27: Maintenance & repair | D27: 22595058.41
C28: Vegetation management | D28: 4539649.609
C29: Emergency response | D29: 9059724.425
C30: Other NM operating costs | D30: 6752750.933
C31: Non-network alternatives (demand management) | D31: 0
C32: Meter reading | D32: 3.146031199e-13
C33: Customer service | D33: 60279.56085
C34: Advertising, marketing and promotions | D34: 0
C35: Other operating costs | D35: 21025950.05
B47: Alternative Control Services | C47: Ancillary Network Services | D47: 6860329.422
C48: Metering 5-6 | D48: 1105011.204
C49: Public Lighting | D49: 2491116.839
B75: Negotiated Services | C75: Total | D75: 0
B76: Unregulated Services | C76: Total | D76: 4583312.506
B79: CAPITALISED NETWORK OVERHEADS
B80: Standard Control Services | C80: Network management | D80: -3139920.423
C81: Network planning | D81: -32066.91803
C82: Network control and operational switching | D82: 0
C83: Quality and standard functions | D83: 0
C84: Project governance and related functions | D84: 0
C85: Other | D85: 0
C86: Inspection | D86: -3071412.457
C87: Pole Replacement | D87: 0
C88: Maintenance & repair | D88: -10354970.1
C89: Vegetation management | D89: -2511195.278
C90: Emergency response | D90: -5653589.683
C91: Other NM operating costs | D91: -3035238.049
C92: Non-network alternatives (demand management) | D92: 0
C93: Meter reading | D93: -5.079888392e-13
C94: Customer service | D94: -3091.651131
C95: Advertising, marketing and promotions | D95: 0
C96: Other operating costs | D96: -4065941.208
B104: 2.10.2 - CORPORATE OVERHEADS EXPENDITURE
D105: EXPENDITURE ($0's)
D106: =CRY -> 2017-18
B107: CORPORATE OVERHEADS
B108: Standard Control Services | C108: Inspection | D108: 13515909.27
C109: Pole Replacement | D109: 0
C110: Maintenance & repair | D110: 37351774.72
C111: Vegetation management | D111: 23784969.21
C112: Emergency response | D112: 20702667.23
C113: Other NM operating costs | D113: 2895627.905
C114: Non-network alternatives (demand management) | D114: 0
C115: Meter reading | D115: 0
C116: Customer service | D116: 52528.15754
C117: Advertising, marketing and promotions | D117: 0
C118: Other operating costs | D118: 16284315.86
B129: Alternative Control Services | C129: Ancillary Network Services | D129: 10311809.05
C130: Metering 5-6 | D130: 6232139.519
C131: Public Lighting | D131: 6836267.7
B150: Negotiated Services | C150: Total | D150: 0
B151: Unregulated Services | C151: Total | D151: 3905889.485
B153: CAPITALISED CORPORATE OVERHEADS
B154: Standard Control Services | C154: Network management | D154: 0
C155: Network planning | D155: 0
C156: Network control and operational switching | D156: 0
C157: Quality and standard functions | D157: 0
C158: Project governance and related functions | D158: 0
C159: Other | D159: 0
C160: Inspection | D160: -2638568.096
C161: Pole Replacement | D161: 0
C162: Maintenance & repair | D162: -5658040.928
C163: Vegetation management | D163: -7051493.753
C164: Emergency response | D164: -2780559.114
C165: Other NM operating costs | D165: -364014.8034
C166: Non-network alternatives (demand management) | D166: 0
C167: Meter reading | D167: -2.703982199e-12
C168: Customer service | D168: -7465.762709
C169: Advertising, marketing and promotions | D169: 0
C170: Other operating costs | D170: -2689445.664

Sheet 2.10(A) Overheads
B1: REGULATORY REPORTING STATEMENT
B2: =INDEX(dms_TradingNameFull_List,MATCH(dms_TradingName,dms_TradingName_List)) -> Endeavour Energy
B3: =CONCATENATE((LOOKUP(dms_Model,dms_Model_List,dms_Worksheet_List))&" "&CRY) -> CATEGORY ANALYSIS 2017-18
B4: 2.10(A) OVERHEADS
B6: This worksheet may be completed on a voluntary basis. Please see worksheet 2.10 for an explanation of Overheads reporting options.
B9: There are TWO tables on this worksheet. Each has been grouped (and sub-grouped) for ease of navigation. See the Instructions sheet on how to group or ungroup tables.
B11: 2.10.1 - NETWORK OVERHEADS EXPENDITURE
D12: EXPENDITURE ($0's)
D13: =CRY -> 2017-18
B14: OPEX
B15: Standard Control Services | C15: Total
B16: Alternative Control Services | C16: Total
B17: CAPEX
B18: Standard Control Services | C18: Total
B19: Alternative Control Services | C19: Total
B20: OTHER DISTRIBUTION SERVICES
B21: Negotiated Services | C21: Total
B22: Unregulated Services | C22: Total
B26: 2.10.2 - CORPORATE OVERHEADS EXPENDITURE
D27: EXPENDITURE ($0's)
D28: =CRY -> 2017-18
B29: OPEX
B30: Standard Control Services | C30: Total
B31: Alternative Control Services | C31: Total
B32: CAPEX
B33: Standard Control Services | C33: Total
B34: Alternative Control Services | C34: Total
B35: OTHER DISTRIBUTION SERVICES
B36: Negotiated Services | C36: Total
B37: Unregulated Services | C37: Total

Sheet 2.11 Labour
B1: REGULATORY REPORTING STATEMENT
B2: =INDEX(dms_TradingNameFull_List,MATCH(dms_TradingName,dms_TradingName_List)) -> Endeavour Energy
B3: =CONCATENATE((LOOKUP(dms_Model,dms_Model_List,dms_Worksheet_List))&" "&CRY) -> CATEGORY ANALYSIS 2017-18
B4: 2.11 LABOUR
B6: There are TWO tables on this worksheet. Each has been grouped for ease of navigation. See the Instructions sheet on how to group or ungroup tables.
B8: 2.11.1 - COST METRICS PER ANNUM
D9: ASL (0's) | E9: TOTAL LABOUR EXPENDITURE ($0's) | F9: AVERAGE PRODUCTIVE WORK HOURS PER ASL (0's) | G9: STAND-DOWN OCCURENCES PER ASL (0's)
D11: =CRY -> 2017-18 | E11: =CRY -> 2017-18 | F11: =CRY -> 2017-18 | G11: =CRY -> 2017-18
B12: INTERNAL LABOUR EXPENDITURE
B13: CORPORATE OVERHEADS | C13: Executive manager | D13: 6.358603084 | E13: 3000909.463 | F13: 1715.871396 | G13: 0
C14: Senior manager | D14: 15.21974933 | E14: 2105781.373 | F14: 1752.906769 | G14: 0
C15: Manager | D15: 108.0699692 | E15: 13485553.22 | F15: 1701.819047 | G15: 0
C16: Professional | D16: 93.25056933 | E16: 9270756.414 | F16: 1670.859966 | G16: 0
C17: Semi professional | D17: 69.91138088 | E17: 6917306.11 | F17: 1533.903378 | G17: 0
C18: Support staff | D18: 33.19624094 | E18: 6451308.202 | F18: 1393.523002 | G18: 0
C19: Intern, junior staff, apprentice | D19: 1.768500491 | E19: 66847.42375 | F19: 1533.798 | G19: 0
B20: NETWORK OVERHEADS | C20: Executive manager | D20: 1.17697063 | E20: 489444.4564 | F20: 1752.906 | G20: 0
C21: Senior manager | D21: 5.124396584 | E21: 995305.1137 | F21: 1752.906857 | G21: 0
C22: Manager | D22: 141.6088932 | E22: 17764512.86 | F22: 1732.068498 | G22: 0.7323447706
C23: Professional | D23: 111.1442129 | E23: 14981054.32 | F23: 1648.039993 | G23: 0.0365939378
C24: Semi professional | D24: 104.7190691 | E24: 13407136.28 | F24: 1592.330498 | G24: 0.7804685563
C25: Support staff | D25: 58.56668205 | E25: 6170092.07 | F25: 1458.683706 | G25: 0.1893046193
C26: Intern, junior staff, apprentice | D26: 0 | E26: 0 | F26: 0 | G26: 0
B27: TOTAL DIRECT NETWORK LABOUR | C27: Skilled electrical worker | D27: 544.6719616 | E27: 66364662.69 | F27: 1579.684352 | G27: 5.853064275
C28: Skilled non electical worker | D28: 76.89821685 | E28: 9441468.417 | F28: 1588.035443 | G28: 0.1820588379
C29: Apprentice | D29: 19.5 | E29: 565011.1924 | F29: 1577.6112 | G29: 1.794871795
C30: Unskilled worker | D30: 61.05904004 | E30: 5990572.86 | F30: 1577.025971 | G30: 4.2031245
B33: 2.11.2 - DESCRIPTOR METRICS
D34: ORDINARY TIME (0's) | F34: OVERTIME (0's)
D35: PER ASL | E35: HOURLY RATE PER ASL | F35: PER ASL | G35: HOURLY RATE PER ASL
D36: =CRY -> 2017-18 | E36: =CRY -> 2017-18 | F36: =CRY -> 2017-18 | G36: =CRY -> 2017-18
B37: AVERAGE PRODUCTIVE WORK HOURS PER ASL
B38: CORPORATE OVERHEADS | C38: Executive manager | D38: 1715.871396 | E38: 275.4370565 | F38: 0 | G38: 303.4522627
C39: Senior manager | D39: 1752.906769 | E39: 154.3073061 | F39: 0 | G39: 170.5237188
C40: Manager | D40: 1701.819047 | E40: 107.1468299 | F40: 4.269954674 | G40: 120.5123944
C41: Professional | D41: 1670.859966 | E41: 88.46097876 | F41: 0.9736904781 | G41: 101.9032167
C42: Semi professional | D42: 1533.903378 | E42: 70.95440492 | F42: 6.392699047 | G42: 80.96201916
C43: Support staff | D43: 1393.523002 | E43: 68.06945262 | F43: 7.900228739 | G43: 78.23221218
C44: Intern, junior staff, apprentice | D44: 1533.798 | E44: 27.17711409 | F44: 0 | G44: 30.65597242
B45: NETWORK OVERHEADS | C45: Executive manager | D45: 1752.906 | E45: 257.241438 | F45: 0 | G45: 274.2210943
C46: Senior manager | D46: 1752.906857 | E46: 190.2315155 | F46: 10.8910553 | G46: 203.0226682
C47: Manager | D47: 1732.068498 | E47: 109.3409815 | F47: 85.99491413 | G47: 123.1365339
C48: Professional | D48: 1648.039993 | E48: 90.94795116 | F48: 18.07436428 | G48: 104.7925026
C49: Semi professional | D49: 1592.330498 | E49: 80.81908194 | F49: 92.67097451 | G49: 92.22122377
C50: Support staff | D50: 1458.683706 | E50: 65.52014991 | F50: 68.13410661 | G50: 75.04206675
C51: Intern, junior staff, apprentice | D51: 0 | E51: 0 | F51: 0 | G51: 0
B52: TOTAL DIRECT NETWORK LABOUR | C52: Skilled electrical worker | D52: 1579.684352 | E52: 72.81797577 | F52: 231.2594652 | G52: 82.36540318
C53: Skilled non electical worker | D53: 1588.035443 | E53: 69.87439845 | F53: 159.6674295 | G53: 79.17125591
C54: Apprentice | D54: 1577.6112 | E54: 46.21369775 | F54: 1.280134339 | G54: 53.22166449
C55: Unskilled worker | D55: 1577.025971 | E55: 54.42704459 | F55: 204.3025649 | G55: 61.73990654

Sheet 2.12 Input tables
B1: REGULATORY REPORTING STATEMENT
B2: =INDEX(dms_TradingNameFull_List,MATCH(dms_TradingName,dms_TradingName_List)) -> Endeavour Energy
B3: =CONCATENATE((LOOKUP(dms_Model,dms_Model_List,dms_Worksheet_List))&" "&CRY) -> CATEGORY ANALYSIS 2017-18
B4: 2.12 INPUT TABLES
B6: There is ONE table on this worksheet. It has been sub-grouped for ease of navigation. See the Instructions sheet on how to group or ungroup tables.
B8: 2.12.1 - INPUT TABLES
D9: DIRECT MATERIAL EXPENDITURE | E9: DIRECT LABOUR EXPENDITURE | F9: CONTRACT EXPENDITURE | G9: OTHER EXPENDITURE | H9: RELATED PARTY CONTRACT EXPENDITURE | I9: RELATED PARTY CONTRACT MARGIN EXPENDITURE
D10: EXPENDITURE ($0's)
D11: =CRY -> 2017-18 | E11: 2017-18 | F11: 2017-18 | G11: 2017-18 | H11: 2017-18 | I11: 2017-18
B12: VEGETATION MANAGEMENT | C12: ='2.7 Vegetation Management'!B15 -> Bowenfels/Kandos | D12: -40859.53526 | E12: 1207204.305 | F12: 529044.4502 | G12: 1011399.553 | H12: 0 | I12: 0
C13: ='2.7 Vegetation Management'!B21 -> Bowral (Moss Vale) | D13: -75146.88342 | E13: 2220231.84 | F13: 972992.9958 | G13: 1860117.199 | H13: 0 | I13: 0
C14: ='2.7 Vegetation Management'!B27 -> Hills (Parramatta/Kings Park) | D14: -70096.67235 | E14: 2071022.2 | F14: 907603.4577 | G14: 1735108.895 | H14: 0 | I14: 0
C15: ='2.7 Vegetation Management'!B33 -> Hoxton Park | D15: -44643.33899 | E15: 1318997.651 | F15: 578036.6952 | G15: 1105060.369 | H15: 0 | I15: 0
C16: ='2.7 Vegetation Management'!B39 -> Katoomba | D16: -47813.70411 | E16: 1412666.812 | F16: 619086.2094 | G16: 1183536.686 | H16: 0 | I16: 0
C17: ='2.7 Vegetation Management'!B45 -> Narellan/Picton | D17: -60323.93626 | E17: 1782284.48 | F17: 781067.2219 | G17: 1493203.527 | H17: 0 | I17: 0
C18: ='2.7 Vegetation Management'!B51 -> Nowra/Ulladulla | D18: -104417.0789 | E18: 3085026.454 | F18: 1351980.04 | G18: 2584644.839 | H18: 0 | I18: 0
C19: ='2.7 Vegetation Management'!B57 -> Penrith | D19: -37797.95619 | E19: 1116749.252 | F19: 489403.485 | G19: 935616.0257 | H19: 0 | I19: 0
C20: ='2.7 Vegetation Management'!B63 -> Shellharbour | D20: -40498.58225 | E20: 1196539.866 | F20: 524370.8731 | G20: 1002464.852 | H20: 0 | I20: 0
C21: ='2.7 Vegetation Management'!B69 -> Springhill | D21: -46675.65589 | E21: 1379042.918 | F21: 604350.8951 | G21: 1155366.482 | H21: 0 | I21: 0
C22: ='2.7 Vegetation Management'!B75 -> Windsor | D22: -62098.6272 | E22: 1834718.129 | F22: 804045.7111 | G22: 1537132.603 | H22: 0 | I22: 0
C23: ='2.7 Vegetation Management'!B81 -> ZONE 12
C24: ='2.7 Vegetation Management'!B87 -> ZONE 13
C25: ='2.7 Vegetation Management'!B93 -> ZONE 14
C26: ='2.7 Vegetation Management'!B99 -> ZONE 15
C27: ='2.7 Vegetation Management'!B105 -> ZONE 16
C28: ='2.7 Vegetation Management'!B111 -> ZONE 17
C29: ='2.7 Vegetation Management'!B117 -> ZONE 18
B30: ROUTINE MAINTENANCE | C30: Pole top, overhead line & service line maintenance | D30: 0 | E30: 0 | F30: 0 | G30: 0 | H30: 0 | I30: 0
C31: Pole inspection and treatment | D31: 238007.0482 | E31: 5167369.468 | F31: 1608222.734 | G31: 3321689.749 | H31: 0 | I31: 0
C32: Overhead asset inspection | D32: 27359.88959 | E32: 594010.384 | F32: 184871.8211 | G32: 381841.9053 | H32: 0 | I32: 0
C33: Network underground cable maintenance | D33: 0 | E33: 0 | F33: 0 | G33: 0 | H33: 0 | I33: 0
C34: Distribution substation equipment & property maintenance | D34: 5523.842889 | E34: 119928.1169 | F34: 37324.81783 | G34: 77092.22243 | H34: 0 | I34: 0
C35: Zone substation equipment maintenance | D35: 5346.062237 | E35: 116068.3223 | F35: 36123.54716 | G35: 74611.06831 | H35: 0 | I35: 0
C36: Zone substation property maintenance | D36: 0 | E36: 0 | F36: 0 | G36: 0 | H36: 0 | I36: 0
C37: Public lighting maintenance | D37: 0 | E37: 0 | F37: 0 | G37: 0 | H37: 0 | I37: 0
C38: Scada & network control maintenance | D38: 0 | E38: 0 | F38: 0 | G38: 0 | H38: 0 | I38: 0
C39: Protection systems maintenance | D39: 7491.197661 | E39: 162641.3435 | F39: 50618.30932 | G39: 104549.1496 | H39: 0 | I39: 0
C40: Subtransmission asset maintenance - for dnsps with dual function assets | D40: 0 | E40: 0 | F40: 0 | G40: 0 | H40: 0 | I40: 0
C41: Other | D41: 13558.97565 | E41: 294378.8318 | F41: 91618.51745 | G41: 189232.6751 | H41: 0 | I41: 0
B42: NON-ROUTINE MAINTENANCE | C42: Pole top, overhead line & service line maintenance | D42: 0 | E42: 0 | F42: 0 | G42: 0 | H42: 0 | I42: 0
C43: Pole inspection and treatment | D43: 11825.82156 | E43: 256750.3345 | F43: 79907.52889 | G43: 165044.315 | H43: 0 | I43: 0
C44: Overhead asset inspection | D44: 185707.55 | E44: 4031895.404 | F44: 1254833.023 | G44: 2591784.023 | H44: 0 | I44: 0
C45: Network underground cable maintenance | D45: 0 | E45: 0 | F45: 0 | G45: 0 | H45: 0 | I45: 0
C46: Distribution substation equipment & property maintenance | D46: 2805.687264 | E46: 60914.25786 | F46: 18958.13623 | G46: 39156.91865 | H46: 0 | I46: 0
C47: Zone substation equipment maintenance | D47: 6315.496446 | E47: 137115.7021 | F47: 42674.05121 | G47: 88140.75029 | H47: 0 | I47: 0
C48: Zone substation property maintenance | D48: 69096.89125 | E48: 1500162.154 | F48: 466890.3388 | G48: 964334.6156 | H48: 0 | I48: 0
C49: Public lighting maintenance | D49: 0 | E49: 0 | F49: 0 | G49: 0 | H49: 0 | I49: 0
C50: SCADA & network control maintenance | D50: 0 | E50: 0 | F50: 0 | G50: 0 | H50: 0 | I50: 0
C51: Protection systems maintenance | D51: 8499.91863 | E51: 184541.6778 | F51: 57434.27552 | G51: 118627.128 | H51: 0 | I51: 0
C52: Subtransmission asset maintenance - for DNSP with dual function assets | D52: 0 | E52: 0 | F52: 0 | G52: 0 | H52: 0 | I52: 0
C53: Other | D53: 211706.934 | E53: 4596367.86 | F53: 1430511.856 | G53: 2954638.351 | H53: 0 | I53: 0
B54: OVERHEADS | C54: Network overheads | D54: 1381327.247 | E54: 43801123.82 | F54: 10586261.47 | G54: 16419048.46 | H54: 0 | I54: 0
C55: Corporate overheads | D55: 2309318.394 | E55: 73227210.38 | F55: 17698230.74 | G55: 27449549.49 | H55: 0 | I55: 0
B56: AUGMENTATION | C56: Subtransmission substations, switching stations, zone substations | D56: 6730318.666 | E56: 3818613.38 | F56: 10227559.42 | G56: 388986.5357 | H56: 0 | I56: 0
C57: Subtransmission lines | D57: 2910761.311 | E57: 1651492.692 | F57: 4423265.188 | G57: 168230.8097 | H57: 0 | I57: 0
C58: HV feeders | D58: 743366.4827 | E58: 907736.9547 | F58: 2462820.267 | G58: 203402.2952 | H58: 0 | I58: 0
C59: Distribution substations | D59: 167529.8176 | E59: 180636.1103 | F59: 41611.38138 | G59: 8469.690698 | H59: 0 | I59: 0
C60: LV feeders | D60: 143874.912 | E60: 309550.5151 | F60: 113494.776 | G60: 67817.7969 | H60: 0 | I60: 0
C61: Other assets | D61: 0 | E61: 0 | F61: 0 | G61: 0 | H61: 0 | I61: 0
B62: CONNECTIONS | C62: Simple and complex customer connections | D62: 4270547.05 | E62: 3968570.826 | F62: 13019463.77 | G62: 161434.3573 | H62: 0 | I62: 0
B63: EMERGENCY RESPONSE | C63: Major storms | D63: 841281.8644 | E63: 8711653.425 | F63: 2097935.357 | G63: 4150248.353 | H63: 0 | I63: 0
C64: Major event days | D64: 0 | E64: 0 | F64: 0 | G64: 0 | H64: 0 | I64: 0
B65: PUBLIC LIGHTING | C65: All public lighting services | D65: 10426160.98 | E65: 6498354.92 | F65: 4397122.602 | G65: 1232444.501 | H65: 0 | I65: 0
B66: METERING | C66: All metering services | D66: 15144672.83 | E66: 1008916.724 | F66: 2253906.774 | G66: 150235.6676 | H66: 0 | I66: 0
B67: FEE-BASED SERVICES | C67: All fee-based services | D67: 122159.1557 | E67: 17225739.89 | F67: 3891396.417 | G67: 2812625.386 | H67: 0 | I67: 0
B68: QUOTED SERVICES | C68: All quoted services | D68: 36309.98302 | E68: 5120093.696 | F68: 1156659.417 | G68: 836010.8534 | H68: 0 | I68: 0
B69: REPLACEMENT | C69: Poles | D69: 7524430.469 | E69: 6861052.407 | F69: 7407527.445 | G69: 1580716.438 | H69: 0 | I69: 0
C70: Pole top structures | D70: 0 | E70: 0 | F70: 0 | G70: 0 | H70: 0 | I70: 0
C71: Overhead conductors | D71: 7023329.379 | E71: 6404130.006 | F71: 6914211.693 | G71: 1475446.181 | H71: 0 | I71: 0
C72: Underground cables | D72: 2710005.226 | E72: 2471082.424 | F72: 2667901.334 | G72: 569312.166 | H72: 0 | I72: 0
C73: Service lines | D73: 4532216.167 | E73: 4132641.37 | F73: 4461801.566 | G73: 952118.3865 | H73: 0 | I73: 0
C74: Transformers | D74: 1845966.635 | E74: 1683220.262 | F74: 1817286.846 | G74: 387796.7664 | H74: 0 | I74: 0
C75: Switchgear | D75: 4400472.769 | E75: 4012512.895 | F75: 4332104.993 | G75: 924442.0119 | H75: 0 | I75: 0
C76: Public lighting | D76: 570307.0902 | E76: 520026.9775 | F76: 561446.5361 | G76: 119808.9073 | H76: 0 | I76: 0
C77: SCADA network control and protection systems | D77: 3837445.36 | E77: 3499123.798 | F77: 3777825.038 | G77: 806162.4047 | H77: 0 | I77: 0
C78: Other | D78: 17850624.85 | E78: 14449584.52 | F78: 12218198.01 | G78: 2066437.702 | H78: 0 | I78: 0
B79: NON-NETWORK EXPENDITURE | C79: IT and communications | D79: 7681.741233 | E79: 12984300.29 | F79: 12968889.82 | G79: 58181795.1 | H79: 0 | I79: 0
C80: Motor vehicles | D80: 3514809.636 | E80: 3201091.949 | F80: 2699867.698 | G80: 10170624.72 | H80: 0 | I80: 0
C81: Buildings and property | D81: 192265.4815 | E81: 4122526.428 | F81: 5485202.65 | G81: 9036544.651 | H81: 0 | I81: 0
C82: Other | D82: 3237209.247 | E82: 1800.942368 | F82: 265881.9222 | G82: 49.88812522 | H82: 0 | I82: 0

Sheet 4.1 Public lighting
B1: REGULATORY REPORTING STATEMENT
B2: =INDEX(dms_TradingNameFull_List,MATCH(dms_TradingName,dms_TradingName_List)) -> Endeavour Energy
B3: =CONCATENATE((LOOKUP(dms_Model,dms_Model_List,dms_Worksheet_List))&" "&CRY) -> CATEGORY ANALYSIS 2017-18
B4: 4.1 PUBLIC LIGHTING
B7: There are THREE tables on this worksheet. Each has been grouped for ease of navigation. See the Instructions sheet on how to group or ungroup tables.
B9: 4.1.1 - DESCRIPTOR METRICS OVER YEAR
E10: VOLUME (0's)
C11: LIGHT TYPE | E11: =CRY -> 2017-18
B12: POPULATION OF LIGHTS | C12: 2 X 14W T5 | E12: 8029
C13: 2 X 18W FL | E13: 41
C14: 2 X 20W FL | E14: 76
C15: 2 X 24W T5 | E15: 8764
C16: 2 X 40W FL | E16: 93
C17: 3 X 40W FL | E17: 0
C18: 4 X 20W FL | E18: 1
C19: 4 X 40W FL | E19: 1
C20: 20W FL | E20: 258
C21: 40W FL | E21: 1980
C22: 42W CFL | E22: 19249
C23: IDENTILITE | E23: 23
C24: 60W INC | E24: 1
C25: 100W MH | E25: 970
C26: 150W MH | E26: 5619
C27: 250W MH | E27: 1633
C28: 400W MH | E28: 944
C29: 2 X 250W MH | E29: 151
C30: 2 X 400W MH | E30: 34
C31: 1000W MH | E31: 12
C32: 50W SHP | E32: 6
C33: 70W SHP | E33: 1214
C34: 100W SHP | E34: 2318
C35: 120W SHP | E35: 33
C36: 150W SHP | E36: 15252
C37: 250W SHP | E37: 27473
C38: 310W SHP | E38: 307
C39: 400W SHP | E39: 3648
C40: 2 X 250W SHP | E40: 230
C41: 2 X 400W SHP | E41: 131
C42: 3 X 400W SHP | E42: 4
C43: 4 X 400W SHP | E43: 1
C44: 4 X 600W SHP | E44: 4
C45: 50W MF | E45: 3062
C46: 80W MF | E46: 62769
C47: 125W MF | E47: 2018
C48: 250W MF | E48: 1788
C49: 400W MF | E49: 642
C50: 90W SLP | E50: 23
C51: 17W LED | E51: 10379
C52: 18W LED | E52: 18327
C53: 25W LED | E53: 7462
C54: 33W LED | E54: 5
C55: 42W LED | E55: 103
C56: 82W LED | E56: 6
C57: 100W LED | E57: 108
C58: 198W LED | E58: 100
B214: 4.1.2 - DESCRIPTOR METRICS ANNUALLY
E217: VOLUMES & EXPENDITURE
B218: SERVICE/SERVICE QUALITY | C218: DESCRIPTOR METRIC | D218: UNITS | E218: =CRY -> 2017-18
B219: LIGHT INSTALLATION | C219: Major road light installation | D219: 0's | E219: 182
C220: Minor road light installation | D220: 0's | E220: 462
C221: Number of poles installed | D221: 0's | E221: 459
C222: Total cost | D222: $0s | E222: 8219232
B223: LIGHT REPLACEMENT | C223: Major road light replacement | D223: 0's | E223: 431
C224: Minor road light replacement | D224: 0's | E224: 2808
C225: Number of poles replaced | D225: 0's | E225: 0
C226: Total cost | D226: $0s | E226: 4673248
B227: LIGHT MAINTENANCE | C227: Major road light maintenance | D227: 0's | E227: 22197
C228: Minor road light maintenance | D228: 0's | E228: 56236
C229: Number of poles installed | D229: 0's | E229: 39879
C230: Total cost | D230: $0s | E230: 9661869
B231: QUALITY OF SUPPLY | C231: Mean days to rectify/replace public lighting assets | D231: days | E231: 4.8
C232: GSO breaches | D232: 0's | E232: 327
C233: GSL payments | D233: $0s | E233: 4905
C234: Customer complaints | D234: 0's | E234: 14323
B237: 4.1.3 - COST METRICS
E238: AVERAGE UNIT COST ($)
B239: ACTIVITY TYPE | C239: LIGHT TYPE | E239: =CRY -> 2017-18
B240: LIGHT INSTALLATION | C240: Major Road Luminaire and Column | E240: 14478.23
C241: Major Road Luminaire only on existing column or pole | E241: 3536.49
C243: Minor Road Luminaire and Column | E243: 18755.28
C244: Minor Road Luminaire only on existing column or pole | E244: 2584.78
B340: LIGHT REPLACEMENT | C340: Major Road 250W HPS Luminaire | E340: 358.49
C341: Major Road 150W HPS Luminaire | E341: 332.95
C343: Minor Road 42W CFL Luminaire | E343: 257.34
C344: Minor Road 17W LED | E344: 292.09
B440: LIGHT MAINTENANCE | C440: Major Road 250W HPS (Lamp and labour) | E440: 106.64
C441: Major Road 150W HPS (Lamp and labour) | E441: 97.41
C443: Minor Road 42W CFL (Lamp and labour) | E443: 87.34
C444: Minor Road 2X24W T5 (Lamps and labour) | E444: 85.49
C445: Minor Road 17W LED (Cleaning and labour) | E445: 82.09

Sheet 4.2 Metering
B1: REGULATORY REPORTING STATEMENT
B2: =INDEX(dms_TradingNameFull_List,MATCH(dms_TradingName,dms_TradingName_List)) -> Endeavour Energy
B3: =CONCATENATE((LOOKUP(dms_Model,dms_Model_List,dms_Worksheet_List))&" "&CRY) -> CATEGORY ANALYSIS 2017-18
B4: 4.2 METERING
B6: There are TWO tables on this worksheet. Each has been grouped for ease of navigation. See the Instructions sheet on how to group or ungroup tables.
B8: 4.2.1 - METERING DESCRIPTOR METRIC
D9: VOLUMES (0's)
B10: Asset Category | C10: Asset Subcategory | D10: =CRY -> 2017-18
B11: Meter Type 4 | C11: Single phase meter population | D11: 58
C12: Multi phase meter population | D12: 691
C13: Current transformer connected meter population | D13: 242
C14: Direct connect meter population | D14: 507
B15: Meter Type 5 | C15: Single phase meter population | D15: 0
C16: Multi phase meter population | D16: 0
C17: Current transformer connected meter population | D17: 0
C18: Direct connect meter population | D18: 0
B19: Meter Type 6 | C19: Single phase meter population | D19: 1384272
C20: Multi phase meter population | D20: 163902
C21: Current transformer connected meter population | D21: 4182
C22: Direct connect meter population | D22: 1543992
B25: 4.2.2 - COST METRICS
D26: VOLUMES (0's) | E26: EXPENDITURE ($0's)
B27: Service Subcategory | C27: Meter Type | D27: =CRY -> 2017-18 | E27: =CRY -> 2017-18
B28: Meter purchase | C28: Meter Type 4 | D28: 0 | E28: 0
C29: Meter Type 5 | D29: 0 | E29: 0
C30: Meter Type 6 | D30: 22127 | E30: 838422.69
B31: Meter testing | C31: Meter Type 4 | D31: 45 | E31: 21557.46582
C32: Meter Type 5 | D32: 0 | E32: 0
C33: Meter Type 6 | D33: 1238 | E33: 593069.8375
B34: Meter investigation | C34: Meter Type 4 | D34: 7 | E34: 1221.615883
C35: Meter Type 5 | D35: 0 | E35: 0
C36: Meter Type 6 | D36: 544 | E36: 94937.00573
B37: Scheduled meter reading | C37: Meter Type 4 | D37: 0 | E37: 0
C38: Meter Type 5 | D38: 0 | E38: 0
C39: Meter Type 6 | D39: 3937621 | E39: 8284335.385
B40: Special meter reading | C40: Meter Type 4 | D40: 0 | E40: 0
C41: Meter Type 5 | D41: 0 | E41: 0
C42: Meter Type 6 | D42: 0 | E42: 0
B43: New meter installation | C43: Meter Type 4 | D43: 0 | E43: 0
C44: Meter Type 5 | D44: 0 | E44: 0
C45: Meter Type 6 | D45: 17411.9 | E45: 0
B46: Meter replacement | C46: Meter Type 4 | D46: 4 | E46: 441.3657014
C47: Meter Type 5 | D47: 0 | E47: 0
C48: Meter Type 6 | D48: 1329 | E48: 146643.7543
B49: Meter maintenance | C49: Meter Type 4 | D49: 0 | E49: 0
C50: Meter Type 5 | D50: 0 | E50: 0
C51: Meter Type 6 | D51: 1461 | E51: 5167018.946
B52: Remote meter reading | C52: Meter Type 4 | D52: 749 | E52: 36726.92751
B53: Remote meter re-configuration | C53: Meter Type 4 | D53: 0 | E53: 0
B54: Other metering | C54: Meter Type 4 | E54: 1631.226664
C55: Meter Type 5 | E55: 0
C56: Meter Type 6 | E56: 3371725.913
C57: Meter Type 7 | E57: 0
B58: IT infrastructure capex | C58: Meter Type 4 | E58: 0
B59: IT infrastructure opex | C59: Meter Type 4 | E59: 0
B60: Communications infrastructure capex | C60: Meter Type 4 | E60: 0
B61: Communications infrastructure opex | C61: Meter Type 4 | E61: 0

Sheet 4.3 Fee-based services
B1: REGULATORY REPORTING STATEMENT
B2: =INDEX(dms_TradingNameFull_List,MATCH(dms_TradingName,dms_TradingName_List)) -> Endeavour Energy
B3: =CONCATENATE((LOOKUP(dms_Model,dms_Model_List,dms_Worksheet_List))&" "&CRY) -> CATEGORY ANALYSIS 2017-18
B4: 4.3 ANCILLARY SERVICES - FEE BASED SERVICES
B6: 4.3.1 - COST METRICS FOR FEE-BASED SERVICES
D7: EXPENDITURE ($0's) | F7: VOLUMES (0's)
B8: SERVICE | C8: SERVICE SUBCATEGORY | D8: =CRY -> 2017-18 | F8: =CRY -> 2017-18
B9: Common Fee-Based Services | C9: Energisation | D9: 0 | E9: ED_FEE431_00001 | F9: 0
C10: De-energisation | D10: 0 | E10: ED_FEE431_00002 | F10: 0
C11: Re-energisation | D11: 0 | E11: ED_FEE431_00003 | F11: 0
B12: Miscellaneous Fee-Based Services | C12: Administration Fee - Subdivision - URD - Underground - 1-5 lots | D12: 79450.39874 | E12: ED_FEE431_00004 | F12: 111
C13: Administration Fee - Subdivision - URD - Underground - 6-10 lots | D13: 36162.20319 | E13: ED_FEE431_00005 | F13: 40
C14: Administration Fee - Subdivision - URD - Underground - 11-40 lots | D14: 171858.2037 | E14: ED_FEE431_00006 | F14: 136
C15: Administration Fee - Subdivision - URD - Underground - 41+ lots | D15: 156571.9507 | E15: ED_FEE431_00007 | F15: 108
C16: Administration Fee - Subdivision - Non Urban - Underground - 1-5 lots | D16: 1078.428066 | E16: ED_FEE431_00008 | F16: 2
C17: Administration Fee - Subdivision - Non Urban - Underground - 6-10 lots | D17: 2121.993156 | E17: ED_FEE431_00009 | F17: 3
C18: Administration Fee - Subdivision - Non Urban - Underground - 11-40 lots | D18: 4492.675543 | E18: ED_FEE431_00010 | F18: 5
C19: Administration Fee - Subdivision - Non Urban - Underground - 41+ lots | D19: 0 | E19: ED_FEE431_00011 | F19: 0
C20: Administration Fee - Subdivision - Non Urban - Overhead - 1-5 poles | D20: 13275.82137 | E20: ED_FEE431_00012 | F20: 18
C21: Administration Fee - Subdivision - Non Urban - Overhead - 6-10 poles | D21: 899.464788 | E21: ED_FEE431_00013 | F21: 1
C22: Administration Fee - Subdivision - Non Urban - Overhead - 11+ poles | D22: 4815.739123 | E22: ED_FEE431_00014 | F22: 3
C23: Administration Fee - Subdivision - Industrial & Commercial - Per Hour | D23: 0 | E23: ED_FEE431_00015 | F23: 0
C24: Administration Fee - Connection of Load - URD - Per Hour | D24: 0 | E24: ED_FEE431_00016 | F24: 0
C25: Administration Fee - Connection of Load - Industrial & Commercial - Per Hour | D25: 0 | E25: ED_FEE431_00017 | F25: 0
C26: Administration Fee - Connection of Load - Non Urban - Underground - Per Hour | D26: 0 | E26: ED_FEE431_00018 | F26: 0
C27: Administration Fee - Connection of Load - Non Urban - Overhead - 1-5 poles | D27: 6112.641841 | E27: ED_FEE431_00019 | F27: 8
C28: Administration Fee - Connection of Load - Non Urban - Overhead - 6-10 poles | D28: 718.1773113 | E28: ED_FEE431_00020 | F28: 1
C29: Administration Fee - Connection of Load - Non Urban - Overhead - 11+ poles | D29: 0 | E29: ED_FEE431_00021 | F29: 0
C30: Administration Fee - Other - Asset Relocation - Per Hour | D30: 0 | E30: ED_FEE431_00022 | F30: 0
C31: Administration Fee - Other - Public Lighting - Per Hour | D31: 0 | E31: ED_FEE431_00023 | F31: 0
C32: Administration Fee - Other - Generator - Per Hour | D32: 0 | E32: ED_FEE431_00024 | F32: 0
C33: Design Information Fee - Subdivision - URD - Underground - 1-5 lots | D33: 57760.9791 | E33: ED_FEE431_00025 | F33: 109
C34: Design Information Fee - Subdivision - URD - Underground - 6-10 lots | D34: 27555.69645 | E34: ED_FEE431_00026 | F34: 40
C35: Design Information Fee - Subdivision - URD - Underground - 11-40 lots | D35: 170812.3144 | E35: ED_FEE431_00027 | F35: 137
C36: Design Information Fee - Subdivision - URD - Underground - 41+ lots | D36: 175923.2267 | E36: ED_FEE431_00028 | F36: 111
C37: Design Information Fee - Subdivision - Non Urban - Per Hour | D37: 0 | E37: ED_FEE431_00029 | F37: 0
C38: Design Information Fee - Subdivision - Industrial & Commercial - Per Hour | D38: 0 | E38: ED_FEE431_00030 | F38: 0
C39: Design Information Fee - Connection of Load - Industrial & Commercial - <= 200A/Phase (LV) | D39: 0 | E39: ED_FEE431_00031 | F39: 0
C40: Design Information Fee - Connection of Load - Industrial & Commercial - <= 700A/Phase (LV) | D40: 0 | E40: ED_FEE431_00032 | F40: 0
C41: Design Information Fee - Connection of Load - Industrial & Commercial - > 700A/Phase (LV) | D41: 0 | E41: ED_FEE431_00033 | F41: 0
C42: Design Information Fee - Connection of Load - Industrial & Commercial - HV Customer | D42: 0 | E42: ED_FEE431_00034 | F42: 0
C43: Design Information Fee - Connection of Load - Industrial & Commercial - Transmission | D43: 0 | E43: ED_FEE431_00035 | F43: 0
C44: Design Information Fee - Connection of Load - Multi-Dwelling - <= 5 units | D44: 0 | E44: ED_FEE431_00036 | F44: 0
C45: Design Information Fee - Connection of Load - Multi-Dwelling - <= 20 units | D45: 0 | E45: ED_FEE431_00037 | F45: 0
C46: Design Information Fee - Connection of Load - Multi-Dwelling - <= 40 units | D46: 0 | E46: ED_FEE431_00038 | F46: 0
C47: Design Information Fee - Connection of Load - Multi-Dwelling - > 40 units | D47: 0 | E47: ED_FEE431_00039 | F47: 0
C48: Design Information Fee - Connection of Load - Non Urban - <= 200A/Phase (LV) | D48: 0 | E48: ED_FEE431_00040 | F48: 0
C49: Design Information Fee - Connection of Load - Non Urban - <= 700A/Phase (LV) | D49: 0 | E49: ED_FEE431_00041 | F49: 0
C50: Design Information Fee - Connection of Load - Non Urban - > 700A/Phase (LV) | D50: 0 | E50: ED_FEE431_00042 | F50: 0
C51: Design Information Fee - Connection of Load - Non Urban - HV Customer | D51: 0 | E51: ED_FEE431_00043 | F51: 0
C52: Design Information Fee - Connection of Load - Non Urban - Transmission | D52: 0 | E52: ED_FEE431_00044 | F52: 0
C53: Design Information Fee - Connection of Load - Non Urban - Multi-Dwelling - <= 5 units | D53: 0 | E53: ED_FEE431_00045 | F53: 0
C54: Design Information Fee - Connection of Load - Non Urban - Multi-Dwelling - <= 20 units | D54: 0 | E54: ED_FEE431_00046 | F54: 0
C55: Design Information Fee - Connection of Load - Non Urban - Multi-Dwelling - <= 40 units | D55: 0 | E55: ED_FEE431_00047 | F55: 0
C56: Design Information Fee - Connection of Load - Non Urban - Multi-Dwelling - > 40 units | D56: 0 | E56: ED_FEE431_00048 | F56: 0
C57: Design Information Fee - Connection of Load - Non Urban - Single Residential - Per Hour | D57: 0 | E57: ED_FEE431_00049 | F57: 0
C58: Design Information Fee - Asset Relocation | D58: 0 | E58: ED_FEE431_00050 | F58: 0
C59: Design Information Fee - Public Lighting | D59: 0 | E59: ED_FEE431_00051 | F59: 0
C60: Design Information Fee - Generator | D60: 0 | E60: ED_FEE431_00052 | F60: 0
C61: Design Certification Fee - Subdivision - URD - Underground - 1-5 lots | D61: 69858.43187 | E61: ED_FEE431_00053 | F61: 108
C62: Design Certification Fee - Subdivision - URD - Underground - 6-10 lots | D62: 36450.4038 | E62: ED_FEE431_00054 | F62: 38
C63: Design Certification Fee - Subdivision - URD - Underground - 11-40 lots | D63: 213735.6108 | E63: ED_FEE431_00055 | F63: 135
C64: Design Certification Fee - Subdivision - URD - Underground - 41+ lots | D64: 205917.0073 | E64: ED_FEE431_00056 | F64: 108
C65: Design Certification Fee - Subdivision - Non Urban - Underground - 1-5 lots | D65: 632.1819698 | E65: ED_FEE431_00057 | F65: 2
C66: Design Certification Fee - Subdivision - Non Urban - Underground - 6-10 lots | D66: 2800.659094 | E66: ED_FEE431_00058 | F66: 3
C67: Design Certification Fee - Subdivision - Non Urban - Underground - 11-40 lots | D67: 3793.091819 | E67: ED_FEE431_00059 | F67: 3
C68: Design Certification Fee - Subdivision - Non Urban - Underground - 41+ lots | D68: 0 | E68: ED_FEE431_00060 | F68: 0
C69: Design Certification Fee - Subdivision - Non Urban - Overhead - 1-5 poles | D69: 11992.86384 | E69: ED_FEE431_00061 | F69: 19
C70: Design Certification Fee - Subdivision - Non Urban - Overhead - 6-10 poles | D70: 1896.54591 | E70: ED_FEE431_00062 | F70: 2
C71: Design Certification Fee - Subdivision - Non Urban - Overhead - 11+ poles | D71: 4704.177599 | E71: ED_FEE431_00063 | F71: 3
C72: Design Certification Fee - Subdivision - Industrial & Commercial - Underground - 1-10 lots | D72: 16755.1464 | E72: ED_FEE431_00064 | F72: 11
C73: Design Certification Fee - Subdivision - Industrial & Commercial - Underground - 11-40 lots | D73: 1264.36394 | E73: ED_FEE431_00065 | F73: 1
C74: Design Certification Fee - Subdivision - Industrial & Commercial - Underground - 41 + lots | D74: 0 | E74: ED_FEE431_00066 | F74: 0
C75: Design Certification Fee - Subdivision - Industrial & Commercial - Overhead - 1-5 poles | D75: 6321.819698 | E75: ED_FEE431_00067 | F75: 2
C76: Design Certification Fee - Subdivision - Industrial & Commercial - Overhead - 6-10 poles | D76: 0 | E76: ED_FEE431_00068 | F76: 0
C77: Design Certification Fee - Subdivision - Industrial & Commercial - Overhead - 11+ poles | D77: 1580.454925 | E77: ED_FEE431_00069 | F77: 1
C78: Design Certification Fee - Connection of Load - Industrial & Commercial - <= 200A/Phase (LV) | D78: 0 | E78: ED_FEE431_00070 | F78: 0
C79: Design Certification Fee - Connection of Load - Industrial & Commercial - <= 700A/Phase (LV) | D79: 0 | E79: ED_FEE431_00071 | F79: 0
C80: Design Certification Fee - Connection of Load - Industrial & Commercial - > 700A/Phase (LV) | D80: 0 | E80: ED_FEE431_00072 | F80: 0
C81: Design Certification Fee - Connection of Load - Industrial & Commercial - HV Customer | D81: 0 | E81: ED_FEE431_00073 | F81: 0
C82: Design Certification Fee - Connection of Load - Industrial & Commercial - Transmission | D82: 0 | E82: ED_FEE431_00074 | F82: 0
C83: Design Certification Fee - Connection of Load - Multi-Dwelling - <= 5 units | D83: 0 | E83: ED_FEE431_00075 | F83: 0
C84: Design Certification Fee - Connection of Load - Multi-Dwelling - <= 20 units | D84: 0 | E84: ED_FEE431_00076 | F84: 0
C85: Design Certification Fee - Connection of Load - Multi-Dwelling - <= 40 units | D85: 0 | E85: ED_FEE431_00077 | F85: 0
C86: Design Certification Fee - Connection of Load - Multi-Dwelling - > 40 units | D86: 0 | E86: ED_FEE431_00078 | F86: 0
C87: Design Certification Fee - Connection of Load - Non Urban - Underground - Per Hour | D87: 0 | E87: ED_FEE431_00079 | F87: 0
C88: Design Certification Fee - Connection of Load - Non Urban - Overhead - 1-5 poles | D88: 2366.03399 | E88: ED_FEE431_00080 | F88: 3
C89: Design Certification Fee - Connection of Load - Non Urban - Overhead - 6-10 poles | D89: 0 | E89: ED_FEE431_00081 | F89: 0
C90: Design Certification Fee - Connection of Load - Non Urban - Overhead - 11+ poles | D90: 0 | E90: ED_FEE431_00082 | F90: 0
C91: Design Certification Fee - Connection of Load - Indoor Substation - Per Hour | D91: 0 | E91: ED_FEE431_00083 | F91: 0
C92: Design Certification Fee - Asset Relocation | D92: 0 | E92: ED_FEE431_00084 | F92: 0
C93: Design Certification Fee - Public Lighting | D93: 0 | E93: ED_FEE431_00085 | F93: 0
C94: Design Certification Fee - Generator | D94: 0 | E94: ED_FEE431_00086 | F94: 0
C95: Design Re-certification Fee - Subdivision - Industrial & Commercial - Per Hour | D95: 0 | E95: ED_FEE431_00087 | F95: 0
C96: Design Re-certification Fee - Subdivision - Non Urban - Per Hour | D96: 0 | E96: ED_FEE431_00088 | F96: 0
C97: Design Re-certification Fee - Subdivision - URD - Per Hour | D97: 0 | E97: ED_FEE431_00089 | F97: 0
C98: Design Re-certification Fee - Connection of Load - Industrial & Commercial - Per Hour | D98: 0 | E98: ED_FEE431_00090 | F98: 0
C99: Design Re-certification Fee - Connection of Load - Non Urban - Per Hour | D99: 0 | E99: ED_FEE431_00091 | F99: 0
C100: Design Re-certification Fee - Connection of Load - URD - Per Hour | D100: 0 | E100: ED_FEE431_00092 | F100: 0
C101: Design Re-certification Fee - Asset Relocation | D101: 0 | E101: ED_FEE431_00093 | F101: 0
C102: Design Re-certification Fee - Public Lighting | D102: 0 | E102: ED_FEE431_00094 | F102: 0
C103: Notification of Arrangement - Subdivision - Industrial & Commercial - Per NOA | D103: 8759.903839 | E103: ED_FEE431_00095 | F103: 54
C104: Notification of Arrangement - Subdivision - Non Urban - Per NOA | D104: 14133.45058 | E104: ED_FEE431_00096 | F104: 87
C105: Notification of Arrangement - Subdivision - URD - Per NOA | D105: 236247.7966 | E105: ED_FEE431_00097 | F105: 1455
C106: Early NOA Fee - Subdivision - Industrial & Commercial - Per hour for early notification | D106: 0 | E106: ED_FEE431_00098 | F106: 0
C107: Early NOA Fee - Subdivision - Non Urban - Per hour for early notification | D107: 0 | E107: ED_FEE431_00099 | F107: 0
C108: Early NOA Fee - Subdivision - URD - Per hour for early notification | D108: 0 | E108: ED_FEE431_00100 | F108: 0
C109: Compliance Certificate - Connection of Load - Industrial & Commercial - Per Compliance Cert | D109: 815.7936449 | E109: ED_FEE431_00101 | F109: 5
C110: Compliance Certificate - Connection of Load - Non Urban - Per Compliance Cert | D110: 0 | E110: ED_FEE431_00102 | F110: 0
C111: Compliance Certificate - Connection of Load - URD - Per Compliance Cert | D111: 24239.06531 | E111: ED_FEE431_00103 | F111: 149
C112: Early Compliance Certificate - Connection of Load - Industrial & Commercial - Per hour for early compliance | D112: 0 | E112: ED_FEE431_00104 | F112: 0
C113: Early Compliance Certificate - Connection of Load - Non Urban - Per hour for early compliance | D113: 0 | E113: ED_FEE431_00105 | F113: 0
C114: Early Compliance Certificate - Connection of Load - URD - Per hour for early compliance | D114: 0 | E114: ED_FEE431_00106 | F114: 0
C115: Inspection of Service Work (Level 1) - Subdivision - URD - Underground - Per Lot (1 - 10) - Grade A | D115: 21782.38758 | E115: ED_FEE431_00107 | F115: 51
C116: Inspection of Service Work (Level 1) - Subdivision - URD - Underground - Per Lot (11 - 50) - Grade A | D116: 112946.7463 | E116: ED_FEE431_00108 | F116: 85
C117: Inspection of Service Work (Level 1) - Subdivision - URD - Underground - Per Lot (51 +) - Grade A | D117: 190049.7047 | E117: ED_FEE431_00109 | F117: 72
C118: Inspection of Service Work (Level 1) - Subdivision - URD - Underground - Per Lot (1 - 10) - Grade B | D118: 52517.58746 | E118: ED_FEE431_00110 | F118: 78
C119: Inspection of Service Work (Level 1) - Subdivision - URD - Underground - Per Lot (11 - 50) - Grade B | D119: 249632.8553 | E119: ED_FEE431_00111 | F119: 88
C120: Inspection of Service Work (Level 1) - Subdivision - URD - Underground - Per Lot (51 +) - Grade B | D120: 217240.502 | E120: ED_FEE431_00112 | F120: 32
C121: Inspection of Service Work (Level 1) - Subdivision - URD - Underground - Per Lot (1 - 10) - Grade C | D121: 11111.99264 | E121: ED_FEE431_00113 | F121: 7
C122: Inspection of Service Work (Level 1) - Subdivision - URD - Underground - Per Lot (11 - 50) - Grade C | D122: 9629.154048 | E122: ED_FEE431_00114 | F122: 2
C123: Inspection of Service Work (Level 1) - Subdivision - URD - Underground - Per Lot (51 +) - Grade C | D123: 10963.24394 | E123: ED_FEE431_00115 | F123: 1
C124: Inspection of Service Work (Level 1) - Subdivision - URD - Underground - Per Hour + travel time | D124: 0 | E124: ED_FEE431_00116 | F124: 0
C125: Inspection of Service Work (Level 1) - Subdivision - Non Urban - Underground - Per Lot (1 - 10) - Grade A | D125: 1234.14936 | E125: ED_FEE431_00117 | F125: 3
C126: Inspection of Service Work (Level 1) - Subdivision - Non Urban - Underground - Per Lot (11 - 50) - Grade A | D126: 158.0454925 | E126: ED_FEE431_00118 | F126: 0
C127: Inspection of Service Work (Level 1) - Subdivision - Non Urban - Underground - Per Lot (51+) - Grade A | D127: 0 | E127: ED_FEE431_00119 | F127: 0
C128: Inspection of Service Work (Level 1) - Subdivision - Non Urban - Underground - Per Lot (1 - 10) - Grade B | D128: 9708.176794 | E128: ED_FEE431_00120 | F128: 12
C129: Inspection of Service Work (Level 1) - Subdivision - Non Urban - Underground - Per Lot (11 - 50) - Grade B | D129: 9482.729548 | E129: ED_FEE431_00121 | F129: 3
C130: Inspection of Service Work (Level 1) - Subdivision - Non Urban - Underground - Per Lot (51+) - Grade B | D130: 0 | E130: ED_FEE431_00122 | F130: 0
C131: Inspection of Service Work (Level 1) - Subdivision - Non Urban - Underground - Per Lot (1 - 10) - Grade C | D131: 5666.395744 | E131: ED_FEE431_00123 | F131: 2
C132: Inspection of Service Work (Level 1) - Subdivision - Non Urban - Underground - Per Lot (11 - 50) - Grade C | D132: 0 | E132: ED_FEE431_00124 | F132: 0
C133: Inspection of Service Work (Level 1) - Subdivision - Non Urban - Underground - Per Lot (51+) - Grade C | D133: 0 | E133: ED_FEE431_00125 | F133: 0
C134: Inspection of Service Work (Level 1) - Subdivision - Non Urban - Overhead - Per Pole (1 - 5) - Grade A | D134: 1729.203623 | E134: ED_FEE431_00126 | F134: 4
C135: Inspection of Service Work (Level 1) - Subdivision - Non Urban - Overhead - Per Pole (6 - 10) - Grade A | D135: 432.3009058 | E135: ED_FEE431_00127 | F135: 1
C136: Inspection of Service Work (Level 1) - Subdivision - Non Urban - Overhead - Per Pole (11 +) - Grade A | D136: 0 | E136: ED_FEE431_00128 | F136: 0
C137: Inspection of Service Work (Level 1) - Subdivision - Non Urban - Overhead - Per Pole Sub - Grade A | D137: 0 | E137: ED_FEE431_00129 | F137: 2
C138: Inspection of Service Work (Level 1) - Subdivision - Non Urban - Overhead - Per Pole (1 - 5) - Grade B | D138: 5975.514134 | E138: ED_FEE431_00130 | F138: 9
C139: Inspection of Service Work (Level 1) - Subdivision - Non Urban - Overhead - Per Pole (6 - 10) - Grade B | D139: 1357.331876 | E139: ED_FEE431_00131 | F139: 1
C140: Inspection of Service Work (Level 1) - Subdivision - Non Urban - Overhead - Per Pole (11 +) - Grade B | D140: 9598.939469 | E140: ED_FEE431_00132 | F140: 3
C141: Inspection of Service Work (Level 1) - Subdivision - Non Urban - Overhead - Per Pole Sub - Grade B | D141: 0 | E141: ED_FEE431_00133 | F141: 9
C142: Inspection of Service Work (Level 1) - Subdivision - Non Urban - Overhead - Per Pole (1 - 5) - Grade C | D142: 3332.900532 | E142: ED_FEE431_00134 | F142: 4
C143: Inspection of Service Work (Level 1) - Subdivision - Non Urban - Overhead - Per Pole (6 - 10) - Grade C | D143: 0 | E143: ED_FEE431_00135 | F143: 0
C144: Inspection of Service Work (Level 1) - Subdivision - Non Urban - Overhead - Per Pole (11 +) - Grade C | D144: 0 | E144: ED_FEE431_00136 | F144: 0
C145: Inspection of Service Work (Level 1) - Subdivision - Non Urban - Overhead - Per Pole Sub - Grade C | D145: 0 | E145: ED_FEE431_00137 | F145: 2
C146: Inspection of Service Work (Level 1) - Subdivision - Industrial & Commercial - Overhead - Per Pole (1 - 5) - Grade A | D146: 0 | E146: ED_FEE431_00138 | F146: 0
C147: Inspection of Service Work (Level 1) - Subdivision - Industrial & Commercial - Overhead - Per Pole (6 - 10) - Grade A | D147: 0 | E147: ED_FEE431_00139 | F147: 0
C148: Inspection of Service Work (Level 1) - Subdivision - Industrial & Commercial - Overhead - Per Pole (11 +) - Grade A | D148: 0 | E148: ED_FEE431_00140 | F148: 0
C149: Inspection of Service Work (Level 1) - Subdivision - Industrial & Commercial - Overhead - Per Pole Sub - Grade A | D149: 0 | E149: ED_FEE431_00141 | F149: 0
C150: Inspection of Service Work (Level 1) - Subdivision - Industrial & Commercial - Overhead - Per Pole (1 - 5) - Grade B | D150: 815.7936449 | E150: ED_FEE431_00142 | F150: 2
C151: Inspection of Service Work (Level 1) - Subdivision - Industrial & Commercial - Overhead - Per Pole (6 - 10) - Grade B | D151: 0 | E151: ED_FEE431_00143 | F151: 0
C152: Inspection of Service Work (Level 1) - Subdivision - Industrial & Commercial - Overhead - Per Pole (11 +) - Grade B | D152: 0 | E152: ED_FEE431_00144 | F152: 0
C153: Inspection of Service Work (Level 1) - Subdivision - Industrial & Commercial - Overhead - Per Pole Sub - Grade B | D153: 0 | E153: ED_FEE431_00145 | F153: 0
C154: Inspection of Service Work (Level 1) - Subdivision - Industrial & Commercial - Overhead - Per Pole (1 - 5) - Grade C | D154: 0 | E154: ED_FEE431_00146 | F154: 0
C155: Inspection of Service Work (Level 1) - Subdivision - Industrial & Commercial - Overhead - Per Pole (6 - 10) - Grade C | D155: 0 | E155: ED_FEE431_00147 | F155: 0
C156: Inspection of Service Work (Level 1) - Subdivision - Industrial & Commercial - Overhead - Per Pole (11 +) - Grade C | D156: 0 | E156: ED_FEE431_00148 | F156: 0
C157: Inspection of Service Work (Level 1) - Subdivision - Industrial & Commercial - Overhead - Per Pole Sub - Grade C | D157: 0 | E157: ED_FEE431_00149 | F157: 0
C158: Inspection of Service Work (Level 1) - Subdivision - Industrial & Commercial - Underground - Per Lot (1 - 10) - Grade A | D158: 1048.213487 | E158: ED_FEE431_00150 | F158: 3
C159: Inspection of Service Work (Level 1) - Subdivision - Industrial & Commercial - Underground - Per Lot (11 - 50) - Grade A | D159: 3579.265565 | E159: ED_FEE431_00151 | F159: 1
C160: Inspection of Service Work (Level 1) - Subdivision - Industrial & Commercial - Underground - Per Lot (51+) - Grade A | D160: 0 | E160: ED_FEE431_00152 | F160: 0
C161: Inspection of Service Work (Level 1) - Subdivision - Industrial & Commercial - Underground - Per Lot (1 - 10) - Grade B | D161: 4713.474393 | E161: ED_FEE431_00153 | F161: 8
C162: Inspection of Service Work (Level 1) - Subdivision - Industrial & Commercial - Underground - Per Lot (11 - 50) - Grade B | D162: 0 | E162: ED_FEE431_00154 | F162: 0
C163: Inspection of Service Work (Level 1) - Subdivision - Industrial & Commercial - Underground - Per Lot (51+) - Grade B | D163: 0 | E163: ED_FEE431_00155 | F163: 0
C164: Inspection of Service Work (Level 1) - Subdivision - Industrial & Commercial - Underground - Per Lot (1 - 10) - Grade C | D164: 1506.080575 | E164: ED_FEE431_00156 | F164: 1
C165: Inspection of Service Work (Level 1) - Subdivision - Industrial & Commercial - Underground - Per Lot (11 - 50) - Grade C | D165: 0 | E165: ED_FEE431_00157 | F165: 0
C166: Inspection of Service Work (Level 1) - Subdivision - Industrial & Commercial - Underground - Per Lot (51+) - Grade C | D166: 0 | E166: ED_FEE431_00158 | F166: 0
C167: Inspection of Service Work (Level 1) - Connection of Load - URD - Underground - Per hour + travel time | D167: 0 | E167: ED_FEE431_00159 | F167: 0
C168: Inspection of Service Work (Level 1) - Connection of Load - Non Urban - Underground - Per hour + travel time | D168: 0 | E168: ED_FEE431_00160 | F168: 0
C169: Inspection of Service Work (Level 1) - Connection of Load - Non Urban - Overhead - Per Pole (1 - 5) - Grade A | D169: 2017.404227 | E169: ED_FEE431_00161 | F169: 9
C170: Inspection of Service Work (Level 1) - Connection of Load - Non Urban - Overhead - Per Pole (1 - 5) - Grade B | D170: 26623.69288 | E170: ED_FEE431_00162 | F170: 40
C171: Inspection of Service Work (Level 1) - Connection of Load - Non Urban - Overhead - Per Pole (1 - 5) - Grade C | D171: 7184.097312 | E171: ED_FEE431_00163 | F171: 8
C172: Inspection of Service Work (Level 1) - Connection of Load - Non Urban - Overhead - Per Pole (6 - 10) - Grade A | D172: 0 | E172: ED_FEE431_00164 | F172: 0
C173: Inspection of Service Work (Level 1) - Connection of Load - Non Urban - Overhead - Per Pole (6 - 10) - Grade B | D173: 0 | E173: ED_FEE431_00165 | F173: 0
C174: Inspection of Service Work (Level 1) - Connection of Load - Non Urban - Overhead - Per Pole (6 - 10) - Grade C | D174: 1603.696909 | E174: ED_FEE431_00166 | F174: 1
C175: Inspection of Service Work (Level 1) - Connection of Load - Non Urban - Overhead - Per Pole (11 +) - Grade A | D175: 976.1633358 | E175: ED_FEE431_00167 | F175: 1
C176: Inspection of Service Work (Level 1) - Connection of Load - Non Urban - Overhead - Per Pole (11 +) - Grade B | D176: 3321.27954 | E176: ED_FEE431_00168 | F176: 2
C177: Inspection of Service Work (Level 1) - Connection of Load - Non Urban - Overhead - Per Pole (11 +) - Grade C | D177: 0 | E177: ED_FEE431_00169 | F177: 0
C178: Inspection of Service Work (Level 1) - Connection of Load - Non Urban - Overhead - Per Pole Sub - Grade A | D178: 0 | E178: ED_FEE431_00170 | F178: 2
C179: Inspection of Service Work (Level 1) - Connection of Load - Non Urban - Overhead - Per Pole Sub - Grade B | D179: 0 | E179: ED_FEE431_00171 | F179: 20
C180: Inspection of Service Work (Level 1) - Connection of Load - Non Urban - Overhead - Per Pole Sub - Grade C | D180: 0 | E180: ED_FEE431_00172 | F180: 4
C181: Inspection of Service Work (Level 1) - Connection of Load - Industrial & Commercial - Underground - Per Hour + travel time | D181: 0 | E181: ED_FEE431_00173 | F181: 0
C182: Inspection of Service Work (Level 1) - Connection of Load - Industrial & Commercial - Overhead - Per Pole (1 - 5) - Grade A | D182: 74.37434939 | E182: ED_FEE431_00174 | F182: 1
C183: Inspection of Service Work (Level 1) - Connection of Load - Industrial & Commercial - Overhead - Per Pole (1 - 5) - Grade B | D183: 0 | E183: ED_FEE431_00175 | F183: 0
C184: Inspection of Service Work (Level 1) - Connection of Load - Industrial & Commercial - Overhead - Per Pole (1 - 5) - Grade C | D184: 0 | E184: ED_FEE431_00176 | F184: 0
C185: Inspection of Service Work (Level 1) - Connection of Load - Industrial & Commercial - Overhead - Per Pole (6 - 10) - Grade A | D185: 0 | E185: ED_FEE431_00177 | F185: 0
C186: Inspection of Service Work (Level 1) - Connection of Load - Industrial & Commercial - Overhead - Per Pole (6 - 10) - Grade B | D186: 0 | E186: ED_FEE431_00178 | F186: 0
C187: Inspection of Service Work (Level 1) - Connection of Load - Industrial & Commercial - Overhead - Per Pole (6 - 10) - Grade C | D187: 0 | E187: ED_FEE431_00179 | F187: 0
C188: Inspection of Service Work (Level 1) - Connection of Load - Industrial & Commercial - Overhead - Per Pole (11+) - Grade A | D188: 0 | E188: ED_FEE431_00180 | F188: 0
C189: Inspection of Service Work (Level 1) - Connection of Load - Industrial & Commercial - Overhead - Per Pole (11+) - Grade B | D189: 0 | E189: ED_FEE431_00181 | F189: 0
C190: Inspection of Service Work (Level 1) - Connection of Load - Industrial & Commercial - Overhead - Per Pole (11+) - Grade C | D190: 0 | E190: ED_FEE431_00182 | F190: 0
C191: Inspection of Service Work (Level 1) - Connection of Load - Industrial & Commercial - Overhead - Per Pole Sub - Grade A | D191: 0 | E191: ED_FEE431_00183 | F191: 0
C192: Inspection of Service Work (Level 1) - Connection of Load - Industrial & Commercial - Overhead - Per Pole Sub - Grade B | D192: 0 | E192: ED_FEE431_00184 | F192: 0
C193: Inspection of Service Work (Level 1) - Connection of Load - Industrial & Commercial - Overhead - Per Pole Sub - Grade C | D193: 0 | E193: ED_FEE431_00185 | F193: 0
C194: Inspection of Service Work (Level 1) - Other - Asset Relocation - Underground - Per Hour + travel time | D194: 0 | E194: ED_FEE431_00186 | F194: 0
C195: Inspection of Service Work (Level 1) - Other - Public Lighting - Underground - Per Hour + travel time | D195: 0 | E195: ED_FEE431_00187 | F195: 0
C196: Access Permits - Subdivision - URD - Per Lot | D196: 967203.5509 | E196: ED_FEE431_00188 | F196: 234
C197: Access Permits - All Other - Industrial & Commercial | D197: 992486.1813 | E197: ED_FEE431_00189 | F197: 283
C198: Access Permits - All Other - Non Urban | D198: 368036.8196 | E198: ED_FEE431_00190 | F198: 116
C199: Access Permits - All Other - URD | D199: 318210.6539 | E199: ED_FEE431_00191 | F199: 100
C200: Access Permits - All Other - Asset Relocation | D200: 493947.9447 | E200: ED_FEE431_00192 | F200: 158
C201: Access Permits - All Other - Public Lighting | D201: 28754.98283 | E201: ED_FEE431_00193 | F201: 9
... 278 more rows

Sheet 4.4 Quoted services
B1: REGULATORY REPORTING STATEMENT
B2: =INDEX(dms_TradingNameFull_List,MATCH(dms_TradingName,dms_TradingName_List)) -> Endeavour Energy
B3: =CONCATENATE((LOOKUP(dms_Model,dms_Model_List,dms_Worksheet_List))&" "&CRY) -> CATEGORY ANALYSIS 2017-18
B4: 4.4 ANCILLARY SERVICES - QUOTED SERVICES
B6: 4.4.1 - COST METRICS FOR QUOTED SERVICES
D7: EXPENDITURE ($0's) | F7: VOLUMES (0's)
B8: SERVICE | C8: SERVICE SUBCATEGORY | D8: =CRY -> 2017-18 | F8: =CRY -> 2017-18
B9: Quoted Services | C9: Administration Fee - Subdivision - URD - Underground - 1-5 lots | D9: 0 | E9: ED_QUO441_00002 | F9: 0
C10: Administration Fee - Subdivision - URD - Underground - 6-10 lots | D10: 0 | E10: ED_QUO441_00003 | F10: 0
C11: Administration Fee - Subdivision - URD - Underground - 11-40 lots | D11: 0 | E11: ED_QUO441_00004 | F11: 0
C12: Administration Fee - Subdivision - URD - Underground - 41+ lots | D12: 0 | E12: ED_QUO441_00005 | F12: 0
C13: Administration Fee - Subdivision - Non Urban - Underground - 1-5 lots | D13: 0 | E13: ED_QUO441_00006 | F13: 0
C14: Administration Fee - Subdivision - Non Urban - Underground - 6-10 lots | D14: 0 | E14: ED_QUO441_00007 | F14: 0
C15: Administration Fee - Subdivision - Non Urban - Underground - 11-40 lots | D15: 0 | E15: ED_QUO441_00008 | F15: 0
C16: Administration Fee - Subdivision - Non Urban - Underground - 41+ lots | D16: 0 | E16: ED_QUO441_00009 | F16: 0
C17: Administration Fee - Subdivision - Non Urban - Overhead - 1-5 poles | D17: 0 | E17: ED_QUO441_00010 | F17: 0
C18: Administration Fee - Subdivision - Non Urban - Overhead - 6-10 poles | D18: 0 | E18: ED_QUO441_00011 | F18: 0
C19: Administration Fee - Subdivision - Non Urban - Overhead - 11+ poles | D19: 0 | E19: ED_QUO441_00012 | F19: 0
C20: Administration Fee - Subdivision - Industrial & Commercial - Per Hour | D20: 8446.14 | E20: ED_QUO441_00013 | F20: 14
C21: Administration Fee - Connection of Load - URD - Per Hour | D21: 92184.68 | E21: ED_QUO441_00014 | F21: 162
C22: Administration Fee - Connection of Load - Industrial & Commercial - Per Hour | D22: 148420.99 | E22: ED_QUO441_00015 | F22: 261
C23: Administration Fee - Connection of Load - Non Urban - Underground - Per Hour | D23: 55064.91 | E23: ED_QUO441_00016 | F23: 80
C24: Administration Fee - Connection of Load - Non Urban - Overhead - 1-5 poles | D24: 0 | E24: ED_QUO441_00017 | F24: 0
C25: Administration Fee - Connection of Load - Non Urban - Overhead - 6-10 poles | D25: 0 | E25: ED_QUO441_00018 | F25: 0
C26: Administration Fee - Connection of Load - Non Urban - Overhead - 11+ poles | D26: 0 | E26: ED_QUO441_00019 | F26: 0
C27: Administration Fee - Other - Asset Relocation - Per Hour | D27: 110418.02 | E27: ED_QUO441_00020 | F27: 197
C28: Administration Fee - Other - Public Lighting - Per Hour | D28: 43441.59 | E28: ED_QUO441_00021 | F28: 79
C29: Administration Fee - Other - Generator - Per Hour | D29: 0 | E29: ED_QUO441_00022 | F29: 0
C30: Design Information Fee - Subdivision - URD - Underground - 1-5 lots | D30: 0 | E30: ED_QUO441_00023 | F30: 0
C31: Design Information Fee - Subdivision - URD - Underground - 6-10 lots | D31: 0 | E31: ED_QUO441_00024 | F31: 0
C32: Design Information Fee - Subdivision - URD - Underground - 11-40 lots | D32: 0 | E32: ED_QUO441_00025 | F32: 0
C33: Design Information Fee - Subdivision - URD - Underground - 41+ lots | D33: 0 | E33: ED_QUO441_00026 | F33: 0
C34: Design Information Fee - Subdivision - Non Urban - Per Hour | D34: 25101.34 | E34: ED_QUO441_00027 | F34: 32
C35: Design Information Fee - Subdivision - Industrial & Commercial - Per Hour | D35: 23895.08 | E35: ED_QUO441_00028 | F35: 15
C36: Design Information Fee - Connection of Load - Industrial & Commercial - <= 200A/Phase (LV) | D36: 106734.16 | E36: ED_QUO441_00029 | F36: 77
C37: Design Information Fee - Connection of Load - Industrial & Commercial - <= 700A/Phase (LV) | D37: 141466.99 | E37: ED_QUO441_00030 | F37: 73
C38: Design Information Fee - Connection of Load - Industrial & Commercial - > 700A/Phase (LV) | D38: 344123.14 | E38: ED_QUO441_00031 | F38: 102
C39: Design Information Fee - Connection of Load - Industrial & Commercial - HV Customer | D39: -18416.95 | E39: ED_QUO441_00032 | F39: 4
C40: Design Information Fee - Connection of Load - Industrial & Commercial - Transmission | D40: 0 | E40: ED_QUO441_00033 | F40: 0
C41: Design Information Fee - Connection of Load - Multi-Dwelling - <= 5 units | D41: 3107.45 | E41: ED_QUO441_00034 | F41: 0
C42: Design Information Fee - Connection of Load - Multi-Dwelling - <= 20 units | D42: 77202.9 | E42: ED_QUO441_00035 | F42: 58
C43: Design Information Fee - Connection of Load - Multi-Dwelling - <= 40 units | D43: 88084.8 | E43: ED_QUO441_00036 | F43: 54
C44: Design Information Fee - Connection of Load - Multi-Dwelling - > 40 units | D44: 161792.1 | E44: ED_QUO441_00037 | F44: 52
C45: Design Information Fee - Connection of Load - Non Urban - <= 200A/Phase (LV) | D45: 0 | E45: ED_QUO441_00038 | F45: 0
C46: Design Information Fee - Connection of Load - Non Urban - <= 700A/Phase (LV) | D46: 0 | E46: ED_QUO441_00039 | F46: 0
C47: Design Information Fee - Connection of Load - Non Urban - > 700A/Phase (LV) | D47: 0 | E47: ED_QUO441_00040 | F47: 0
C48: Design Information Fee - Connection of Load - Non Urban - HV Customer | D48: 0 | E48: ED_QUO441_00041 | F48: 0
C49: Design Information Fee - Connection of Load - Non Urban - Transmission | D49: 0 | E49: ED_QUO441_00042 | F49: 0
C50: Design Information Fee - Connection of Load - Non Urban - Multi-Dwelling - <= 5 units | D50: 0 | E50: ED_QUO441_00043 | F50: 0
C51: Design Information Fee - Connection of Load - Non Urban - Multi-Dwelling - <= 20 units | D51: 0 | E51: ED_QUO441_00044 | F51: 0
C52: Design Information Fee - Connection of Load - Non Urban - Multi-Dwelling - <= 40 units | D52: 0 | E52: ED_QUO441_00045 | F52: 0
C53: Design Information Fee - Connection of Load - Non Urban - Multi-Dwelling - > 40 units | D53: 0 | E53: ED_QUO441_00046 | F53: 0
C54: Design Information Fee - Connection of Load - Non Urban - Single Residential - Per Hour | D54: 106652.82 | E54: ED_QUO441_00047 | F54: 90
C55: Design Information Fee - Asset Relocation | D55: 297199.9 | E55: ED_QUO441_00048 | F55: 196
C56: Design Information Fee - Public Lighting | D56: 48733.79 | E56: ED_QUO441_00049 | F56: 79
C57: Design Information Fee - Generator | D57: 0 | E57: ED_QUO441_00050 | F57: 0
C58: Design Certification Fee - Subdivision - URD - Underground - 1-5 lots | D58: 0 | E58: ED_QUO441_00051 | F58: 0
C59: Design Certification Fee - Subdivision - URD - Underground - 6-10 lots | D59: 0 | E59: ED_QUO441_00052 | F59: 0
C60: Design Certification Fee - Subdivision - URD - Underground - 11-40 lots | D60: 0 | E60: ED_QUO441_00053 | F60: 0
C61: Design Certification Fee - Subdivision - URD - Underground - 41+ lots | D61: 0 | E61: ED_QUO441_00054 | F61: 0
C62: Design Certification Fee - Subdivision - Non Urban - Underground - 1-5 lots | D62: 0 | E62: ED_QUO441_00055 | F62: 0
C63: Design Certification Fee - Subdivision - Non Urban - Underground - 6-10 lots | D63: 0 | E63: ED_QUO441_00056 | F63: 0
C64: Design Certification Fee - Subdivision - Non Urban - Underground - 11-40 lots | D64: 0 | E64: ED_QUO441_00057 | F64: 0
C65: Design Certification Fee - Subdivision - Non Urban - Underground - 41+ lots | D65: 0 | E65: ED_QUO441_00058 | F65: 0
C66: Design Certification Fee - Subdivision - Non Urban - Overhead - 1-5 poles | D66: 0 | E66: ED_QUO441_00059 | F66: 0
C67: Design Certification Fee - Subdivision - Non Urban - Overhead - 6-10 poles | D67: 0 | E67: ED_QUO441_00060 | F67: 0
C68: Design Certification Fee - Subdivision - Non Urban - Overhead - 11+ poles | D68: 0 | E68: ED_QUO441_00061 | F68: 0
C69: Design Certification Fee - Subdivision - Industrial & Commercial - Underground - 1-10 lots | D69: 0 | E69: ED_QUO441_00062 | F69: 0
C70: Design Certification Fee - Subdivision - Industrial & Commercial - Underground - 11-40 lots | D70: 0 | E70: ED_QUO441_00063 | F70: 0
C71: Design Certification Fee - Subdivision - Industrial & Commercial - Underground - 41 + lots | D71: 0 | E71: ED_QUO441_00064 | F71: 0
C72: Design Certification Fee - Subdivision - Industrial & Commercial - Overhead - 1-5 poles | D72: 0 | E72: ED_QUO441_00065 | F72: 0
C73: Design Certification Fee - Subdivision - Industrial & Commercial - Overhead - 6-10 poles | D73: 0 | E73: ED_QUO441_00066 | F73: 0
C74: Design Certification Fee - Subdivision - Industrial & Commercial - Overhead - 11+ poles | D74: 0 | E74: ED_QUO441_00067 | F74: 0
C75: Design Certification Fee - Connection of Load - Industrial & Commercial - <= 200A/Phase (LV) | D75: 169429.42 | E75: ED_QUO441_00068 | F75: 80
C76: Design Certification Fee - Connection of Load - Industrial & Commercial - <= 700A/Phase (LV) | D76: 203578.86 | E76: ED_QUO441_00069 | F76: 69
C77: Design Certification Fee - Connection of Load - Industrial & Commercial - > 700A/Phase (LV) | D77: 460849.04 | E77: ED_QUO441_00070 | F77: 100
C78: Design Certification Fee - Connection of Load - Industrial & Commercial - HV Customer | D78: 43927.35 | E78: ED_QUO441_00071 | F78: 6
C79: Design Certification Fee - Connection of Load - Industrial & Commercial - Transmission | D79: 0 | E79: ED_QUO441_00072 | F79: 0
C80: Design Certification Fee - Connection of Load - Multi-Dwelling - <= 5 units | D80: 0 | E80: ED_QUO441_00073 | F80: 0
C81: Design Certification Fee - Connection of Load - Multi-Dwelling - <= 20 units | D81: 131579.85 | E81: ED_QUO441_00074 | F81: 57
C82: Design Certification Fee - Connection of Load - Multi-Dwelling - <= 40 units | D82: 158826.42 | E82: ED_QUO441_00075 | F82: 52
C83: Design Certification Fee - Connection of Load - Multi-Dwelling - > 40 units | D83: 290578.26 | E83: ED_QUO441_00076 | F83: 53
C84: Design Certification Fee - Connection of Load - Non Urban - Underground - Per Hour | D84: 95529.2 | E84: ED_QUO441_00077 | F84: 85
C85: Design Certification Fee - Connection of Load - Non Urban - Overhead - 1-5 poles | D85: 0 | E85: ED_QUO441_00078 | F85: 0
C86: Design Certification Fee - Connection of Load - Non Urban - Overhead - 6-10 poles | D86: 0 | E86: ED_QUO441_00079 | F86: 0
C87: Design Certification Fee - Connection of Load - Non Urban - Overhead - 11+ poles | D87: 0 | E87: ED_QUO441_00080 | F87: 0
C88: Design Certification Fee - Connection of Load - Indoor Substation - Per Hour | D88: 0 | E88: ED_QUO441_00081 | F88: 0
C89: Design Certification Fee - Asset Relocation | D89: 420150 | E89: ED_QUO441_00082 | F89: 196
C90: Design Certification Fee - Public Lighting | D90: 114410.99 | E90: ED_QUO441_00083 | F90: 79
C91: Design Certification Fee - Generator | D91: 0 | E91: ED_QUO441_00084 | F91: 0
C92: Design Re-certification Fee - Subdivision - Industrial & Commercial - Per Hour | D92: 23365.17 | E92: ED_QUO441_00085 | F92: 14
C93: Design Re-certification Fee - Subdivision - Non Urban - Per Hour | D93: 10428.68 | E93: ED_QUO441_00086 | F93: 12
C94: Design Re-certification Fee - Subdivision - URD - Per Hour | D94: 182458.87 | E94: ED_QUO441_00087 | F94: 184
C95: Design Re-certification Fee - Connection of Load - Industrial & Commercial - Per Hour | D95: 54025.99 | E95: ED_QUO441_00088 | F95: 60
C96: Design Re-certification Fee - Connection of Load - Non Urban - Per Hour | D96: 17336.2 | E96: ED_QUO441_00089 | F96: 19
C97: Design Re-certification Fee - Connection of Load - URD - Per Hour | D97: 72326.73 | E97: ED_QUO441_00090 | F97: 69
C98: Design Re-certification Fee - Asset Relocation | D98: 45275.39 | E98: ED_QUO441_00091 | F98: 44
C99: Design Re-certification Fee - Public Lighting | D99: 18014.86 | E99: ED_QUO441_00092 | F99: 20
C100: Notification of Arrangement - Subdivision - Industrial & Commercial - Per NOA | D100: 0 | E100: ED_QUO441_00093 | F100: 0
C101: Notification of Arrangement - Subdivision - Non Urban - Per NOA | D101: 0 | E101: ED_QUO441_00094 | F101: 0
C102: Notification of Arrangement - Subdivision - URD - Per NOA | D102: 0 | E102: ED_QUO441_00095 | F102: 0
C103: Early NOA Fee - Subdivision - Industrial & Commercial - Per hour for early notification | D103: 325.39 | E103: ED_QUO441_00096 | F103: 1
C104: Early NOA Fee - Subdivision - Non Urban - Per hour for early notification | D104: 325.39 | E104: ED_QUO441_00097 | F104: 1
C105: Early NOA Fee - Subdivision - URD - Per hour for early notification | D105: 48882.54 | E105: ED_QUO441_00098 | F105: 144
C106: Compliance Certificate - Connection of Load - Industrial & Commercial - Per Compliance Cert | D106: 0 | E106: ED_QUO441_00099 | F106: 0
C107: Compliance Certificate - Connection of Load - Non Urban - Per Compliance Cert | D107: 0 | E107: ED_QUO441_00100 | F107: 0
C108: Compliance Certificate - Connection of Load - URD - Per Compliance Cert | D108: 0 | E108: ED_QUO441_00101 | F108: 0
C109: Early Compliance Certificate - Connection of Load - Industrial & Commercial - Per hour for early compliance | D109: 0 | E109: ED_QUO441_00102 | F109: 0
C110: Early Compliance Certificate - Connection of Load - Non Urban - Per hour for early compliance | D110: 0 | E110: ED_QUO441_00103 | F110: 0
C111: Early Compliance Certificate - Connection of Load - URD - Per hour for early compliance | D111: 1059.83 | E111: ED_QUO441_00104 | F111: 3
C112: Inspection of Service Work (Level 1) - Subdivision - URD - Underground - Per Lot (1 - 10) - Grade A | D112: 0 | E112: ED_QUO441_00105 | F112: 0
C113: Inspection of Service Work (Level 1) - Subdivision - URD - Underground - Per Lot (11 - 50) - Grade A | D113: 0 | E113: ED_QUO441_00106 | F113: 0
C114: Inspection of Service Work (Level 1) - Subdivision - URD - Underground - Per Lot (51 +) - Grade A | D114: 0 | E114: ED_QUO441_00107 | F114: 0
C115: Inspection of Service Work (Level 1) - Subdivision - URD - Underground - Per Lot (1 - 10) - Grade B | D115: 0 | E115: ED_QUO441_00108 | F115: 0
C116: Inspection of Service Work (Level 1) - Subdivision - URD - Underground - Per Lot (11 - 50) - Grade B | D116: 0 | E116: ED_QUO441_00109 | F116: 0
C117: Inspection of Service Work (Level 1) - Subdivision - URD - Underground - Per Lot (51 +) - Grade B | D117: 0 | E117: ED_QUO441_00110 | F117: 0
C118: Inspection of Service Work (Level 1) - Subdivision - URD - Underground - Per Lot (1 - 10) - Grade C | D118: 0 | E118: ED_QUO441_00111 | F118: 0
C119: Inspection of Service Work (Level 1) - Subdivision - URD - Underground - Per Lot (11 - 50) - Grade C | D119: 0 | E119: ED_QUO441_00112 | F119: 0
C120: Inspection of Service Work (Level 1) - Subdivision - URD - Underground - Per Lot (51 +) - Grade C | D120: 0 | E120: ED_QUO441_00113 | F120: 0
C121: Inspection of Service Work (Level 1) - Subdivision - URD - Underground - Per Hour + travel time | D121: 741.42 | E121: ED_QUO441_00114 | F121: 0
C122: Inspection of Service Work (Level 1) - Subdivision - Non Urban - Underground - Per Lot (1 - 10) - Grade A | D122: 0 | E122: ED_QUO441_00115 | F122: 0
C123: Inspection of Service Work (Level 1) - Subdivision - Non Urban - Underground - Per Lot (11 - 50) - Grade A | D123: 0 | E123: ED_QUO441_00116 | F123: 0
C124: Inspection of Service Work (Level 1) - Subdivision - Non Urban - Underground - Per Lot (51+) - Grade A | D124: 0 | E124: ED_QUO441_00117 | F124: 0
C125: Inspection of Service Work (Level 1) - Subdivision - Non Urban - Underground - Per Lot (1 - 10) - Grade B | D125: 0 | E125: ED_QUO441_00118 | F125: 0
C126: Inspection of Service Work (Level 1) - Subdivision - Non Urban - Underground - Per Lot (11 - 50) - Grade B | D126: 0 | E126: ED_QUO441_00119 | F126: 0
C127: Inspection of Service Work (Level 1) - Subdivision - Non Urban - Underground - Per Lot (51+) - Grade B | D127: 0 | E127: ED_QUO441_00120 | F127: 0
C128: Inspection of Service Work (Level 1) - Subdivision - Non Urban - Underground - Per Lot (1 - 10) - Grade C | D128: 0 | E128: ED_QUO441_00121 | F128: 0
C129: Inspection of Service Work (Level 1) - Subdivision - Non Urban - Underground - Per Lot (11 - 50) - Grade C | D129: 0 | E129: ED_QUO441_00122 | F129: 0
C130: Inspection of Service Work (Level 1) - Subdivision - Non Urban - Underground - Per Lot (51+) - Grade C | D130: 0 | E130: ED_QUO441_00123 | F130: 0
C131: Inspection of Service Work (Level 1) - Subdivision - Non Urban - Overhead - Per Pole (1 - 5) - Grade A | D131: 0 | E131: ED_QUO441_00124 | F131: 0
C132: Inspection of Service Work (Level 1) - Subdivision - Non Urban - Overhead - Per Pole (6 - 10) - Grade A | D132: 0 | E132: ED_QUO441_00125 | F132: 0
C133: Inspection of Service Work (Level 1) - Subdivision - Non Urban - Overhead - Per Pole (11 +) - Grade A | D133: 0 | E133: ED_QUO441_00126 | F133: 0
C134: Inspection of Service Work (Level 1) - Subdivision - Non Urban - Overhead - Per Pole Sub - Grade A | D134: 0 | E134: ED_QUO441_00127 | F134: 0
C135: Inspection of Service Work (Level 1) - Subdivision - Non Urban - Overhead - Per Pole (1 - 5) - Grade B | D135: 0 | E135: ED_QUO441_00128 | F135: 0
C136: Inspection of Service Work (Level 1) - Subdivision - Non Urban - Overhead - Per Pole (6 - 10) - Grade B | D136: 0 | E136: ED_QUO441_00129 | F136: 0
C137: Inspection of Service Work (Level 1) - Subdivision - Non Urban - Overhead - Per Pole (11 +) - Grade B | D137: 0 | E137: ED_QUO441_00130 | F137: 0
C138: Inspection of Service Work (Level 1) - Subdivision - Non Urban - Overhead - Per Pole Sub - Grade B | D138: 0 | E138: ED_QUO441_00131 | F138: 0
C139: Inspection of Service Work (Level 1) - Subdivision - Non Urban - Overhead - Per Pole (1 - 5) - Grade C | D139: 0 | E139: ED_QUO441_00132 | F139: 0
C140: Inspection of Service Work (Level 1) - Subdivision - Non Urban - Overhead - Per Pole (6 - 10) - Grade C | D140: 0 | E140: ED_QUO441_00133 | F140: 0
C141: Inspection of Service Work (Level 1) - Subdivision - Non Urban - Overhead - Per Pole (11 +) - Grade C | D141: 0 | E141: ED_QUO441_00134 | F141: 0
C142: Inspection of Service Work (Level 1) - Subdivision - Non Urban - Overhead - Per Pole Sub - Grade C | D142: 0 | E142: ED_QUO441_00135 | F142: 0
C143: Inspection of Service Work (Level 1) - Subdivision - Industrial & Commercial - Overhead - Per Pole (1 - 5) - Grade A | D143: 0 | E143: ED_QUO441_00136 | F143: 0
C144: Inspection of Service Work (Level 1) - Subdivision - Industrial & Commercial - Overhead - Per Pole (6 - 10) - Grade A | D144: 0 | E144: ED_QUO441_00137 | F144: 0
C145: Inspection of Service Work (Level 1) - Subdivision - Industrial & Commercial - Overhead - Per Pole (11 +) - Grade A | D145: 0 | E145: ED_QUO441_00138 | F145: 0
C146: Inspection of Service Work (Level 1) - Subdivision - Industrial & Commercial - Overhead - Per Pole Sub - Grade A | D146: 0 | E146: ED_QUO441_00139 | F146: 0
C147: Inspection of Service Work (Level 1) - Subdivision - Industrial & Commercial - Overhead - Per Pole (1 - 5) - Grade B | D147: 0 | E147: ED_QUO441_00140 | F147: 0
C148: Inspection of Service Work (Level 1) - Subdivision - Industrial & Commercial - Overhead - Per Pole (6 - 10) - Grade B | D148: 0 | E148: ED_QUO441_00141 | F148: 0
C149: Inspection of Service Work (Level 1) - Subdivision - Industrial & Commercial - Overhead - Per Pole (11 +) - Grade B | D149: 0 | E149: ED_QUO441_00142 | F149: 0
C150: Inspection of Service Work (Level 1) - Subdivision - Industrial & Commercial - Overhead - Per Pole Sub - Grade B | D150: 0 | E150: ED_QUO441_00143 | F150: 0
C151: Inspection of Service Work (Level 1) - Subdivision - Industrial & Commercial - Overhead - Per Pole (1 - 5) - Grade C | D151: 0 | E151: ED_QUO441_00144 | F151: 0
C152: Inspection of Service Work (Level 1) - Subdivision - Industrial & Commercial - Overhead - Per Pole (6 - 10) - Grade C | D152: 0 | E152: ED_QUO441_00145 | F152: 0
C153: Inspection of Service Work (Level 1) - Subdivision - Industrial & Commercial - Overhead - Per Pole (11 +) - Grade C | D153: 0 | E153: ED_QUO441_00146 | F153: 0
C154: Inspection of Service Work (Level 1) - Subdivision - Industrial & Commercial - Overhead - Per Pole Sub - Grade C | D154: 0 | E154: ED_QUO441_00147 | F154: 0
C155: Inspection of Service Work (Level 1) - Subdivision - Industrial & Commercial - Underground - Per Lot (1 - 10) - Grade A | D155: 0 | E155: ED_QUO441_00148 | F155: 0
C156: Inspection of Service Work (Level 1) - Subdivision - Industrial & Commercial - Underground - Per Lot (11 - 50) - Grade A | D156: 0 | E156: ED_QUO441_00149 | F156: 0
C157: Inspection of Service Work (Level 1) - Subdivision - Industrial & Commercial - Underground - Per Lot (51+) - Grade A | D157: 0 | E157: ED_QUO441_00150 | F157: 0
C158: Inspection of Service Work (Level 1) - Subdivision - Industrial & Commercial - Underground - Per Lot (1 - 10) - Grade B | D158: 0 | E158: ED_QUO441_00151 | F158: 0
C159: Inspection of Service Work (Level 1) - Subdivision - Industrial & Commercial - Underground - Per Lot (11 - 50) - Grade B | D159: 0 | E159: ED_QUO441_00152 | F159: 0
C160: Inspection of Service Work (Level 1) - Subdivision - Industrial & Commercial - Underground - Per Lot (51+) - Grade B | D160: 0 | E160: ED_QUO441_00153 | F160: 0
C161: Inspection of Service Work (Level 1) - Subdivision - Industrial & Commercial - Underground - Per Lot (1 - 10) - Grade C | D161: 0 | E161: ED_QUO441_00154 | F161: 0
C162: Inspection of Service Work (Level 1) - Subdivision - Industrial & Commercial - Underground - Per Lot (11 - 50) - Grade C | D162: 0 | E162: ED_QUO441_00155 | F162: 0
C163: Inspection of Service Work (Level 1) - Subdivision - Industrial & Commercial - Underground - Per Lot (51+) - Grade C | D163: 0 | E163: ED_QUO441_00156 | F163: 0
C164: Inspection of Service Work (Level 1) - Connection of Load - URD - Underground - Per hour + travel time | D164: 230107.26 | E164: ED_QUO441_00157 | F164: 142
C165: Inspection of Service Work (Level 1) - Connection of Load - Non Urban - Underground - Per hour + travel time | D165: 33510.29 | E165: ED_QUO441_00158 | F165: 23
C166: Inspection of Service Work (Level 1) - Connection of Load - Non Urban - Overhead - Per Pole (1 - 5) - Grade A | D166: 0 | E166: ED_QUO441_00159 | F166: 0
C167: Inspection of Service Work (Level 1) - Connection of Load - Non Urban - Overhead - Per Pole (1 - 5) - Grade B | D167: 0 | E167: ED_QUO441_00160 | F167: 0
C168: Inspection of Service Work (Level 1) - Connection of Load - Non Urban - Overhead - Per Pole (1 - 5) - Grade C | D168: 0 | E168: ED_QUO441_00161 | F168: 0
C169: Inspection of Service Work (Level 1) - Connection of Load - Non Urban - Overhead - Per Pole (6 - 10) - Grade A | D169: 0 | E169: ED_QUO441_00162 | F169: 0
C170: Inspection of Service Work (Level 1) - Connection of Load - Non Urban - Overhead - Per Pole (6 - 10) - Grade B | D170: 0 | E170: ED_QUO441_00163 | F170: 0
C171: Inspection of Service Work (Level 1) - Connection of Load - Non Urban - Overhead - Per Pole (6 - 10) - Grade C | D171: 0 | E171: ED_QUO441_00164 | F171: 0
C172: Inspection of Service Work (Level 1) - Connection of Load - Non Urban - Overhead - Per Pole (11 +) - Grade A | D172: 0 | E172: ED_QUO441_00165 | F172: 0
C173: Inspection of Service Work (Level 1) - Connection of Load - Non Urban - Overhead - Per Pole (11 +) - Grade B | D173: 0 | E173: ED_QUO441_00166 | F173: 0
C174: Inspection of Service Work (Level 1) - Connection of Load - Non Urban - Overhead - Per Pole (11 +) - Grade C | D174: 0 | E174: ED_QUO441_00167 | F174: 0
C175: Inspection of Service Work (Level 1) - Connection of Load - Non Urban - Overhead - Per Pole Sub - Grade A | D175: 0 | E175: ED_QUO441_00168 | F175: 0
C176: Inspection of Service Work (Level 1) - Connection of Load - Non Urban - Overhead - Per Pole Sub - Grade B | D176: 0 | E176: ED_QUO441_00169 | F176: 0
C177: Inspection of Service Work (Level 1) - Connection of Load - Non Urban - Overhead - Per Pole Sub - Grade C | D177: 0 | E177: ED_QUO441_00170 | F177: 0
C178: Inspection of Service Work (Level 1) - Connection of Load - Industrial & Commercial - Underground - Per Hour + travel time | D178: 365291.94 | E178: ED_QUO441_00171 | F178: 199
C179: Inspection of Service Work (Level 1) - Connection of Load - Industrial & Commercial - Overhead - Per Pole (1 - 5) - Grade A | D179: 0 | E179: ED_QUO441_00172 | F179: 0
C180: Inspection of Service Work (Level 1) - Connection of Load - Industrial & Commercial - Overhead - Per Pole (1 - 5) - Grade B | D180: 0 | E180: ED_QUO441_00173 | F180: 0
C181: Inspection of Service Work (Level 1) - Connection of Load - Industrial & Commercial - Overhead - Per Pole (1 - 5) - Grade C | D181: 0 | E181: ED_QUO441_00174 | F181: 0
C182: Inspection of Service Work (Level 1) - Connection of Load - Industrial & Commercial - Overhead - Per Pole (6 - 10) - Grade A | D182: 0 | E182: ED_QUO441_00175 | F182: 0
C183: Inspection of Service Work (Level 1) - Connection of Load - Industrial & Commercial - Overhead - Per Pole (6 - 10) - Grade B | D183: 0 | E183: ED_QUO441_00176 | F183: 0
C184: Inspection of Service Work (Level 1) - Connection of Load - Industrial & Commercial - Overhead - Per Pole (6 - 10) - Grade C | D184: 0 | E184: ED_QUO441_00177 | F184: 0
C185: Inspection of Service Work (Level 1) - Connection of Load - Industrial & Commercial - Overhead - Per Pole (11+) - Grade A | D185: 0 | E185: ED_QUO441_00178 | F185: 0
C186: Inspection of Service Work (Level 1) - Connection of Load - Industrial & Commercial - Overhead - Per Pole (11+) - Grade B | D186: 0 | E186: ED_QUO441_00179 | F186: 0
C187: Inspection of Service Work (Level 1) - Connection of Load - Industrial & Commercial - Overhead - Per Pole (11+) - Grade C | D187: 0 | E187: ED_QUO441_00180 | F187: 0
C188: Inspection of Service Work (Level 1) - Connection of Load - Industrial & Commercial - Overhead - Per Pole Sub - Grade A | D188: 0 | E188: ED_QUO441_00181 | F188: 0
C189: Inspection of Service Work (Level 1) - Connection of Load - Industrial & Commercial - Overhead - Per Pole Sub - Grade B | D189: 0 | E189: ED_QUO441_00182 | F189: 0
C190: Inspection of Service Work (Level 1) - Connection of Load - Industrial & Commercial - Overhead - Per Pole Sub - Grade C | D190: 0 | E190: ED_QUO441_00183 | F190: 0
C191: Inspection of Service Work (Level 1) - Other - Asset Relocation - Underground - Per Hour + travel time | D191: 386874.45 | E191: ED_QUO441_00184 | F191: 152
C192: Inspection of Service Work (Level 1) - Other - Public Lighting - Underground - Per Hour + travel time | D192: 55729.63 | E192: ED_QUO441_00185 | F192: 46
C193: Access Permits - Subdivision - URD - Per Lot | D193: 0 | E193: ED_QUO441_00186 | F193: 0
C194: Access Permits - All Other - Industrial & Commercial | D194: 0 | E194: ED_QUO441_00187 | F194: 0
C195: Access Permits - All Other - Non Urban | D195: 0 | E195: ED_QUO441_00188 | F195: 0
C196: Access Permits - All Other - URD | D196: 0 | E196: ED_QUO441_00189 | F196: 0
C197: Access Permits - All Other - Asset Relocation | D197: 0 | E197: ED_QUO441_00190 | F197: 0
C198: Access Permits - All Other - Public Lighting | D198: 0 | E198: ED_QUO441_00191 | F198: 0
C199: Substation Commissioning Fee - Subdivision - URD - Per Lot | D199: 0 | E199: ED_QUO441_00192 | F199: 0
C200: Substation Commissioning Fee - All Other - Industrial & Commercial | D200: 0 | E200: ED_QUO441_00193 | F200: 0
C201: Substation Commissioning Fee - All Other - Non Urban | D201: 0 | E201: ED_QUO441_00194 | F201: 0
... 280 more rows

Sheet 5.2 Asset Age Profile
B1: REGULATORY REPORTING STATEMENT
B2: =INDEX(dms_TradingNameFull_List,MATCH(dms_TradingName,dms_TradingName_List)) -> Endeavour Energy
B3: =CONCATENATE((LOOKUP(dms_Model,dms_Model_List,dms_Worksheet_List))&" "&CRY) -> CATEGORY ANALYSIS 2017-18
B4: 5.2 ASSET AGE PROFILE
B6: There is ONE table on this worksheet. Both the ROWS and COLUMNS have been 'grouped' for easy navigation. See the Instructions sheet on how to group or ungroup data.
B8: 5.2.1 - ASSET AGE PROFILE
D9: ECONOMIC LIFE (YEARS) | F9: INSTALLED ASSETS -˃ QUANTITY CURRENTLY IN COMMISSION BY YEAR
B10: ASSET GROUP | C10: ASSET CATEGORY | D10: MEAN | E10: STANDARD DEVIATION | F10: =CRY -> 2017-18 | G10: =IF(dms_RPT="financial",(VALUE(LEFT(F10,4)-1)&"-"&MID(F10,3,2)),VALUE(LEFT(F10,4)-1)) -> 2016-17 | H10: =IF(dms_RPT="financial",(VALUE(LEFT(G10,4)-1)&"-"&MID(G10,3,2)),VALUE(LEFT(G10,4)-1)) -> 2015-16 | I10: 2014-15 | J10: 2013-14 | K10: 2012-13 | L10: 2011-12 | M10: 2010-11 | N10: 2009-10 | O10: 2008-09 | P10: 2007-08 | Q10: 2006-07 | R10: 2005-06 | S10: 2004-05 | T10: 2003-04 | U10: 2002-03 | V10: 2001-02 | W10: 2000-01 | X10: 1999-00 | Y10: 1998-99 | Z10: 1997-98 | AA10: 1996-97 | AB10: 1995-96 | AC10: 1994-95 | AD10: 1993-94 | AE10: 1992-93 | AF10: 1991-92 | AG10: 1990-91 | AH10: 1989-90 | AI10: 1988-89 | AJ10: 1987-88 | AK10: 1986-87 | AL10: 1985-86 | AM10: =IF(dms_RPT="financial",(VALUE(LEFT(AL10,4)-1)&"-"&MID(AL10,3,2)),VALUE(LEFT(AL10,4)-1)) -> 1984-85 | AN10: 1983-84 | AO10: 1982-83 | AP10: 1981-82 | AQ10: 1980-81 | AR10: 1979-80 | AS10: 1978-79 | AT10: 1977-78 | AU10: 1976-77 | AV10: 1975-76 | AW10: 1974-75 | AX10: 1973-74 | AY10: 1972-73 | AZ10: 1971-72 | BA10: 1970-71 | BB10: 1969-70 | BC10: 1968-69 | BD10: 1967-68 | BE10: 1966-67 | BF10: 1965-66 | BG10: 1964-65 | BH10: 1963-64 | BI10: 1962-63 | BJ10: 1961-62 | BK10: 1960-61 | BL10: 1959-60 | BM10: 1958-59 | BN10: 1957-58 | BO10: 1956-57 | BP10: 1955-56 | BQ10: 1954-55 | BR10: 1953-54 | BS10: =IF(dms_RPT="financial",(VALUE(LEFT(BR10,4)-1)&"-"&MID(BR10,3,2)),VALUE(LEFT(BR10,4)-1)) -> 1952-53 | BT10: 1951-52 | BU10: 1950-51 | BV10: 1949-50 | BW10: 1948-49 | BX10: 1947-48 | BY10: 1946-47 | BZ10: 1945-46 | CA10: 1944-45 | CB10: 1943-44 | CC10: 1942-43 | CD10: 1941-42 | CE10: 1940-41 | CF10: 1939-40 | CG10: 1938-39 | CH10: 1937-38 | CI10: 1936-37 | CJ10: 1935-36 | CK10: 1934-35 | CL10: 1933-34 | CM10: 1932-33 | CN10: 1931-32 | CO10: 1930-31 | CP10: 1929-30 | CQ10: 1928-29 | CR10: 1927-28 | CS10: 1926-27 | CT10: 1925-26 | CU10: 1924-25 | CV10: 1923-24 | CW10: 1922-23 | CX10: 1921-22 | CY10: =IF(dms_RPT="financial",(VALUE(LEFT(CX10,4)-1)&"-"&MID(CX10,3,2)),VALUE(LEFT(CX10,4)-1)) -> 1920-21 | CZ10: 1919-20 | DA10: 1918-19 | DB10: 1917-18 | DC10: 1916-17 | DD10: 1915-16 | DE10: 1914-15 | DF10: 1913-14 | DG10: 1912-13 | DH10: =IF(dms_RPT="financial",(VALUE(LEFT(DG10,4)-1)&"-"&MID(DG10,3,2)),VALUE(LEFT(DG10,4)-1)) -> 1911-12 | DI10: =IF(dms_RPT="financial",(VALUE(LEFT(DH10,4)-1)&"-"&MID(DH10,3,2)),VALUE(LEFT(DH10,4)-1)) -> 1910-11 | DJ10: =IF(dms_RPT="financial",(VALUE(LEFT(DI10,4)-1)&"-"&MID(DI10,3,2)),VALUE(LEFT(DI10,4)-1)) -> 1909-10
B11: POLES BY: HIGHEST OPERATING VOLTAGE ; MATERIAL TYPE; STAKING (IF WOOD) | C11: Staking of a wooden pole | F11: 180 | G11: 370 | H11: 298 | I11: 295 | J11: 186 | K11: 245 | L11: 330 | M11: 420 | N11: 242 | O11: 339 | P11: 175 | Q11: 211 | R11: 191 | S11: 294 | T11: 452 | U11: 568 | V11: 528 | W11: 933 | X11: 70 | Y11: 25 | Z11: 34 | AA11: 0 | AB11: 0 | AC11: 0 | AD11: 0 | AE11: 0 | AF11: 0 | AG11: 0 | AH11: 0 | AI11: 0 | AJ11: 0 | AK11: 0 | AL11: 0 | AM11: 0 | AN11: 0 | AO11: 0 | AP11: 0 | AQ11: 0 | AR11: 0 | AS11: 0 | AT11: 0 | AU11: 0 | AV11: 0 | AW11: 0 | AX11: 0 | AY11: 0 | AZ11: 0 | BA11: 0 | BB11: 0 | BC11: 0 | BD11: 0 | BE11: 0 | BF11: 0 | BG11: 0 | BH11: 0 | BI11: 0 | BJ11: 0 | BK11: 0 | BL11: 0 | BM11: 0 | BN11: 0 | BO11: 0 | BP11: 0 | BQ11: 0 | BR11: 0 | BS11: 0 | BT11: 0 | BU11: 0 | BV11: 0 | BW11: 0 | BX11: 0 | BY11: 0 | BZ11: 0 | CA11: 0 | CB11: 0 | CC11: 0 | CD11: 0 | CE11: 0 | CF11: 0
C12: ˂ = 1 kV; Wood | D12: 55 | E12: 7.416198487 | F12: 1910 | G12: 829 | H12: 1143 | I12: 1188 | J12: 817 | K12: 1108 | L12: 839 | M12: 673 | N12: 655 | O12: 711 | P12: 2796 | Q12: 2312 | R12: 2742 | S12: 2489 | T12: 3063 | U12: 2775 | V12: 2958 | W12: 3163 | X12: 3437 | Y12: 3325 | Z12: 3464 | AA12: 2778 | AB12: 2868 | AC12: 2706 | AD12: 2634 | AE12: 2816 | AF12: 2309 | AG12: 2706 | AH12: 3827 | AI12: 3753 | AJ12: 3981 | AK12: 4256 | AL12: 4091 | AM12: 3437 | AN12: 3325 | AO12: 3219 | AP12: 3163 | AQ12: 3302 | AR12: 3143 | AS12: 3549 | AT12: 3180 | AU12: 2662 | AV12: 2419 | AW12: 2200 | AX12: 2000 | AY12: 1819 | AZ12: 1653 | BA12: 1503 | BB12: 1366 | BC12: 1242 | BD12: 1129 | BE12: 1027 | BF12: 934 | BG12: 848 | BH12: 770 | BI12: 701 | BJ12: 637 | BK12: 578 | BL12: 526 | BM12: 478 | BN12: 434 | BO12: 361 | BP12: 301 | BQ12: 252 | BR12: 209 | BS12: 175 | BT12: 146 | BU12: 121 | BV12: 0 | BW12: 0 | BX12: 0 | BY12: 0 | BZ12: 0 | CA12: 0 | CB12: 0 | CC12: 0 | CD12: 0 | CE12: 0 | CF12: 0
C13: > 1 kV & < = 11 kV; Wood | D13: 55 | E13: 7.416198487 | F13: 2769 | G13: 2063 | H13: 2414 | I13: 2234 | J13: 2962 | K13: 2221 | L13: 1881 | M13: 1846 | N13: 1438 | O13: 1344 | P13: 2383 | Q13: 2749 | R13: 2337 | S13: 2015 | T13: 2612 | U13: 2249 | V13: 2395 | W13: 2697 | X13: 2930 | Y13: 2836 | Z13: 2954 | AA13: 2250 | AB13: 2323 | AC13: 2192 | AD13: 2133 | AE13: 2279 | AF13: 1870 | AG13: 2192 | AH13: 3099 | AI13: 3039 | AJ13: 3395 | AK13: 3628 | AL13: 3488 | AM13: 2930 | AN13: 2836 | AO13: 2744 | AP13: 2697 | AQ13: 2815 | AR13: 2680 | AS13: 2874 | AT13: 2575 | AU13: 2156 | AV13: 1961 | AW13: 1782 | AX13: 1620 | AY13: 1472 | AZ13: 1338 | BA13: 1216 | BB13: 1105 | BC13: 1004 | BD13: 913 | BE13: 831 | BF13: 755 | BG13: 687 | BH13: 624 | BI13: 567 | BJ13: 515 | BK13: 469 | BL13: 426 | BM13: 388 | BN13: 352 | BO13: 293 | BP13: 244 | BQ13: 203 | BR13: 169 | BS13: 141 | BT13: 119 | BU13: 99 | BV13: 0 | BW13: 0 | BX13: 0 | BY13: 0 | BZ13: 0 | CA13: 0 | CB13: 0 | CC13: 0 | CD13: 0 | CE13: 0 | CF13: 0
C14: ˃ 11 kV & < = 22 kV; Wood | D14: 55 | E14: 7.416198487 | F14: 124 | G14: 143 | H14: 224 | I14: 108 | J14: 153 | K14: 54 | L14: 20 | M14: 34 | N14: 36 | O14: 72 | P14: 31 | Q14: 35 | R14: 30 | S14: 47 | T14: 34 | U14: 52 | V14: 56 | W14: 35 | X14: 38 | Y14: 36 | Z14: 38 | AA14: 54 | AB14: 54 | AC14: 52 | AD14: 49 | AE14: 54 | AF14: 45 | AG14: 52 | AH14: 72 | AI14: 72 | AJ14: 42 | AK14: 45 | AL14: 43 | AM14: 38 | AN14: 36 | AO14: 35 | AP14: 35 | AQ14: 36 | AR14: 34 | AS14: 67 | AT14: 61 | AU14: 49 | AV14: 45 | AW14: 40 | AX14: 36 | AY14: 34 | AZ14: 32 | BA14: 29 | BB14: 27 | BC14: 25 | BD14: 22 | BE14: 20 | BF14: 18 | BG14: 15 | BH14: 13 | BI14: 12 | BJ14: 12 | BK14: 12 | BL14: 12 | BM14: 12 | BN14: 12 | BO14: 9 | BP14: 7 | BQ14: 7 | BR14: 7 | BS14: 7 | BT14: 7 | BU14: 7 | BV14: 0 | BW14: 0 | BX14: 0 | BY14: 0 | BZ14: 0 | CA14: 0 | CB14: 0 | CC14: 0 | CD14: 0 | CE14: 0 | CF14: 0
C15: > 22 kV & < = 66 kV; Wood | D15: 55 | E15: 7.416198487 | F15: 456 | G15: 329 | H15: 278 | I15: 202 | J15: 154 | K15: 140 | L15: 93 | M15: 242 | N15: 105 | O15: 174 | P15: 381 | Q15: 440 | R15: 373 | S15: 269 | T15: 419 | U15: 298 | V15: 318 | W15: 428 | X15: 464 | Y15: 450 | Z15: 468 | AA15: 299 | AB15: 308 | AC15: 291 | AD15: 284 | AE15: 303 | AF15: 249 | AG15: 291 | AH15: 412 | AI15: 403 | AJ15: 538 | AK15: 576 | AL15: 551 | AM15: 464 | AN15: 450 | AO15: 435 | AP15: 428 | AQ15: 446 | AR15: 425 | AS15: 381 | AT15: 341 | AU15: 288 | AV15: 262 | AW15: 238 | AX15: 216 | AY15: 197 | AZ15: 178 | BA15: 163 | BB15: 148 | BC15: 135 | BD15: 123 | BE15: 111 | BF15: 101 | BG15: 92 | BH15: 83 | BI15: 77 | BJ15: 70 | BK15: 63 | BL15: 57 | BM15: 52 | BN15: 47 | BO15: 39 | BP15: 33 | BQ15: 27 | BR15: 23 | BS15: 19 | BT15: 16 | BU15: 14 | BV15: 0 | BW15: 0 | BX15: 0 | BY15: 0 | BZ15: 0 | CA15: 0 | CB15: 0 | CC15: 0 | CD15: 0 | CE15: 0 | CF15: 0
C16: > 66 kV & < = 132 kV; Wood | D16: 55 | E16: 7.416198487 | F16: 48 | G16: 57 | H16: 56 | I16: 43 | J16: 45 | K16: 3 | L16: 41 | M16: 34 | N16: 16 | O16: 6 | P16: 59 | Q16: 68 | R16: 58 | S16: 47 | T16: 64 | U16: 54 | V16: 57 | W16: 69 | X16: 75 | Y16: 72 | Z16: 75 | AA16: 54 | AB16: 56 | AC16: 52 | AD16: 51 | AE16: 55 | AF16: 44 | AG16: 52 | AH16: 74 | AI16: 71 | AJ16: 87 | AK16: 93 | AL16: 90 | AM16: 75 | AN16: 72 | AO16: 70 | AP16: 69 | AQ16: 71 | AR16: 69 | AS16: 68 | AT16: 61 | AU16: 51 | AV16: 47 | AW16: 42 | AX16: 39 | AY16: 35 | AZ16: 32 | BA16: 28 | BB16: 26 | BC16: 23 | BD16: 21 | BE16: 20 | BF16: 17 | BG16: 16 | BH16: 15 | BI16: 14 | BJ16: 13 | BK16: 12 | BL16: 10 | BM16: 9 | BN16: 8 | BO16: 7 | BP16: 6 | BQ16: 5 | BR16: 3 | BS16: 3 | BT16: 3 | BU16: 3 | BV16: 0 | BW16: 0 | BX16: 0 | BY16: 0 | BZ16: 0 | CA16: 0 | CB16: 0 | CC16: 0 | CD16: 0 | CE16: 0 | CF16: 0
C17: > 132 kV; Wood | D17: 0 | E17: 0 | G17: 0 | H17: 0 | I17: 0 | J17: 0 | K17: 0 | L17: 0 | M17: 0 | N17: 0 | O17: 0 | P17: 0 | Q17: 0 | R17: 0 | S17: 0 | T17: 0 | U17: 0 | V17: 0 | W17: 0 | X17: 0 | Y17: 0 | Z17: 0 | AA17: 0 | AB17: 0 | AC17: 0 | AD17: 0 | AE17: 0 | AF17: 0 | AG17: 0 | AH17: 0 | AI17: 0 | AJ17: 0 | AK17: 0 | AL17: 0 | AM17: 0 | AN17: 0 | AO17: 0 | AP17: 0 | AQ17: 0 | AR17: 0 | AS17: 0 | AT17: 0 | AU17: 0 | AV17: 0 | AW17: 0 | AX17: 0 | AY17: 0 | AZ17: 0 | BA17: 0 | BB17: 0 | BC17: 0 | BD17: 0 | BE17: 0 | BF17: 0 | BG17: 0 | BH17: 0 | BI17: 0 | BJ17: 0 | BK17: 0 | BL17: 0 | BM17: 0 | BN17: 0 | BO17: 0 | BP17: 0 | BQ17: 0 | BR17: 0 | BS17: 0 | BT17: 0 | BU17: 0 | BV17: 0 | BW17: 0 | BX17: 0 | BY17: 0 | BZ17: 0 | CA17: 0 | CB17: 0 | CC17: 0 | CD17: 0 | CE17: 0 | CF17: 0
C18: ˂ = 1 kV; Concrete | D18: 55 | E18: 7.416198487 | F18: 73 | G18: 68 | H18: 137 | I18: 120 | J18: 159 | K18: 303 | L18: 288 | M18: 341 | N18: 456 | O18: 439 | P18: 258 | Q18: 170 | R18: 121 | S18: 421 | T18: 43 | U18: 0 | V18: 0 | W18: 0 | X18: 4 | Y18: 8 | Z18: 0 | AA18: 111 | AB18: 155 | AC18: 283 | AD18: 190 | AE18: 142 | AF18: 0 | AG18: 2 | AH18: 0 | AI18: 0 | AJ18: 0 | AK18: 0 | AL18: 0 | AM18: 0 | AN18: 0 | AO18: 0 | AP18: 0 | AQ18: 0 | AR18: 0 | AS18: 0 | AT18: 0 | AU18: 0 | AV18: 0 | AW18: 0 | AX18: 0 | AY18: 0 | AZ18: 0 | BA18: 0 | BB18: 0 | BC18: 0 | BD18: 0 | BE18: 0 | BF18: 0 | BG18: 0 | BH18: 0 | BI18: 0 | BJ18: 0 | BK18: 0 | BL18: 0 | BM18: 0 | BN18: 0 | BO18: 0 | BP18: 0 | BQ18: 0 | BR18: 0 | BS18: 0 | BT18: 0 | BU18: 0 | BV18: 0 | BW18: 0 | BX18: 0 | BY18: 0 | BZ18: 0 | CA18: 0 | CB18: 0 | CC18: 0 | CD18: 0 | CE18: 0 | CF18: 0
C19: > 1 kV & < = 11 kV; Concrete | D19: 55 | E19: 7.416198487 | F19: 447 | G19: 204 | H19: 237 | I19: 288 | J19: 572 | K19: 722 | L19: 530 | M19: 582 | N19: 803 | O19: 1231 | P19: 2051 | Q19: 1442 | R19: 939 | S19: 876 | T19: 153 | U19: 21 | V19: 0 | W19: 0 | X19: 4 | Y19: 7 | Z19: 0 | AA19: 46 | AB19: 70 | AC19: 70 | AD19: 159 | AE19: 82 | AF19: 0 | AG19: 1 | AH19: 0 | AI19: 1 | AJ19: 0 | AK19: 0 | AL19: 0 | AM19: 0 | AN19: 1 | AO19: 1 | AP19: 0 | AQ19: 1 | AR19: 1 | AS19: 0 | AT19: 0 | AU19: 0 | AV19: 0 | AW19: 0 | AX19: 0 | AY19: 0 | AZ19: 0 | BA19: 0 | BB19: 0 | BC19: 0 | BD19: 0 | BE19: 0 | BF19: 0 | BG19: 0 | BH19: 0 | BI19: 0 | BJ19: 0 | BK19: 0 | BL19: 0 | BM19: 0 | BN19: 0 | BO19: 0 | BP19: 0 | BQ19: 0 | BR19: 0 | BS19: 0 | BT19: 0 | BU19: 0 | BV19: 0 | BW19: 0 | BX19: 0 | BY19: 0 | BZ19: 0 | CA19: 0 | CB19: 0 | CC19: 0 | CD19: 0 | CE19: 0 | CF19: 0
C20: ˃ 11 kV & < = 22 kV; Concrete | D20: 55 | E20: 7.416198487 | F20: 91 | G20: 11 | H20: 17 | I20: 0 | J20: 6 | K20: 244 | L20: 72 | M20: 0 | N20: 247 | O20: 57 | P20: 215 | Q20: 28 | R20: 14 | S20: 9 | T20: 11 | U20: 0 | V20: 0 | W20: 0 | X20: 0 | Y20: 25 | Z20: 0 | AA20: 0 | AB20: 17 | AC20: 31 | AD20: 26 | AE20: 15 | AF20: 0 | AG20: 0 | AH20: 0 | AI20: 0 | AJ20: 0 | AK20: 0 | AL20: 0 | AM20: 0 | AN20: 0 | AO20: 0 | AP20: 0 | AQ20: 0 | AR20: 0 | AS20: 0 | AT20: 0 | AU20: 0 | AV20: 0 | AW20: 0 | AX20: 0 | AY20: 0 | AZ20: 0 | BA20: 0 | BB20: 0 | BC20: 0 | BD20: 0 | BE20: 0 | BF20: 0 | BG20: 0 | BH20: 0 | BI20: 0 | BJ20: 0 | BK20: 0 | BL20: 0 | BM20: 0 | BN20: 0 | BO20: 0 | BP20: 0 | BQ20: 0 | BR20: 0 | BS20: 0 | BT20: 0 | BU20: 0 | BV20: 0 | BW20: 0 | BX20: 0 | BY20: 0 | BZ20: 0 | CA20: 0 | CB20: 0 | CC20: 0 | CD20: 0 | CE20: 0 | CF20: 0
C21: > 22 kV & < = 66 kV; Concrete | D21: 55 | E21: 7.416198487 | F21: 143 | G21: 43 | H21: 29 | I21: 0 | J21: 24 | K21: 13 | L21: 127 | M21: 666 | N21: 72 | O21: 99 | P21: 141 | Q21: 283 | R21: 211 | S21: 169 | T21: 35 | U21: 0 | V21: 0 | W21: 5 | X21: 8 | Y21: 0 | Z21: 0 | AA21: 0 | AB21: 978 | AC21: 61 | AD21: 0 | AE21: 0 | AF21: 0 | AG21: 0 | AH21: 0 | AI21: 3 | AJ21: 3 | AK21: 0 | AL21: 0 | AM21: 0 | AN21: 0 | AO21: 3 | AP21: 5 | AQ21: 0 | AR21: 2 | AS21: 0 | AT21: 3 | AU21: 0 | AV21: 0 | AW21: 0 | AX21: 1 | AY21: 0 | AZ21: 3 | BA21: 7 | BB21: 1 | BC21: 3 | BD21: 0 | BE21: 0 | BF21: 3 | BG21: 0 | BH21: 0 | BI21: 0 | BJ21: 0 | BK21: 0 | BL21: 0 | BM21: 0 | BN21: 0 | BO21: 0 | BP21: 0 | BQ21: 0 | BR21: 0 | BS21: 0 | BT21: 0 | BU21: 0 | BV21: 0 | BW21: 0 | BX21: 0 | BY21: 0 | BZ21: 0 | CA21: 0 | CB21: 0 | CC21: 0 | CD21: 0 | CE21: 0 | CF21: 0
C22: > 66 kV & < = 132 kV; Concrete | D22: 55 | E22: 7.416198487 | F22: 33 | G22: 8 | H22: 9 | I22: 2 | J22: 48 | K22: 2 | L22: 0 | M22: 213 | N22: 76 | O22: 48 | P22: 116 | Q22: 807 | R22: 190 | S22: 140 | T22: 33 | U22: 2 | V22: 0 | W22: 0 | X22: 11 | Y22: 0 | Z22: 0 | AA22: 9 | AB22: 430 | AC22: 1 | AD22: 0 | AE22: 0 | AF22: 0 | AG22: 1 | AH22: 0 | AI22: 2 | AJ22: 0 | AK22: 0 | AL22: 0 | AM22: 0 | AN22: 0 | AO22: 2 | AP22: 0 | AQ22: 0 | AR22: 0 | AS22: 0 | AT22: 0 | AU22: 0 | AV22: 0 | AW22: 0 | AX22: 0 | AY22: 0 | AZ22: 7 | BA22: 0 | BB22: 0 | BC22: 0 | BD22: 0 | BE22: 0 | BF22: 0 | BG22: 2 | BH22: 0 | BI22: 0 | BJ22: 0 | BK22: 0 | BL22: 0 | BM22: 0 | BN22: 0 | BO22: 0 | BP22: 0 | BQ22: 0 | BR22: 0 | BS22: 0 | BT22: 0 | BU22: 0 | BV22: 0 | BW22: 0 | BX22: 0 | BY22: 0 | BZ22: 0 | CA22: 0 | CB22: 0 | CC22: 0 | CD22: 0 | CE22: 0 | CF22: 0
C23: > 132 kV; Concrete | D23: 0 | E23: 0 | G23: 0 | H23: 0 | I23: 0 | J23: 0 | K23: 0 | L23: 0 | M23: 0 | N23: 0 | O23: 0 | P23: 0 | Q23: 0 | R23: 0 | S23: 0 | T23: 0 | U23: 0 | V23: 0 | W23: 0 | X23: 0 | Y23: 0 | Z23: 0 | AA23: 0 | AB23: 0 | AC23: 0 | AD23: 0 | AE23: 0 | AF23: 0 | AG23: 0 | AH23: 0 | AI23: 0 | AJ23: 0 | AK23: 0 | AL23: 0 | AM23: 0 | AN23: 0 | AO23: 0 | AP23: 0 | AQ23: 0 | AR23: 0 | AS23: 0 | AT23: 0 | AU23: 0 | AV23: 0 | AW23: 0 | AX23: 0 | AY23: 0 | AZ23: 0 | BA23: 0 | BB23: 0 | BC23: 0 | BD23: 0 | BE23: 0 | BF23: 0 | BG23: 0 | BH23: 0 | BI23: 0 | BJ23: 0 | BK23: 0 | BL23: 0 | BM23: 0 | BN23: 0 | BO23: 0 | BP23: 0 | BQ23: 0 | BR23: 0 | BS23: 0 | BT23: 0 | BU23: 0 | BV23: 0 | BW23: 0 | BX23: 0 | BY23: 0 | BZ23: 0 | CA23: 0 | CB23: 0 | CC23: 0 | CD23: 0 | CE23: 0 | CF23: 0
C24: ˂ = 1 kV; Steel | D24: 55 | E24: 7.416198487 | F24: 11 | G24: 36 | H24: 86 | I24: 0 | J24: 11 | K24: 142 | L24: 93 | M24: 11 | N24: 34 | O24: 71 | P24: 15 | Q24: 7 | R24: 15 | S24: 120 | T24: 367 | U24: 22 | V24: 0 | W24: 0 | X24: 0 | Y24: 0 | Z24: 0 | AA24: 7 | AB24: 0 | AC24: 7 | AD24: 22 | AE24: 11 | AF24: 4 | AG24: 0 | AH24: 4 | AI24: 0 | AJ24: 1 | AK24: 0 | AL24: 0 | AM24: 0 | AN24: 0 | AO24: 0 | AP24: 0 | AQ24: 0 | AR24: 0 | AS24: 0 | AT24: 0 | AU24: 0 | AV24: 0 | AW24: 0 | AX24: 0 | AY24: 0 | AZ24: 0 | BA24: 0 | BB24: 0 | BC24: 0 | BD24: 0 | BE24: 0 | BF24: 0 | BG24: 0 | BH24: 0 | BI24: 0 | BJ24: 0 | BK24: 0 | BL24: 0 | BM24: 0 | BN24: 0 | BO24: 0 | BP24: 0 | BQ24: 0 | BR24: 0 | BS24: 0 | BT24: 0 | BU24: 0 | BV24: 0 | BW24: 0 | BX24: 0 | BY24: 0 | BZ24: 0 | CA24: 0 | CB24: 0 | CC24: 0 | CD24: 0 | CE24: 0 | CF24: 0
C25: > 1 kV & < = 11 kV; Steel | D25: 55 | E25: 7.416198487 | F25: 27 | G25: 91 | H25: 30 | I25: 0 | J25: 0 | K25: 14 | L25: 3 | M25: 6 | N25: 14 | O25: 49 | P25: 13 | Q25: 55 | R25: 28 | S25: 6 | T25: 37 | U25: 10 | V25: 1 | W25: 0 | X25: 2 | Y25: 0 | Z25: 0 | AA25: 0 | AB25: 0 | AC25: 0 | AD25: 0 | AE25: 4 | AF25: 0 | AG25: 0 | AH25: 0 | AI25: 0 | AJ25: 0 | AK25: 0 | AL25: 0 | AM25: 0 | AN25: 0 | AO25: 0 | AP25: 0 | AQ25: 0 | AR25: 0 | AS25: 0 | AT25: 0 | AU25: 0 | AV25: 0 | AW25: 0 | AX25: 0 | AY25: 0 | AZ25: 0 | BA25: 0 | BB25: 1 | BC25: 0 | BD25: 0 | BE25: 0 | BF25: 0 | BG25: 0 | BH25: 0 | BI25: 0 | BJ25: 0 | BK25: 0 | BL25: 0 | BM25: 0 | BN25: 0 | BO25: 0 | BP25: 0 | BQ25: 0 | BR25: 0 | BS25: 0 | BT25: 0 | BU25: 0 | BV25: 0 | BW25: 0 | BX25: 0 | BY25: 0 | BZ25: 0 | CA25: 0 | CB25: 0 | CC25: 0 | CD25: 0 | CE25: 0 | CF25: 0
C26: ˃ 11 kV & < = 22 kV; Steel | D26: 55 | E26: 7.416198487 | F26: 17 | G26: 72 | H26: 93 | I26: 25 | J26: 0 | K26: 0 | L26: 0 | M26: 0 | N26: 97 | O26: 0 | P26: 0 | Q26: 0 | R26: 0 | S26: 0 | T26: 0 | U26: 0 | V26: 0 | W26: 0 | X26: 0 | Y26: 0 | Z26: 0 | AA26: 0 | AB26: 0 | AC26: 0 | AD26: 0 | AE26: 0 | AF26: 0 | AG26: 0 | AH26: 0 | AI26: 0 | AJ26: 0 | AK26: 0 | AL26: 0 | AM26: 0 | AN26: 0 | AO26: 0 | AP26: 0 | AQ26: 0 | AR26: 0 | AS26: 0 | AT26: 0 | AU26: 0 | AV26: 0 | AW26: 0 | AX26: 0 | AY26: 0 | AZ26: 0 | BA26: 0 | BB26: 0 | BC26: 0 | BD26: 0 | BE26: 0 | BF26: 0 | BG26: 0 | BH26: 0 | BI26: 0 | BJ26: 0 | BK26: 0 | BL26: 0 | BM26: 0 | BN26: 0 | BO26: 0 | BP26: 0 | BQ26: 0 | BR26: 0 | BS26: 0 | BT26: 0 | BU26: 0 | BV26: 0 | BW26: 0 | BX26: 0 | BY26: 0 | BZ26: 0 | CA26: 0 | CB26: 0 | CC26: 0 | CD26: 0 | CE26: 0 | CF26: 0
C27: > 22 kV & < = 66 kV; Steel | D27: 55 | E27: 7.416198487 | F27: 13 | G27: 67 | H27: 49 | I27: 0 | J27: 4 | K27: 59 | L27: 47 | M27: 66 | N27: 0 | O27: 0 | P27: 40 | Q27: 0 | R27: 14 | S27: 43 | T27: 8 | U27: 7 | V27: 0 | W27: 0 | X27: 0 | Y27: 0 | Z27: 0 | AA27: 0 | AB27: 0 | AC27: 0 | AD27: 0 | AE27: 0 | AF27: 0 | AG27: 0 | AH27: 0 | AI27: 0 | AJ27: 0 | AK27: 0 | AL27: 0 | AM27: 0 | AN27: 0 | AO27: 0 | AP27: 0 | AQ27: 0 | AR27: 0 | AS27: 0 | AT27: 0 | AU27: 0 | AV27: 0 | AW27: 0 | AX27: 0 | AY27: 0 | AZ27: 0 | BA27: 0 | BB27: 0 | BC27: 0 | BD27: 0 | BE27: 0 | BF27: 0 | BG27: 0 | BH27: 0 | BI27: 0 | BJ27: 0 | BK27: 0 | BL27: 0 | BM27: 0 | BN27: 0 | BO27: 0 | BP27: 0 | BQ27: 0 | BR27: 0 | BS27: 0 | BT27: 0 | BU27: 0 | BV27: 0 | BW27: 0 | BX27: 0 | BY27: 0 | BZ27: 0 | CA27: 0 | CB27: 0 | CC27: 0 | CD27: 0 | CE27: 0 | CF27: 0
C28: > 66 kV & < = 132 kV; Steel | D28: 55 | E28: 7.416198487 | F28: 0 | G28: 2 | H28: 0 | I28: 0 | J28: 0 | K28: 0 | L28: 0 | M28: 0 | N28: 0 | O28: 0 | P28: 97 | Q28: 51 | R28: 0 | S28: 0 | T28: 12 | U28: 0 | V28: 0 | W28: 0 | X28: 0 | Y28: 0 | Z28: 0 | AA28: 0 | AB28: 0 | AC28: 0 | AD28: 0 | AE28: 0 | AF28: 0 | AG28: 0 | AH28: 0 | AI28: 0 | AJ28: 0 | AK28: 0 | AL28: 0 | AM28: 0 | AN28: 0 | AO28: 0 | AP28: 0 | AQ28: 0 | AR28: 0 | AS28: 0 | AT28: 0 | AU28: 0 | AV28: 0 | AW28: 0 | AX28: 0 | AY28: 0 | AZ28: 0 | BA28: 0 | BB28: 0 | BC28: 0 | BD28: 0 | BE28: 0 | BF28: 0 | BG28: 0 | BH28: 0 | BI28: 0 | BJ28: 0 | BK28: 0 | BL28: 0 | BM28: 0 | BN28: 0 | BO28: 0 | BP28: 0 | BQ28: 0 | BR28: 0 | BS28: 0 | BT28: 0 | BU28: 0 | BV28: 0 | BW28: 0 | BX28: 0 | BY28: 0 | BZ28: 0 | CA28: 0 | CB28: 0 | CC28: 0 | CD28: 0 | CE28: 0 | CF28: 0
C29: > 132 kV; Steel | D29: 0 | E29: 0 | G29: 0 | H29: 0 | I29: 0 | J29: 0 | K29: 0 | L29: 0 | M29: 0 | N29: 0 | O29: 0 | P29: 0 | Q29: 0 | R29: 0 | S29: 0 | T29: 0 | U29: 0 | V29: 0 | W29: 0 | X29: 0 | Y29: 0 | Z29: 0 | AA29: 0 | AB29: 0 | AC29: 0 | AD29: 0 | AE29: 0 | AF29: 0 | AG29: 0 | AH29: 0 | AI29: 0 | AJ29: 0 | AK29: 0 | AL29: 0 | AM29: 0 | AN29: 0 | AO29: 0 | AP29: 0 | AQ29: 0 | AR29: 0 | AS29: 0 | AT29: 0 | AU29: 0 | AV29: 0 | AW29: 0 | AX29: 0 | AY29: 0 | AZ29: 0 | BA29: 0 | BB29: 0 | BC29: 0 | BD29: 0 | BE29: 0 | BF29: 0 | BG29: 0 | BH29: 0 | BI29: 0 | BJ29: 0 | BK29: 0 | BL29: 0 | BM29: 0 | BN29: 0 | BO29: 0 | BP29: 0 | BQ29: 0 | BR29: 0 | BS29: 0 | BT29: 0 | BU29: 0 | BV29: 0 | BW29: 0 | BX29: 0 | BY29: 0 | BZ29: 0 | CA29: 0 | CB29: 0 | CC29: 0 | CD29: 0 | CE29: 0 | CF29: 0
C30: Other | D30: 60 | E30: 7.745966692 | F30: 0 | G30: 0 | H30: 0 | I30: 0 | J30: 0 | K30: 0 | L30: 0 | M30: 0 | N30: 0 | O30: 0 | P30: 0 | Q30: 0 | R30: 0 | S30: 0 | T30: 0 | U30: 0 | V30: 0 | W30: 0 | X30: 0 | Y30: 0 | Z30: 21 | AA30: 0 | AB30: 3 | AC30: 0 | AD30: 0 | AE30: 0 | AF30: 0 | AG30: 0 | AH30: 0 | AI30: 0 | AJ30: 0 | AK30: 0 | AL30: 0 | AM30: 0 | AN30: 0 | AO30: 0 | AP30: 0 | AQ30: 4 | AR30: 0 | AS30: 3 | AT30: 5 | AU30: 0 | AV30: 0 | AW30: 0 | AX30: 0 | AY30: 0 | AZ30: 36 | BA30: 37 | BB30: 71 | BC30: 3 | BD30: 6 | BE30: 0 | BF30: 73 | BG30: 108 | BH30: 1 | BI30: 0 | BJ30: 0 | BK30: 23 | BL30: 56 | BM30: 0 | BN30: 0 | BO30: 0 | BP30: 0 | BQ30: 105 | BR30: 81 | BS30: 0 | BT30: 0 | BU30: 166 | BV30: 0 | BW30: 0 | BX30: 0 | BY30: 0 | BZ30: 0 | CA30: 0 | CB30: 0 | CC30: 0 | CD30: 0 | CE30: 0 | CF30: 33
B31: OVERHEAD CONDUCTORS BY: HIGHEST OPERATING VOLTAGE; NUMBER OF PHASES (AT HV) | C31: ˂ = 1 kV | D31: 50 | E31: 7.071067812 | F31: 62.10155856 | G31: 64.50064895 | H31: 23.1693182 | I31: 98.63470853 | J31: 71.69792011 | K31: 104.6429141 | L31: 81.61145934 | M31: 68.79395407 | N31: 73.40024503 | O31: 77.90639923 | P31: 317.7339393 | Q31: 352.2811214 | R31: 298.2072711 | S31: 217.4970426 | T31: 368.2028663 | U31: 217.8975896 | V31: 231.6163257 | W31: 327.5473417 | X31: 356.2865918 | Y31: 345.1714115 | Z31: 358.7900108 | AA31: 445.5084449 | AB31: 463.432925 | AC31: 450.1147359 | AD31: 431.0887515 | AE31: 454.4206166 | AF31: 361.4937033 | AG31: 423.778768 | AH31: 183.8415302 | AI31: 180.2175241 | AJ31: 252.9433415 | AK31: 270.3262861 | AL31: 259.8228108 | AM31: 218.3003001 | AN31: 211.2365594 | AO31: 204.4799378 | AP31: 200.9173556 | AQ31: 209.7623874 | AR31: 199.6888789 | AS31: 170.3897109 | AT31: 152.6996472 | AU31: 123.9062422 | AV31: 107.6513628 | AW31: 171.2948217 | AX31: 144.720318 | AY31: 122.6856254 | AZ31: 110.1734632 | BA31: 84.81695761 | BB31: 148.7076311 | BC31: 171.7131433 | BD31: 196.0069642 | BE31: 220.3007852 | BF31: 242.570121 | BG31: 258.3979134 | BH31: 264.4713686 | BI31: 256.1893842 | BJ31: 238.3371067 | BK31: 225.2699758 | BL31: 215.5156386 | BM31: 190.8537295 | BN31: 163.4311589 | BO31: 126.070207 | BP31: 95.51888679 | BQ31: 71.22506588 | BR31: 53.00470019 | BS31: 39.01734875 | BT31: 28.15874697 | BU31: 20.42889486 | BV31: 0 | BW31: 0 | BX31: 0 | BY31: 0 | BZ31: 0 | CA31: 0 | CB31: 0 | CC31: 0 | CD31: 0 | CE31: 0 | CF31: 0
C32: > 1 kV & < = 11 kV | D32: 50 | E32: 7.071067812 | F32: 136.2698276 | G32: 152.0348209 | H32: 116.2386177 | I32: 140.5360442 | J32: 199.3298008 | K32: 175.3065454 | L32: 137.9440613 | M32: 138.9555668 | N32: 142.8119315 | O32: 165.7604623 | P32: 254.6682442 | Q32: 243.0443825 | R32: 217.789776 | S32: 200.7757942 | T32: 185.8009149 | U32: 163.7907795 | V32: 137.3729118 | W32: 178.404281 | X32: 194.2090543 | Y32: 189.5940605 | Z32: 195.410217 | AA32: 243.4567279 | AB32: 255.2786983 | AC32: 242.0659078 | AD32: 248.5142553 | AE32: 252.9395918 | AF32: 196.8642562 | AG32: 230.8129092 | AH32: 121.172894 | AI32: 118.9185146 | AJ32: 166.8710436 | AK32: 178.3308057 | AL32: 171.4267687 | AM32: 143.9984857 | AN32: 139.3957944 | AO32: 134.8870355 | AP32: 132.5387236 | AQ32: 138.4095034 | AR32: 135.5434513 | AS32: 132.7959489 | AT32: 121.8059393 | AU32: 121.999914 | AV32: 130.7141936 | AW32: 157.7700378 | AX32: 168.3521745 | AY32: 158.7320503 | AZ32: 145.2638763 | BA32: 125.0616154 | BB32: 117.6782178 | BC32: 135.3299505 | BD32: 154.4946888 | BE32: 173.6594272 | BF32: 191.4792716 | BG32: 203.7514286 | BH32: 208.4585573 | BI32: 202.0703112 | BJ32: 187.7808133 | BK32: 177.5259972 | BL32: 169.7928572 | BM32: 150.4600071 | BN32: 128.6054809 | BO32: 99.52214994 | BP32: 75.31405941 | BQ32: 56.14932108 | BR32: 41.69171146 | BS32: 30.76444838 | BT32: 22.19074965 | BU32: 16.13872702 | BV32: 0 | BW32: 0 | BX32: 0 | BY32: 0 | BZ32: 0 | CA32: 0 | CB32: 0 | CC32: 0 | CD32: 0 | CE32: 0 | CF32: 0
C33: ˃ 11 kV & < = 22 kV ; SWER | D33: 50 | E33: 7.071067812 | F33: 1.076511689 | G33: 1.890244166 | H33: 1.339290902 | I33: 0 | J33: 0 | K33: 0 | L33: 0 | M33: 0 | N33: 0 | O33: 0 | P33: 0.9838541664 | Q33: 1.967708333 | R33: 1.967708333 | S33: 1.960739931 | T33: 16.32674612 | U33: 0.4212914442 | V33: 1.004019241 | W33: 5.020096206 | X33: 4.016076964 | Y33: 1.004019241 | Z33: 104.6188049 | AA33: 0 | AB33: 0 | AC33: 6.024115447 | AD33: 28.3133426 | AE33: 12.24903474 | AF33: 4.618488509 | AG33: 4.216880813 | AH33: 13.85546553 | AI33: 51.60658899 | AJ33: 30.32138108 | AK33: 26.70691181 | AL33: 14.65868092 | AM33: 26.90771566 | AN33: 15.66270016 | AO33: 4.618488509 | AP33: 23.09244255 | AQ33: 2.008038482 | AR33: 23.09244255 | AS33: 1.142703389 | AT33: 4.570813556 | AU33: 0 | AV33: 12.56973728 | AW33: 0 | AX33: 6.856220334 | AY33: 0 | AZ33: 9.141627111 | BA33: 0 | BB33: 0 | BC33: 0 | BD33: 4.64911443 | BE33: 0 | BF33: 0 | BG33: 0 | BH33: 11.42703389 | BI33: 0 | BJ33: 0 | BK33: 0 | BL33: 0 | BM33: 0 | BN33: 0 | BO33: 0 | BP33: 0 | BQ33: 0 | BR33: 0 | BS33: 0 | BT33: 0 | BU33: 0 | BV33: 0 | BW33: 0 | BX33: 0 | BY33: 0 | BZ33: 0 | CA33: 0 | CB33: 0 | CC33: 0 | CD33: 0 | CE33: 0 | CF33: 0
C34: ˃ 11 kV & < = 22 kV ; Single-Phase | D34: 0 | E34: 0 | F34: 0 | G34: 0 | H34: 0 | I34: 0 | J34: 0 | K34: 0 | L34: 0 | M34: 0 | N34: 0 | O34: 0 | P34: 0 | Q34: 0 | R34: 0 | S34: 0 | T34: 0 | U34: 0 | V34: 0 | W34: 0 | X34: 0 | Y34: 0 | Z34: 0 | AA34: 0 | AB34: 0 | AC34: 0 | AD34: 0 | AE34: 0 | AF34: 0 | AG34: 0 | AH34: 0 | AI34: 0 | AJ34: 0 | AK34: 0 | AL34: 0 | AM34: 0 | AN34: 0 | AO34: 0 | AP34: 0 | AQ34: 0 | AR34: 0 | AS34: 0 | AT34: 0 | AU34: 0 | AV34: 0 | AW34: 0 | AX34: 0 | AY34: 0 | AZ34: 0 | BA34: 0 | BB34: 0 | BC34: 0 | BD34: 0 | BE34: 0 | BF34: 0 | BG34: 0 | BH34: 0 | BI34: 0 | BJ34: 0 | BK34: 0 | BL34: 0 | BM34: 0 | BN34: 0 | BO34: 0 | BP34: 0 | BQ34: 0 | BR34: 0 | BS34: 0 | BT34: 0 | BU34: 0 | BV34: 0 | BW34: 0 | BX34: 0 | BY34: 0 | BZ34: 0 | CA34: 0 | CB34: 0 | CC34: 0 | CD34: 0 | CE34: 0 | CF34: 0
C35: ˃ 11 kV & < = 22 kV ; Multiple-Phase | D35: 0 | E35: 0 | F35: 0 | G35: 0 | H35: 0 | I35: 0 | J35: 0 | K35: 0 | L35: 0 | M35: 0 | N35: 0 | O35: 0 | P35: 0 | Q35: 0 | R35: 0 | S35: 0 | T35: 0 | U35: 0 | V35: 0 | W35: 0 | X35: 0 | Y35: 0 | Z35: 0 | AA35: 0 | AB35: 0 | AC35: 0 | AD35: 0 | AE35: 0 | AF35: 0 | AG35: 0 | AH35: 0 | AI35: 0 | AJ35: 0 | AK35: 0 | AL35: 0 | AM35: 0 | AN35: 0 | AO35: 0 | AP35: 0 | AQ35: 0 | AR35: 0 | AS35: 0 | AT35: 0 | AU35: 0 | AV35: 0 | AW35: 0 | AX35: 0 | AY35: 0 | AZ35: 0 | BA35: 0 | BB35: 0 | BC35: 0 | BD35: 0 | BE35: 0 | BF35: 0 | BG35: 0 | BH35: 0 | BI35: 0 | BJ35: 0 | BK35: 0 | BL35: 0 | BM35: 0 | BN35: 0 | BO35: 0 | BP35: 0 | BQ35: 0 | BR35: 0 | BS35: 0 | BT35: 0 | BU35: 0 | BV35: 0 | BW35: 0 | BX35: 0 | BY35: 0 | BZ35: 0 | CA35: 0 | CB35: 0 | CC35: 0 | CD35: 0 | CE35: 0 | CF35: 0
C36: > 22 kV & < = 66 kV | D36: 55 | E36: 7.416198487 | F36: 12.99043893 | G36: 11.93835907 | H36: 9.622697375 | I36: 17.41026035 | J36: 8.782119497 | K36: 17.59586917 | L36: 33.32137667 | M36: 46.50278101 | N36: 18.68801061 | O36: 34.04938989 | P36: 21.0801249 | Q36: 17.0728548 | R36: 20.07583932 | S36: 18.10037216 | T36: 6.033457387 | U36: 9.770639187 | V36: 2.063773027 | W36: 52.09879905 | X36: 31.61831247 | Y36: 15.10812825 | Z36: 15.69122347 | AA36: 14.44641119 | AB36: 74.21720713 | AC36: 14.36778935 | AD36: 30.9565954 | AE36: 0 | AF36: 4.127546054 | AG36: 47.2309141 | AH36: 32.20140769 | AI36: 34.18655887 | AJ36: 8.255092108 | AK36: 16.51018422 | AL36: 57.31391371 | AM36: 67.554157 | AN36: 89.75118692 | AO36: 117.9822922 | AP36: 111.6337295 | AQ36: 105.0951807 | AR36: 20.63773027 | AS36: 32.32221259 | AT36: 28.28193601 | AU36: 22.57974453 | AV36: 96.0708463 | AW36: 29.28611467 | AX36: 19.52407644 | AY36: 27.88533724 | AZ36: 85.90593636 | BA36: 58.57222933 | BB36: 41.00056053 | BC36: 107.3824204 | BD36: 55.29342351 | BE36: 25.38129938 | BF36: 17.12363933 | BG36: 0 | BH36: 59.30359354 | BI36: 0 | BJ36: 0 | BK36: 0 | BL36: 2.57841711 | BM36: 0 | BN36: 0 | BO36: 0 | BP36: 13.03321266 | BQ36: 0 | BR36: 0 | BS36: 0 | BT36: 0 | BU36: 0 | BV36: 0 | BW36: 0 | BX36: 0 | BY36: 0 | BZ36: 0 | CA36: 0 | CB36: 0 | CC36: 0 | CD36: 0 | CE36: 0 | CF36: 0
C37: > 66 kV & < = 132 kV | D37: 55 | E37: 7.416198487 | F37: 7.863038793 | G37: 8.311842536 | H37: 6.526218359 | I37: 8.751055486 | J37: 9.658253763 | K37: 3.880548387 | L37: 15.78089677 | M37: 39.06418709 | N37: 3.038612157 | O37: 4.774961961 | P37: 34.02291534 | Q37: 45.99480887 | R37: 43.46173087 | S37: 40.62001706 | T37: 31.68239484 | U37: 0 | V37: 0 | W37: 0 | X37: 0 | Y37: 0 | Z37: 1.357816922 | AA37: 6.791521333 | AB37: 4.865510636 | AC37: 4.865510636 | AD37: 82.14792377 | AE37: 0 | AF37: 0 | AG37: 1.810422562 | AH37: 12.44665512 | AI37: 0 | AJ37: 151.2834354 | AK37: 0 | AL37: 1.018362691 | AM37: 1.498129706 | AN37: 2.036725383 | AO37: 0.1131514102 | AP37: 0 | AQ37: 52.11663833 | AR37: 2.397007529 | AS37: 0 | AT37: 0 | AU37: 1.438985573 | AV37: 2.391055604 | AW37: 0 | AX37: 0 | AY37: 0 | AZ37: 0 | BA37: 19.26988681 | BB37: 39.33227233 | BC37: 42.49137203 | BD37: 81.35065106 | BE37: 0 | BF37: 0 | BG37: 123.9873192 | BH37: 130.3222455 | BI37: 0 | BJ37: 11.7996817 | BK37: 0 | BL37: 0 | BM37: 9.017642924 | BN37: 0 | BO37: 0 | BP37: 0 | BQ37: 0 | BR37: 28.39598197 | BS37: 26.47733454 | BT37: 0 | BU37: 0 | BV37: 67.15266007 | BW37: 0 | BX37: 0 | BY37: 0 | BZ37: 0 | CA37: 0 | CB37: 0 | CC37: 0 | CD37: 0 | CE37: 0 | CF37: 0
C38: > 132 kV | D38: 0 | E38: 0 | F38: 0 | G38: 0 | H38: 0 | I38: 0 | J38: 0 | K38: 0 | L38: 0 | M38: 0 | N38: 0 | O38: 0 | P38: 0 | Q38: 0 | R38: 0 | S38: 0 | T38: 0 | U38: 0 | V38: 0 | W38: 0 | X38: 0 | Y38: 0 | Z38: 0 | AA38: 0 | AB38: 0 | AC38: 0 | AD38: 0 | AE38: 0 | AF38: 0 | AG38: 0 | AH38: 0 | AI38: 0 | AJ38: 0 | AK38: 0 | AL38: 0 | AM38: 0 | AN38: 0 | AO38: 0 | AP38: 0 | AQ38: 0 | AR38: 0 | AS38: 0 | AT38: 0 | AU38: 0 | AV38: 0 | AW38: 0 | AX38: 0 | AY38: 0 | AZ38: 0 | BA38: 0 | BB38: 0 | BC38: 0 | BD38: 0 | BE38: 0 | BF38: 0 | BG38: 0 | BH38: 0 | BI38: 0 | BJ38: 0 | BK38: 0 | BL38: 0 | BM38: 0 | BN38: 0 | BO38: 0 | BP38: 0 | BQ38: 0 | BR38: 0 | BS38: 0 | BT38: 0 | BU38: 0 | BV38: 0 | BW38: 0 | BX38: 0 | BY38: 0 | BZ38: 0 | CA38: 0 | CB38: 0 | CC38: 0 | CD38: 0 | CE38: 0 | CF38: 0
C39: Other | D39: 0 | E39: 0 | F39: 0 | G39: 0 | H39: 0 | I39: 0 | J39: 0 | K39: 0 | L39: 0 | M39: 0 | N39: 0 | O39: 0 | P39: 0 | Q39: 0 | R39: 0 | S39: 0 | T39: 0 | U39: 0 | V39: 0 | W39: 0 | X39: 0 | Y39: 0 | Z39: 0 | AA39: 0 | AB39: 0 | AC39: 0 | AD39: 0 | AE39: 0 | AF39: 0 | AG39: 0 | AH39: 0 | AI39: 0 | AJ39: 0 | AK39: 0 | AL39: 0 | AM39: 0 | AN39: 0 | AO39: 0 | AP39: 0 | AQ39: 0 | AR39: 0 | AS39: 0 | AT39: 0 | AU39: 0 | AV39: 0 | AW39: 0 | AX39: 0 | AY39: 0 | AZ39: 0 | BA39: 0 | BB39: 0 | BC39: 0 | BD39: 0 | BE39: 0 | BF39: 0 | BG39: 0 | BH39: 0 | BI39: 0 | BJ39: 0 | BK39: 0 | BL39: 0 | BM39: 0 | BN39: 0 | BO39: 0 | BP39: 0 | BQ39: 0 | BR39: 0 | BS39: 0 | BT39: 0 | BU39: 0 | BV39: 0 | BW39: 0 | BX39: 0 | BY39: 0 | BZ39: 0 | CA39: 0 | CB39: 0 | CC39: 0 | CD39: 0 | CE39: 0 | CF39: 0
B40: UNDERGROUND CABLES BY: HIGHEST OPERATING VOLTAGE | C40: ˂ = 1 kV | D40: 60 | E40: 7.745966692 | F40: 495.975941 | G40: 457.218103 | H40: 318.4656051 | I40: 428.2500292 | J40: 305.9700165 | K40: 360.1872896 | L40: 251.4820155 | M40: 246.4386747 | N40: 155.7291871 | O40: 157.3552742 | P40: 370.9202741 | Q40: 297.734211 | R40: 444.1063371 | S40: 511.8777788 | T40: 241.5740594 | U40: 54.49465099 | V40: 186.9623332 | W40: 602.3032653 | X40: 422.5801484 | Y40: 195.9527107 | Z40: 435.9598622 | AA40: 171.7762313 | AB40: 207.3540562 | AC40: 270.0875929 | AD40: 318.5955385 | AE40: 229.7197704 | AF40: 109.7626015 | AG40: 220.9872478 | AH40: 228.4517656 | AI40: 348.9261462 | AJ40: 309.4274175 | AK40: 296.1761062 | AL40: 348.8697883 | AM40: 232.1845166 | AN40: 170.3066334 | AO40: 400.7635979 | AP40: 529.7903826 | AQ40: 465.1968285 | AR40: 323.8817057 | AS40: 285.5952324 | AT40: 152.8374904 | AU40: 79.33616803 | AV40: 151.6154446 | AW40: 197.4713433 | AX40: 152.3806127 | AY40: 167.4413285 | AZ40: 70.51403212 | BA40: 25.55332309 | BB40: 29.94508179 | BC40: 44.97265081 | BD40: 22.92789941 | BE40: 15.89023609 | BF40: 13.2675475 | BG40: 2.653395086 | BH40: 8.164104764 | BI40: 20.11163332 | BJ40: 6.684459001 | BK40: 10.41332313 | BL40: 0 | BM40: 0 | BN40: 0 | BO40: 0 | BP40: 0 | BQ40: 0 | BR40: 0 | BS40: 0 | BT40: 0 | BU40: 0 | BV40: 0 | BW40: 0 | BX40: 0 | BY40: 0 | BZ40: 0 | CA40: 0 | CB40: 0 | CC40: 0 | CD40: 0 | CE40: 0 | CF40: 0
C41: > 1 kV & < = 11 kV | D41: 60 | E41: 7.745966692 | F41: 201.912849 | G41: 156.028363 | H41: 169.1601923 | I41: 189.490787 | J41: 193.9791855 | K41: 162.7370965 | L41: 150.66182 | M41: 148.9320724 | N41: 119.5389458 | O41: 105.0005765 | P41: 171.4409363 | Q41: 156.8294928 | R41: 147.0885306 | S41: 147.0885306 | T41: 116.8201452 | U41: 98.39273632 | V41: 48.73289251 | W41: 156.9940842 | X41: 110.1481384 | Y41: 51.07629022 | Z41: 113.6356438 | AA41: 44.77454079 | AB41: 54.04812166 | AC41: 70.40000737 | AD41: 83.04390443 | AE41: 59.8778839 | AF41: 28.61030331 | AG41: 57.60169767 | AH41: 58.20520624 | AI41: 88.89980889 | AJ41: 73.9090096 | AK41: 70.74383665 | AL41: 83.33010934 | AM41: 55.45897583 | AN41: 40.67898929 | AO41: 95.72532663 | AP41: 126.5443211 | AQ41: 118.5233884 | AR41: 82.51895726 | AS41: 72.7642851 | AT41: 38.94011336 | AU41: 20.21336106 | AV41: 38.62875911 | AW41: 63.13223747 | AX41: 48.7165827 | AY41: 53.53154302 | AZ41: 22.54356782 | BA41: 8.169481377 | BB41: 9.573541065 | BC41: 14.37790427 | BD41: 7.330124796 | BE41: 5.080160703 | BF41: 4.241678542 | BG41: 9.740962289 | BH41: 0 | BI41: 0 | BJ41: 0 | BK41: 0 | BL41: 0 | BM41: 0 | BN41: 0 | BO41: 0 | BP41: 0 | BQ41: 0 | BR41: 0 | BS41: 0 | BT41: 0 | BU41: 0 | BV41: 0 | BW41: 0 | BX41: 0 | BY41: 0 | BZ41: 0 | CA41: 0 | CB41: 0 | CC41: 0 | CD41: 0 | CE41: 0 | CF41: 0
C42: > 11 kV & < = 22 kV | D42: 60 | E42: 7.745966692 | F42: 28.332231 | G42: 26.405983 | H42: 14.46645146 | I42: 9.493616385 | J42: 17.18535518 | K42: 14.42861097 | L42: 8.574235455 | M42: 22.65043933 | N42: 13.48373826 | O42: 8.118716646 | P42: 28.86842382 | Q42: 27.49373697 | R42: 20.62030273 | S42: 42.6152923 | T42: 21.99498958 | U42: 20.62030273 | V42: 31.61779752 | W42: 35.74185806 | X42: 21.99498958 | Y42: 17.87092903 | Z42: 0 | AA42: 0 | AB42: 0 | AC42: 0 | AD42: 0 | AE42: 0 | AF42: 0 | AG42: 0 | AH42: 0 | AI42: 0 | AJ42: 0 | AK42: 0 | AL42: 0 | AM42: 0 | AN42: 0 | AO42: 0 | AP42: 0 | AQ42: 0 | AR42: 0 | AS42: 0 | AT42: 0 | AU42: 0 | AV42: 0 | AW42: 0 | AX42: 0 | AY42: 0 | AZ42: 0 | BA42: 0 | BB42: 0 | BC42: 0 | BD42: 0 | BE42: 0 | BF42: 0 | BG42: 0 | BH42: 0 | BI42: 0 | BJ42: 0 | BK42: 0 | BL42: 0 | BM42: 0 | BN42: 0 | BO42: 0 | BP42: 0 | BQ42: 0 | BR42: 0 | BS42: 0 | BT42: 0 | BU42: 0 | BV42: 0 | BW42: 0 | BX42: 0 | BY42: 0 | BZ42: 0 | CA42: 0 | CB42: 0 | CC42: 0 | CD42: 0 | CE42: 0 | CF42: 0
C43: > 22 kV & < = 33 kV | D43: 45 | E43: 6.708203932 | F43: 0.813166 | G43: 8.360227 | H43: 8.234657622 | I43: 8.492819488 | J43: 21.15497875 | K43: 6.801764269 | L43: 0.3486388409 | M43: 4.375086765 | N43: 6.057056588 | O43: 1.433293012 | P43: 5.880931724 | Q43: 4.900776437 | R43: 1.960310575 | S43: 6.861087011 | T43: 2.081769458 | U43: 0.6295262967 | V43: 0 | W43: 7.01971543 | X43: 0 | Y43: 0 | Z43: 1.106955126 | AA43: 2.375903684 | AB43: 3.304666033 | AC43: 0.3131873038 | AD43: 9.102950979 | AE43: 0.8963636627 | AF43: 4.438620065 | AG43: 2.386703246 | AH43: 0.647973732 | AI43: 1.587535644 | AJ43: 4.330624443 | AK43: 6.32854345 | AL43: 8.186068148 | AM43: 3.088674789 | AN43: 3.088674789 | AO43: 6.587732942 | AP43: 4.039036263 | AQ43: 12.2575031 | AR43: 7.970076904 | AS43: 9.158028746 | AT43: 0.647973732 | AU43: 3.563855526 | AV43: 0.07289704486 | AW43: 0 | AX43: 0.6074753738 | AY43: 0 | AZ43: 0 | BA43: 0.8099671651 | BB43: 0 | BC43: 0.2186911346 | BD43: 0.1214950748 | BE43: 0 | BF43: 0.5588773439 | BG43: 0.6884720903 | BH43: 2.859184093 | BI43: 0 | BJ43: 0 | BK43: 2.883483108 | BL43: 0 | BM43: 0 | BN43: 0 | BO43: 0 | BP43: 0 | BQ43: 0 | BR43: 0 | BS43: 0 | BT43: 0 | BU43: 0 | BV43: 0 | BW43: 0 | BX43: 0 | BY43: 0 | BZ43: 0 | CA43: 0 | CB43: 0 | CC43: 0 | CD43: 0 | CE43: 0 | CF43: 0
C44: > 33 kV & < = 66 kV | D44: 45 | E44: 6.708203932 | F44: 0.193656 | G44: 2.43058 | H44: 3.015280217 | I44: 0.5346498929 | J44: 0.9362223108 | K44: 12.20548244 | L44: 0.6970612041 | M44: 0.702985237 | N44: 0.2242246451 | O44: 0.1595539527 | P44: 0 | Q44: 0 | R44: 0 | S44: 0 | T44: 0.0174159574 | U44: 0.05442938159 | V44: 0 | W44: 1.031934432 | X44: 0 | Y44: 0 | Z44: 0 | AA44: 0 | AB44: 0 | AC44: 1.021615087 | AD44: 0 | AE44: 0 | AF44: 0 | AG44: 0 | AH44: 2.301213782 | AI44: 0 | AJ44: 2.889416408 | AK44: 2.063868863 | AL44: 0.6346396754 | AM44: 2.363129848 | AN44: 0.1754288534 | AO44: 0.06191606589 | AP44: 0.5985219703 | AQ44: 0 | AR44: 0 | AS44: 0 | AT44: 0 | AU44: 0.4127737726 | AV44: 0 | AW44: 0 | AX44: 0 | AY44: 0 | AZ44: 0 | BA44: 0 | BB44: 0 | BC44: 0 | BD44: 0 | BE44: 0 | BF44: 0 | BG44: 0 | BH44: 0 | BI44: 0 | BJ44: 0 | BK44: 0 | BL44: 0 | BM44: 0 | BN44: 0 | BO44: 0 | BP44: 0 | BQ44: 0 | BR44: 0 | BS44: 0 | BT44: 0 | BU44: 0 | BV44: 0 | BW44: 0 | BX44: 0 | BY44: 0 | BZ44: 0 | CA44: 0 | CB44: 0 | CC44: 0 | CD44: 0 | CE44: 0 | CF44: 0
C45: > 66 kV & < = 132 kV | D45: 45 | E45: 6.708203932 | F45: 5.644654 | G45: 14.92531 | H45: 9.917867444 | I45: 1.533860848 | J45: 14.05042501 | K45: 14.52159972 | L45: 15.08322409 | M45: 4.400227549 | N45: 0 | O45: 6.607759172 | P45: 6.34207154 | Q45: 3.62404088 | R45: 4.5300511 | S45: 0 | T45: 0.498305621 | U45: 0 | V45: 0.4675012735 | W45: 3.854167476 | X45: 0.362404088 | Y45: 0 | Z45: 0 | AA45: 0.8425895046 | AB45: 0 | AC45: 0 | AD45: 1.404315841 | AE45: 4.5300511 | AF45: 0 | AG45: 0.2536828616 | AH45: 0 | AI45: 0 | AJ45: 0.679507665 | AK45: 0 | AL45: 0.0724808176 | AM45: 0 | AN45: 0 | AO45: 0 | AP45: 0 | AQ45: 0 | AR45: 0 | AS45: 0 | AT45: 20.95148634 | AU45: 0 | AV45: 0 | AW45: 0 | AX45: 0 | AY45: 0 | AZ45: 0 | BA45: 0 | BB45: 0 | BC45: 0 | BD45: 0 | BE45: 0 | BF45: 0 | BG45: 15.78541606 | BH45: 0 | BI45: 0 | BJ45: 0 | BK45: 0 | BL45: 0 | BM45: 0 | BN45: 0 | BO45: 0 | BP45: 0 | BQ45: 0 | BR45: 0 | BS45: 0 | BT45: 0 | BU45: 0 | BV45: 0 | BW45: 0 | BX45: 0 | BY45: 0 | BZ45: 0 | CA45: 0 | CB45: 0 | CC45: 0 | CD45: 0 | CE45: 0 | CF45: 0
C46: > 132 kV | D46: 0 | E46: 0 | F46: 0 | G46: 0 | H46: 0 | I46: 0 | J46: 0 | K46: 0 | L46: 0 | M46: 0 | N46: 0 | O46: 0 | P46: 0 | Q46: 0 | R46: 0 | S46: 0 | T46: 0 | U46: 0 | V46: 0 | W46: 0 | X46: 0 | Y46: 0 | Z46: 0 | AA46: 0 | AB46: 0 | AC46: 0 | AD46: 0 | AE46: 0 | AF46: 0 | AG46: 0 | AH46: 0 | AI46: 0 | AJ46: 0 | AK46: 0 | AL46: 0 | AM46: 0 | AN46: 0 | AO46: 0 | AP46: 0 | AQ46: 0 | AR46: 0 | AS46: 0 | AT46: 0 | AU46: 0 | AV46: 0 | AW46: 0 | AX46: 0 | AY46: 0 | AZ46: 0 | BA46: 0 | BB46: 0 | BC46: 0 | BD46: 0 | BE46: 0 | BF46: 0 | BG46: 0 | BH46: 0 | BI46: 0 | BJ46: 0 | BK46: 0 | BL46: 0 | BM46: 0 | BN46: 0 | BO46: 0 | BP46: 0 | BQ46: 0 | BR46: 0 | BS46: 0 | BT46: 0 | BU46: 0 | BV46: 0 | BW46: 0 | BX46: 0 | BY46: 0 | BZ46: 0 | CA46: 0 | CB46: 0 | CC46: 0 | CD46: 0 | CE46: 0 | CF46: 0
C47: Other | D47: 0 | E47: 0 | F47: 0 | G47: 0 | H47: 0 | I47: 0 | J47: 0 | K47: 0 | L47: 0 | M47: 0 | N47: 0 | O47: 0 | P47: 0 | Q47: 0 | R47: 0 | S47: 0 | T47: 0 | U47: 0 | V47: 0 | W47: 0 | X47: 0 | Y47: 0 | Z47: 0 | AA47: 0 | AB47: 0 | AC47: 0 | AD47: 0 | AE47: 0 | AF47: 0 | AG47: 0 | AH47: 0 | AI47: 0 | AJ47: 0 | AK47: 0 | AL47: 0 | AM47: 0 | AN47: 0 | AO47: 0 | AP47: 0 | AQ47: 0 | AR47: 0 | AS47: 0 | AT47: 0 | AU47: 0 | AV47: 0 | AW47: 0 | AX47: 0 | AY47: 0 | AZ47: 0 | BA47: 0 | BB47: 0 | BC47: 0 | BD47: 0 | BE47: 0 | BF47: 0 | BG47: 0 | BH47: 0 | BI47: 0 | BJ47: 0 | BK47: 0 | BL47: 0 | BM47: 0 | BN47: 0 | BO47: 0 | BP47: 0 | BQ47: 0 | BR47: 0 | BS47: 0 | BT47: 0 | BU47: 0 | BV47: 0 | BW47: 0 | BX47: 0 | BY47: 0 | BZ47: 0 | CA47: 0 | CB47: 0 | CC47: 0 | CD47: 0 | CE47: 0 | CF47: 0
B48: SERVICE LINES BY: CONNECTION VOLTAGE; CUSTOMER TYPE; CONNECTION COMPLEXITY | C48: ˂ = 11 kV ; Residential ; Simple Type | D48: 35 | E48: 5.916079783 | F48: 27955 | G48: 23297 | H48: 21529 | I48: 21516 | J48: 18624 | K48: 9720 | L48: 9035 | M48: 8350 | N48: 9446 | O48: 10907 | P48: 12366 | Q48: 12366 | R48: 11681 | S48: 11681 | T48: 14838 | U48: 14617 | V48: 9015 | W48: 13280 | X48: 12925 | Y48: 16673 | Z48: 13789 | AA48: 6267 | AB48: 10155 | AC48: 10281 | AD48: 11055 | AE48: 9538 | AF48: 9423 | AG48: 10780 | AH48: 14153 | AI48: 13839 | AJ48: 12896 | AK48: 11496 | AL48: 9132 | AM48: 10310 | AN48: 8103 | AO48: 11484 | AP48: 16456 | AQ48: 13680 | AR48: 10905 | AS48: 8285 | AT48: 5869 | AU48: 4704 | AV48: 4161 | AW48: 4487 | AX48: 1819 | AY48: 793 | AZ48: 785 | BA48: 395 | BB48: 654 | BC48: 874 | BD48: 718 | BE48: 729 | BF48: 598 | BG48: 534 | BH48: 624 | BI48: 517 | BJ48: 280 | BK48: 310 | BL48: 16 | BM48: 141 | BN48: 51 | BO48: 51 | BP48: 90 | BQ48: 26 | BR48: 77 | BS48: 64 | BT48: 115 | BU48: 13 | BV48: 13 | BW48: 0 | BX48: 0 | BY48: 0 | BZ48: 0 | CA48: 0 | CB48: 0 | CC48: 0 | CD48: 0 | CE48: 0 | CF48: 0
C49: ˂ = 11 kV ; Commercial & Industrial ; Simple Type | D49: 0 | E49: 0 | F49: 0 | G49: 0 | H49: 0 | I49: 0 | J49: 0 | K49: 0 | L49: 0 | M49: 0 | N49: 0 | O49: 0 | P49: 0 | Q49: 0 | R49: 0 | S49: 0 | T49: 0 | U49: 0 | V49: 0 | W49: 0 | X49: 0 | Y49: 0 | Z49: 0 | AA49: 0 | AB49: 0 | AC49: 0 | AD49: 0 | AE49: 0 | AF49: 0 | AG49: 0 | AH49: 0 | AI49: 0 | AJ49: 0 | AK49: 0 | AL49: 0 | AM49: 0 | AN49: 0 | AO49: 0 | AP49: 0 | AQ49: 0 | AR49: 0 | AS49: 0 | AT49: 0 | AU49: 0 | AV49: 0 | AW49: 0 | AX49: 0 | AY49: 0 | AZ49: 0 | BA49: 0 | BB49: 0 | BC49: 0 | BD49: 0 | BE49: 0 | BF49: 0 | BG49: 0 | BH49: 0 | BI49: 0 | BJ49: 0 | BK49: 0 | BL49: 0 | BM49: 0 | BN49: 0 | BO49: 0 | BP49: 0 | BQ49: 0 | BR49: 0 | BS49: 0 | BT49: 0 | BU49: 0 | BV49: 0 | BW49: 0 | BX49: 0 | BY49: 0 | BZ49: 0 | CA49: 0 | CB49: 0 | CC49: 0 | CD49: 0 | CE49: 0 | CF49: 0
C50: ˂ = 11 kV ; Residential ; Complex Type | D50: 60 | E50: 7.745966692 | F50: 9312 | G50: 8554 | H50: 9069 | I50: 7848 | J50: 5964 | K50: 7597 | L50: 7183 | M50: 7960 | N50: 7974 | O50: 6699 | P50: 8140 | Q50: 7945 | R50: 7619 | S50: 7423 | T50: 7830 | U50: 7592 | V50: 6325 | W50: 6945 | X50: 6680 | Y50: 7202 | Z50: 6455 | AA50: 4821 | AB50: 5368 | AC50: 5196 | AD50: 5149 | AE50: 4663 | AF50: 4445 | AG50: 4508 | AH50: 4958 | AI50: 4702 | AJ50: 4326 | AK50: 3862 | AL50: 3229 | AM50: 2935 | AN50: 2852 | AO50: 3454 | AP50: 3468 | AQ50: 1821 | AR50: 536 | AS50: 408 | AT50: 289 | AU50: 231 | AV50: 205 | AW50: 220 | AX50: 90 | AY50: 39 | AZ50: 38 | BA50: 19 | BB50: 32 | BC50: 43 | BD50: 35 | BE50: 36 | BF50: 0 | BG50: 0 | BH50: 0 | BI50: 0 | BJ50: 0 | BK50: 0 | BL50: 0 | BM50: 0 | BN50: 0 | BO50: 0 | BP50: 0 | BQ50: 0 | BR50: 0 | BS50: 0 | BT50: 0 | BU50: 0 | BV50: 0 | BW50: 0 | BX50: 0 | BY50: 0 | BZ50: 0 | CA50: 0 | CB50: 0 | CC50: 0 | CD50: 0 | CE50: 0 | CF50: 0
C51: ˂ = 11 kV ; Commercial & Industrial ; Complex Type | D51: 0 | E51: 0 | F51: 0 | G51: 0 | H51: 0 | I51: 0 | J51: 0 | K51: 0 | L51: 0 | M51: 0 | N51: 0 | O51: 0 | P51: 0 | Q51: 0 | R51: 0 | S51: 0 | T51: 0 | U51: 0 | V51: 0 | W51: 0 | X51: 0 | Y51: 0 | Z51: 0 | AA51: 0 | AB51: 0 | AC51: 0 | AD51: 0 | AE51: 0 | AF51: 0 | AG51: 0 | AH51: 0 | AI51: 0 | AJ51: 0 | AK51: 0 | AL51: 0 | AM51: 0 | AN51: 0 | AO51: 0 | AP51: 0 | AQ51: 0 | AR51: 0 | AS51: 0 | AT51: 0 | AU51: 0 | AV51: 0 | AW51: 0 | AX51: 0 | AY51: 0 | AZ51: 0 | BA51: 0 | BB51: 0 | BC51: 0 | BD51: 0 | BE51: 0 | BF51: 0 | BG51: 0 | BH51: 0 | BI51: 0 | BJ51: 0 | BK51: 0 | BL51: 0 | BM51: 0 | BN51: 0 | BO51: 0 | BP51: 0 | BQ51: 0 | BR51: 0 | BS51: 0 | BT51: 0 | BU51: 0 | BV51: 0 | BW51: 0 | BX51: 0 | BY51: 0 | BZ51: 0 | CA51: 0 | CB51: 0 | CC51: 0 | CD51: 0 | CE51: 0 | CF51: 0
C52: ˂ = 11 kV ; Subdivision ; Complex Type | D52: 0 | E52: 0 | F52: 0 | G52: 0 | H52: 0 | I52: 0 | J52: 0 | K52: 0 | L52: 0 | M52: 0 | N52: 0 | O52: 0 | P52: 0 | Q52: 0 | R52: 0 | S52: 0 | T52: 0 | U52: 0 | V52: 0 | W52: 0 | X52: 0 | Y52: 0 | Z52: 0 | AA52: 0 | AB52: 0 | AC52: 0 | AD52: 0 | AE52: 0 | AF52: 0 | AG52: 0 | AH52: 0 | AI52: 0 | AJ52: 0 | AK52: 0 | AL52: 0 | AM52: 0 | AN52: 0 | AO52: 0 | AP52: 0 | AQ52: 0 | AR52: 0 | AS52: 0 | AT52: 0 | AU52: 0 | AV52: 0 | AW52: 0 | AX52: 0 | AY52: 0 | AZ52: 0 | BA52: 0 | BB52: 0 | BC52: 0 | BD52: 0 | BE52: 0 | BF52: 0 | BG52: 0 | BH52: 0 | BI52: 0 | BJ52: 0 | BK52: 0 | BL52: 0 | BM52: 0 | BN52: 0 | BO52: 0 | BP52: 0 | BQ52: 0 | BR52: 0 | BS52: 0 | BT52: 0 | BU52: 0 | BV52: 0 | BW52: 0 | BX52: 0 | BY52: 0 | BZ52: 0 | CA52: 0 | CB52: 0 | CC52: 0 | CD52: 0 | CE52: 0 | CF52: 0
C53: > 11 kV & < = 22 kV ; Commercial & Industrial | D53: 0 | E53: 0 | F53: 0 | G53: 0 | H53: 0 | I53: 0 | J53: 0 | K53: 0 | L53: 0 | M53: 0 | N53: 0 | O53: 0 | P53: 0 | Q53: 0 | R53: 0 | S53: 0 | T53: 0 | U53: 0 | V53: 0 | W53: 0 | X53: 0 | Y53: 0 | Z53: 0 | AA53: 0 | AB53: 0 | AC53: 0 | AD53: 0 | AE53: 0 | AF53: 0 | AG53: 0 | AH53: 0 | AI53: 0 | AJ53: 0 | AK53: 0 | AL53: 0 | AM53: 0 | AN53: 0 | AO53: 0 | AP53: 0 | AQ53: 0 | AR53: 0 | AS53: 0 | AT53: 0 | AU53: 0 | AV53: 0 | AW53: 0 | AX53: 0 | AY53: 0 | AZ53: 0 | BA53: 0 | BB53: 0 | BC53: 0 | BD53: 0 | BE53: 0 | BF53: 0 | BG53: 0 | BH53: 0 | BI53: 0 | BJ53: 0 | BK53: 0 | BL53: 0 | BM53: 0 | BN53: 0 | BO53: 0 | BP53: 0 | BQ53: 0 | BR53: 0 | BS53: 0 | BT53: 0 | BU53: 0 | BV53: 0 | BW53: 0 | BX53: 0 | BY53: 0 | BZ53: 0 | CA53: 0 | CB53: 0 | CC53: 0 | CD53: 0 | CE53: 0 | CF53: 0
C54: > 11 kV & < = 22 kV ; Subdivision | D54: 0 | E54: 0 | F54: 0 | G54: 0 | H54: 0 | I54: 0 | J54: 0 | K54: 0 | L54: 0 | M54: 0 | N54: 0 | O54: 0 | P54: 0 | Q54: 0 | R54: 0 | S54: 0 | T54: 0 | U54: 0 | V54: 0 | W54: 0 | X54: 0 | Y54: 0 | Z54: 0 | AA54: 0 | AB54: 0 | AC54: 0 | AD54: 0 | AE54: 0 | AF54: 0 | AG54: 0 | AH54: 0 | AI54: 0 | AJ54: 0 | AK54: 0 | AL54: 0 | AM54: 0 | AN54: 0 | AO54: 0 | AP54: 0 | AQ54: 0 | AR54: 0 | AS54: 0 | AT54: 0 | AU54: 0 | AV54: 0 | AW54: 0 | AX54: 0 | AY54: 0 | AZ54: 0 | BA54: 0 | BB54: 0 | BC54: 0 | BD54: 0 | BE54: 0 | BF54: 0 | BG54: 0 | BH54: 0 | BI54: 0 | BJ54: 0 | BK54: 0 | BL54: 0 | BM54: 0 | BN54: 0 | BO54: 0 | BP54: 0 | BQ54: 0 | BR54: 0 | BS54: 0 | BT54: 0 | BU54: 0 | BV54: 0 | BW54: 0 | BX54: 0 | BY54: 0 | BZ54: 0 | CA54: 0 | CB54: 0 | CC54: 0 | CD54: 0 | CE54: 0 | CF54: 0
C55: > 22 kV & < = 33 kV ; Commercial & Industrial | D55: 0 | E55: 0 | F55: 0 | G55: 0 | H55: 0 | I55: 0 | J55: 0 | K55: 0 | L55: 0 | M55: 0 | N55: 0 | O55: 0 | P55: 0 | Q55: 0 | R55: 0 | S55: 0 | T55: 0 | U55: 0 | V55: 0 | W55: 0 | X55: 0 | Y55: 0 | Z55: 0 | AA55: 0 | AB55: 0 | AC55: 0 | AD55: 0 | AE55: 0 | AF55: 0 | AG55: 0 | AH55: 0 | AI55: 0 | AJ55: 0 | AK55: 0 | AL55: 0 | AM55: 0 | AN55: 0 | AO55: 0 | AP55: 0 | AQ55: 0 | AR55: 0 | AS55: 0 | AT55: 0 | AU55: 0 | AV55: 0 | AW55: 0 | AX55: 0 | AY55: 0 | AZ55: 0 | BA55: 0 | BB55: 0 | BC55: 0 | BD55: 0 | BE55: 0 | BF55: 0 | BG55: 0 | BH55: 0 | BI55: 0 | BJ55: 0 | BK55: 0 | BL55: 0 | BM55: 0 | BN55: 0 | BO55: 0 | BP55: 0 | BQ55: 0 | BR55: 0 | BS55: 0 | BT55: 0 | BU55: 0 | BV55: 0 | BW55: 0 | BX55: 0 | BY55: 0 | BZ55: 0 | CA55: 0 | CB55: 0 | CC55: 0 | CD55: 0 | CE55: 0 | CF55: 0
C56: > 22 kV & < = 33 kV ; Subdivision | D56: 0 | E56: 0 | F56: 0 | G56: 0 | H56: 0 | I56: 0 | J56: 0 | K56: 0 | L56: 0 | M56: 0 | N56: 0 | O56: 0 | P56: 0 | Q56: 0 | R56: 0 | S56: 0 | T56: 0 | U56: 0 | V56: 0 | W56: 0 | X56: 0 | Y56: 0 | Z56: 0 | AA56: 0 | AB56: 0 | AC56: 0 | AD56: 0 | AE56: 0 | AF56: 0 | AG56: 0 | AH56: 0 | AI56: 0 | AJ56: 0 | AK56: 0 | AL56: 0 | AM56: 0 | AN56: 0 | AO56: 0 | AP56: 0 | AQ56: 0 | AR56: 0 | AS56: 0 | AT56: 0 | AU56: 0 | AV56: 0 | AW56: 0 | AX56: 0 | AY56: 0 | AZ56: 0 | BA56: 0 | BB56: 0 | BC56: 0 | BD56: 0 | BE56: 0 | BF56: 0 | BG56: 0 | BH56: 0 | BI56: 0 | BJ56: 0 | BK56: 0 | BL56: 0 | BM56: 0 | BN56: 0 | BO56: 0 | BP56: 0 | BQ56: 0 | BR56: 0 | BS56: 0 | BT56: 0 | BU56: 0 | BV56: 0 | BW56: 0 | BX56: 0 | BY56: 0 | BZ56: 0 | CA56: 0 | CB56: 0 | CC56: 0 | CD56: 0 | CE56: 0 | CF56: 0
C57: > 33 kV & < = 66 kV ; Commercial & Industrial | D57: 0 | E57: 0 | F57: 0 | G57: 0 | H57: 0 | I57: 0 | J57: 0 | K57: 0 | L57: 0 | M57: 0 | N57: 0 | O57: 0 | P57: 0 | Q57: 0 | R57: 0 | S57: 0 | T57: 0 | U57: 0 | V57: 0 | W57: 0 | X57: 0 | Y57: 0 | Z57: 0 | AA57: 0 | AB57: 0 | AC57: 0 | AD57: 0 | AE57: 0 | AF57: 0 | AG57: 0 | AH57: 0 | AI57: 0 | AJ57: 0 | AK57: 0 | AL57: 0 | AM57: 0 | AN57: 0 | AO57: 0 | AP57: 0 | AQ57: 0 | AR57: 0 | AS57: 0 | AT57: 0 | AU57: 0 | AV57: 0 | AW57: 0 | AX57: 0 | AY57: 0 | AZ57: 0 | BA57: 0 | BB57: 0 | BC57: 0 | BD57: 0 | BE57: 0 | BF57: 0 | BG57: 0 | BH57: 0 | BI57: 0 | BJ57: 0 | BK57: 0 | BL57: 0 | BM57: 0 | BN57: 0 | BO57: 0 | BP57: 0 | BQ57: 0 | BR57: 0 | BS57: 0 | BT57: 0 | BU57: 0 | BV57: 0 | BW57: 0 | BX57: 0 | BY57: 0 | BZ57: 0 | CA57: 0 | CB57: 0 | CC57: 0 | CD57: 0 | CE57: 0 | CF57: 0
C58: > 33 kV & < = 66 kV ; Subdivision | D58: 0 | E58: 0 | F58: 0 | G58: 0 | H58: 0 | I58: 0 | J58: 0 | K58: 0 | L58: 0 | M58: 0 | N58: 0 | O58: 0 | P58: 0 | Q58: 0 | R58: 0 | S58: 0 | T58: 0 | U58: 0 | V58: 0 | W58: 0 | X58: 0 | Y58: 0 | Z58: 0 | AA58: 0 | AB58: 0 | AC58: 0 | AD58: 0 | AE58: 0 | AF58: 0 | AG58: 0 | AH58: 0 | AI58: 0 | AJ58: 0 | AK58: 0 | AL58: 0 | AM58: 0 | AN58: 0 | AO58: 0 | AP58: 0 | AQ58: 0 | AR58: 0 | AS58: 0 | AT58: 0 | AU58: 0 | AV58: 0 | AW58: 0 | AX58: 0 | AY58: 0 | AZ58: 0 | BA58: 0 | BB58: 0 | BC58: 0 | BD58: 0 | BE58: 0 | BF58: 0 | BG58: 0 | BH58: 0 | BI58: 0 | BJ58: 0 | BK58: 0 | BL58: 0 | BM58: 0 | BN58: 0 | BO58: 0 | BP58: 0 | BQ58: 0 | BR58: 0 | BS58: 0 | BT58: 0 | BU58: 0 | BV58: 0 | BW58: 0 | BX58: 0 | BY58: 0 | BZ58: 0 | CA58: 0 | CB58: 0 | CC58: 0 | CD58: 0 | CE58: 0 | CF58: 0
C59: > 66 kV & < = 132 kV ; Commercial & Industrial | D59: 0 | E59: 0 | F59: 0 | G59: 0 | H59: 0 | I59: 0 | J59: 0 | K59: 0 | L59: 0 | M59: 0 | N59: 0 | O59: 0 | P59: 0 | Q59: 0 | R59: 0 | S59: 0 | T59: 0 | U59: 0 | V59: 0 | W59: 0 | X59: 0 | Y59: 0 | Z59: 0 | AA59: 0 | AB59: 0 | AC59: 0 | AD59: 0 | AE59: 0 | AF59: 0 | AG59: 0 | AH59: 0 | AI59: 0 | AJ59: 0 | AK59: 0 | AL59: 0 | AM59: 0 | AN59: 0 | AO59: 0 | AP59: 0 | AQ59: 0 | AR59: 0 | AS59: 0 | AT59: 0 | AU59: 0 | AV59: 0 | AW59: 0 | AX59: 0 | AY59: 0 | AZ59: 0 | BA59: 0 | BB59: 0 | BC59: 0 | BD59: 0 | BE59: 0 | BF59: 0 | BG59: 0 | BH59: 0 | BI59: 0 | BJ59: 0 | BK59: 0 | BL59: 0 | BM59: 0 | BN59: 0 | BO59: 0 | BP59: 0 | BQ59: 0 | BR59: 0 | BS59: 0 | BT59: 0 | BU59: 0 | BV59: 0 | BW59: 0 | BX59: 0 | BY59: 0 | BZ59: 0 | CA59: 0 | CB59: 0 | CC59: 0 | CD59: 0 | CE59: 0 | CF59: 0
C60: > 66 kV & < = 132 kV ; Subdivision | D60: 0 | E60: 0 | F60: 0 | G60: 0 | H60: 0 | I60: 0 | J60: 0 | K60: 0 | L60: 0 | M60: 0 | N60: 0 | O60: 0 | P60: 0 | Q60: 0 | R60: 0 | S60: 0 | T60: 0 | U60: 0 | V60: 0 | W60: 0 | X60: 0 | Y60: 0 | Z60: 0 | AA60: 0 | AB60: 0 | AC60: 0 | AD60: 0 | AE60: 0 | AF60: 0 | AG60: 0 | AH60: 0 | AI60: 0 | AJ60: 0 | AK60: 0 | AL60: 0 | AM60: 0 | AN60: 0 | AO60: 0 | AP60: 0 | AQ60: 0 | AR60: 0 | AS60: 0 | AT60: 0 | AU60: 0 | AV60: 0 | AW60: 0 | AX60: 0 | AY60: 0 | AZ60: 0 | BA60: 0 | BB60: 0 | BC60: 0 | BD60: 0 | BE60: 0 | BF60: 0 | BG60: 0 | BH60: 0 | BI60: 0 | BJ60: 0 | BK60: 0 | BL60: 0 | BM60: 0 | BN60: 0 | BO60: 0 | BP60: 0 | BQ60: 0 | BR60: 0 | BS60: 0 | BT60: 0 | BU60: 0 | BV60: 0 | BW60: 0 | BX60: 0 | BY60: 0 | BZ60: 0 | CA60: 0 | CB60: 0 | CC60: 0 | CD60: 0 | CE60: 0 | CF60: 0
C61: > 132 kV ; Commercial & Industrial | D61: 0 | E61: 0 | F61: 0 | G61: 0 | H61: 0 | I61: 0 | J61: 0 | K61: 0 | L61: 0 | M61: 0 | N61: 0 | O61: 0 | P61: 0 | Q61: 0 | R61: 0 | S61: 0 | T61: 0 | U61: 0 | V61: 0 | W61: 0 | X61: 0 | Y61: 0 | Z61: 0 | AA61: 0 | AB61: 0 | AC61: 0 | AD61: 0 | AE61: 0 | AF61: 0 | AG61: 0 | AH61: 0 | AI61: 0 | AJ61: 0 | AK61: 0 | AL61: 0 | AM61: 0 | AN61: 0 | AO61: 0 | AP61: 0 | AQ61: 0 | AR61: 0 | AS61: 0 | AT61: 0 | AU61: 0 | AV61: 0 | AW61: 0 | AX61: 0 | AY61: 0 | AZ61: 0 | BA61: 0 | BB61: 0 | BC61: 0 | BD61: 0 | BE61: 0 | BF61: 0 | BG61: 0 | BH61: 0 | BI61: 0 | BJ61: 0 | BK61: 0 | BL61: 0 | BM61: 0 | BN61: 0 | BO61: 0 | BP61: 0 | BQ61: 0 | BR61: 0 | BS61: 0 | BT61: 0 | BU61: 0 | BV61: 0 | BW61: 0 | BX61: 0 | BY61: 0 | BZ61: 0 | CA61: 0 | CB61: 0 | CC61: 0 | CD61: 0 | CE61: 0 | CF61: 0
C62: > 132 kV ; Subdivision | D62: 0 | E62: 0 | F62: 0 | G62: 0 | H62: 0 | I62: 0 | J62: 0 | K62: 0 | L62: 0 | M62: 0 | N62: 0 | O62: 0 | P62: 0 | Q62: 0 | R62: 0 | S62: 0 | T62: 0 | U62: 0 | V62: 0 | W62: 0 | X62: 0 | Y62: 0 | Z62: 0 | AA62: 0 | AB62: 0 | AC62: 0 | AD62: 0 | AE62: 0 | AF62: 0 | AG62: 0 | AH62: 0 | AI62: 0 | AJ62: 0 | AK62: 0 | AL62: 0 | AM62: 0 | AN62: 0 | AO62: 0 | AP62: 0 | AQ62: 0 | AR62: 0 | AS62: 0 | AT62: 0 | AU62: 0 | AV62: 0 | AW62: 0 | AX62: 0 | AY62: 0 | AZ62: 0 | BA62: 0 | BB62: 0 | BC62: 0 | BD62: 0 | BE62: 0 | BF62: 0 | BG62: 0 | BH62: 0 | BI62: 0 | BJ62: 0 | BK62: 0 | BL62: 0 | BM62: 0 | BN62: 0 | BO62: 0 | BP62: 0 | BQ62: 0 | BR62: 0 | BS62: 0 | BT62: 0 | BU62: 0 | BV62: 0 | BW62: 0 | BX62: 0 | BY62: 0 | BZ62: 0 | CA62: 0 | CB62: 0 | CC62: 0 | CD62: 0 | CE62: 0 | CF62: 0
C63: Other | D63: 0 | E63: 0 | F63: 0 | G63: 0 | H63: 0 | I63: 0 | J63: 0 | K63: 0 | L63: 0 | M63: 0 | N63: 0 | O63: 0 | P63: 0 | Q63: 0 | R63: 0 | S63: 0 | T63: 0 | U63: 0 | V63: 0 | W63: 0 | X63: 0 | Y63: 0 | Z63: 0 | AA63: 0 | AB63: 0 | AC63: 0 | AD63: 0 | AE63: 0 | AF63: 0 | AG63: 0 | AH63: 0 | AI63: 0 | AJ63: 0 | AK63: 0 | AL63: 0 | AM63: 0 | AN63: 0 | AO63: 0 | AP63: 0 | AQ63: 0 | AR63: 0 | AS63: 0 | AT63: 0 | AU63: 0 | AV63: 0 | AW63: 0 | AX63: 0 | AY63: 0 | AZ63: 0 | BA63: 0 | BB63: 0 | BC63: 0 | BD63: 0 | BE63: 0 | BF63: 0 | BG63: 0 | BH63: 0 | BI63: 0 | BJ63: 0 | BK63: 0 | BL63: 0 | BM63: 0 | BN63: 0 | BO63: 0 | BP63: 0 | BQ63: 0 | BR63: 0 | BS63: 0 | BT63: 0 | BU63: 0 | BV63: 0 | BW63: 0 | BX63: 0 | BY63: 0 | BZ63: 0 | CA63: 0 | CB63: 0 | CC63: 0 | CD63: 0 | CE63: 0 | CF63: 0
B64: TRANSFORMERS BY: MOUNTING TYPE; HIGHEST OPERATING VOLTAGE ; AMPERE RATING; NUMBER OF PHASES (AT LV) | C64: Pole Mounted ; < = 22kV ; < = 60 kVA ; Single Phase | D64: 45 | E64: 6.708203932 | F64: 64 | G64: 14 | H64: 17 | I64: 60 | J64: 57 | K64: 66 | L64: 27 | M64: 61 | N64: 67 | O64: 85 | P64: 102 | Q64: 114 | R64: 92 | S64: 71 | T64: 40 | U64: 43 | V64: 119 | W64: 32 | X64: 106 | Y64: 35 | Z64: 69 | AA64: 29 | AB64: 85 | AC64: 79 | AD64: 73 | AE64: 97 | AF64: 89 | AG64: 79 | AH64: 114 | AI64: 185 | AJ64: 153 | AK64: 98 | AL64: 90 | AM64: 95 | AN64: 99 | AO64: 62 | AP64: 61 | AQ64: 41 | AR64: 59 | AS64: 25 | AT64: 22 | AU64: 7 | AV64: 24 | AW64: 18 | AX64: 11 | AY64: 10 | AZ64: 17 | BA64: 7 | BB64: 6 | BC64: 3 | BD64: 15 | BE64: 4 | BF64: 5 | BG64: 12 | BH64: 9 | BI64: 2 | BJ64: 11 | BK64: 1 | BL64: 1 | BM64: 4 | BN64: 0 | BO64: 5 | BP64: 2 | BQ64: 4 | BR64: 1 | BS64: 2 | BT64: 0 | BU64: 0 | BV64: 0 | BW64: 0 | BX64: 0 | BY64: 0 | BZ64: 0 | CA64: 0 | CB64: 0 | CC64: 0 | CD64: 0 | CE64: 0 | CF64: 0
C65: Pole Mounted ; < = 22kV ; > 60 kVA and < = 600 kVA ; Single Phase | D65: 45 | E65: 6.708203932 | F65: 0 | G65: 0 | H65: 0 | I65: 0 | J65: 0 | K65: 0 | L65: 0 | M65: 0 | N65: 0 | O65: 0 | P65: 0 | Q65: 0 | R65: 0 | S65: 1 | T65: 0 | U65: 2 | V65: 2 | W65: 3 | X65: 2 | Y65: 0 | Z65: 5 | AA65: 4 | AB65: 1 | AC65: 0 | AD65: 1 | AE65: 0 | AF65: 0 | AG65: 0 | AH65: 0 | AI65: 0 | AJ65: 0 | AK65: 0 | AL65: 0 | AM65: 0 | AN65: 0 | AO65: 0 | AP65: 0 | AQ65: 1 | AR65: 0 | AS65: 0 | AT65: 0 | AU65: 0 | AV65: 0 | AW65: 1 | AX65: 0 | AY65: 0 | AZ65: 0 | BA65: 0 | BB65: 0 | BC65: 0 | BD65: 0 | BE65: 0 | BF65: 0 | BG65: 0 | BH65: 0 | BI65: 0 | BJ65: 0 | BK65: 0 | BL65: 0 | BM65: 0 | BN65: 0 | BO65: 0 | BP65: 0 | BQ65: 0 | BR65: 0 | BS65: 0 | BT65: 0 | BU65: 0 | BV65: 0 | BW65: 0 | BX65: 0 | BY65: 0 | BZ65: 0 | CA65: 0 | CB65: 0 | CC65: 0 | CD65: 0 | CE65: 0 | CF65: 0
C66: Pole Mounted ; < = 22kV ; > 600 kVA ; Single Phase | D66: 0 | E66: 0 | F66: 0 | G66: 0 | H66: 0 | I66: 0 | J66: 0 | K66: 0 | L66: 0 | M66: 0 | N66: 0 | O66: 0 | P66: 0 | Q66: 0 | R66: 0 | S66: 0 | T66: 0 | U66: 0 | V66: 0 | W66: 0 | X66: 0 | Y66: 0 | Z66: 0 | AA66: 0 | AB66: 0 | AC66: 0 | AD66: 0 | AE66: 0 | AF66: 0 | AG66: 0 | AH66: 0 | AI66: 0 | AJ66: 0 | AK66: 0 | AL66: 0 | AM66: 0 | AN66: 0 | AO66: 0 | AP66: 0 | AQ66: 0 | AR66: 0 | AS66: 0 | AT66: 0 | AU66: 0 | AV66: 0 | AW66: 0 | AX66: 0 | AY66: 0 | AZ66: 0 | BA66: 0 | BB66: 0 | BC66: 0 | BD66: 0 | BE66: 0 | BF66: 0 | BG66: 0 | BH66: 0 | BI66: 0 | BJ66: 0 | BK66: 0 | BL66: 0 | BM66: 0 | BN66: 0 | BO66: 0 | BP66: 0 | BQ66: 0 | BR66: 0 | BS66: 0 | BT66: 0 | BU66: 0 | BV66: 0 | BW66: 0 | BX66: 0 | BY66: 0 | BZ66: 0 | CA66: 0 | CB66: 0 | CC66: 0 | CD66: 0 | CE66: 0 | CF66: 0
C67: Pole Mounted ; < = 22kV ; < = 60 kVA ; Multiple Phase | D67: 45 | E67: 6.708203932 | F67: 20 | G67: 44 | H67: 28 | I67: 40 | J67: 17 | K67: 47 | L67: 95 | M67: 43 | N67: 63 | O67: 30 | P67: 42 | Q67: 13 | R67: 71 | S67: 84 | T67: 105 | U67: 55 | V67: 106 | W67: 26 | X67: 68 | Y67: 45 | Z67: 110 | AA67: 33 | AB67: 76 | AC67: 60 | AD67: 76 | AE67: 88 | AF67: 96 | AG67: 103 | AH67: 103 | AI67: 125 | AJ67: 110 | AK67: 91 | AL67: 88 | AM67: 77 | AN67: 70 | AO67: 66 | AP67: 96 | AQ67: 63 | AR67: 63 | AS67: 33 | AT67: 21 | AU67: 31 | AV67: 33 | AW67: 26 | AX67: 16 | AY67: 18 | AZ67: 20 | BA67: 16 | BB67: 20 | BC67: 27 | BD67: 32 | BE67: 20 | BF67: 18 | BG67: 17 | BH67: 16 | BI67: 13 | BJ67: 6 | BK67: 4 | BL67: 7 | BM67: 4 | BN67: 5 | BO67: 9 | BP67: 4 | BQ67: 1 | BR67: 6 | BS67: 9 | BT67: 2 | BU67: 0 | BV67: 0 | BW67: 0 | BX67: 0 | BY67: 0 | BZ67: 0 | CA67: 0 | CB67: 0 | CC67: 0 | CD67: 0 | CE67: 0 | CF67: 0
C68: Pole Mounted ; < = 22kV ; > 60 kVA and < = 600 kVA ; Multiple Phase | D68: 45 | E68: 6.708203932 | F68: 249 | G68: 167 | H68: 100 | I68: 158 | J68: 176 | K68: 247 | L68: 185 | M68: 261 | N68: 354 | O68: 447 | P68: 427 | Q68: 441 | R68: 442 | S68: 430 | T68: 595 | U68: 200 | V68: 598 | W68: 438 | X68: 366 | Y68: 87 | Z68: 238 | AA68: 132 | AB68: 320 | AC68: 253 | AD68: 240 | AE68: 290 | AF68: 278 | AG68: 230 | AH68: 246 | AI68: 344 | AJ68: 382 | AK68: 320 | AL68: 285 | AM68: 244 | AN68: 314 | AO68: 300 | AP68: 405 | AQ68: 216 | AR68: 212 | AS68: 129 | AT68: 110 | AU68: 103 | AV68: 135 | AW68: 68 | AX68: 60 | AY68: 55 | AZ68: 91 | BA68: 74 | BB68: 104 | BC68: 119 | BD68: 101 | BE68: 84 | BF68: 73 | BG68: 53 | BH68: 48 | BI68: 26 | BJ68: 13 | BK68: 16 | BL68: 15 | BM68: 10 | BN68: 4 | BO68: 4 | BP68: 0 | BQ68: 2 | BR68: 2 | BS68: 3 | BT68: 3 | BU68: 0 | BV68: 0 | BW68: 0 | BX68: 0 | BY68: 0 | BZ68: 0 | CA68: 0 | CB68: 0 | CC68: 0 | CD68: 0 | CE68: 0 | CF68: 0
C69: Pole Mounted ; < = 22kV ; > 600 kVA ; Multiple Phase | D69: 45 | E69: 6.708203932 | F69: 0 | G69: 0 | H69: 0 | I69: 0 | J69: 0 | K69: 0 | L69: 0 | M69: 1 | N69: 0 | O69: 0 | P69: 0 | Q69: 0 | R69: 0 | S69: 0 | T69: 1 | U69: 1 | V69: 2 | W69: 0 | X69: 0 | Y69: 0 | Z69: 0 | AA69: 0 | AB69: 0 | AC69: 0 | AD69: 0 | AE69: 0 | AF69: 0 | AG69: 0 | AH69: 0 | AI69: 0 | AJ69: 1 | AK69: 0 | AL69: 0 | AM69: 0 | AN69: 0 | AO69: 0 | AP69: 0 | AQ69: 2 | AR69: 0 | AS69: 0 | AT69: 0 | AU69: 0 | AV69: 0 | AW69: 0 | AX69: 1 | AY69: 0 | AZ69: 0 | BA69: 0 | BB69: 0 | BC69: 0 | BD69: 0 | BE69: 0 | BF69: 0 | BG69: 0 | BH69: 0 | BI69: 0 | BJ69: 0 | BK69: 0 | BL69: 0 | BM69: 0 | BN69: 0 | BO69: 0 | BP69: 0 | BQ69: 0 | BR69: 0 | BS69: 0 | BT69: 0 | BU69: 0 | BV69: 0 | BW69: 0 | BX69: 0 | BY69: 0 | BZ69: 0 | CA69: 0 | CB69: 0 | CC69: 0 | CD69: 0 | CE69: 0 | CF69: 0
C70: Kiosk Mounted ; < = 22kV ; < = 60 kVA ; Single Phase | D70: 0 | E70: 0 | F70: 0 | G70: 0 | H70: 0 | I70: 0 | J70: 0 | K70: 0 | L70: 0 | M70: 0 | N70: 0 | O70: 0 | P70: 0 | Q70: 0 | R70: 0 | S70: 0 | T70: 0 | U70: 0 | V70: 0 | W70: 0 | X70: 0 | Y70: 0 | Z70: 0 | AA70: 0 | AB70: 0 | AC70: 0 | AD70: 0 | AE70: 0 | AF70: 0 | AG70: 0 | AH70: 0 | AI70: 0 | AJ70: 0 | AK70: 0 | AL70: 0 | AM70: 0 | AN70: 0 | AO70: 0 | AP70: 0 | AQ70: 0 | AR70: 0 | AS70: 0 | AT70: 0 | AU70: 0 | AV70: 0 | AW70: 0 | AX70: 0 | AY70: 0 | AZ70: 0 | BA70: 0 | BB70: 0 | BC70: 0 | BD70: 0 | BE70: 0 | BF70: 0 | BG70: 0 | BH70: 0 | BI70: 0 | BJ70: 0 | BK70: 0 | BL70: 0 | BM70: 0 | BN70: 0 | BO70: 0 | BP70: 0 | BQ70: 0 | BR70: 0 | BS70: 0 | BT70: 0 | BU70: 0 | BV70: 0 | BW70: 0 | BX70: 0 | BY70: 0 | BZ70: 0 | CA70: 0 | CB70: 0 | CC70: 0 | CD70: 0 | CE70: 0 | CF70: 0
C71: Kiosk Mounted ; < = 22kV ; > 60 kVA and < = 600 kVA ; Single Phase | D71: 0 | E71: 0 | F71: 0 | G71: 0 | H71: 0 | I71: 0 | J71: 0 | K71: 0 | L71: 0 | M71: 0 | N71: 0 | O71: 0 | P71: 0 | Q71: 0 | R71: 0 | S71: 0 | T71: 0 | U71: 0 | V71: 0 | W71: 0 | X71: 0 | Y71: 0 | Z71: 0 | AA71: 0 | AB71: 0 | AC71: 0 | AD71: 0 | AE71: 0 | AF71: 0 | AG71: 0 | AH71: 0 | AI71: 0 | AJ71: 0 | AK71: 0 | AL71: 0 | AM71: 0 | AN71: 0 | AO71: 0 | AP71: 0 | AQ71: 0 | AR71: 0 | AS71: 0 | AT71: 0 | AU71: 0 | AV71: 0 | AW71: 0 | AX71: 0 | AY71: 0 | AZ71: 0 | BA71: 0 | BB71: 0 | BC71: 0 | BD71: 0 | BE71: 0 | BF71: 0 | BG71: 0 | BH71: 0 | BI71: 0 | BJ71: 0 | BK71: 0 | BL71: 0 | BM71: 0 | BN71: 0 | BO71: 0 | BP71: 0 | BQ71: 0 | BR71: 0 | BS71: 0 | BT71: 0 | BU71: 0 | BV71: 0 | BW71: 0 | BX71: 0 | BY71: 0 | BZ71: 0 | CA71: 0 | CB71: 0 | CC71: 0 | CD71: 0 | CE71: 0 | CF71: 0
C72: Kiosk Mounted ; < = 22kV ; > 600 kVA ; Single Phase | D72: 0 | E72: 0 | F72: 0 | G72: 0 | H72: 0 | I72: 0 | J72: 0 | K72: 0 | L72: 0 | M72: 0 | N72: 0 | O72: 0 | P72: 0 | Q72: 0 | R72: 0 | S72: 0 | T72: 0 | U72: 0 | V72: 0 | W72: 0 | X72: 0 | Y72: 0 | Z72: 0 | AA72: 0 | AB72: 0 | AC72: 0 | AD72: 0 | AE72: 0 | AF72: 0 | AG72: 0 | AH72: 0 | AI72: 0 | AJ72: 0 | AK72: 0 | AL72: 0 | AM72: 0 | AN72: 0 | AO72: 0 | AP72: 0 | AQ72: 0 | AR72: 0 | AS72: 0 | AT72: 0 | AU72: 0 | AV72: 0 | AW72: 0 | AX72: 0 | AY72: 0 | AZ72: 0 | BA72: 0 | BB72: 0 | BC72: 0 | BD72: 0 | BE72: 0 | BF72: 0 | BG72: 0 | BH72: 0 | BI72: 0 | BJ72: 0 | BK72: 0 | BL72: 0 | BM72: 0 | BN72: 0 | BO72: 0 | BP72: 0 | BQ72: 0 | BR72: 0 | BS72: 0 | BT72: 0 | BU72: 0 | BV72: 0 | BW72: 0 | BX72: 0 | BY72: 0 | BZ72: 0 | CA72: 0 | CB72: 0 | CC72: 0 | CD72: 0 | CE72: 0 | CF72: 0
C73: Kiosk Mounted ; < = 22kV ; < = 60 kVA ; Multiple Phase | D73: 45 | E73: 6.708203932 | F73: 0 | G73: 1 | H73: 0 | I73: 0 | J73: 0 | K73: 0 | L73: 1 | M73: 1 | N73: 0 | O73: 3 | P73: 0 | Q73: 0 | R73: 0 | S73: 0 | T73: 1 | U73: 0 | V73: 1 | W73: 0 | X73: 1 | Y73: 0 | Z73: 0 | AA73: 0 | AB73: 0 | AC73: 0 | AD73: 0 | AE73: 0 | AF73: 1 | AG73: 0 | AH73: 1 | AI73: 0 | AJ73: 0 | AK73: 0 | AL73: 1 | AM73: 0 | AN73: 0 | AO73: 0 | AP73: 0 | AQ73: 0 | AR73: 0 | AS73: 0 | AT73: 0 | AU73: 0 | AV73: 0 | AW73: 0 | AX73: 0 | AY73: 0 | AZ73: 0 | BA73: 0 | BB73: 0 | BC73: 0 | BD73: 0 | BE73: 0 | BF73: 0 | BG73: 0 | BH73: 0 | BI73: 0 | BJ73: 0 | BK73: 0 | BL73: 0 | BM73: 0 | BN73: 0 | BO73: 0 | BP73: 0 | BQ73: 0 | BR73: 0 | BS73: 0 | BT73: 0 | BU73: 0 | BV73: 0 | BW73: 0 | BX73: 0 | BY73: 0 | BZ73: 0 | CA73: 0 | CB73: 0 | CC73: 0 | CD73: 0 | CE73: 0 | CF73: 0
C74: Kiosk Mounted ; < = 22kV ; > 60 kVA and < = 600 kVA ; Multiple Phase | D74: 45 | E74: 6.708203932 | F74: 291 | G74: 321 | H74: 193 | I74: 186 | J74: 242 | K74: 271 | L74: 278 | M74: 343 | N74: 349 | O74: 289 | P74: 354 | Q74: 394 | R74: 375 | S74: 419 | T74: 558 | U74: 144 | V74: 469 | W74: 133 | X74: 331 | Y74: 65 | Z74: 197 | AA74: 117 | AB74: 143 | AC74: 129 | AD74: 108 | AE74: 97 | AF74: 89 | AG74: 132 | AH74: 135 | AI74: 166 | AJ74: 138 | AK74: 121 | AL74: 155 | AM74: 115 | AN74: 119 | AO74: 204 | AP74: 243 | AQ74: 126 | AR74: 83 | AS74: 59 | AT74: 47 | AU74: 28 | AV74: 43 | AW74: 33 | AX74: 16 | AY74: 17 | AZ74: 11 | BA74: 4 | BB74: 6 | BC74: 5 | BD74: 4 | BE74: 2 | BF74: 2 | BG74: 0 | BH74: 2 | BI74: 1 | BJ74: 3 | BK74: 0 | BL74: 2 | BM74: 1 | BN74: 0 | BO74: 0 | BP74: 0 | BQ74: 0 | BR74: 1 | BS74: 0 | BT74: 0 | BU74: 0 | BV74: 0 | BW74: 0 | BX74: 0 | BY74: 0 | BZ74: 0 | CA74: 0 | CB74: 0 | CC74: 0 | CD74: 0 | CE74: 0 | CF74: 0
C75: Kiosk Mounted ; < = 22kV ; > 600 kVA ; Multiple Phase | D75: 45 | E75: 6.708203932 | F75: 138 | G75: 90 | H75: 50 | I75: 44 | J75: 57 | K75: 67 | L75: 53 | M75: 74 | N75: 61 | O75: 118 | P75: 154 | Q75: 88 | R75: 148 | S75: 82 | T75: 125 | U75: 104 | V75: 77 | W75: 65 | X75: 102 | Y75: 93 | Z75: 69 | AA75: 53 | AB75: 34 | AC75: 47 | AD75: 36 | AE75: 22 | AF75: 17 | AG75: 24 | AH75: 24 | AI75: 18 | AJ75: 18 | AK75: 17 | AL75: 10 | AM75: 20 | AN75: 8 | AO75: 9 | AP75: 5 | AQ75: 5 | AR75: 3 | AS75: 1 | AT75: 2 | AU75: 0 | AV75: 1 | AW75: 1 | AX75: 0 | AY75: 1 | AZ75: 3 | BA75: 0 | BB75: 0 | BC75: 0 | BD75: 0 | BE75: 0 | BF75: 0 | BG75: 0 | BH75: 0 | BI75: 0 | BJ75: 0 | BK75: 0 | BL75: 0 | BM75: 0 | BN75: 0 | BO75: 0 | BP75: 0 | BQ75: 0 | BR75: 0 | BS75: 1 | BT75: 0 | BU75: 0 | BV75: 0 | BW75: 0 | BX75: 0 | BY75: 0 | BZ75: 0 | CA75: 0 | CB75: 0 | CC75: 0 | CD75: 0 | CE75: 0 | CF75: 0
C76: Ground Outdoor / Indoor Chamber Mounted; ˂ 22 kV ; < = 60 kVA ; Single Phase | D76: 0 | E76: 0 | F76: 0 | G76: 0 | H76: 0 | I76: 0 | J76: 0 | K76: 0 | L76: 0 | M76: 0 | N76: 0 | O76: 0 | P76: 0 | Q76: 0 | R76: 0 | S76: 0 | T76: 0 | U76: 0 | V76: 0 | W76: 0 | X76: 0 | Y76: 0 | Z76: 0 | AA76: 0 | AB76: 0 | AC76: 0 | AD76: 0 | AE76: 0 | AF76: 0 | AG76: 0 | AH76: 0 | AI76: 0 | AJ76: 0 | AK76: 0 | AL76: 0 | AM76: 0 | AN76: 0 | AO76: 0 | AP76: 0 | AQ76: 0 | AR76: 0 | AS76: 0 | AT76: 0 | AU76: 0 | AV76: 0 | AW76: 0 | AX76: 0 | AY76: 0 | AZ76: 0 | BA76: 0 | BB76: 0 | BC76: 0 | BD76: 0 | BE76: 0 | BF76: 0 | BG76: 0 | BH76: 0 | BI76: 0 | BJ76: 0 | BK76: 0 | BL76: 0 | BM76: 0 | BN76: 0 | BO76: 0 | BP76: 0 | BQ76: 0 | BR76: 0 | BS76: 0 | BT76: 0 | BU76: 0 | BV76: 0 | BW76: 0 | BX76: 0 | BY76: 0 | BZ76: 0 | CA76: 0 | CB76: 0 | CC76: 0 | CD76: 0 | CE76: 0 | CF76: 0
C77: Ground Outdoor / Indoor Chamber Mounted; ˂ 22 kV ; > 60 kVA and < = 600 kVA ; Single Phase | D77: 0 | E77: 0 | F77: 0 | G77: 0 | H77: 0 | I77: 0 | J77: 0 | K77: 0 | L77: 0 | M77: 0 | N77: 0 | O77: 0 | P77: 0 | Q77: 0 | R77: 0 | S77: 0 | T77: 0 | U77: 0 | V77: 0 | W77: 0 | X77: 0 | Y77: 0 | Z77: 0 | AA77: 0 | AB77: 0 | AC77: 0 | AD77: 0 | AE77: 0 | AF77: 0 | AG77: 0 | AH77: 0 | AI77: 0 | AJ77: 0 | AK77: 0 | AL77: 0 | AM77: 0 | AN77: 0 | AO77: 0 | AP77: 0 | AQ77: 0 | AR77: 0 | AS77: 0 | AT77: 0 | AU77: 0 | AV77: 0 | AW77: 0 | AX77: 0 | AY77: 0 | AZ77: 0 | BA77: 0 | BB77: 0 | BC77: 0 | BD77: 0 | BE77: 0 | BF77: 0 | BG77: 0 | BH77: 0 | BI77: 0 | BJ77: 0 | BK77: 0 | BL77: 0 | BM77: 0 | BN77: 0 | BO77: 0 | BP77: 0 | BQ77: 0 | BR77: 0 | BS77: 0 | BT77: 0 | BU77: 0 | BV77: 0 | BW77: 0 | BX77: 0 | BY77: 0 | BZ77: 0 | CA77: 0 | CB77: 0 | CC77: 0 | CD77: 0 | CE77: 0 | CF77: 0
C78: Ground Outdoor / Indoor Chamber Mounted; ˂ 22 kV ; > 600 kVA ; Single Phase | D78: 0 | E78: 0 | F78: 0 | G78: 0 | H78: 0 | I78: 0 | J78: 0 | K78: 0 | L78: 0 | M78: 0 | N78: 0 | O78: 0 | P78: 0 | Q78: 0 | R78: 0 | S78: 0 | T78: 0 | U78: 0 | V78: 0 | W78: 0 | X78: 0 | Y78: 0 | Z78: 0 | AA78: 0 | AB78: 0 | AC78: 0 | AD78: 0 | AE78: 0 | AF78: 0 | AG78: 0 | AH78: 0 | AI78: 0 | AJ78: 0 | AK78: 0 | AL78: 0 | AM78: 0 | AN78: 0 | AO78: 0 | AP78: 0 | AQ78: 0 | AR78: 0 | AS78: 0 | AT78: 0 | AU78: 0 | AV78: 0 | AW78: 0 | AX78: 0 | AY78: 0 | AZ78: 0 | BA78: 0 | BB78: 0 | BC78: 0 | BD78: 0 | BE78: 0 | BF78: 0 | BG78: 0 | BH78: 0 | BI78: 0 | BJ78: 0 | BK78: 0 | BL78: 0 | BM78: 0 | BN78: 0 | BO78: 0 | BP78: 0 | BQ78: 0 | BR78: 0 | BS78: 0 | BT78: 0 | BU78: 0 | BV78: 0 | BW78: 0 | BX78: 0 | BY78: 0 | BZ78: 0 | CA78: 0 | CB78: 0 | CC78: 0 | CD78: 0 | CE78: 0 | CF78: 0
C79: Ground Outdoor / Indoor Chamber Mounted; ˂ 22 kV ; < = 60 kVA ; Multiple Phase | D79: 45 | E79: 6.708203932 | F79: 0 | G79: 0 | H79: 0 | I79: 0 | J79: 0 | K79: 0 | L79: 0 | M79: 0 | N79: 0 | O79: 7 | P79: 2 | Q79: 6 | R79: 0 | S79: 0 | T79: 3 | U79: 1 | V79: 1 | W79: 0 | X79: 1 | Y79: 0 | Z79: 5 | AA79: 0 | AB79: 0 | AC79: 0 | AD79: 0 | AE79: 0 | AF79: 0 | AG79: 0 | AH79: 0 | AI79: 0 | AJ79: 0 | AK79: 1 | AL79: 0 | AM79: 2 | AN79: 0 | AO79: 8 | AP79: 0 | AQ79: 0 | AR79: 0 | AS79: 0 | AT79: 1 | AU79: 0 | AV79: 0 | AW79: 0 | AX79: 0 | AY79: 0 | AZ79: 0 | BA79: 1 | BB79: 0 | BC79: 1 | BD79: 3 | BE79: 0 | BF79: 0 | BG79: 0 | BH79: 0 | BI79: 1 | BJ79: 0 | BK79: 0 | BL79: 0 | BM79: 0 | BN79: 0 | BO79: 0 | BP79: 0 | BQ79: 0 | BR79: 0 | BS79: 0 | BT79: 0 | BU79: 0 | BV79: 0 | BW79: 0 | BX79: 0 | BY79: 0 | BZ79: 0 | CA79: 0 | CB79: 0 | CC79: 0 | CD79: 0 | CE79: 0 | CF79: 0
C80: Ground Outdoor / Indoor Chamber Mounted; ˂ 22 kV ; > 60 kVA and < = 600 kVA ; Multiple Phase | D80: 45 | E80: 6.708203932 | F80: 0 | G80: 1 | H80: 3 | I80: 4 | J80: 3 | K80: 4 | L80: 9 | M80: 8 | N80: 10 | O80: 12 | P80: 7 | Q80: 8 | R80: 4 | S80: 10 | T80: 7 | U80: 0 | V80: 2 | W80: 1 | X80: 2 | Y80: 1 | Z80: 4 | AA80: 3 | AB80: 2 | AC80: 5 | AD80: 4 | AE80: 3 | AF80: 4 | AG80: 27 | AH80: 3 | AI80: 7 | AJ80: 11 | AK80: 14 | AL80: 11 | AM80: 7 | AN80: 14 | AO80: 17 | AP80: 6 | AQ80: 5 | AR80: 3 | AS80: 2 | AT80: 1 | AU80: 3 | AV80: 5 | AW80: 3 | AX80: 1 | AY80: 1 | AZ80: 3 | BA80: 2 | BB80: 2 | BC80: 3 | BD80: 0 | BE80: 1 | BF80: 2 | BG80: 0 | BH80: 4 | BI80: 2 | BJ80: 0 | BK80: 0 | BL80: 0 | BM80: 1 | BN80: 0 | BO80: 0 | BP80: 0 | BQ80: 0 | BR80: 0 | BS80: 0 | BT80: 0 | BU80: 0 | BV80: 0 | BW80: 0 | BX80: 0 | BY80: 0 | BZ80: 0 | CA80: 0 | CB80: 0 | CC80: 0 | CD80: 0 | CE80: 0 | CF80: 0
C81: Ground Outdoor / Indoor Chamber Mounted; ˂ 22 kV ; > 600 kVA ; Multiple Phase | D81: 45 | E81: 6.708203932 | F81: 0 | G81: 0 | H81: 2 | I81: 8 | J81: 17 | K81: 10 | L81: 12 | M81: 21 | N81: 17 | O81: 19 | P81: 26 | Q81: 31 | R81: 40 | S81: 26 | T81: 29 | U81: 14 | V81: 26 | W81: 9 | X81: 22 | Y81: 17 | Z81: 16 | AA81: 7 | AB81: 26 | AC81: 29 | AD81: 24 | AE81: 20 | AF81: 13 | AG81: 14 | AH81: 13 | AI81: 16 | AJ81: 38 | AK81: 14 | AL81: 7 | AM81: 12 | AN81: 9 | AO81: 13 | AP81: 6 | AQ81: 3 | AR81: 7 | AS81: 4 | AT81: 6 | AU81: 1 | AV81: 7 | AW81: 3 | AX81: 4 | AY81: 3 | AZ81: 2 | BA81: 1 | BB81: 1 | BC81: 0 | BD81: 0 | BE81: 0 | BF81: 0 | BG81: 0 | BH81: 3 | BI81: 1 | BJ81: 0 | BK81: 0 | BL81: 0 | BM81: 0 | BN81: 0 | BO81: 0 | BP81: 0 | BQ81: 0 | BR81: 0 | BS81: 0 | BT81: 0 | BU81: 0 | BV81: 0 | BW81: 0 | BX81: 0 | BY81: 0 | BZ81: 0 | CA81: 0 | CB81: 0 | CC81: 0 | CD81: 0 | CE81: 0 | CF81: 0
C82: Ground Outdoor / Indoor Chamber Mounted; > = 22 kV & < = 33 kV ; < = 15 MVA | D82: 50 | E82: 7.071067812 | F82: 0 | G82: 1 | H82: 0 | I82: 0 | J82: 3 | K82: 2 | L82: 2 | M82: 1 | N82: 3 | O82: 1 | P82: 3 | Q82: 2 | R82: 0 | S82: 2 | T82: 2 | U82: 0 | V82: 4 | W82: 0 | X82: 1 | Y82: 0 | Z82: 0 | AA82: 0 | AB82: 0 | AC82: 0 | AD82: 0 | AE82: 0 | AF82: 4 | AG82: 3 | AH82: 1 | AI82: 1 | AJ82: 0 | AK82: 1 | AL82: 0 | AM82: 0 | AN82: 1 | AO82: 0 | AP82: 3 | AQ82: 3 | AR82: 1 | AS82: 0 | AT82: 0 | AU82: 0 | AV82: 0 | AW82: 0 | AX82: 2 | AY82: 0 | AZ82: 0 | BA82: 4 | BB82: 1 | BC82: 1 | BD82: 3 | BE82: 0 | BF82: 1 | BG82: 4 | BH82: 1 | BI82: 8 | BJ82: 3 | BK82: 1 | BL82: 0 | BM82: 2 | BN82: 0 | BO82: 0 | BP82: 0 | BQ82: 0 | BR82: 0 | BS82: 0 | BT82: 0 | BU82: 0 | BV82: 0 | BW82: 0 | BX82: 0 | BY82: 0 | BZ82: 0 | CA82: 0 | CB82: 0 | CC82: 0 | CD82: 0 | CE82: 0 | CF82: 0
C83: Ground Outdoor / Indoor Chamber Mounted; > = 22 kV & < = 33 kV ; > 15 MVA and < = 40 MVA | D83: 50 | E83: 7.071067812 | F83: 0 | G83: 0 | H83: 0 | I83: 4 | J83: 6 | K83: 8 | L83: 5 | M83: 8 | N83: 2 | O83: 18 | P83: 6 | Q83: 1 | R83: 5 | S83: 8 | T83: 11 | U83: 5 | V83: 4 | W83: 6 | X83: 1 | Y83: 0 | Z83: 0 | AA83: 0 | AB83: 0 | AC83: 1 | AD83: 2 | AE83: 2 | AF83: 0 | AG83: 0 | AH83: 1 | AI83: 0 | AJ83: 2 | AK83: 2 | AL83: 0 | AM83: 0 | AN83: 4 | AO83: 1 | AP83: 6 | AQ83: 4 | AR83: 2 | AS83: 3 | AT83: 6 | AU83: 3 | AV83: 0 | AW83: 2 | AX83: 4 | AY83: 5 | AZ83: 2 | BA83: 7 | BB83: 7 | BC83: 5 | BD83: 1 | BE83: 5 | BF83: 1 | BG83: 1 | BH83: 1 | BI83: 0 | BJ83: 0 | BK83: 0 | BL83: 0 | BM83: 0 | BN83: 0 | BO83: 0 | BP83: 0 | BQ83: 0 | BR83: 0 | BS83: 0 | BT83: 0 | BU83: 0 | BV83: 0 | BW83: 0 | BX83: 0 | BY83: 0 | BZ83: 0 | CA83: 0 | CB83: 0 | CC83: 0 | CD83: 0 | CE83: 0 | CF83: 0
C84: Ground Outdoor / Indoor Chamber Mounted; > = 22 kV & < = 33 kV ; > 40 MVA | D84: 0 | E84: 0 | F84: 0 | G84: 0 | H84: 0 | I84: 0 | J84: 0 | K84: 0 | L84: 0 | M84: 0 | N84: 0 | O84: 0 | P84: 0 | Q84: 0 | R84: 0 | S84: 0 | T84: 0 | U84: 0 | V84: 0 | W84: 0 | X84: 0 | Y84: 0 | Z84: 0 | AA84: 0 | AB84: 0 | AC84: 0 | AD84: 0 | AE84: 0 | AF84: 0 | AG84: 0 | AH84: 0 | AI84: 0 | AJ84: 0 | AK84: 0 | AL84: 0 | AM84: 0 | AN84: 0 | AO84: 0 | AP84: 0 | AQ84: 0 | AR84: 0 | AS84: 0 | AT84: 0 | AU84: 0 | AV84: 0 | AW84: 0 | AX84: 0 | AY84: 0 | AZ84: 0 | BA84: 0 | BB84: 0 | BC84: 0 | BD84: 0 | BE84: 0 | BF84: 0 | BG84: 0 | BH84: 0 | BI84: 0 | BJ84: 0 | BK84: 0 | BL84: 0 | BM84: 0 | BN84: 0 | BO84: 0 | BP84: 0 | BQ84: 0 | BR84: 0 | BS84: 0 | BT84: 0 | BU84: 0 | BV84: 0 | BW84: 0 | BX84: 0 | BY84: 0 | BZ84: 0 | CA84: 0 | CB84: 0 | CC84: 0 | CD84: 0 | CE84: 0 | CF84: 0
C85: Ground Outdoor / Indoor Chamber Mounted; > 33 kV & < = 66 kV ; < = 15 MVA | D85: 50 | E85: 7.071067812 | F85: 0 | G85: 0 | H85: 0 | I85: 0 | J85: 0 | K85: 0 | L85: 0 | M85: 0 | N85: 0 | O85: 0 | P85: 0 | Q85: 0 | R85: 0 | S85: 0 | T85: 0 | U85: 0 | V85: 0 | W85: 0 | X85: 0 | Y85: 0 | Z85: 0 | AA85: 0 | AB85: 0 | AC85: 0 | AD85: 0 | AE85: 0 | AF85: 0 | AG85: 0 | AH85: 0 | AI85: 0 | AJ85: 0 | AK85: 0 | AL85: 0 | AM85: 0 | AN85: 0 | AO85: 3 | AP85: 0 | AQ85: 0 | AR85: 0 | AS85: 0 | AT85: 0 | AU85: 0 | AV85: 0 | AW85: 0 | AX85: 0 | AY85: 0 | AZ85: 0 | BA85: 2 | BB85: 0 | BC85: 0 | BD85: 0 | BE85: 1 | BF85: 0 | BG85: 2 | BH85: 0 | BI85: 0 | BJ85: 0 | BK85: 0 | BL85: 0 | BM85: 0 | BN85: 0 | BO85: 0 | BP85: 0 | BQ85: 0 | BR85: 0 | BS85: 4 | BT85: 1 | BU85: 1 | BV85: 0 | BW85: 0 | BX85: 0 | BY85: 0 | BZ85: 0 | CA85: 0 | CB85: 0 | CC85: 0 | CD85: 0 | CE85: 0 | CF85: 0
C86: Ground Outdoor / Indoor Chamber Mounted; > 33 kV & < = 66 kV ; > 15 MVA and < = 40 MVA | D86: 50 | E86: 7.071067812 | F86: 0 | G86: 0 | H86: 0 | I86: 1 | J86: 0 | K86: 1 | L86: 1 | M86: 0 | N86: 4 | O86: 0 | P86: 0 | Q86: 2 | R86: 4 | S86: 2 | T86: 4 | U86: 1 | V86: 0 | W86: 0 | X86: 0 | Y86: 0 | Z86: 0 | AA86: 0 | AB86: 0 | AC86: 2 | AD86: 2 | AE86: 0 | AF86: 0 | AG86: 0 | AH86: 1 | AI86: 1 | AJ86: 3 | AK86: 0 | AL86: 5 | AM86: 0 | AN86: 2 | AO86: 3 | AP86: 2 | AQ86: 0 | AR86: 0 | AS86: 2 | AT86: 0 | AU86: 0 | AV86: 6 | AW86: 0 | AX86: 0 | AY86: 0 | AZ86: 0 | BA86: 0 | BB86: 0 | BC86: 0 | BD86: 0 | BE86: 4 | BF86: 0 | BG86: 0 | BH86: 0 | BI86: 0 | BJ86: 0 | BK86: 1 | BL86: 0 | BM86: 0 | BN86: 0 | BO86: 0 | BP86: 0 | BQ86: 0 | BR86: 0 | BS86: 0 | BT86: 0 | BU86: 0 | BV86: 0 | BW86: 0 | BX86: 0 | BY86: 0 | BZ86: 0 | CA86: 0 | CB86: 0 | CC86: 0 | CD86: 0 | CE86: 0 | CF86: 0
C87: Ground Outdoor / Indoor Chamber Mounted; > 33 kV & < = 66 kV ; > 40 MVA | D87: 0 | E87: 0 | F87: 0 | G87: 0 | H87: 0 | I87: 0 | J87: 0 | K87: 0 | L87: 0 | M87: 0 | N87: 0 | O87: 0 | P87: 0 | Q87: 0 | R87: 0 | S87: 0 | T87: 0 | U87: 0 | V87: 0 | W87: 0 | X87: 0 | Y87: 0 | Z87: 0 | AA87: 0 | AB87: 0 | AC87: 0 | AD87: 0 | AE87: 0 | AF87: 0 | AG87: 0 | AH87: 0 | AI87: 0 | AJ87: 0 | AK87: 0 | AL87: 0 | AM87: 0 | AN87: 0 | AO87: 0 | AP87: 0 | AQ87: 0 | AR87: 0 | AS87: 0 | AT87: 0 | AU87: 0 | AV87: 0 | AW87: 0 | AX87: 0 | AY87: 0 | AZ87: 0 | BA87: 0 | BB87: 0 | BC87: 0 | BD87: 0 | BE87: 0 | BF87: 0 | BG87: 0 | BH87: 0 | BI87: 0 | BJ87: 0 | BK87: 0 | BL87: 0 | BM87: 0 | BN87: 0 | BO87: 0 | BP87: 0 | BQ87: 0 | BR87: 0 | BS87: 0 | BT87: 0 | BU87: 0 | BV87: 0 | BW87: 0 | BX87: 0 | BY87: 0 | BZ87: 0 | CA87: 0 | CB87: 0 | CC87: 0 | CD87: 0 | CE87: 0 | CF87: 0
C88: Ground Outdoor / Indoor Chamber Mounted; > 66 kV & < = 132 kV ; < = 100 MVA | D88: 50 | E88: 7.071067812 | F88: 0 | G88: 1 | H88: 0 | I88: 0 | J88: 1 | K88: 3 | L88: 4 | M88: 4 | N88: 0 | O88: 10 | P88: 9 | Q88: 0 | R88: 7 | S88: 10 | T88: 1 | U88: 8 | V88: 1 | W88: 3 | X88: 2 | Y88: 0 | Z88: 0 | AA88: 2 | AB88: 2 | AC88: 1 | AD88: 0 | AE88: 2 | AF88: 2 | AG88: 1 | AH88: 0 | AI88: 0 | AJ88: 5 | AK88: 0 | AL88: 3 | AM88: 2 | AN88: 0 | AO88: 0 | AP88: 0 | AQ88: 3 | AR88: 0 | AS88: 0 | AT88: 0 | AU88: 0 | AV88: 0 | AW88: 0 | AX88: 0 | AY88: 0 | AZ88: 0 | BA88: 2 | BB88: 0 | BC88: 2 | BD88: 0 | BE88: 1 | BF88: 0 | BG88: 0 | BH88: 0 | BI88: 2 | BJ88: 0 | BK88: 0 | BL88: 0 | BM88: 0 | BN88: 0 | BO88: 0 | BP88: 0 | BQ88: 0 | BR88: 0 | BS88: 0 | BT88: 0 | BU88: 0 | BV88: 0 | BW88: 0 | BX88: 0 | BY88: 0 | BZ88: 0 | CA88: 0 | CB88: 0 | CC88: 0 | CD88: 0 | CE88: 0 | CF88: 0
C89: Ground Outdoor / Indoor Chamber Mounted; > 66 kV & < = 132 kV ; > 100 MVA | D89: 50 | E89: 7.071067812 | F89: 0 | G89: 0 | H89: 0 | I89: 0 | J89: 1 | K89: 1 | L89: 0 | M89: 3 | N89: 0 | O89: 0 | P89: 3 | Q89: 0 | R89: 10 | S89: 1 | T89: 1 | U89: 0 | V89: 0 | W89: 0 | X89: 0 | Y89: 0 | Z89: 0 | AA89: 0 | AB89: 0 | AC89: 0 | AD89: 0 | AE89: 0 | AF89: 0 | AG89: 0 | AH89: 0 | AI89: 0 | AJ89: 0 | AK89: 0 | AL89: 0 | AM89: 0 | AN89: 0 | AO89: 1 | AP89: 0 | AQ89: 0 | AR89: 0 | AS89: 0 | AT89: 1 | AU89: 0 | AV89: 2 | AW89: 0 | AX89: 1 | AY89: 2 | AZ89: 0 | BA89: 0 | BB89: 0 | BC89: 4 | BD89: 1 | BE89: 0 | BF89: 2 | BG89: 0 | BH89: 2 | BI89: 1 | BJ89: 0 | BK89: 0 | BL89: 0 | BM89: 0 | BN89: 0 | BO89: 0 | BP89: 0 | BQ89: 0 | BR89: 0 | BS89: 0 | BT89: 0 | BU89: 0 | BV89: 0 | BW89: 0 | BX89: 0 | BY89: 0 | BZ89: 0 | CA89: 0 | CB89: 0 | CC89: 0 | CD89: 0 | CE89: 0 | CF89: 0
C90: Ground Outdoor / Indoor Chamber Mounted; > 132 kV ; < = 100 MVA | D90: 0 | E90: 0 | F90: 0 | G90: 0 | H90: 0 | I90: 0 | J90: 0 | K90: 0 | L90: 0 | M90: 0 | N90: 0 | O90: 0 | P90: 0 | Q90: 0 | R90: 0 | S90: 0 | T90: 0 | U90: 0 | V90: 0 | W90: 0 | X90: 0 | Y90: 0 | Z90: 0 | AA90: 0 | AB90: 0 | AC90: 0 | AD90: 0 | AE90: 0 | AF90: 0 | AG90: 0 | AH90: 0 | AI90: 0 | AJ90: 0 | AK90: 0 | AL90: 0 | AM90: 0 | AN90: 0 | AO90: 0 | AP90: 0 | AQ90: 0 | AR90: 0 | AS90: 0 | AT90: 0 | AU90: 0 | AV90: 0 | AW90: 0 | AX90: 0 | AY90: 0 | AZ90: 0 | BA90: 0 | BB90: 0 | BC90: 0 | BD90: 0 | BE90: 0 | BF90: 0 | BG90: 0 | BH90: 0 | BI90: 0 | BJ90: 0 | BK90: 0 | BL90: 0 | BM90: 0 | BN90: 0 | BO90: 0 | BP90: 0 | BQ90: 0 | BR90: 0 | BS90: 0 | BT90: 0 | BU90: 0 | BV90: 0 | BW90: 0 | BX90: 0 | BY90: 0 | BZ90: 0 | CA90: 0 | CB90: 0 | CC90: 0 | CD90: 0 | CE90: 0 | CF90: 0
C91: Ground Outdoor / Indoor Chamber Mounted; > 132 kV ; > 100 MVA | D91: 0 | E91: 0 | F91: 0 | G91: 0 | H91: 0 | I91: 0 | J91: 0 | K91: 0 | L91: 0 | M91: 0 | N91: 0 | O91: 0 | P91: 0 | Q91: 0 | R91: 0 | S91: 0 | T91: 0 | U91: 0 | V91: 0 | W91: 0 | X91: 0 | Y91: 0 | Z91: 0 | AA91: 0 | AB91: 0 | AC91: 0 | AD91: 0 | AE91: 0 | AF91: 0 | AG91: 0 | AH91: 0 | AI91: 0 | AJ91: 0 | AK91: 0 | AL91: 0 | AM91: 0 | AN91: 0 | AO91: 0 | AP91: 0 | AQ91: 0 | AR91: 0 | AS91: 0 | AT91: 0 | AU91: 0 | AV91: 0 | AW91: 0 | AX91: 0 | AY91: 0 | AZ91: 0 | BA91: 0 | BB91: 0 | BC91: 0 | BD91: 0 | BE91: 0 | BF91: 0 | BG91: 0 | BH91: 0 | BI91: 0 | BJ91: 0 | BK91: 0 | BL91: 0 | BM91: 0 | BN91: 0 | BO91: 0 | BP91: 0 | BQ91: 0 | BR91: 0 | BS91: 0 | BT91: 0 | BU91: 0 | BV91: 0 | BW91: 0 | BX91: 0 | BY91: 0 | BZ91: 0 | CA91: 0 | CB91: 0 | CC91: 0 | CD91: 0 | CE91: 0 | CF91: 0
C92: Other | D92: 0 | E92: 0 | F92: 0 | G92: 0 | H92: 0 | I92: 0 | J92: 0 | K92: 0 | L92: 0 | M92: 0 | N92: 0 | O92: 0 | P92: 0 | Q92: 0 | R92: 0 | S92: 0 | T92: 0 | U92: 0 | V92: 0 | W92: 0 | X92: 0 | Y92: 0 | Z92: 0 | AA92: 0 | AB92: 0 | AC92: 0 | AD92: 0 | AE92: 0 | AF92: 0 | AG92: 0 | AH92: 0 | AI92: 0 | AJ92: 0 | AK92: 0 | AL92: 0 | AM92: 0 | AN92: 0 | AO92: 0 | AP92: 0 | AQ92: 0 | AR92: 0 | AS92: 0 | AT92: 0 | AU92: 0 | AV92: 0 | AW92: 0 | AX92: 0 | AY92: 0 | AZ92: 0 | BA92: 0 | BB92: 0 | BC92: 0 | BD92: 0 | BE92: 0 | BF92: 0 | BG92: 0 | BH92: 0 | BI92: 0 | BJ92: 0 | BK92: 0 | BL92: 0 | BM92: 0 | BN92: 0 | BO92: 0 | BP92: 0 | BQ92: 0 | BR92: 0 | BS92: 0 | BT92: 0 | BU92: 0 | BV92: 0 | BW92: 0 | BX92: 0 | BY92: 0 | BZ92: 0 | CA92: 0 | CB92: 0 | CC92: 0 | CD92: 0 | CE92: 0 | CF92: 0
B93: SWITCHGEAR BY: HIGHEST OPERATING VOLTAGE ; SWITCH FUNCTION | C93: ˂ = 11 kV ; Fuse | D93: 35 | E93: 5.916079783 | F93: 44 | G93: 137 | H93: 167 | I93: 129 | J93: 266 | K93: 300 | L93: 147 | M93: 91 | N93: 60 | O93: 46 | P93: 44 | Q93: 32 | R93: 6 | S93: 10 | T93: 14 | U93: 16 | V93: 14 | W93: 127 | X93: 62 | Y93: 58 | Z93: 0 | AA93: 0 | AB93: 0 | AC93: 0 | AD93: 0 | AE93: 0 | AF93: 0 | AG93: 0 | AH93: 0 | AI93: 0 | AJ93: 0 | AK93: 0 | AL93: 0 | AM93: 0 | AN93: 0 | AO93: 0 | AP93: 0 | AQ93: 0 | AR93: 0 | AS93: 0 | AT93: 0 | AU93: 0 | AV93: 0 | AW93: 0 | AX93: 0 | AY93: 2 | AZ93: 0 | BA93: 0 | BB93: 0 | BC93: 0 | BD93: 0 | BE93: 0 | BF93: 0 | BG93: 0 | BH93: 0 | BI93: 0 | BJ93: 0 | BK93: 0 | BL93: 0 | BM93: 0 | BN93: 0 | BO93: 0 | BP93: 0 | BQ93: 0 | BR93: 0 | BS93: 0 | BT93: 0 | BU93: 0 | BV93: 0 | BW93: 0 | BX93: 0 | BY93: 0 | BZ93: 0 | CA93: 0 | CB93: 0 | CC93: 0 | CD93: 0 | CE93: 0 | CF93: 0
C94: ˂ = 11 kV ; Switch | D94: 35 | E94: 5.916079783 | F94: 498 | G94: 625 | H94: 579 | I94: 784 | J94: 1077 | K94: 1484 | L94: 1119 | M94: 833 | N94: 880 | O94: 967 | P94: 1127 | Q94: 1041 | R94: 914 | S94: 898 | T94: 801 | U94: 686 | V94: 634 | W94: 493 | X94: 374 | Y94: 329 | Z94: 69 | AA94: 81 | AB94: 91 | AC94: 99 | AD94: 135 | AE94: 117 | AF94: 163 | AG94: 236 | AH94: 268 | AI94: 238 | AJ94: 279 | AK94: 236 | AL94: 202 | AM94: 250 | AN94: 282 | AO94: 189 | AP94: 155 | AQ94: 130 | AR94: 218 | AS94: 185 | AT94: 164 | AU94: 133 | AV94: 144 | AW94: 72 | AX94: 61 | AY94: 42 | AZ94: 67 | BA94: 59 | BB94: 74 | BC94: 36 | BD94: 20 | BE94: 25 | BF94: 55 | BG94: 42 | BH94: 14 | BI94: 3 | BJ94: 8 | BK94: 6 | BL94: 22 | BM94: 0 | BN94: 0 | BO94: 0 | BP94: 0 | BQ94: 0 | BR94: 0 | BS94: 0 | BT94: 0 | BU94: 0 | BV94: 0 | BW94: 0 | BX94: 0 | BY94: 0 | BZ94: 0 | CA94: 0 | CB94: 0 | CC94: 0 | CD94: 0 | CE94: 0 | CF94: 0
C95: ˂ = 11 kV ; Circuit Breaker | D95: 45 | E95: 6.708203932 | F95: 11 | G95: 19 | H95: 26 | I95: 71 | J95: 155 | K95: 288 | L95: 260 | M95: 127 | N95: 91 | O95: 53 | P95: 97 | Q95: 126 | R95: 100 | S95: 91 | T95: 46 | U95: 94 | V95: 17 | W95: 54 | X95: 9 | Y95: 0 | Z95: 42 | AA95: 5 | AB95: 5 | AC95: 5 | AD95: 19 | AE95: 12 | AF95: 6 | AG95: 14 | AH95: 37 | AI95: 37 | AJ95: 38 | AK95: 14 | AL95: 36 | AM95: 32 | AN95: 115 | AO95: 32 | AP95: 40 | AQ95: 22 | AR95: 17 | AS95: 32 | AT95: 4 | AU95: 12 | AV95: 30 | AW95: 31 | AX95: 8 | AY95: 0 | AZ95: 48 | BA95: 54 | BB95: 55 | BC95: 14 | BD95: 56 | BE95: 23 | BF95: 28 | BG95: 48 | BH95: 16 | BI95: 27 | BJ95: 0 | BK95: 0 | BL95: 5 | BM95: 1 | BN95: 0 | BO95: 0 | BP95: 0 | BQ95: 0 | BR95: 0 | BS95: 0 | BT95: 0 | BU95: 0 | BV95: 0 | BW95: 0 | BX95: 0 | BY95: 0 | BZ95: 0 | CA95: 0 | CB95: 0 | CC95: 0 | CD95: 0 | CE95: 0 | CF95: 0
C96: > 11 kV & < = 22 kV ; Switch | D96: 35 | E96: 5.916079783 | F96: 2 | G96: 21 | H96: 15 | I96: 21 | J96: 10 | K96: 7 | L96: 10 | M96: 16 | N96: 8 | O96: 46 | P96: 23 | Q96: 5 | R96: 16 | S96: 11 | T96: 15 | U96: 5 | V96: 7 | W96: 8 | X96: 28 | Y96: 10 | Z96: 0 | AA96: 0 | AB96: 0 | AC96: 7 | AD96: 13 | AE96: 3 | AF96: 0 | AG96: 0 | AH96: 0 | AI96: 11 | AJ96: 2 | AK96: 3 | AL96: 3 | AM96: 0 | AN96: 2 | AO96: 0 | AP96: 0 | AQ96: 0 | AR96: 0 | AS96: 0 | AT96: 0 | AU96: 0 | AV96: 0 | AW96: 0 | AX96: 0 | AY96: 0 | AZ96: 0 | BA96: 0 | BB96: 0 | BC96: 0 | BD96: 0 | BE96: 0 | BF96: 0 | BG96: 0 | BH96: 0 | BI96: 0 | BJ96: 0 | BK96: 0 | BL96: 0 | BM96: 0 | BN96: 0 | BO96: 0 | BP96: 0 | BQ96: 0 | BR96: 0 | BS96: 0 | BT96: 0 | BU96: 0 | BV96: 0 | BW96: 0 | BX96: 0 | BY96: 0 | BZ96: 0 | CA96: 0 | CB96: 0 | CC96: 0 | CD96: 0 | CE96: 0 | CF96: 0
C97: > 11 kV & < = 22 kV ; Circuit Breaker | D97: 45 | E97: 6.708203932 | F97: 0 | G97: 0 | H97: 0 | I97: 0 | J97: 0 | K97: 0 | L97: 0 | M97: 2 | N97: 23 | O97: 7 | P97: 0 | Q97: 0 | R97: 0 | S97: 7 | T97: 0 | U97: 0 | V97: 0 | W97: 0 | X97: 16 | Y97: 0 | Z97: 0 | AA97: 0 | AB97: 0 | AC97: 0 | AD97: 0 | AE97: 0 | AF97: 0 | AG97: 0 | AH97: 0 | AI97: 0 | AJ97: 0 | AK97: 0 | AL97: 0 | AM97: 0 | AN97: 0 | AO97: 0 | AP97: 0 | AQ97: 0 | AR97: 0 | AS97: 0 | AT97: 0 | AU97: 0 | AV97: 0 | AW97: 0 | AX97: 0 | AY97: 0 | AZ97: 0 | BA97: 0 | BB97: 0 | BC97: 0 | BD97: 0 | BE97: 0 | BF97: 0 | BG97: 0 | BH97: 0 | BI97: 0 | BJ97: 0 | BK97: 0 | BL97: 0 | BM97: 0 | BN97: 0 | BO97: 0 | BP97: 0 | BQ97: 0 | BR97: 0 | BS97: 0 | BT97: 0 | BU97: 0 | BV97: 0 | BW97: 0 | BX97: 0 | BY97: 0 | BZ97: 0 | CA97: 0 | CB97: 0 | CC97: 0 | CD97: 0 | CE97: 0 | CF97: 0
C98: > 22 kV & < = 33 kV ; Switch | D98: 35 | E98: 5.916079783 | F98: 3 | G98: 7 | H98: 5 | I98: 0 | J98: 5 | K98: 3 | L98: 7 | M98: 7 | N98: 5 | O98: 0 | P98: 8 | Q98: 7 | R98: 5 | S98: 13 | T98: 10 | U98: 15 | V98: 2 | W98: 0 | X98: 12 | Y98: 2 | Z98: 0 | AA98: 0 | AB98: 0 | AC98: 0 | AD98: 0 | AE98: 2 | AF98: 0 | AG98: 0 | AH98: 0 | AI98: 0 | AJ98: 0 | AK98: 0 | AL98: 0 | AM98: 0 | AN98: 0 | AO98: 2 | AP98: 2 | AQ98: 0 | AR98: 0 | AS98: 0 | AT98: 0 | AU98: 0 | AV98: 0 | AW98: 0 | AX98: 0 | AY98: 0 | AZ98: 0 | BA98: 0 | BB98: 0 | BC98: 0 | BD98: 0 | BE98: 0 | BF98: 0 | BG98: 0 | BH98: 0 | BI98: 0 | BJ98: 0 | BK98: 0 | BL98: 0 | BM98: 0 | BN98: 0 | BO98: 0 | BP98: 0 | BQ98: 0 | BR98: 0 | BS98: 0 | BT98: 0 | BU98: 0 | BV98: 0 | BW98: 0 | BX98: 0 | BY98: 0 | BZ98: 0 | CA98: 0 | CB98: 0 | CC98: 0 | CD98: 0 | CE98: 0 | CF98: 0
C99: > 22 kV & < = 33 kV ; Circuit Breaker | D99: 45 | E99: 6.708203932 | F99: 2 | G99: 1 | H99: 2 | I99: 3 | J99: 23 | K99: 62 | L99: 153 | M99: 61 | N99: 66 | O99: 61 | P99: 49 | Q99: 40 | R99: 26 | S99: 16 | T99: 30 | U99: 18 | V99: 6 | W99: 10 | X99: 5 | Y99: 5 | Z99: 0 | AA99: 3 | AB99: 8 | AC99: 3 | AD99: 13 | AE99: 0 | AF99: 0 | AG99: 7 | AH99: 7 | AI99: 2 | AJ99: 1 | AK99: 1 | AL99: 0 | AM99: 10 | AN99: 13 | AO99: 5 | AP99: 12 | AQ99: 7 | AR99: 6 | AS99: 5 | AT99: 11 | AU99: 2 | AV99: 3 | AW99: 13 | AX99: 2 | AY99: 4 | AZ99: 4 | BA99: 38 | BB99: 7 | BC99: 33 | BD99: 19 | BE99: 7 | BF99: 31 | BG99: 7 | BH99: 14 | BI99: 5 | BJ99: 0 | BK99: 1 | BL99: 1 | BM99: 1 | BN99: 0 | BO99: 0 | BP99: 0 | BQ99: 0 | BR99: 0 | BS99: 0 | BT99: 0 | BU99: 0 | BV99: 0 | BW99: 0 | BX99: 0 | BY99: 0 | BZ99: 0 | CA99: 0 | CB99: 0 | CC99: 0 | CD99: 0 | CE99: 0 | CF99: 0
